Workbook

Sheet Tifia Sched 1 (hidden)
B2: Appendix Two
B4: Loan Amortization Schedule
B5: Initial Principal Amount | D5: =D49 -> 140000000 | F5: Closing Date | G5: 2003-05-22 | I5: Interest Rate | J5: =TifiaInterestRate -> 0.0446
B8: Year | C8: Beginning Balance | D8: Disbursements | E8: Loan Repayment | F8: Interest Paid | G8: Interest Accrued | H8: Repayment of Accrued Interest | I8: Principal Repayment | J8: Ending Balance
B10: 2003 | C10: 0 | D10: =SUMIF(Construction!$I$9:$FM$9,B10,Construction!$I$55:$FM$55)*1000 -> 42069556.68 | E10: =SUM(F10,H10:I10) -> 0 | G10: =SUMIF(Construction!$I$9:$FM$9,B10,Construction!$I$56:$FM$56)*1000 -> 645783.6946 | J10: =SUM(C10:G10) -> 42715340.37
B11: =B10+1 -> 2004 | C11: =J10 -> 42715340.37 | D11: =SUMIF(Construction!$I$9:$FM$9,B11,Construction!$I$55:$FM$55)*1000 -> 44818882.7 | E11: =SUM(F11,H11:I11) -> 0 | G11: =SUMIF(Construction!$I$9:$FM$9,B11,Construction!$I$56:$FM$56)*1000 -> 2806457.61 | J11: =SUM(C11:G11) -> 90340680.68
B12: =B11+1 -> 2005 | C12: =J11 -> 90340680.68 | D12: =SUMIF(Construction!$I$9:$FM$9,B12,Construction!$I$55:$FM$55)*1000 -> 41820029.65 | E12: 0 | G12: =SUMIF(Construction!$I$9:$FM$9,B12,Construction!$I$56:$FM$56)*1000 -> 5031027.165 | J12: =SUM(C12:G12) -> 137191737.5
B13: 2006 | C13: =J12 -> 137191737.5 | D13: =SUMIF(Construction!$I$9:$FM$9,B13,Construction!$I$55:$FM$55)*1000 -> 11291530.97 | E13: 0 | F13: ='Tifia Amortisation Ann '!N10*1000-SUM(H13:I13) -> 0 | G13: =SUMIF(Construction!$I$9:$FM$9,B13,Construction!$I$56:$FM$56)*1000+'Tifia Amortisation Ann '!G10*1000 -> 6650198.437 | J13: ='Tifia Amortisation Ann '!M10*1000 -> 155133466.9
B14: 2007 | C14: =J13 -> 155133466.9 | D14: =SUMIF(Construction!$I$9:$FM$9,B14,Construction!$I$55:$FM$55)*1000 -> 0 | E14: 0 | F14: ='Tifia Amortisation Ann '!N11*1000-SUM(H14:I14) -> 0 | G14: =MAX(0,'Tifia Amortisation Ann '!M11-'Tifia Amortisation Ann '!D11)*1000 -> 6996093.734 | H14: ='Tifia Amortisation Ann '!H11*1000 -> 0 | I14: ='Tifia Amortisation Ann '!I11*1000 -> 0 | J14: ='Tifia Amortisation Ann '!M11*1000 -> 162129560.6
B15: 2008 | C15: 162129560.6 | D15: =SUMIF(Construction!$I$9:$FM$9,B15,Construction!$I$55:$FM$55)*1000 -> 0 | E15: 0 | F15: ='Tifia Amortisation Ann '!N12*1000-SUM(H15:I15) -> 0 | G15: =MAX(0,'Tifia Amortisation Ann '!M12-'Tifia Amortisation Ann '!D12)*1000 -> 7311601.406 | H15: ='Tifia Amortisation Ann '!H12*1000 -> 0 | I15: ='Tifia Amortisation Ann '!I12*1000 -> 0 | J15: ='Tifia Amortisation Ann '!M12*1000 -> 169441162
B16: 2009 | C16: 169441162 | D16: =SUMIF(Construction!$I$9:$FM$9,B16,Construction!$I$55:$FM$55)*1000 -> 0 | E16: 0 | F16: ='Tifia Amortisation Ann '!N13*1000-SUM(H16:I16) -> 0 | G16: =MAX(0,'Tifia Amortisation Ann '!M13-'Tifia Amortisation Ann '!D13)*1000 -> 7641331.531 | H16: ='Tifia Amortisation Ann '!H13*1000 -> 0 | I16: ='Tifia Amortisation Ann '!I13*1000 -> 0 | J16: ='Tifia Amortisation Ann '!M13*1000 -> 177082493.6
B17: 2010 | C17: 177082493.6 | D17: =SUMIF(Construction!$I$9:$FM$9,B17,Construction!$I$55:$FM$55)*1000 -> 0 | E17: 7897879.214 | F17: ='Tifia Amortisation Ann '!N14*1000-SUM(H17:I17) -> 7897879.214 | G17: =MAX(0,'Tifia Amortisation Ann '!M14-'Tifia Amortisation Ann '!D14) -> 0 | H17: ='Tifia Amortisation Ann '!H14*1000 -> 0 | I17: ='Tifia Amortisation Ann '!I14*1000 -> 0 | J17: ='Tifia Amortisation Ann '!M14*1000 -> 177082493.6
B18: 2011 | C18: 177082493.6 | D18: =SUMIF(Construction!$I$9:$FM$9,B18,Construction!$I$55:$FM$55)*1000 -> 0 | E18: 7897879.214 | F18: ='Tifia Amortisation Ann '!N15*1000-SUM(H18:I18) -> 7897879.214 | G18: =MAX(0,'Tifia Amortisation Ann '!M15-'Tifia Amortisation Ann '!D15) -> 0 | H18: ='Tifia Amortisation Ann '!H15*1000 -> 0 | I18: ='Tifia Amortisation Ann '!I15*1000 -> 0 | J18: ='Tifia Amortisation Ann '!M15*1000 -> 177082493.6
B19: 2012 | C19: 177082493.6 | D19: =SUMIF(Construction!$I$9:$FM$9,B19,Construction!$I$55:$FM$55)*1000 -> 0 | E19: 7897879.214 | F19: ='Tifia Amortisation Ann '!N16*1000-SUM(H19:I19) -> 7897879.214 | G19: =MAX(0,'Tifia Amortisation Ann '!M16-'Tifia Amortisation Ann '!D16) -> 0 | H19: ='Tifia Amortisation Ann '!H16*1000 -> 0 | I19: ='Tifia Amortisation Ann '!I16*1000 -> 0 | J19: ='Tifia Amortisation Ann '!M16*1000 -> 177082493.6
B20: 2013 | C20: 177082493.6 | D20: =SUMIF(Construction!$I$9:$FM$9,B20,Construction!$I$55:$FM$55)*1000 -> 0 | E20: 7897879.214 | F20: ='Tifia Amortisation Ann '!N17*1000-SUM(H20:I20) -> 7897879.214 | G20: =MAX(0,'Tifia Amortisation Ann '!M17-'Tifia Amortisation Ann '!D17) -> 0 | H20: ='Tifia Amortisation Ann '!H17*1000 -> 0 | I20: ='Tifia Amortisation Ann '!I17*1000 -> 0 | J20: ='Tifia Amortisation Ann '!M17*1000 -> 177082493.6
B21: 2014 | C21: 177082493.6 | D21: =SUMIF(Construction!$I$9:$FM$9,B21,Construction!$I$55:$FM$55)*1000 -> 0 | E21: 7897879.214 | F21: ='Tifia Amortisation Ann '!N18*1000-SUM(H21:I21) -> 7897879.214 | G21: =MAX(0,'Tifia Amortisation Ann '!M18-'Tifia Amortisation Ann '!D18) -> 0 | H21: ='Tifia Amortisation Ann '!H18*1000 -> 0 | I21: ='Tifia Amortisation Ann '!I18*1000 -> 0 | J21: ='Tifia Amortisation Ann '!M18*1000 -> 177082493.6
B22: 2015 | C22: 177082493.6 | D22: =SUMIF(Construction!$I$9:$FM$9,B22,Construction!$I$55:$FM$55)*1000 -> 0 | E22: 7897879.214 | F22: ='Tifia Amortisation Ann '!N19*1000-SUM(H22:I22) -> 7897879.214 | G22: =MAX(0,'Tifia Amortisation Ann '!M19-'Tifia Amortisation Ann '!D19) -> 0 | H22: ='Tifia Amortisation Ann '!H19*1000 -> 0 | I22: ='Tifia Amortisation Ann '!I19*1000 -> 0 | J22: ='Tifia Amortisation Ann '!M19*1000 -> 177082493.6
B23: 2016 | C23: 177082493.6 | D23: =SUMIF(Construction!$I$9:$FM$9,B23,Construction!$I$55:$FM$55)*1000 -> 0 | E23: 7897879.214 | F23: ='Tifia Amortisation Ann '!N20*1000-SUM(H23:I23) -> 7897879.214 | G23: =MAX(0,'Tifia Amortisation Ann '!M20-'Tifia Amortisation Ann '!D20) -> 0 | H23: ='Tifia Amortisation Ann '!H20*1000 -> 0 | I23: ='Tifia Amortisation Ann '!I20*1000 -> 0 | J23: ='Tifia Amortisation Ann '!M20*1000 -> 177082493.6
B24: 2017 | C24: 177082493.6 | D24: =SUMIF(Construction!$I$9:$FM$9,B24,Construction!$I$55:$FM$55)*1000 -> 0 | E24: 7897879.214 | F24: ='Tifia Amortisation Ann '!N21*1000-SUM(H24:I24) -> 7897879.214 | G24: =MAX(0,'Tifia Amortisation Ann '!M21-'Tifia Amortisation Ann '!D21) -> 0 | H24: ='Tifia Amortisation Ann '!H21*1000 -> 0 | I24: ='Tifia Amortisation Ann '!I21*1000 -> 0 | J24: ='Tifia Amortisation Ann '!M21*1000 -> 177082493.6
B25: 2018 | C25: 177082493.6 | D25: =SUMIF(Construction!$I$9:$FM$9,B25,Construction!$I$55:$FM$55)*1000 -> 0 | E25: 9140492.569 | F25: ='Tifia Amortisation Ann '!N22*1000-SUM(H25:I25) -> 7897879.214 | G25: =MAX(0,'Tifia Amortisation Ann '!M22-'Tifia Amortisation Ann '!D22) -> 0 | H25: ='Tifia Amortisation Ann '!H22*1000 -> 1242613.355 | I25: ='Tifia Amortisation Ann '!I22*1000 -> 0 | J25: ='Tifia Amortisation Ann '!M22*1000 -> 175839880.2
B26: 2019 | C26: 175839880.2 | D26: =SUMIF(Construction!$I$9:$FM$9,B26,Construction!$I$55:$FM$55)*1000 -> 0 | E26: 12255230 | F26: ='Tifia Amortisation Ann '!N23*1000-SUM(H26:I26) -> 7794572.854 | G26: =MAX(0,'Tifia Amortisation Ann '!M23-'Tifia Amortisation Ann '!D23) -> 0 | H26: ='Tifia Amortisation Ann '!H23*1000 -> 4460657.146 | I26: ='Tifia Amortisation Ann '!I23*1000 -> 0 | J26: ='Tifia Amortisation Ann '!M23*1000 -> 171379223.1
B27: 2020 | C27: 171379223.1 | D27: =SUMIF(Construction!$I$9:$FM$9,B27,Construction!$I$55:$FM$55)*1000 -> 0 | E27: 12996910 | F27: ='Tifia Amortisation Ann '!N24*1000-SUM(H27:I27) -> 7587376.478 | G27: =MAX(0,'Tifia Amortisation Ann '!M24-'Tifia Amortisation Ann '!D24) -> 0 | H27: ='Tifia Amortisation Ann '!H24*1000 -> 5409533.522 | I27: ='Tifia Amortisation Ann '!I24*1000 -> 0 | J27: ='Tifia Amortisation Ann '!M24*1000 -> 165969689.6
B28: 2021 | C28: 165969689.6 | D28: =SUMIF(Construction!$I$9:$FM$9,B28,Construction!$I$55:$FM$55)*1000 -> 0 | E28: 12628273.71 | F28: ='Tifia Amortisation Ann '!N25*1000-SUM(H28:I28) -> 7343253.894 | G28: =MAX(0,'Tifia Amortisation Ann '!M25-'Tifia Amortisation Ann '!D25) -> 0 | H28: ='Tifia Amortisation Ann '!H25*1000 -> 5285019.811 | I28: ='Tifia Amortisation Ann '!I25*1000 -> 0 | J28: ='Tifia Amortisation Ann '!M25*1000 -> 160684669.7
B29: 2022 | C29: 160684669.7 | D29: =SUMIF(Construction!$I$9:$FM$9,B29,Construction!$I$55:$FM$55)*1000 -> 0 | E29: 12628260.96 | F29: ='Tifia Amortisation Ann '!N26*1000-SUM(H29:I29) -> 7104895.639 | G29: =MAX(0,'Tifia Amortisation Ann '!M26-'Tifia Amortisation Ann '!D26) -> 0 | H29: ='Tifia Amortisation Ann '!H26*1000 -> 5523365.324 | I29: ='Tifia Amortisation Ann '!I26*1000 -> 0 | J29: ='Tifia Amortisation Ann '!M26*1000 -> 155161304.4
B30: 2023 | C30: 155161304.4 | D30: =SUMIF(Construction!$I$9:$FM$9,B30,Construction!$I$55:$FM$55)*1000 -> 0 | E30: 12628248.29 | F30: ='Tifia Amortisation Ann '!N27*1000-SUM(H30:I30) -> 6855788.305 | G30: =MAX(0,'Tifia Amortisation Ann '!M27-'Tifia Amortisation Ann '!D27) -> 0 | H30: ='Tifia Amortisation Ann '!H27*1000 -> 5772459.988 | I30: ='Tifia Amortisation Ann '!I27*1000 -> 0 | J30: ='Tifia Amortisation Ann '!M27*1000 -> 149388844.4
B31: 2024 | C31: 149388844.4 | D31: =SUMIF(Construction!$I$9:$FM$9,B31,Construction!$I$55:$FM$55)*1000 -> 0 | E31: 12628510.15 | F31: ='Tifia Amortisation Ann '!N28*1000-SUM(H31:I31) -> 6595705.931 | G31: =MAX(0,'Tifia Amortisation Ann '!M28-'Tifia Amortisation Ann '!D28) -> 0 | H31: ='Tifia Amortisation Ann '!H28*1000 -> 6032804.22 | I31: ='Tifia Amortisation Ann '!I28*1000 -> 0 | J31: ='Tifia Amortisation Ann '!M28*1000 -> 143356040.2
B32: 2025 | C32: 143356040.2 | D32: =SUMIF(Construction!$I$9:$FM$9,B32,Construction!$I$55:$FM$55)*1000 -> 0 | E32: 12628221.84 | F32: ='Tifia Amortisation Ann '!N29*1000-SUM(H32:I32) -> 6323364.805 | G32: =MAX(0,'Tifia Amortisation Ann '!M29-'Tifia Amortisation Ann '!D29) -> 0 | H32: ='Tifia Amortisation Ann '!H29*1000 -> 3356040.21 | I32: ='Tifia Amortisation Ann '!I29*1000 -> 2948816.828 | J32: ='Tifia Amortisation Ann '!M29*1000 -> 137051183.2
B33: 2026 | C33: 137051183.2 | D33: =SUMIF(Construction!$I$9:$FM$9,B33,Construction!$I$55:$FM$55)*1000 -> 0 | E33: 12628209.47 | F33: ='Tifia Amortisation Ann '!N30*1000-SUM(H33:I33) -> 6039013.27 | G33: =MAX(0,'Tifia Amortisation Ann '!M30-'Tifia Amortisation Ann '!D30) -> 0 | H33: ='Tifia Amortisation Ann '!H30*1000 -> 0 | I33: ='Tifia Amortisation Ann '!I30*1000 -> 6589196.204 | J33: ='Tifia Amortisation Ann '!M30*1000 -> 130461987
B34: 2027 | C34: 130461987 | D34: =SUMIF(Construction!$I$9:$FM$9,B34,Construction!$I$55:$FM$55)*1000 -> 0 | E34: 12628197.23 | F34: ='Tifia Amortisation Ann '!N31*1000-SUM(H34:I34) -> 5741838.457 | G34: =MAX(0,'Tifia Amortisation Ann '!M31-'Tifia Amortisation Ann '!D31) -> 0 | H34: ='Tifia Amortisation Ann '!H31*1000 -> 0 | I34: ='Tifia Amortisation Ann '!I31*1000 -> 6886358.777 | J34: ='Tifia Amortisation Ann '!M31*1000 -> 123575628.2
B35: 2028 | C35: 123575628.2 | D35: =SUMIF(Construction!$I$9:$FM$9,B35,Construction!$I$55:$FM$55)*1000 -> 0 | E35: 12628485.9 | F35: ='Tifia Amortisation Ann '!N32*1000-SUM(H35:I35) -> 5431547.179 | G35: =MAX(0,'Tifia Amortisation Ann '!M32-'Tifia Amortisation Ann '!D32) -> 0 | H35: ='Tifia Amortisation Ann '!H32*1000 -> 0 | I35: ='Tifia Amortisation Ann '!I32*1000 -> 7196938.724 | J35: ='Tifia Amortisation Ann '!M32*1000 -> 116378689.5
B36: 2029 | C36: 116378689.5 | D36: =SUMIF(Construction!$I$9:$FM$9,B36,Construction!$I$55:$FM$55)*1000 -> 0 | E36: 12628171.52 | F36: ='Tifia Amortisation Ann '!N33*1000-SUM(H36:I36) -> 5106679.025 | G36: =MAX(0,'Tifia Amortisation Ann '!M33-'Tifia Amortisation Ann '!D33) -> 0 | H36: ='Tifia Amortisation Ann '!H33*1000 -> 0 | I36: ='Tifia Amortisation Ann '!I33*1000 -> 7521492.494 | J36: ='Tifia Amortisation Ann '!M33*1000 -> 108857197
B37: 2030 | C37: 108857197 | D37: =SUMIF(Construction!$I$9:$FM$9,B37,Construction!$I$55:$FM$55)*1000 -> 0 | E37: 12628159.77 | F37: ='Tifia Amortisation Ann '!N34*1000-SUM(H37:I37) -> 4767459.113 | G37: =MAX(0,'Tifia Amortisation Ann '!M34-'Tifia Amortisation Ann '!D34) -> 0 | H37: ='Tifia Amortisation Ann '!H34*1000 -> 0 | I37: ='Tifia Amortisation Ann '!I34*1000 -> 7860700.659 | J37: ='Tifia Amortisation Ann '!M34*1000 -> 100996496.3
B38: 2031 | C38: 100996496.3 | D38: =SUMIF(Construction!$I$9:$FM$9,B38,Construction!$I$55:$FM$55)*1000 -> 0 | E38: 12628148.22 | F38: ='Tifia Amortisation Ann '!N35*1000-SUM(H38:I38) -> 4412941.476 | G38: =MAX(0,'Tifia Amortisation Ann '!M35-'Tifia Amortisation Ann '!D35) -> 0 | H38: ='Tifia Amortisation Ann '!H35*1000 -> 0 | I38: ='Tifia Amortisation Ann '!I35*1000 -> 8215206.749 | J38: ='Tifia Amortisation Ann '!M35*1000 -> 92781289.57
B39: 2032 | C39: 92781289.57 | D39: =SUMIF(Construction!$I$9:$FM$9,B39,Construction!$I$55:$FM$55)*1000 -> 0 | E39: 12628463.64 | F39: ='Tifia Amortisation Ann '!N36*1000-SUM(H39:I39) -> 4042749.507 | G39: =MAX(0,'Tifia Amortisation Ann '!M36-'Tifia Amortisation Ann '!D36) -> 0 | H39: ='Tifia Amortisation Ann '!H36*1000 -> 0 | I39: ='Tifia Amortisation Ann '!I36*1000 -> 8585714.134 | J39: ='Tifia Amortisation Ann '!M36*1000 -> 84195575.43
B40: =B39+1 -> 2033 | C40: 84195575.43 | D40: =SUMIF(Construction!$I$9:$FM$9,B40,Construction!$I$55:$FM$55)*1000 -> 0 | E40: 12628123.78 | F40: ='Tifia Amortisation Ann '!N37*1000-SUM(H40:I40) -> 3655221.741 | G40: =MAX(0,'Tifia Amortisation Ann '!M37-'Tifia Amortisation Ann '!D37) -> 0 | H40: ='Tifia Amortisation Ann '!H37*1000 -> 0 | I40: ='Tifia Amortisation Ann '!I37*1000 -> 8972902.036 | J40: ='Tifia Amortisation Ann '!M37*1000 -> 75222673.4
B41: 2034 | C41: 75222673.4 | D41: =SUMIF(Construction!$I$9:$FM$9,B41,Construction!$I$55:$FM$55)*1000 -> 0 | E41: 12628112.93 | F41: ='Tifia Amortisation Ann '!N38*1000-SUM(H41:I41) -> 3250545.758 | G41: =MAX(0,'Tifia Amortisation Ann '!M38-'Tifia Amortisation Ann '!D38) -> 0 | H41: ='Tifia Amortisation Ann '!H38*1000 -> 0 | I41: ='Tifia Amortisation Ann '!I38*1000 -> 9377567.174 | J41: ='Tifia Amortisation Ann '!M38*1000 -> 65845106.22
B42: 2035 | C42: 65845106.22 | D42: =SUMIF(Construction!$I$9:$FM$9,B42,Construction!$I$55:$FM$55)*1000 -> 0 | E42: 12628102.36 | F42: ='Tifia Amortisation Ann '!N39*1000-SUM(H42:I42) -> 2827620.114 | G42: =MAX(0,'Tifia Amortisation Ann '!M39-'Tifia Amortisation Ann '!D39) -> 0 | H42: ='Tifia Amortisation Ann '!H39*1000 -> 0 | I42: ='Tifia Amortisation Ann '!I39*1000 -> 9800482.246 | J42: ='Tifia Amortisation Ann '!M39*1000 -> 56044623.98
B43: 2036 | C43: 56044623.98 | D43: =SUMIF(Construction!$I$9:$FM$9,B43,Construction!$I$55:$FM$55)*1000 -> 0 | E43: 12628443.9 | F43: ='Tifia Amortisation Ann '!N40*1000-SUM(H43:I43) -> 2385965.14 | G43: =MAX(0,'Tifia Amortisation Ann '!M40-'Tifia Amortisation Ann '!D40) -> 0 | H43: ='Tifia Amortisation Ann '!H40*1000 -> 0 | I43: ='Tifia Amortisation Ann '!I40*1000 -> 10242478.76 | J43: ='Tifia Amortisation Ann '!M40*1000 -> 45802145.22
B44: 2037 | C44: 45802145.22 | D44: =SUMIF(Construction!$I$9:$FM$9,B44,Construction!$I$55:$FM$55)*1000 -> 0 | E44: 12628079.77 | F44: ='Tifia Amortisation Ann '!N41*1000-SUM(H44:I44) -> 1923690.275 | G44: =MAX(0,'Tifia Amortisation Ann '!M41-'Tifia Amortisation Ann '!D41) -> 0 | H44: ='Tifia Amortisation Ann '!H41*1000 -> 0 | I44: ='Tifia Amortisation Ann '!I41*1000 -> 10704389.5 | J44: ='Tifia Amortisation Ann '!M41*1000 -> 35097755.72
B45: 2038 | C45: 35097755.72 | D45: =SUMIF(Construction!$I$9:$FM$9,B45,Construction!$I$55:$FM$55)*1000 -> 0 | E45: 12628070.13 | F45: ='Tifia Amortisation Ann '!N42*1000-SUM(H45:I45) -> 1440927.456 | G45: =MAX(0,'Tifia Amortisation Ann '!M42-'Tifia Amortisation Ann '!D42) -> 0 | H45: ='Tifia Amortisation Ann '!H42*1000 -> 0 | I45: ='Tifia Amortisation Ann '!I42*1000 -> 11187142.68 | J45: ='Tifia Amortisation Ann '!M42*1000 -> 23910613.04
B46: 2039 | C46: 23910613.04 | D46: =SUMIF(Construction!$I$9:$FM$9,B46,Construction!$I$55:$FM$55)*1000 -> 0 | E46: 12628060.84 | F46: ='Tifia Amortisation Ann '!N43*1000-SUM(H46:I46) -> 936393.4145 | G46: =MAX(0,'Tifia Amortisation Ann '!M43-'Tifia Amortisation Ann '!D43) -> 0 | H46: ='Tifia Amortisation Ann '!H43*1000 -> 0 | I46: ='Tifia Amortisation Ann '!I43*1000 -> 11691667.43 | J46: ='Tifia Amortisation Ann '!M43*1000 -> 12218945.61
B47: 2040 | C47: 12218945.61 | D47: =SUMIF(Construction!$I$9:$FM$9,B47,Construction!$I$55:$FM$55)*1000 -> 0 | E47: 12628427.24 | F47: ='Tifia Amortisation Ann '!N44*1000-SUM(H47:I47) -> 409481.6275 | G47: =MAX(0,'Tifia Amortisation Ann '!M44-'Tifia Amortisation Ann '!D44) -> 0 | H47: ='Tifia Amortisation Ann '!H44*1000 -> 0 | I47: ='Tifia Amortisation Ann '!I44*1000 -> 12218945.61 | J47: ='Tifia Amortisation Ann '!M44*1000 -> 0
B48: =B47+1 -> 2041 | C48: 0 | D48: =SUMIF(Construction!$I$9:$FM$9,B48,Construction!$I$55:$FM$55)*1000 -> 0 | E48: 0 | F48: ='Tifia Amortisation Ann '!N45*1000-SUM(H48:I48) -> 0 | G48: =MAX(0,'Tifia Amortisation Ann '!M45-'Tifia Amortisation Ann '!D45) -> 0 | H48: ='Tifia Amortisation Ann '!H45*1000 -> 0 | I48: ='Tifia Amortisation Ann '!I45*1000 -> 0 | J48: ='Tifia Amortisation Ann '!M45*1000 -> 0
D49: =SUM(D10:D48) -> 140000000 | E49: 350140438 | F49: 173057944.4 | G49: 37082493.58 | H49: 37082493.58 | I49: 140000000
C51: Semi annual P&I
C52: Semi annual Compounding
C53: Interest calculated based upon actual days over actual days

Sheet Tifia Amortisation Semi Ann (hidden)
B2: TIFIA Debt Amortisation Schedule - Semi Annual
B3: ( All amounts in USD $ 000's unless otherwise stated)
B5: California Transportation Ventures - SR 125 South Toll Road
B6: Proposed Federal Loan Amortization
B8: Period Ending | C8: Year | D8: Beginning Balance | E8: Total Mandatory Debt Service | F8: Total Scheduled Debt Service | G8: Interest Charge | H8: Mandatory Repayment of Accrued Interest (incl Interest During Construction) | I8: Mandatory Principal Repayment | J8: Non Mandatory -Upside Sharing Principal Payment | K8: Unpaid Portion of Scheduled Debt Service | L8: Refinancing Paydown | M8: Ending Balance | N8: Total Debt Service | O8: Annual Interest Rate
B10: ='Financial Assumptions'!F97 -> 2006-06-30 | C10: =YEAR(B10) -> 2006 | D10: =SUMIF(Debt!$I$8:$FM$8,B10,Debt!$I$32:$FM$32) -> 147445.607 | E10: =SUMIF(Debt!$I$8:$FM$8,B10,Debt!$I$45:$FM$45) -> 0 | F10: =SUMIF(Debt!$I$8:$FM$8,B10,Debt!$I$46:$FM$46) -> 0 | G10: =SUMIF(Debt!$I$8:$FM$8,B10,Debt!$I$42:$FM$42) -> 0 | H10: =MAX(0,MIN(-SUMIF(Debt!$I$8:$FM$8,B10,Debt!$I$35:$FM$35),D10-DebtTifiaSize))+MAX(0,MIN(-SUMIF(Debt!$I$8:$FM$8,B10,Debt!$I$38:$FM$38),D10-DebtTifiaSize)) -> 0 | I10: =-SUMIF(Debt!$I$8:$FM$8,B10,Debt!$I$35:$FM$35)+MAX(0,MIN(-SUMIF(Debt!$I$8:$FM$8,B10,Debt!$I$38:$FM$38),D10-DebtTifiaSize))-H10 -> 0 | J10: =-SUMIF(Debt!$I$8:$FM$8,B10,Debt!$I$36:$FM$36)-SUMIF(Debt!$I$8:$FM$8,EOMONTH(B10,-12/P),Debt!$I$36:$FM$36) -> 0 | K10: =SUMIF(Debt!$I$8:$FM$8,B10,Debt!$I$37:$FM$37)+SUMIF(Debt!$I$8:$FM$8,EOMONTH(B10,-12/P),Debt!$I$37:$FM$37) -> 0 | L10: =ABS(SUMIF(Debt!$I$8:$FM$8,B10,Debt!$I$39:$FM$39)+SUMIF(Debt!$I$8:$FM$8,EOMONTH(B10,-12/P),Debt!$I$39:$FM$39)) -> 0 | M10: =SUMIF(Debt!$I$8:$FM$8,B10,Debt!$I$40:$FM$40) -> 151697.1756 | N10: =SUM(E10:F10)+L10+J10 -> 0 | O10: =TifiaInterestRate -> 0.0446
B11: =EOMONTH(B10,6) -> 2006-12-31 | C11: =YEAR(B11) -> 2006 | D11: =M10 -> 151697.1756 | E11: =SUMIF(Debt!$I$8:$FM$8,B11,Debt!$I$45:$FM$45) -> 0 | F11: =SUMIF(Debt!$I$8:$FM$8,B11,Debt!$I$46:$FM$46) -> 0 | G11: =SUMIF(Debt!$I$8:$FM$8,B11,Debt!$I$42:$FM$42) -> 1724.5682 | H11: =MAX(0,MIN(-SUMIF(Debt!$I$8:$FM$8,B11,Debt!$I$35:$FM$35),D11-DebtTifiaSize))+MAX(0,MIN(-SUMIF(Debt!$I$8:$FM$8,B11,Debt!$I$38:$FM$38),D11-DebtTifiaSize)) -> 0 | I11: =-SUMIF(Debt!$I$8:$FM$8,B11,Debt!$I$35:$FM$35)+MAX(0,MIN(-SUMIF(Debt!$I$8:$FM$8,B11,Debt!$I$38:$FM$38),D11-DebtTifiaSize))-H11 -> 0 | J11: =-SUMIF(Debt!$I$8:$FM$8,B11,Debt!$I$36:$FM$36)-SUMIF(Debt!$I$8:$FM$8,EOMONTH(B11,-12/P),Debt!$I$36:$FM$36) -> 0 | K11: =SUMIF(Debt!$I$8:$FM$8,B11,Debt!$I$37:$FM$37)+SUMIF(Debt!$I$8:$FM$8,EOMONTH(B11,-12/P),Debt!$I$37:$FM$37) -> 0 | L11: =ABS(SUMIF(Debt!$I$8:$FM$8,B11,Debt!$I$39:$FM$39)+SUMIF(Debt!$I$8:$FM$8,EOMONTH(B11,-12/P),Debt!$I$39:$FM$39)) -> 0 | M11: =SUMIF(Debt!$I$8:$FM$8,B11,Debt!$I$40:$FM$40) -> 155133.4669 | N11: =SUM(E11:F11)+L11+J11 -> 0 | O11: =TifiaInterestRate -> 0.0446
B12: 2007-06-30 | C12: =YEAR(B12) -> 2007 | D12: =M11 -> 155133.4669 | E12: =SUMIF(Debt!$I$8:$FM$8,B12,Debt!$I$45:$FM$45) -> 0 | F12: =SUMIF(Debt!$I$8:$FM$8,B12,Debt!$I$46:$FM$46) -> 0 | G12: =SUMIF(Debt!$I$8:$FM$8,B12,Debt!$I$42:$FM$42) -> 3431.04226 | H12: =MAX(0,MIN(-SUMIF(Debt!$I$8:$FM$8,B12,Debt!$I$35:$FM$35),D12-DebtTifiaSize))+MAX(0,MIN(-SUMIF(Debt!$I$8:$FM$8,B12,Debt!$I$38:$FM$38),D12-DebtTifiaSize)) -> 0 | I12: =-SUMIF(Debt!$I$8:$FM$8,B12,Debt!$I$35:$FM$35)+MAX(0,MIN(-SUMIF(Debt!$I$8:$FM$8,B12,Debt!$I$38:$FM$38),D12-DebtTifiaSize))-H12 -> 0 | J12: =-SUMIF(Debt!$I$8:$FM$8,B12,Debt!$I$36:$FM$36)-SUMIF(Debt!$I$8:$FM$8,EOMONTH(B12,-12/P),Debt!$I$36:$FM$36) -> 0 | K12: =SUMIF(Debt!$I$8:$FM$8,B12,Debt!$I$37:$FM$37)+SUMIF(Debt!$I$8:$FM$8,EOMONTH(B12,-12/P),Debt!$I$37:$FM$37) -> 0 | L12: =ABS(SUMIF(Debt!$I$8:$FM$8,B12,Debt!$I$39:$FM$39)+SUMIF(Debt!$I$8:$FM$8,EOMONTH(B12,-12/P),Debt!$I$39:$FM$39)) -> 0 | M12: =SUMIF(Debt!$I$8:$FM$8,B12,Debt!$I$40:$FM$40) -> 158564.5092 | N12: 0 | O12: =TifiaInterestRate -> 0.0446
B13: 2007-12-31 | C13: 2007 | D13: 158564.5092 | E13: =SUMIF(Debt!$I$8:$FM$8,B13,Debt!$I$45:$FM$45) -> 0 | F13: =SUMIF(Debt!$I$8:$FM$8,B13,Debt!$I$46:$FM$46) -> 0 | G13: =SUMIF(Debt!$I$8:$FM$8,B13,Debt!$I$42:$FM$42) -> 3565.051474 | H13: =MAX(0,MIN(-SUMIF(Debt!$I$8:$FM$8,B13,Debt!$I$35:$FM$35),D13-DebtTifiaSize))+MAX(0,MIN(-SUMIF(Debt!$I$8:$FM$8,B13,Debt!$I$38:$FM$38),D13-DebtTifiaSize)) -> 0 | I13: =-SUMIF(Debt!$I$8:$FM$8,B13,Debt!$I$35:$FM$35)+MAX(0,MIN(-SUMIF(Debt!$I$8:$FM$8,B13,Debt!$I$38:$FM$38),D13-DebtTifiaSize))-H13 -> 0 | J13: =-SUMIF(Debt!$I$8:$FM$8,B13,Debt!$I$36:$FM$36)-SUMIF(Debt!$I$8:$FM$8,EOMONTH(B13,-12/P),Debt!$I$36:$FM$36) -> 0 | K13: =SUMIF(Debt!$I$8:$FM$8,B13,Debt!$I$37:$FM$37)+SUMIF(Debt!$I$8:$FM$8,EOMONTH(B13,-12/P),Debt!$I$37:$FM$37) -> 0 | L13: =ABS(SUMIF(Debt!$I$8:$FM$8,B13,Debt!$I$39:$FM$39)+SUMIF(Debt!$I$8:$FM$8,EOMONTH(B13,-12/P),Debt!$I$39:$FM$39)) -> 0 | M13: =SUMIF(Debt!$I$8:$FM$8,B13,Debt!$I$40:$FM$40) -> 162129.5606 | N13: 0 | O13: 0.0446
B14: 2008-06-30 | C14: 2008 | D14: 162129.5606 | E14: =SUMIF(Debt!$I$8:$FM$8,B14,Debt!$I$45:$FM$45) -> 0 | F14: =SUMIF(Debt!$I$8:$FM$8,B14,Debt!$I$46:$FM$46) -> 0 | G14: =SUMIF(Debt!$I$8:$FM$8,B14,Debt!$I$42:$FM$42) -> 3595.732431 | H14: =MAX(0,MIN(-SUMIF(Debt!$I$8:$FM$8,B14,Debt!$I$35:$FM$35),D14-DebtTifiaSize))+MAX(0,MIN(-SUMIF(Debt!$I$8:$FM$8,B14,Debt!$I$38:$FM$38),D14-DebtTifiaSize)) -> 0 | I14: =-SUMIF(Debt!$I$8:$FM$8,B14,Debt!$I$35:$FM$35)+MAX(0,MIN(-SUMIF(Debt!$I$8:$FM$8,B14,Debt!$I$38:$FM$38),D14-DebtTifiaSize))-H14 -> 0 | J14: =-SUMIF(Debt!$I$8:$FM$8,B14,Debt!$I$36:$FM$36)-SUMIF(Debt!$I$8:$FM$8,EOMONTH(B14,-12/P),Debt!$I$36:$FM$36) -> 0 | K14: =SUMIF(Debt!$I$8:$FM$8,B14,Debt!$I$37:$FM$37)+SUMIF(Debt!$I$8:$FM$8,EOMONTH(B14,-12/P),Debt!$I$37:$FM$37) -> 0 | L14: =ABS(SUMIF(Debt!$I$8:$FM$8,B14,Debt!$I$39:$FM$39)+SUMIF(Debt!$I$8:$FM$8,EOMONTH(B14,-12/P),Debt!$I$39:$FM$39)) -> 0 | M14: =SUMIF(Debt!$I$8:$FM$8,B14,Debt!$I$40:$FM$40) -> 165725.2931 | N14: 0 | O14: 0.0446
B15: 2008-12-31 | C15: 2008 | D15: 165725.2931 | E15: =SUMIF(Debt!$I$8:$FM$8,B15,Debt!$I$45:$FM$45) -> 0 | F15: =SUMIF(Debt!$I$8:$FM$8,B15,Debt!$I$46:$FM$46) -> 0 | G15: =SUMIF(Debt!$I$8:$FM$8,B15,Debt!$I$42:$FM$42) -> 3715.868976 | H15: =MAX(0,MIN(-SUMIF(Debt!$I$8:$FM$8,B15,Debt!$I$35:$FM$35),D15-DebtTifiaSize))+MAX(0,MIN(-SUMIF(Debt!$I$8:$FM$8,B15,Debt!$I$38:$FM$38),D15-DebtTifiaSize)) -> 0 | I15: =-SUMIF(Debt!$I$8:$FM$8,B15,Debt!$I$35:$FM$35)+MAX(0,MIN(-SUMIF(Debt!$I$8:$FM$8,B15,Debt!$I$38:$FM$38),D15-DebtTifiaSize))-H15 -> 0 | J15: =-SUMIF(Debt!$I$8:$FM$8,B15,Debt!$I$36:$FM$36)-SUMIF(Debt!$I$8:$FM$8,EOMONTH(B15,-12/P),Debt!$I$36:$FM$36) -> 0 | K15: =SUMIF(Debt!$I$8:$FM$8,B15,Debt!$I$37:$FM$37)+SUMIF(Debt!$I$8:$FM$8,EOMONTH(B15,-12/P),Debt!$I$37:$FM$37) -> 0 | L15: =ABS(SUMIF(Debt!$I$8:$FM$8,B15,Debt!$I$39:$FM$39)+SUMIF(Debt!$I$8:$FM$8,EOMONTH(B15,-12/P),Debt!$I$39:$FM$39)) -> 0 | M15: =SUMIF(Debt!$I$8:$FM$8,B15,Debt!$I$40:$FM$40) -> 169441.162 | N15: 0 | O15: 0.0446
B16: 2009-06-30 | C16: 2009 | D16: 169441.162 | E16: =SUMIF(Debt!$I$8:$FM$8,B16,Debt!$I$45:$FM$45) -> 0 | F16: =SUMIF(Debt!$I$8:$FM$8,B16,Debt!$I$46:$FM$46) -> 0 | G16: =SUMIF(Debt!$I$8:$FM$8,B16,Debt!$I$42:$FM$42) -> 3747.481438 | H16: =MAX(0,MIN(-SUMIF(Debt!$I$8:$FM$8,B16,Debt!$I$35:$FM$35),D16-DebtTifiaSize))+MAX(0,MIN(-SUMIF(Debt!$I$8:$FM$8,B16,Debt!$I$38:$FM$38),D16-DebtTifiaSize)) -> 0 | I16: =-SUMIF(Debt!$I$8:$FM$8,B16,Debt!$I$35:$FM$35)+MAX(0,MIN(-SUMIF(Debt!$I$8:$FM$8,B16,Debt!$I$38:$FM$38),D16-DebtTifiaSize))-H16 -> 0 | J16: =-SUMIF(Debt!$I$8:$FM$8,B16,Debt!$I$36:$FM$36)-SUMIF(Debt!$I$8:$FM$8,EOMONTH(B16,-12/P),Debt!$I$36:$FM$36) -> 0 | K16: =SUMIF(Debt!$I$8:$FM$8,B16,Debt!$I$37:$FM$37)+SUMIF(Debt!$I$8:$FM$8,EOMONTH(B16,-12/P),Debt!$I$37:$FM$37) -> 0 | L16: =ABS(SUMIF(Debt!$I$8:$FM$8,B16,Debt!$I$39:$FM$39)+SUMIF(Debt!$I$8:$FM$8,EOMONTH(B16,-12/P),Debt!$I$39:$FM$39)) -> 0 | M16: =SUMIF(Debt!$I$8:$FM$8,B16,Debt!$I$40:$FM$40) -> 173188.6435 | N16: 0 | O16: 0.0446
B17: 2009-12-31 | C17: 2009 | D17: 173188.6435 | E17: =SUMIF(Debt!$I$8:$FM$8,B17,Debt!$I$45:$FM$45) -> 0 | F17: =SUMIF(Debt!$I$8:$FM$8,B17,Debt!$I$46:$FM$46) -> 0 | G17: =SUMIF(Debt!$I$8:$FM$8,B17,Debt!$I$42:$FM$42) -> 3893.850093 | H17: =MAX(0,MIN(-SUMIF(Debt!$I$8:$FM$8,B17,Debt!$I$35:$FM$35),D17-DebtTifiaSize))+MAX(0,MIN(-SUMIF(Debt!$I$8:$FM$8,B17,Debt!$I$38:$FM$38),D17-DebtTifiaSize)) -> 0 | I17: =-SUMIF(Debt!$I$8:$FM$8,B17,Debt!$I$35:$FM$35)+MAX(0,MIN(-SUMIF(Debt!$I$8:$FM$8,B17,Debt!$I$38:$FM$38),D17-DebtTifiaSize))-H17 -> 0 | J17: =-SUMIF(Debt!$I$8:$FM$8,B17,Debt!$I$36:$FM$36)-SUMIF(Debt!$I$8:$FM$8,EOMONTH(B17,-12/P),Debt!$I$36:$FM$36) -> 0 | K17: =SUMIF(Debt!$I$8:$FM$8,B17,Debt!$I$37:$FM$37)+SUMIF(Debt!$I$8:$FM$8,EOMONTH(B17,-12/P),Debt!$I$37:$FM$37) -> 0 | L17: =ABS(SUMIF(Debt!$I$8:$FM$8,B17,Debt!$I$39:$FM$39)+SUMIF(Debt!$I$8:$FM$8,EOMONTH(B17,-12/P),Debt!$I$39:$FM$39)) -> 0 | M17: =SUMIF(Debt!$I$8:$FM$8,B17,Debt!$I$40:$FM$40) -> 177082.4936 | N17: 0 | O17: 0.0446
B18: 2010-06-30 | C18: 2010 | D18: 177082.4936 | E18: =SUMIF(Debt!$I$8:$FM$8,B18,Debt!$I$45:$FM$45) -> 0 | F18: =SUMIF(Debt!$I$8:$FM$8,B18,Debt!$I$46:$FM$46) -> 3916.482569 | G18: =SUMIF(Debt!$I$8:$FM$8,B18,Debt!$I$42:$FM$42) -> 3916.482569 | H18: =MAX(0,MIN(-SUMIF(Debt!$I$8:$FM$8,B18,Debt!$I$35:$FM$35),D18-DebtTifiaSize))+MAX(0,MIN(-SUMIF(Debt!$I$8:$FM$8,B18,Debt!$I$38:$FM$38),D18-DebtTifiaSize)) -> 0 | I18: =-SUMIF(Debt!$I$8:$FM$8,B18,Debt!$I$35:$FM$35)+MAX(0,MIN(-SUMIF(Debt!$I$8:$FM$8,B18,Debt!$I$38:$FM$38),D18-DebtTifiaSize))-H18 -> 0 | J18: =-SUMIF(Debt!$I$8:$FM$8,B18,Debt!$I$36:$FM$36)-SUMIF(Debt!$I$8:$FM$8,EOMONTH(B18,-12/P),Debt!$I$36:$FM$36) -> 0 | K18: =SUMIF(Debt!$I$8:$FM$8,B18,Debt!$I$37:$FM$37)+SUMIF(Debt!$I$8:$FM$8,EOMONTH(B18,-12/P),Debt!$I$37:$FM$37) -> 0 | L18: =ABS(SUMIF(Debt!$I$8:$FM$8,B18,Debt!$I$39:$FM$39)+SUMIF(Debt!$I$8:$FM$8,EOMONTH(B18,-12/P),Debt!$I$39:$FM$39)) -> 0 | M18: =SUMIF(Debt!$I$8:$FM$8,B18,Debt!$I$40:$FM$40) -> 177082.4936 | N18: 3916.482569 | O18: 0.0446
B19: 2010-12-31 | C19: 2010 | D19: 177082.4936 | E19: =SUMIF(Debt!$I$8:$FM$8,B19,Debt!$I$45:$FM$45) -> 0 | F19: =SUMIF(Debt!$I$8:$FM$8,B19,Debt!$I$46:$FM$46) -> 3981.396645 | G19: =SUMIF(Debt!$I$8:$FM$8,B19,Debt!$I$42:$FM$42) -> 3981.396645 | H19: =MAX(0,MIN(-SUMIF(Debt!$I$8:$FM$8,B19,Debt!$I$35:$FM$35),D19-DebtTifiaSize))+MAX(0,MIN(-SUMIF(Debt!$I$8:$FM$8,B19,Debt!$I$38:$FM$38),D19-DebtTifiaSize)) -> 0 | I19: =-SUMIF(Debt!$I$8:$FM$8,B19,Debt!$I$35:$FM$35)+MAX(0,MIN(-SUMIF(Debt!$I$8:$FM$8,B19,Debt!$I$38:$FM$38),D19-DebtTifiaSize))-H19 -> 0 | J19: =-SUMIF(Debt!$I$8:$FM$8,B19,Debt!$I$36:$FM$36)-SUMIF(Debt!$I$8:$FM$8,EOMONTH(B19,-12/P),Debt!$I$36:$FM$36) -> 0 | K19: =SUMIF(Debt!$I$8:$FM$8,B19,Debt!$I$37:$FM$37)+SUMIF(Debt!$I$8:$FM$8,EOMONTH(B19,-12/P),Debt!$I$37:$FM$37) -> 0 | L19: =ABS(SUMIF(Debt!$I$8:$FM$8,B19,Debt!$I$39:$FM$39)+SUMIF(Debt!$I$8:$FM$8,EOMONTH(B19,-12/P),Debt!$I$39:$FM$39)) -> 0 | M19: =SUMIF(Debt!$I$8:$FM$8,B19,Debt!$I$40:$FM$40) -> 177082.4936 | N19: 3981.396645 | O19: 0.0446
B20: 2011-06-30 | C20: 2011 | D20: 177082.4936 | E20: =SUMIF(Debt!$I$8:$FM$8,B20,Debt!$I$45:$FM$45) -> 50 | F20: =SUMIF(Debt!$I$8:$FM$8,B20,Debt!$I$46:$FM$46) -> 3866.482569 | G20: =SUMIF(Debt!$I$8:$FM$8,B20,Debt!$I$42:$FM$42) -> 3916.482569 | H20: =MAX(0,MIN(-SUMIF(Debt!$I$8:$FM$8,B20,Debt!$I$35:$FM$35),D20-DebtTifiaSize))+MAX(0,MIN(-SUMIF(Debt!$I$8:$FM$8,B20,Debt!$I$38:$FM$38),D20-DebtTifiaSize)) -> 0 | I20: =-SUMIF(Debt!$I$8:$FM$8,B20,Debt!$I$35:$FM$35)+MAX(0,MIN(-SUMIF(Debt!$I$8:$FM$8,B20,Debt!$I$38:$FM$38),D20-DebtTifiaSize))-H20 -> 0 | J20: =-SUMIF(Debt!$I$8:$FM$8,B20,Debt!$I$36:$FM$36)-SUMIF(Debt!$I$8:$FM$8,EOMONTH(B20,-12/P),Debt!$I$36:$FM$36) -> 0 | K20: =SUMIF(Debt!$I$8:$FM$8,B20,Debt!$I$37:$FM$37)+SUMIF(Debt!$I$8:$FM$8,EOMONTH(B20,-12/P),Debt!$I$37:$FM$37) -> 0 | L20: =ABS(SUMIF(Debt!$I$8:$FM$8,B20,Debt!$I$39:$FM$39)+SUMIF(Debt!$I$8:$FM$8,EOMONTH(B20,-12/P),Debt!$I$39:$FM$39)) -> 0 | M20: =SUMIF(Debt!$I$8:$FM$8,B20,Debt!$I$40:$FM$40) -> 177082.4936 | N20: 3916.482569 | O20: 0.0446
B21: 2011-12-31 | C21: 2011 | D21: 177082.4936 | E21: =SUMIF(Debt!$I$8:$FM$8,B21,Debt!$I$45:$FM$45) -> 100 | F21: =SUMIF(Debt!$I$8:$FM$8,B21,Debt!$I$46:$FM$46) -> 3881.396645 | G21: =SUMIF(Debt!$I$8:$FM$8,B21,Debt!$I$42:$FM$42) -> 3981.396645 | H21: =MAX(0,MIN(-SUMIF(Debt!$I$8:$FM$8,B21,Debt!$I$35:$FM$35),D21-DebtTifiaSize))+MAX(0,MIN(-SUMIF(Debt!$I$8:$FM$8,B21,Debt!$I$38:$FM$38),D21-DebtTifiaSize)) -> 0 | I21: =-SUMIF(Debt!$I$8:$FM$8,B21,Debt!$I$35:$FM$35)+MAX(0,MIN(-SUMIF(Debt!$I$8:$FM$8,B21,Debt!$I$38:$FM$38),D21-DebtTifiaSize))-H21 -> 0 | J21: =-SUMIF(Debt!$I$8:$FM$8,B21,Debt!$I$36:$FM$36)-SUMIF(Debt!$I$8:$FM$8,EOMONTH(B21,-12/P),Debt!$I$36:$FM$36) -> 0 | K21: =SUMIF(Debt!$I$8:$FM$8,B21,Debt!$I$37:$FM$37)+SUMIF(Debt!$I$8:$FM$8,EOMONTH(B21,-12/P),Debt!$I$37:$FM$37) -> 0 | L21: =ABS(SUMIF(Debt!$I$8:$FM$8,B21,Debt!$I$39:$FM$39)+SUMIF(Debt!$I$8:$FM$8,EOMONTH(B21,-12/P),Debt!$I$39:$FM$39)) -> 0 | M21: =SUMIF(Debt!$I$8:$FM$8,B21,Debt!$I$40:$FM$40) -> 177082.4936 | N21: 3981.396645 | O21: 0.0446
B22: 2012-06-30 | C22: 2012 | D22: 177082.4936 | E22: =SUMIF(Debt!$I$8:$FM$8,B22,Debt!$I$45:$FM$45) -> 1119.523335 | F22: =SUMIF(Debt!$I$8:$FM$8,B22,Debt!$I$46:$FM$46) -> 2807.837366 | G22: =SUMIF(Debt!$I$8:$FM$8,B22,Debt!$I$42:$FM$42) -> 3927.360702 | H22: =MAX(0,MIN(-SUMIF(Debt!$I$8:$FM$8,B22,Debt!$I$35:$FM$35),D22-DebtTifiaSize))+MAX(0,MIN(-SUMIF(Debt!$I$8:$FM$8,B22,Debt!$I$38:$FM$38),D22-DebtTifiaSize)) -> 0 | I22: =-SUMIF(Debt!$I$8:$FM$8,B22,Debt!$I$35:$FM$35)+MAX(0,MIN(-SUMIF(Debt!$I$8:$FM$8,B22,Debt!$I$38:$FM$38),D22-DebtTifiaSize))-H22 -> 0 | J22: =-SUMIF(Debt!$I$8:$FM$8,B22,Debt!$I$36:$FM$36)-SUMIF(Debt!$I$8:$FM$8,EOMONTH(B22,-12/P),Debt!$I$36:$FM$36) -> 0 | K22: =SUMIF(Debt!$I$8:$FM$8,B22,Debt!$I$37:$FM$37)+SUMIF(Debt!$I$8:$FM$8,EOMONTH(B22,-12/P),Debt!$I$37:$FM$37) -> 0 | L22: =ABS(SUMIF(Debt!$I$8:$FM$8,B22,Debt!$I$39:$FM$39)+SUMIF(Debt!$I$8:$FM$8,EOMONTH(B22,-12/P),Debt!$I$39:$FM$39)) -> 0 | M22: =SUMIF(Debt!$I$8:$FM$8,B22,Debt!$I$40:$FM$40) -> 177082.4936 | N22: 3927.360702 | O22: 0.0446
B23: 2012-12-31 | C23: 2012 | D23: 177082.4936 | E23: =SUMIF(Debt!$I$8:$FM$8,B23,Debt!$I$45:$FM$45) -> 1189.302576 | F23: =SUMIF(Debt!$I$8:$FM$8,B23,Debt!$I$46:$FM$46) -> 2781.215935 | G23: =SUMIF(Debt!$I$8:$FM$8,B23,Debt!$I$42:$FM$42) -> 3970.518512 | H23: =MAX(0,MIN(-SUMIF(Debt!$I$8:$FM$8,B23,Debt!$I$35:$FM$35),D23-DebtTifiaSize))+MAX(0,MIN(-SUMIF(Debt!$I$8:$FM$8,B23,Debt!$I$38:$FM$38),D23-DebtTifiaSize)) -> 0 | I23: =-SUMIF(Debt!$I$8:$FM$8,B23,Debt!$I$35:$FM$35)+MAX(0,MIN(-SUMIF(Debt!$I$8:$FM$8,B23,Debt!$I$38:$FM$38),D23-DebtTifiaSize))-H23 -> 0 | J23: =-SUMIF(Debt!$I$8:$FM$8,B23,Debt!$I$36:$FM$36)-SUMIF(Debt!$I$8:$FM$8,EOMONTH(B23,-12/P),Debt!$I$36:$FM$36) -> 0 | K23: =SUMIF(Debt!$I$8:$FM$8,B23,Debt!$I$37:$FM$37)+SUMIF(Debt!$I$8:$FM$8,EOMONTH(B23,-12/P),Debt!$I$37:$FM$37) -> 0 | L23: =ABS(SUMIF(Debt!$I$8:$FM$8,B23,Debt!$I$39:$FM$39)+SUMIF(Debt!$I$8:$FM$8,EOMONTH(B23,-12/P),Debt!$I$39:$FM$39)) -> 0 | M23: =SUMIF(Debt!$I$8:$FM$8,B23,Debt!$I$40:$FM$40) -> 177082.4936 | N23: 3970.518512 | O23: 0.0446
B24: 2013-06-30 | C24: 2013 | D24: 177082.4936 | E24: =SUMIF(Debt!$I$8:$FM$8,B24,Debt!$I$45:$FM$45) -> 1399.859263 | F24: =SUMIF(Debt!$I$8:$FM$8,B24,Debt!$I$46:$FM$46) -> 2516.623306 | G24: =SUMIF(Debt!$I$8:$FM$8,B24,Debt!$I$42:$FM$42) -> 3916.482569 | H24: =MAX(0,MIN(-SUMIF(Debt!$I$8:$FM$8,B24,Debt!$I$35:$FM$35),D24-DebtTifiaSize))+MAX(0,MIN(-SUMIF(Debt!$I$8:$FM$8,B24,Debt!$I$38:$FM$38),D24-DebtTifiaSize)) -> 0 | I24: =-SUMIF(Debt!$I$8:$FM$8,B24,Debt!$I$35:$FM$35)+MAX(0,MIN(-SUMIF(Debt!$I$8:$FM$8,B24,Debt!$I$38:$FM$38),D24-DebtTifiaSize))-H24 -> 0 | J24: =-SUMIF(Debt!$I$8:$FM$8,B24,Debt!$I$36:$FM$36)-SUMIF(Debt!$I$8:$FM$8,EOMONTH(B24,-12/P),Debt!$I$36:$FM$36) -> 0 | K24: =SUMIF(Debt!$I$8:$FM$8,B24,Debt!$I$37:$FM$37)+SUMIF(Debt!$I$8:$FM$8,EOMONTH(B24,-12/P),Debt!$I$37:$FM$37) -> 0 | L24: =ABS(SUMIF(Debt!$I$8:$FM$8,B24,Debt!$I$39:$FM$39)+SUMIF(Debt!$I$8:$FM$8,EOMONTH(B24,-12/P),Debt!$I$39:$FM$39)) -> 0 | M24: =SUMIF(Debt!$I$8:$FM$8,B24,Debt!$I$40:$FM$40) -> 177082.4936 | N24: 3916.482569 | O24: 0.0446
B25: 2013-12-31 | C25: 2013 | D25: 177082.4936 | E25: =SUMIF(Debt!$I$8:$FM$8,B25,Debt!$I$45:$FM$45) -> 1479.026165 | F25: =SUMIF(Debt!$I$8:$FM$8,B25,Debt!$I$46:$FM$46) -> 2502.37048 | G25: =SUMIF(Debt!$I$8:$FM$8,B25,Debt!$I$42:$FM$42) -> 3981.396645 | H25: =MAX(0,MIN(-SUMIF(Debt!$I$8:$FM$8,B25,Debt!$I$35:$FM$35),D25-DebtTifiaSize))+MAX(0,MIN(-SUMIF(Debt!$I$8:$FM$8,B25,Debt!$I$38:$FM$38),D25-DebtTifiaSize)) -> 0 | I25: =-SUMIF(Debt!$I$8:$FM$8,B25,Debt!$I$35:$FM$35)+MAX(0,MIN(-SUMIF(Debt!$I$8:$FM$8,B25,Debt!$I$38:$FM$38),D25-DebtTifiaSize))-H25 -> 0 | J25: =-SUMIF(Debt!$I$8:$FM$8,B25,Debt!$I$36:$FM$36)-SUMIF(Debt!$I$8:$FM$8,EOMONTH(B25,-12/P),Debt!$I$36:$FM$36) -> 0 | K25: =SUMIF(Debt!$I$8:$FM$8,B25,Debt!$I$37:$FM$37)+SUMIF(Debt!$I$8:$FM$8,EOMONTH(B25,-12/P),Debt!$I$37:$FM$37) -> 0 | L25: =ABS(SUMIF(Debt!$I$8:$FM$8,B25,Debt!$I$39:$FM$39)+SUMIF(Debt!$I$8:$FM$8,EOMONTH(B25,-12/P),Debt!$I$39:$FM$39)) -> 0 | M25: =SUMIF(Debt!$I$8:$FM$8,B25,Debt!$I$40:$FM$40) -> 177082.4936 | N25: 3981.396645 | O25: 0.0446
B26: 2014-06-30 | C26: 2014 | D26: 177082.4936 | E26: =SUMIF(Debt!$I$8:$FM$8,B26,Debt!$I$45:$FM$45) -> 1714.70094 | F26: =SUMIF(Debt!$I$8:$FM$8,B26,Debt!$I$46:$FM$46) -> 2201.781629 | G26: =SUMIF(Debt!$I$8:$FM$8,B26,Debt!$I$42:$FM$42) -> 3916.482569 | H26: =MAX(0,MIN(-SUMIF(Debt!$I$8:$FM$8,B26,Debt!$I$35:$FM$35),D26-DebtTifiaSize))+MAX(0,MIN(-SUMIF(Debt!$I$8:$FM$8,B26,Debt!$I$38:$FM$38),D26-DebtTifiaSize)) -> 0 | I26: =-SUMIF(Debt!$I$8:$FM$8,B26,Debt!$I$35:$FM$35)+MAX(0,MIN(-SUMIF(Debt!$I$8:$FM$8,B26,Debt!$I$38:$FM$38),D26-DebtTifiaSize))-H26 -> 0 | J26: =-SUMIF(Debt!$I$8:$FM$8,B26,Debt!$I$36:$FM$36)-SUMIF(Debt!$I$8:$FM$8,EOMONTH(B26,-12/P),Debt!$I$36:$FM$36) -> 0 | K26: =SUMIF(Debt!$I$8:$FM$8,B26,Debt!$I$37:$FM$37)+SUMIF(Debt!$I$8:$FM$8,EOMONTH(B26,-12/P),Debt!$I$37:$FM$37) -> 0 | L26: =ABS(SUMIF(Debt!$I$8:$FM$8,B26,Debt!$I$39:$FM$39)+SUMIF(Debt!$I$8:$FM$8,EOMONTH(B26,-12/P),Debt!$I$39:$FM$39)) -> 0 | M26: =SUMIF(Debt!$I$8:$FM$8,B26,Debt!$I$40:$FM$40) -> 177082.4936 | N26: 3916.482569 | O26: 0.0446
B27: 2014-12-31 | C27: 2014 | D27: 177082.4936 | E27: =SUMIF(Debt!$I$8:$FM$8,B27,Debt!$I$45:$FM$45) -> 1803.015256 | F27: =SUMIF(Debt!$I$8:$FM$8,B27,Debt!$I$46:$FM$46) -> 2178.381389 | G27: =SUMIF(Debt!$I$8:$FM$8,B27,Debt!$I$42:$FM$42) -> 3981.396645 | H27: =MAX(0,MIN(-SUMIF(Debt!$I$8:$FM$8,B27,Debt!$I$35:$FM$35),D27-DebtTifiaSize))+MAX(0,MIN(-SUMIF(Debt!$I$8:$FM$8,B27,Debt!$I$38:$FM$38),D27-DebtTifiaSize)) -> 0 | I27: =-SUMIF(Debt!$I$8:$FM$8,B27,Debt!$I$35:$FM$35)+MAX(0,MIN(-SUMIF(Debt!$I$8:$FM$8,B27,Debt!$I$38:$FM$38),D27-DebtTifiaSize))-H27 -> 0 | J27: =-SUMIF(Debt!$I$8:$FM$8,B27,Debt!$I$36:$FM$36)-SUMIF(Debt!$I$8:$FM$8,EOMONTH(B27,-12/P),Debt!$I$36:$FM$36) -> 0 | K27: =SUMIF(Debt!$I$8:$FM$8,B27,Debt!$I$37:$FM$37)+SUMIF(Debt!$I$8:$FM$8,EOMONTH(B27,-12/P),Debt!$I$37:$FM$37) -> 0 | L27: =ABS(SUMIF(Debt!$I$8:$FM$8,B27,Debt!$I$39:$FM$39)+SUMIF(Debt!$I$8:$FM$8,EOMONTH(B27,-12/P),Debt!$I$39:$FM$39)) -> 0 | M27: =SUMIF(Debt!$I$8:$FM$8,B27,Debt!$I$40:$FM$40) -> 177082.4936 | N27: 3981.396645 | O27: 0.0446
B28: 2015-06-30 | C28: 2015 | D28: 177082.4936 | E28: =SUMIF(Debt!$I$8:$FM$8,B28,Debt!$I$45:$FM$45) -> 2063.695828 | F28: =SUMIF(Debt!$I$8:$FM$8,B28,Debt!$I$46:$FM$46) -> 1852.786741 | G28: =SUMIF(Debt!$I$8:$FM$8,B28,Debt!$I$42:$FM$42) -> 3916.482569 | H28: =MAX(0,MIN(-SUMIF(Debt!$I$8:$FM$8,B28,Debt!$I$35:$FM$35),D28-DebtTifiaSize))+MAX(0,MIN(-SUMIF(Debt!$I$8:$FM$8,B28,Debt!$I$38:$FM$38),D28-DebtTifiaSize)) -> 0 | I28: =-SUMIF(Debt!$I$8:$FM$8,B28,Debt!$I$35:$FM$35)+MAX(0,MIN(-SUMIF(Debt!$I$8:$FM$8,B28,Debt!$I$38:$FM$38),D28-DebtTifiaSize))-H28 -> 0 | J28: =-SUMIF(Debt!$I$8:$FM$8,B28,Debt!$I$36:$FM$36)-SUMIF(Debt!$I$8:$FM$8,EOMONTH(B28,-12/P),Debt!$I$36:$FM$36) -> 0 | K28: =SUMIF(Debt!$I$8:$FM$8,B28,Debt!$I$37:$FM$37)+SUMIF(Debt!$I$8:$FM$8,EOMONTH(B28,-12/P),Debt!$I$37:$FM$37) -> 0 | L28: =ABS(SUMIF(Debt!$I$8:$FM$8,B28,Debt!$I$39:$FM$39)+SUMIF(Debt!$I$8:$FM$8,EOMONTH(B28,-12/P),Debt!$I$39:$FM$39)) -> 0 | M28: =SUMIF(Debt!$I$8:$FM$8,B28,Debt!$I$40:$FM$40) -> 177082.4936 | N28: 3916.482569 | O28: 0.0446
B29: 2015-12-31 | C29: 2015 | D29: 177082.4936 | E29: =SUMIF(Debt!$I$8:$FM$8,B29,Debt!$I$45:$FM$45) -> 2160.724819 | F29: =SUMIF(Debt!$I$8:$FM$8,B29,Debt!$I$46:$FM$46) -> 1820.671825 | G29: =SUMIF(Debt!$I$8:$FM$8,B29,Debt!$I$42:$FM$42) -> 3981.396645 | H29: =MAX(0,MIN(-SUMIF(Debt!$I$8:$FM$8,B29,Debt!$I$35:$FM$35),D29-DebtTifiaSize))+MAX(0,MIN(-SUMIF(Debt!$I$8:$FM$8,B29,Debt!$I$38:$FM$38),D29-DebtTifiaSize)) -> 0 | I29: =-SUMIF(Debt!$I$8:$FM$8,B29,Debt!$I$35:$FM$35)+MAX(0,MIN(-SUMIF(Debt!$I$8:$FM$8,B29,Debt!$I$38:$FM$38),D29-DebtTifiaSize))-H29 -> 0 | J29: =-SUMIF(Debt!$I$8:$FM$8,B29,Debt!$I$36:$FM$36)-SUMIF(Debt!$I$8:$FM$8,EOMONTH(B29,-12/P),Debt!$I$36:$FM$36) -> 0 | K29: =SUMIF(Debt!$I$8:$FM$8,B29,Debt!$I$37:$FM$37)+SUMIF(Debt!$I$8:$FM$8,EOMONTH(B29,-12/P),Debt!$I$37:$FM$37) -> 0 | L29: =ABS(SUMIF(Debt!$I$8:$FM$8,B29,Debt!$I$39:$FM$39)+SUMIF(Debt!$I$8:$FM$8,EOMONTH(B29,-12/P),Debt!$I$39:$FM$39)) -> 0 | M29: =SUMIF(Debt!$I$8:$FM$8,B29,Debt!$I$40:$FM$40) -> 177082.4936 | N29: 3981.396645 | O29: 0.0446
B30: 2016-06-30 | C30: 2016 | D30: 177082.4936 | E30: =SUMIF(Debt!$I$8:$FM$8,B30,Debt!$I$45:$FM$45) -> 2445.994207 | F30: =SUMIF(Debt!$I$8:$FM$8,B30,Debt!$I$46:$FM$46) -> 1481.366495 | G30: =SUMIF(Debt!$I$8:$FM$8,B30,Debt!$I$42:$FM$42) -> 3927.360702 | H30: =MAX(0,MIN(-SUMIF(Debt!$I$8:$FM$8,B30,Debt!$I$35:$FM$35),D30-DebtTifiaSize))+MAX(0,MIN(-SUMIF(Debt!$I$8:$FM$8,B30,Debt!$I$38:$FM$38),D30-DebtTifiaSize)) -> 0 | I30: =-SUMIF(Debt!$I$8:$FM$8,B30,Debt!$I$35:$FM$35)+MAX(0,MIN(-SUMIF(Debt!$I$8:$FM$8,B30,Debt!$I$38:$FM$38),D30-DebtTifiaSize))-H30 -> 0 | J30: =-SUMIF(Debt!$I$8:$FM$8,B30,Debt!$I$36:$FM$36)-SUMIF(Debt!$I$8:$FM$8,EOMONTH(B30,-12/P),Debt!$I$36:$FM$36) -> 0 | K30: =SUMIF(Debt!$I$8:$FM$8,B30,Debt!$I$37:$FM$37)+SUMIF(Debt!$I$8:$FM$8,EOMONTH(B30,-12/P),Debt!$I$37:$FM$37) -> 0 | L30: =ABS(SUMIF(Debt!$I$8:$FM$8,B30,Debt!$I$39:$FM$39)+SUMIF(Debt!$I$8:$FM$8,EOMONTH(B30,-12/P),Debt!$I$39:$FM$39)) -> 0 | M30: =SUMIF(Debt!$I$8:$FM$8,B30,Debt!$I$40:$FM$40) -> 177082.4936 | N30: 3927.360702 | O30: 0.0446
B31: 2016-12-31 | C31: 2016 | D31: 177082.4936 | E31: =SUMIF(Debt!$I$8:$FM$8,B31,Debt!$I$45:$FM$45) -> 2551.107858 | F31: =SUMIF(Debt!$I$8:$FM$8,B31,Debt!$I$46:$FM$46) -> 1419.410654 | G31: =SUMIF(Debt!$I$8:$FM$8,B31,Debt!$I$42:$FM$42) -> 3970.518512 | H31: =MAX(0,MIN(-SUMIF(Debt!$I$8:$FM$8,B31,Debt!$I$35:$FM$35),D31-DebtTifiaSize))+MAX(0,MIN(-SUMIF(Debt!$I$8:$FM$8,B31,Debt!$I$38:$FM$38),D31-DebtTifiaSize)) -> 0 | I31: =-SUMIF(Debt!$I$8:$FM$8,B31,Debt!$I$35:$FM$35)+MAX(0,MIN(-SUMIF(Debt!$I$8:$FM$8,B31,Debt!$I$38:$FM$38),D31-DebtTifiaSize))-H31 -> 0 | J31: =-SUMIF(Debt!$I$8:$FM$8,B31,Debt!$I$36:$FM$36)-SUMIF(Debt!$I$8:$FM$8,EOMONTH(B31,-12/P),Debt!$I$36:$FM$36) -> 0 | K31: =SUMIF(Debt!$I$8:$FM$8,B31,Debt!$I$37:$FM$37)+SUMIF(Debt!$I$8:$FM$8,EOMONTH(B31,-12/P),Debt!$I$37:$FM$37) -> 0 | L31: =ABS(SUMIF(Debt!$I$8:$FM$8,B31,Debt!$I$39:$FM$39)+SUMIF(Debt!$I$8:$FM$8,EOMONTH(B31,-12/P),Debt!$I$39:$FM$39)) -> 0 | M31: =SUMIF(Debt!$I$8:$FM$8,B31,Debt!$I$40:$FM$40) -> 177082.4936 | N31: 3970.518512 | O31: 0.0446
B32: 2017-06-30 | C32: 2017 | D32: 177082.4936 | E32: =SUMIF(Debt!$I$8:$FM$8,B32,Debt!$I$45:$FM$45) -> 2860.236398 | F32: =SUMIF(Debt!$I$8:$FM$8,B32,Debt!$I$46:$FM$46) -> 1056.246171 | G32: =SUMIF(Debt!$I$8:$FM$8,B32,Debt!$I$42:$FM$42) -> 3916.482569 | H32: =MAX(0,MIN(-SUMIF(Debt!$I$8:$FM$8,B32,Debt!$I$35:$FM$35),D32-DebtTifiaSize))+MAX(0,MIN(-SUMIF(Debt!$I$8:$FM$8,B32,Debt!$I$38:$FM$38),D32-DebtTifiaSize)) -> 0 | I32: =-SUMIF(Debt!$I$8:$FM$8,B32,Debt!$I$35:$FM$35)+MAX(0,MIN(-SUMIF(Debt!$I$8:$FM$8,B32,Debt!$I$38:$FM$38),D32-DebtTifiaSize))-H32 -> 0 | J32: =-SUMIF(Debt!$I$8:$FM$8,B32,Debt!$I$36:$FM$36)-SUMIF(Debt!$I$8:$FM$8,EOMONTH(B32,-12/P),Debt!$I$36:$FM$36) -> 0 | K32: =SUMIF(Debt!$I$8:$FM$8,B32,Debt!$I$37:$FM$37)+SUMIF(Debt!$I$8:$FM$8,EOMONTH(B32,-12/P),Debt!$I$37:$FM$37) -> 0 | L32: =ABS(SUMIF(Debt!$I$8:$FM$8,B32,Debt!$I$39:$FM$39)+SUMIF(Debt!$I$8:$FM$8,EOMONTH(B32,-12/P),Debt!$I$39:$FM$39)) -> 0 | M32: =SUMIF(Debt!$I$8:$FM$8,B32,Debt!$I$40:$FM$40) -> 177082.4936 | N32: 3916.482569 | O32: 0.0446
B33: 2017-12-31 | C33: 2017 | D33: 177082.4936 | E33: =SUMIF(Debt!$I$8:$FM$8,B33,Debt!$I$45:$FM$45) -> 2972.60647 | F33: =SUMIF(Debt!$I$8:$FM$8,B33,Debt!$I$46:$FM$46) -> 1008.790174 | G33: =SUMIF(Debt!$I$8:$FM$8,B33,Debt!$I$42:$FM$42) -> 3981.396645 | H33: =MAX(0,MIN(-SUMIF(Debt!$I$8:$FM$8,B33,Debt!$I$35:$FM$35),D33-DebtTifiaSize))+MAX(0,MIN(-SUMIF(Debt!$I$8:$FM$8,B33,Debt!$I$38:$FM$38),D33-DebtTifiaSize)) -> 0 | I33: =-SUMIF(Debt!$I$8:$FM$8,B33,Debt!$I$35:$FM$35)+MAX(0,MIN(-SUMIF(Debt!$I$8:$FM$8,B33,Debt!$I$38:$FM$38),D33-DebtTifiaSize))-H33 -> 0 | J33: =-SUMIF(Debt!$I$8:$FM$8,B33,Debt!$I$36:$FM$36)-SUMIF(Debt!$I$8:$FM$8,EOMONTH(B33,-12/P),Debt!$I$36:$FM$36) -> 0 | K33: =SUMIF(Debt!$I$8:$FM$8,B33,Debt!$I$37:$FM$37)+SUMIF(Debt!$I$8:$FM$8,EOMONTH(B33,-12/P),Debt!$I$37:$FM$37) -> 0 | L33: =ABS(SUMIF(Debt!$I$8:$FM$8,B33,Debt!$I$39:$FM$39)+SUMIF(Debt!$I$8:$FM$8,EOMONTH(B33,-12/P),Debt!$I$39:$FM$39)) -> 0 | M33: =SUMIF(Debt!$I$8:$FM$8,B33,Debt!$I$40:$FM$40) -> 177082.4936 | N33: 3981.396645 | O33: 0.0446
B34: 2018-06-30 | C34: 2018 | D34: 177082.4936 | E34: =SUMIF(Debt!$I$8:$FM$8,B34,Debt!$I$45:$FM$45) -> 3304.549106 | F34: =SUMIF(Debt!$I$8:$FM$8,B34,Debt!$I$46:$FM$46) -> 611.9334628 | G34: =SUMIF(Debt!$I$8:$FM$8,B34,Debt!$I$42:$FM$42) -> 3916.482569 | H34: =MAX(0,MIN(-SUMIF(Debt!$I$8:$FM$8,B34,Debt!$I$35:$FM$35),D34-DebtTifiaSize))+MAX(0,MIN(-SUMIF(Debt!$I$8:$FM$8,B34,Debt!$I$38:$FM$38),D34-DebtTifiaSize)) -> 0 | I34: =-SUMIF(Debt!$I$8:$FM$8,B34,Debt!$I$35:$FM$35)+MAX(0,MIN(-SUMIF(Debt!$I$8:$FM$8,B34,Debt!$I$38:$FM$38),D34-DebtTifiaSize))-H34 -> 0 | J34: =-SUMIF(Debt!$I$8:$FM$8,B34,Debt!$I$36:$FM$36)-SUMIF(Debt!$I$8:$FM$8,EOMONTH(B34,-12/P),Debt!$I$36:$FM$36) -> 0 | K34: =SUMIF(Debt!$I$8:$FM$8,B34,Debt!$I$37:$FM$37)+SUMIF(Debt!$I$8:$FM$8,EOMONTH(B34,-12/P),Debt!$I$37:$FM$37) -> 0 | L34: =ABS(SUMIF(Debt!$I$8:$FM$8,B34,Debt!$I$39:$FM$39)+SUMIF(Debt!$I$8:$FM$8,EOMONTH(B34,-12/P),Debt!$I$39:$FM$39)) -> 0 | M34: =SUMIF(Debt!$I$8:$FM$8,B34,Debt!$I$40:$FM$40) -> 177082.4936 | N34: 3916.482569 | O34: 0.0446
B35: 2018-12-31 | C35: 2018 | D35: 177082.4936 | E35: =SUMIF(Debt!$I$8:$FM$8,B35,Debt!$I$45:$FM$45) -> 5224.01 | F35: =SUMIF(Debt!$I$8:$FM$8,B35,Debt!$I$46:$FM$46) -> 0 | G35: =SUMIF(Debt!$I$8:$FM$8,B35,Debt!$I$42:$FM$42) -> 3981.396645 | H35: =MAX(0,MIN(-SUMIF(Debt!$I$8:$FM$8,B35,Debt!$I$35:$FM$35),D35-DebtTifiaSize))+MAX(0,MIN(-SUMIF(Debt!$I$8:$FM$8,B35,Debt!$I$38:$FM$38),D35-DebtTifiaSize)) -> 1242.613355 | I35: =-SUMIF(Debt!$I$8:$FM$8,B35,Debt!$I$35:$FM$35)+MAX(0,MIN(-SUMIF(Debt!$I$8:$FM$8,B35,Debt!$I$38:$FM$38),D35-DebtTifiaSize))-H35 -> 0 | J35: =-SUMIF(Debt!$I$8:$FM$8,B35,Debt!$I$36:$FM$36)-SUMIF(Debt!$I$8:$FM$8,EOMONTH(B35,-12/P),Debt!$I$36:$FM$36) -> 0 | K35: =SUMIF(Debt!$I$8:$FM$8,B35,Debt!$I$37:$FM$37)+SUMIF(Debt!$I$8:$FM$8,EOMONTH(B35,-12/P),Debt!$I$37:$FM$37) -> 0 | L35: =ABS(SUMIF(Debt!$I$8:$FM$8,B35,Debt!$I$39:$FM$39)+SUMIF(Debt!$I$8:$FM$8,EOMONTH(B35,-12/P),Debt!$I$39:$FM$39)) -> 0 | M35: =SUMIF(Debt!$I$8:$FM$8,B35,Debt!$I$40:$FM$40) -> 175839.8802 | N35: 5224.01 | O35: 0.0446
B36: 2019-06-30 | C36: 2019 | D36: 175839.8802 | E36: =SUMIF(Debt!$I$8:$FM$8,B36,Debt!$I$45:$FM$45) -> 6018.84 | F36: =SUMIF(Debt!$I$8:$FM$8,B36,Debt!$I$46:$FM$46) -> 0 | G36: =SUMIF(Debt!$I$8:$FM$8,B36,Debt!$I$42:$FM$42) -> 3889.000047 | H36: =MAX(0,MIN(-SUMIF(Debt!$I$8:$FM$8,B36,Debt!$I$35:$FM$35),D36-DebtTifiaSize))+MAX(0,MIN(-SUMIF(Debt!$I$8:$FM$8,B36,Debt!$I$38:$FM$38),D36-DebtTifiaSize)) -> 2129.839953 | I36: =-SUMIF(Debt!$I$8:$FM$8,B36,Debt!$I$35:$FM$35)+MAX(0,MIN(-SUMIF(Debt!$I$8:$FM$8,B36,Debt!$I$38:$FM$38),D36-DebtTifiaSize))-H36 -> 0 | J36: =-SUMIF(Debt!$I$8:$FM$8,B36,Debt!$I$36:$FM$36)-SUMIF(Debt!$I$8:$FM$8,EOMONTH(B36,-12/P),Debt!$I$36:$FM$36) -> 0 | K36: =SUMIF(Debt!$I$8:$FM$8,B36,Debt!$I$37:$FM$37)+SUMIF(Debt!$I$8:$FM$8,EOMONTH(B36,-12/P),Debt!$I$37:$FM$37) -> 0 | L36: =ABS(SUMIF(Debt!$I$8:$FM$8,B36,Debt!$I$39:$FM$39)+SUMIF(Debt!$I$8:$FM$8,EOMONTH(B36,-12/P),Debt!$I$39:$FM$39)) -> 0 | M36: =SUMIF(Debt!$I$8:$FM$8,B36,Debt!$I$40:$FM$40) -> 173710.0403 | N36: 6018.84 | O36: 0.0446
B37: 2019-12-31 | C37: 2019 | D37: 173710.0403 | E37: =SUMIF(Debt!$I$8:$FM$8,B37,Debt!$I$45:$FM$45) -> 6236.39 | F37: =SUMIF(Debt!$I$8:$FM$8,B37,Debt!$I$46:$FM$46) -> 0 | G37: =SUMIF(Debt!$I$8:$FM$8,B37,Debt!$I$42:$FM$42) -> 3905.572807 | H37: =MAX(0,MIN(-SUMIF(Debt!$I$8:$FM$8,B37,Debt!$I$35:$FM$35),D37-DebtTifiaSize))+MAX(0,MIN(-SUMIF(Debt!$I$8:$FM$8,B37,Debt!$I$38:$FM$38),D37-DebtTifiaSize)) -> 2330.817193 | I37: =-SUMIF(Debt!$I$8:$FM$8,B37,Debt!$I$35:$FM$35)+MAX(0,MIN(-SUMIF(Debt!$I$8:$FM$8,B37,Debt!$I$38:$FM$38),D37-DebtTifiaSize))-H37 -> 0 | J37: =-SUMIF(Debt!$I$8:$FM$8,B37,Debt!$I$36:$FM$36)-SUMIF(Debt!$I$8:$FM$8,EOMONTH(B37,-12/P),Debt!$I$36:$FM$36) -> 0 | K37: =SUMIF(Debt!$I$8:$FM$8,B37,Debt!$I$37:$FM$37)+SUMIF(Debt!$I$8:$FM$8,EOMONTH(B37,-12/P),Debt!$I$37:$FM$37) -> 0 | L37: =ABS(SUMIF(Debt!$I$8:$FM$8,B37,Debt!$I$39:$FM$39)+SUMIF(Debt!$I$8:$FM$8,EOMONTH(B37,-12/P),Debt!$I$39:$FM$39)) -> 0 | M37: =SUMIF(Debt!$I$8:$FM$8,B37,Debt!$I$40:$FM$40) -> 171379.2231 | N37: 6236.39 | O37: 0.0446
B38: 2020-06-30 | C38: 2020 | D38: 171379.2231 | E38: =SUMIF(Debt!$I$8:$FM$8,B38,Debt!$I$45:$FM$45) -> 6304.54 | F38: =SUMIF(Debt!$I$8:$FM$8,B38,Debt!$I$46:$FM$46) -> 0 | G38: =SUMIF(Debt!$I$8:$FM$8,B38,Debt!$I$42:$FM$42) -> 3800.872758 | H38: =MAX(0,MIN(-SUMIF(Debt!$I$8:$FM$8,B38,Debt!$I$35:$FM$35),D38-DebtTifiaSize))+MAX(0,MIN(-SUMIF(Debt!$I$8:$FM$8,B38,Debt!$I$38:$FM$38),D38-DebtTifiaSize)) -> 2503.667242 | I38: =-SUMIF(Debt!$I$8:$FM$8,B38,Debt!$I$35:$FM$35)+MAX(0,MIN(-SUMIF(Debt!$I$8:$FM$8,B38,Debt!$I$38:$FM$38),D38-DebtTifiaSize))-H38 -> 0 | J38: =-SUMIF(Debt!$I$8:$FM$8,B38,Debt!$I$36:$FM$36)-SUMIF(Debt!$I$8:$FM$8,EOMONTH(B38,-12/P),Debt!$I$36:$FM$36) -> 0 | K38: =SUMIF(Debt!$I$8:$FM$8,B38,Debt!$I$37:$FM$37)+SUMIF(Debt!$I$8:$FM$8,EOMONTH(B38,-12/P),Debt!$I$37:$FM$37) -> 0 | L38: =ABS(SUMIF(Debt!$I$8:$FM$8,B38,Debt!$I$39:$FM$39)+SUMIF(Debt!$I$8:$FM$8,EOMONTH(B38,-12/P),Debt!$I$39:$FM$39)) -> 0 | M38: =SUMIF(Debt!$I$8:$FM$8,B38,Debt!$I$40:$FM$40) -> 168875.5558 | N38: 6304.54 | O38: 0.0446
B39: 2020-12-31 | C39: 2020 | D39: 168875.5558 | E39: =SUMIF(Debt!$I$8:$FM$8,B39,Debt!$I$45:$FM$45) -> 6692.37 | F39: =SUMIF(Debt!$I$8:$FM$8,B39,Debt!$I$46:$FM$46) -> 0 | G39: =SUMIF(Debt!$I$8:$FM$8,B39,Debt!$I$42:$FM$42) -> 3786.50372 | H39: =MAX(0,MIN(-SUMIF(Debt!$I$8:$FM$8,B39,Debt!$I$35:$FM$35),D39-DebtTifiaSize))+MAX(0,MIN(-SUMIF(Debt!$I$8:$FM$8,B39,Debt!$I$38:$FM$38),D39-DebtTifiaSize)) -> 2905.86628 | I39: =-SUMIF(Debt!$I$8:$FM$8,B39,Debt!$I$35:$FM$35)+MAX(0,MIN(-SUMIF(Debt!$I$8:$FM$8,B39,Debt!$I$38:$FM$38),D39-DebtTifiaSize))-H39 -> 0 | J39: =-SUMIF(Debt!$I$8:$FM$8,B39,Debt!$I$36:$FM$36)-SUMIF(Debt!$I$8:$FM$8,EOMONTH(B39,-12/P),Debt!$I$36:$FM$36) -> 0 | K39: =SUMIF(Debt!$I$8:$FM$8,B39,Debt!$I$37:$FM$37)+SUMIF(Debt!$I$8:$FM$8,EOMONTH(B39,-12/P),Debt!$I$37:$FM$37) -> 0 | L39: =ABS(SUMIF(Debt!$I$8:$FM$8,B39,Debt!$I$39:$FM$39)+SUMIF(Debt!$I$8:$FM$8,EOMONTH(B39,-12/P),Debt!$I$39:$FM$39)) -> 0 | M39: =SUMIF(Debt!$I$8:$FM$8,B39,Debt!$I$40:$FM$40) -> 165969.6896 | N39: 6692.37 | O39: 0.0446
B40: 2021-06-30 | C40: 2021 | D40: 165969.6896 | E40: =SUMIF(Debt!$I$8:$FM$8,B40,Debt!$I$45:$FM$45) -> 6294.619947 | F40: =SUMIF(Debt!$I$8:$FM$8,B40,Debt!$I$46:$FM$46) -> 0 | G40: =SUMIF(Debt!$I$8:$FM$8,B40,Debt!$I$42:$FM$42) -> 3670.703879 | H40: =MAX(0,MIN(-SUMIF(Debt!$I$8:$FM$8,B40,Debt!$I$35:$FM$35),D40-DebtTifiaSize))+MAX(0,MIN(-SUMIF(Debt!$I$8:$FM$8,B40,Debt!$I$38:$FM$38),D40-DebtTifiaSize)) -> 2623.916068 | I40: =-SUMIF(Debt!$I$8:$FM$8,B40,Debt!$I$35:$FM$35)+MAX(0,MIN(-SUMIF(Debt!$I$8:$FM$8,B40,Debt!$I$38:$FM$38),D40-DebtTifiaSize))-H40 -> 0 | J40: =-SUMIF(Debt!$I$8:$FM$8,B40,Debt!$I$36:$FM$36)-SUMIF(Debt!$I$8:$FM$8,EOMONTH(B40,-12/P),Debt!$I$36:$FM$36) -> 0 | K40: =SUMIF(Debt!$I$8:$FM$8,B40,Debt!$I$37:$FM$37)+SUMIF(Debt!$I$8:$FM$8,EOMONTH(B40,-12/P),Debt!$I$37:$FM$37) -> 0 | L40: =ABS(SUMIF(Debt!$I$8:$FM$8,B40,Debt!$I$39:$FM$39)+SUMIF(Debt!$I$8:$FM$8,EOMONTH(B40,-12/P),Debt!$I$39:$FM$39)) -> 0 | M40: =SUMIF(Debt!$I$8:$FM$8,B40,Debt!$I$40:$FM$40) -> 163345.7735 | N40: 6294.619947 | O40: 0.0446
B41: 2021-12-31 | C41: 2021 | D41: 163345.7735 | E41: =SUMIF(Debt!$I$8:$FM$8,B41,Debt!$I$45:$FM$45) -> 6333.653759 | F41: =SUMIF(Debt!$I$8:$FM$8,B41,Debt!$I$46:$FM$46) -> 0 | G41: =SUMIF(Debt!$I$8:$FM$8,B41,Debt!$I$42:$FM$42) -> 3672.550015 | H41: =MAX(0,MIN(-SUMIF(Debt!$I$8:$FM$8,B41,Debt!$I$35:$FM$35),D41-DebtTifiaSize))+MAX(0,MIN(-SUMIF(Debt!$I$8:$FM$8,B41,Debt!$I$38:$FM$38),D41-DebtTifiaSize)) -> 2661.103744 | I41: =-SUMIF(Debt!$I$8:$FM$8,B41,Debt!$I$35:$FM$35)+MAX(0,MIN(-SUMIF(Debt!$I$8:$FM$8,B41,Debt!$I$38:$FM$38),D41-DebtTifiaSize))-H41 -> 0 | J41: =-SUMIF(Debt!$I$8:$FM$8,B41,Debt!$I$36:$FM$36)-SUMIF(Debt!$I$8:$FM$8,EOMONTH(B41,-12/P),Debt!$I$36:$FM$36) -> 0 | K41: =SUMIF(Debt!$I$8:$FM$8,B41,Debt!$I$37:$FM$37)+SUMIF(Debt!$I$8:$FM$8,EOMONTH(B41,-12/P),Debt!$I$37:$FM$37) -> 0 | L41: =ABS(SUMIF(Debt!$I$8:$FM$8,B41,Debt!$I$39:$FM$39)+SUMIF(Debt!$I$8:$FM$8,EOMONTH(B41,-12/P),Debt!$I$39:$FM$39)) -> 0 | M41: =SUMIF(Debt!$I$8:$FM$8,B41,Debt!$I$40:$FM$40) -> 160684.6697 | N41: 6333.653759 | O41: 0.0446
B42: 2022-06-30 | C42: 2022 | D42: 160684.6697 | E42: =SUMIF(Debt!$I$8:$FM$8,B42,Debt!$I$45:$FM$45) -> 6295.436619 | F42: =SUMIF(Debt!$I$8:$FM$8,B42,Debt!$I$46:$FM$46) -> 0 | G42: =SUMIF(Debt!$I$8:$FM$8,B42,Debt!$I$42:$FM$42) -> 3553.816616 | H42: =MAX(0,MIN(-SUMIF(Debt!$I$8:$FM$8,B42,Debt!$I$35:$FM$35),D42-DebtTifiaSize))+MAX(0,MIN(-SUMIF(Debt!$I$8:$FM$8,B42,Debt!$I$38:$FM$38),D42-DebtTifiaSize)) -> 2741.620002 | I42: =-SUMIF(Debt!$I$8:$FM$8,B42,Debt!$I$35:$FM$35)+MAX(0,MIN(-SUMIF(Debt!$I$8:$FM$8,B42,Debt!$I$38:$FM$38),D42-DebtTifiaSize))-H42 -> 0 | J42: =-SUMIF(Debt!$I$8:$FM$8,B42,Debt!$I$36:$FM$36)-SUMIF(Debt!$I$8:$FM$8,EOMONTH(B42,-12/P),Debt!$I$36:$FM$36) -> 0 | K42: =SUMIF(Debt!$I$8:$FM$8,B42,Debt!$I$37:$FM$37)+SUMIF(Debt!$I$8:$FM$8,EOMONTH(B42,-12/P),Debt!$I$37:$FM$37) -> 0 | L42: =ABS(SUMIF(Debt!$I$8:$FM$8,B42,Debt!$I$39:$FM$39)+SUMIF(Debt!$I$8:$FM$8,EOMONTH(B42,-12/P),Debt!$I$39:$FM$39)) -> 0 | M42: =SUMIF(Debt!$I$8:$FM$8,B42,Debt!$I$40:$FM$40) -> 157943.0497 | N42: 6295.436619 | O42: 0.0446
B43: =EOMONTH(B42,6) -> 2022-12-31 | C43: 2022 | D43: 157943.0497 | E43: =SUMIF(Debt!$I$8:$FM$8,B43,Debt!$I$45:$FM$45) -> 6332.824345 | F43: =SUMIF(Debt!$I$8:$FM$8,B43,Debt!$I$46:$FM$46) -> 0 | G43: =SUMIF(Debt!$I$8:$FM$8,B43,Debt!$I$42:$FM$42) -> 3551.079023 | H43: =MAX(0,MIN(-SUMIF(Debt!$I$8:$FM$8,B43,Debt!$I$35:$FM$35),D43-DebtTifiaSize))+MAX(0,MIN(-SUMIF(Debt!$I$8:$FM$8,B43,Debt!$I$38:$FM$38),D43-DebtTifiaSize)) -> 2781.745322 | I43: =-SUMIF(Debt!$I$8:$FM$8,B43,Debt!$I$35:$FM$35)+MAX(0,MIN(-SUMIF(Debt!$I$8:$FM$8,B43,Debt!$I$38:$FM$38),D43-DebtTifiaSize))-H43 -> 0 | J43: =-SUMIF(Debt!$I$8:$FM$8,B43,Debt!$I$36:$FM$36)-SUMIF(Debt!$I$8:$FM$8,EOMONTH(B43,-12/P),Debt!$I$36:$FM$36) -> 0 | K43: =SUMIF(Debt!$I$8:$FM$8,B43,Debt!$I$37:$FM$37)+SUMIF(Debt!$I$8:$FM$8,EOMONTH(B43,-12/P),Debt!$I$37:$FM$37) -> 0 | L43: =ABS(SUMIF(Debt!$I$8:$FM$8,B43,Debt!$I$39:$FM$39)+SUMIF(Debt!$I$8:$FM$8,EOMONTH(B43,-12/P),Debt!$I$39:$FM$39)) -> 0 | M43: =SUMIF(Debt!$I$8:$FM$8,B43,Debt!$I$40:$FM$40) -> 155161.3044 | N43: 6332.824345 | O43: 0.0446
B44: 2023-06-30 | C44: 2023 | D44: 155161.3044 | E44: =SUMIF(Debt!$I$8:$FM$8,B44,Debt!$I$45:$FM$45) -> 6296.268903 | F44: =SUMIF(Debt!$I$8:$FM$8,B44,Debt!$I$46:$FM$46) -> 0 | G44: =SUMIF(Debt!$I$8:$FM$8,B44,Debt!$I$42:$FM$42) -> 3431.657934 | H44: =MAX(0,MIN(-SUMIF(Debt!$I$8:$FM$8,B44,Debt!$I$35:$FM$35),D44-DebtTifiaSize))+MAX(0,MIN(-SUMIF(Debt!$I$8:$FM$8,B44,Debt!$I$38:$FM$38),D44-DebtTifiaSize)) -> 2864.610969 | I44: =-SUMIF(Debt!$I$8:$FM$8,B44,Debt!$I$35:$FM$35)+MAX(0,MIN(-SUMIF(Debt!$I$8:$FM$8,B44,Debt!$I$38:$FM$38),D44-DebtTifiaSize))-H44 -> 0 | J44: =-SUMIF(Debt!$I$8:$FM$8,B44,Debt!$I$36:$FM$36)-SUMIF(Debt!$I$8:$FM$8,EOMONTH(B44,-12/P),Debt!$I$36:$FM$36) -> 0 | K44: =SUMIF(Debt!$I$8:$FM$8,B44,Debt!$I$37:$FM$37)+SUMIF(Debt!$I$8:$FM$8,EOMONTH(B44,-12/P),Debt!$I$37:$FM$37) -> 0 | L44: =ABS(SUMIF(Debt!$I$8:$FM$8,B44,Debt!$I$39:$FM$39)+SUMIF(Debt!$I$8:$FM$8,EOMONTH(B44,-12/P),Debt!$I$39:$FM$39)) -> 0 | M44: =SUMIF(Debt!$I$8:$FM$8,B44,Debt!$I$40:$FM$40) -> 152296.6934 | N44: 6296.268903 | O44: 0.0446
B45: 2023-12-31 | C45: 2023 | D45: 152296.6934 | E45: =SUMIF(Debt!$I$8:$FM$8,B45,Debt!$I$45:$FM$45) -> 6331.979389 | F45: =SUMIF(Debt!$I$8:$FM$8,B45,Debt!$I$46:$FM$46) -> 0 | G45: =SUMIF(Debt!$I$8:$FM$8,B45,Debt!$I$42:$FM$42) -> 3424.13037 | H45: =MAX(0,MIN(-SUMIF(Debt!$I$8:$FM$8,B45,Debt!$I$35:$FM$35),D45-DebtTifiaSize))+MAX(0,MIN(-SUMIF(Debt!$I$8:$FM$8,B45,Debt!$I$38:$FM$38),D45-DebtTifiaSize)) -> 2907.849019 | I45: =-SUMIF(Debt!$I$8:$FM$8,B45,Debt!$I$35:$FM$35)+MAX(0,MIN(-SUMIF(Debt!$I$8:$FM$8,B45,Debt!$I$38:$FM$38),D45-DebtTifiaSize))-H45 -> 0 | J45: =-SUMIF(Debt!$I$8:$FM$8,B45,Debt!$I$36:$FM$36)-SUMIF(Debt!$I$8:$FM$8,EOMONTH(B45,-12/P),Debt!$I$36:$FM$36) -> 0 | K45: =SUMIF(Debt!$I$8:$FM$8,B45,Debt!$I$37:$FM$37)+SUMIF(Debt!$I$8:$FM$8,EOMONTH(B45,-12/P),Debt!$I$37:$FM$37) -> 0 | L45: =ABS(SUMIF(Debt!$I$8:$FM$8,B45,Debt!$I$39:$FM$39)+SUMIF(Debt!$I$8:$FM$8,EOMONTH(B45,-12/P),Debt!$I$39:$FM$39)) -> 0 | M45: =SUMIF(Debt!$I$8:$FM$8,B45,Debt!$I$40:$FM$40) -> 149388.8444 | N45: 6331.979389 | O45: 0.0446
B46: 2024-06-30 | C46: 2024 | D46: 149388.8444 | E46: =SUMIF(Debt!$I$8:$FM$8,B46,Debt!$I$45:$FM$45) -> 6302.951825 | F46: =SUMIF(Debt!$I$8:$FM$8,B46,Debt!$I$46:$FM$46) -> 0 | G46: =SUMIF(Debt!$I$8:$FM$8,B46,Debt!$I$42:$FM$42) -> 3313.167016 | H46: =MAX(0,MIN(-SUMIF(Debt!$I$8:$FM$8,B46,Debt!$I$35:$FM$35),D46-DebtTifiaSize))+MAX(0,MIN(-SUMIF(Debt!$I$8:$FM$8,B46,Debt!$I$38:$FM$38),D46-DebtTifiaSize)) -> 2989.784809 | I46: =-SUMIF(Debt!$I$8:$FM$8,B46,Debt!$I$35:$FM$35)+MAX(0,MIN(-SUMIF(Debt!$I$8:$FM$8,B46,Debt!$I$38:$FM$38),D46-DebtTifiaSize))-H46 -> 0 | J46: =-SUMIF(Debt!$I$8:$FM$8,B46,Debt!$I$36:$FM$36)-SUMIF(Debt!$I$8:$FM$8,EOMONTH(B46,-12/P),Debt!$I$36:$FM$36) -> 0 | K46: =SUMIF(Debt!$I$8:$FM$8,B46,Debt!$I$37:$FM$37)+SUMIF(Debt!$I$8:$FM$8,EOMONTH(B46,-12/P),Debt!$I$37:$FM$37) -> 0 | L46: =ABS(SUMIF(Debt!$I$8:$FM$8,B46,Debt!$I$39:$FM$39)+SUMIF(Debt!$I$8:$FM$8,EOMONTH(B46,-12/P),Debt!$I$39:$FM$39)) -> 0 | M46: =SUMIF(Debt!$I$8:$FM$8,B46,Debt!$I$40:$FM$40) -> 146399.0596 | N46: 6302.951825 | O46: 0.0446
B47: 2024-12-31 | C47: 2024 | D47: 146399.0596 | E47: =SUMIF(Debt!$I$8:$FM$8,B47,Debt!$I$45:$FM$45) -> 6325.558327 | F47: =SUMIF(Debt!$I$8:$FM$8,B47,Debt!$I$46:$FM$46) -> 0 | G47: =SUMIF(Debt!$I$8:$FM$8,B47,Debt!$I$42:$FM$42) -> 3282.538915 | H47: =MAX(0,MIN(-SUMIF(Debt!$I$8:$FM$8,B47,Debt!$I$35:$FM$35),D47-DebtTifiaSize))+MAX(0,MIN(-SUMIF(Debt!$I$8:$FM$8,B47,Debt!$I$38:$FM$38),D47-DebtTifiaSize)) -> 3043.019412 | I47: =-SUMIF(Debt!$I$8:$FM$8,B47,Debt!$I$35:$FM$35)+MAX(0,MIN(-SUMIF(Debt!$I$8:$FM$8,B47,Debt!$I$38:$FM$38),D47-DebtTifiaSize))-H47 -> 0 | J47: =-SUMIF(Debt!$I$8:$FM$8,B47,Debt!$I$36:$FM$36)-SUMIF(Debt!$I$8:$FM$8,EOMONTH(B47,-12/P),Debt!$I$36:$FM$36) -> 0 | K47: =SUMIF(Debt!$I$8:$FM$8,B47,Debt!$I$37:$FM$37)+SUMIF(Debt!$I$8:$FM$8,EOMONTH(B47,-12/P),Debt!$I$37:$FM$37) -> 0 | L47: =ABS(SUMIF(Debt!$I$8:$FM$8,B47,Debt!$I$39:$FM$39)+SUMIF(Debt!$I$8:$FM$8,EOMONTH(B47,-12/P),Debt!$I$39:$FM$39)) -> 0 | M47: =SUMIF(Debt!$I$8:$FM$8,B47,Debt!$I$40:$FM$40) -> 143356.0402 | N47: 6325.558327 | O47: 0.0446
B48: 2025-06-30 | C48: 2025 | D48: 143356.0402 | E48: =SUMIF(Debt!$I$8:$FM$8,B48,Debt!$I$45:$FM$45) -> 6297.980081 | F48: =SUMIF(Debt!$I$8:$FM$8,B48,Debt!$I$46:$FM$46) -> 0 | G48: =SUMIF(Debt!$I$8:$FM$8,B48,Debt!$I$42:$FM$42) -> 3170.564302 | H48: =MAX(0,MIN(-SUMIF(Debt!$I$8:$FM$8,B48,Debt!$I$35:$FM$35),D48-DebtTifiaSize))+MAX(0,MIN(-SUMIF(Debt!$I$8:$FM$8,B48,Debt!$I$38:$FM$38),D48-DebtTifiaSize)) -> 3127.415779 | I48: =-SUMIF(Debt!$I$8:$FM$8,B48,Debt!$I$35:$FM$35)+MAX(0,MIN(-SUMIF(Debt!$I$8:$FM$8,B48,Debt!$I$38:$FM$38),D48-DebtTifiaSize))-H48 -> 0 | J48: =-SUMIF(Debt!$I$8:$FM$8,B48,Debt!$I$36:$FM$36)-SUMIF(Debt!$I$8:$FM$8,EOMONTH(B48,-12/P),Debt!$I$36:$FM$36) -> 0 | K48: =SUMIF(Debt!$I$8:$FM$8,B48,Debt!$I$37:$FM$37)+SUMIF(Debt!$I$8:$FM$8,EOMONTH(B48,-12/P),Debt!$I$37:$FM$37) -> 0 | L48: =ABS(SUMIF(Debt!$I$8:$FM$8,B48,Debt!$I$39:$FM$39)+SUMIF(Debt!$I$8:$FM$8,EOMONTH(B48,-12/P),Debt!$I$39:$FM$39)) -> 0 | M48: =SUMIF(Debt!$I$8:$FM$8,B48,Debt!$I$40:$FM$40) -> 140228.6244 | N48: 6297.980081 | O48: 0.0446
B49: 2025-12-31 | C49: 2025 | D49: 140228.6244 | E49: =SUMIF(Debt!$I$8:$FM$8,B49,Debt!$I$45:$FM$45) -> 6330.241762 | F49: =SUMIF(Debt!$I$8:$FM$8,B49,Debt!$I$46:$FM$46) -> 0 | G49: =SUMIF(Debt!$I$8:$FM$8,B49,Debt!$I$42:$FM$42) -> 3152.800503 | H49: =MAX(0,MIN(-SUMIF(Debt!$I$8:$FM$8,B49,Debt!$I$35:$FM$35),D49-DebtTifiaSize))+MAX(0,MIN(-SUMIF(Debt!$I$8:$FM$8,B49,Debt!$I$38:$FM$38),D49-DebtTifiaSize)) -> 228.6244314 | I49: =-SUMIF(Debt!$I$8:$FM$8,B49,Debt!$I$35:$FM$35)+MAX(0,MIN(-SUMIF(Debt!$I$8:$FM$8,B49,Debt!$I$38:$FM$38),D49-DebtTifiaSize))-H49 -> 2948.816828 | J49: =-SUMIF(Debt!$I$8:$FM$8,B49,Debt!$I$36:$FM$36)-SUMIF(Debt!$I$8:$FM$8,EOMONTH(B49,-12/P),Debt!$I$36:$FM$36) -> 0 | K49: =SUMIF(Debt!$I$8:$FM$8,B49,Debt!$I$37:$FM$37)+SUMIF(Debt!$I$8:$FM$8,EOMONTH(B49,-12/P),Debt!$I$37:$FM$37) -> 0 | L49: =ABS(SUMIF(Debt!$I$8:$FM$8,B49,Debt!$I$39:$FM$39)+SUMIF(Debt!$I$8:$FM$8,EOMONTH(B49,-12/P),Debt!$I$39:$FM$39)) -> 0 | M49: =SUMIF(Debt!$I$8:$FM$8,B49,Debt!$I$40:$FM$40) -> 137051.1832 | N49: 6330.241762 | O49: 0.0446
B50: 2026-06-30 | C50: 2026 | D50: 137051.1832 | E50: =SUMIF(Debt!$I$8:$FM$8,B50,Debt!$I$45:$FM$45) -> 6298.859876 | F50: =SUMIF(Debt!$I$8:$FM$8,B50,Debt!$I$46:$FM$46) -> 0 | G50: =SUMIF(Debt!$I$8:$FM$8,B50,Debt!$I$42:$FM$42) -> 3031.121593 | H50: =MAX(0,MIN(-SUMIF(Debt!$I$8:$FM$8,B50,Debt!$I$35:$FM$35),D50-DebtTifiaSize))+MAX(0,MIN(-SUMIF(Debt!$I$8:$FM$8,B50,Debt!$I$38:$FM$38),D50-DebtTifiaSize)) -> 0 | I50: =-SUMIF(Debt!$I$8:$FM$8,B50,Debt!$I$35:$FM$35)+MAX(0,MIN(-SUMIF(Debt!$I$8:$FM$8,B50,Debt!$I$38:$FM$38),D50-DebtTifiaSize))-H50 -> 3267.738284 | J50: =-SUMIF(Debt!$I$8:$FM$8,B50,Debt!$I$36:$FM$36)-SUMIF(Debt!$I$8:$FM$8,EOMONTH(B50,-12/P),Debt!$I$36:$FM$36) -> 0 | K50: =SUMIF(Debt!$I$8:$FM$8,B50,Debt!$I$37:$FM$37)+SUMIF(Debt!$I$8:$FM$8,EOMONTH(B50,-12/P),Debt!$I$37:$FM$37) -> 0 | L50: =ABS(SUMIF(Debt!$I$8:$FM$8,B50,Debt!$I$39:$FM$39)+SUMIF(Debt!$I$8:$FM$8,EOMONTH(B50,-12/P),Debt!$I$39:$FM$39)) -> 0 | M50: =SUMIF(Debt!$I$8:$FM$8,B50,Debt!$I$40:$FM$40) -> 133783.4449 | N50: 6298.859876 | O50: 0.0446
B51: 2026-12-31 | C51: 2026 | D51: 133783.4449 | E51: =SUMIF(Debt!$I$8:$FM$8,B51,Debt!$I$45:$FM$45) -> 6329.349597 | F51: =SUMIF(Debt!$I$8:$FM$8,B51,Debt!$I$46:$FM$46) -> 0 | G51: =SUMIF(Debt!$I$8:$FM$8,B51,Debt!$I$42:$FM$42) -> 3007.891677 | H51: =MAX(0,MIN(-SUMIF(Debt!$I$8:$FM$8,B51,Debt!$I$35:$FM$35),D51-DebtTifiaSize))+MAX(0,MIN(-SUMIF(Debt!$I$8:$FM$8,B51,Debt!$I$38:$FM$38),D51-DebtTifiaSize)) -> 0 | I51: =-SUMIF(Debt!$I$8:$FM$8,B51,Debt!$I$35:$FM$35)+MAX(0,MIN(-SUMIF(Debt!$I$8:$FM$8,B51,Debt!$I$38:$FM$38),D51-DebtTifiaSize))-H51 -> 3321.45792 | J51: =-SUMIF(Debt!$I$8:$FM$8,B51,Debt!$I$36:$FM$36)-SUMIF(Debt!$I$8:$FM$8,EOMONTH(B51,-12/P),Debt!$I$36:$FM$36) -> 0 | K51: =SUMIF(Debt!$I$8:$FM$8,B51,Debt!$I$37:$FM$37)+SUMIF(Debt!$I$8:$FM$8,EOMONTH(B51,-12/P),Debt!$I$37:$FM$37) -> 0 | L51: =ABS(SUMIF(Debt!$I$8:$FM$8,B51,Debt!$I$39:$FM$39)+SUMIF(Debt!$I$8:$FM$8,EOMONTH(B51,-12/P),Debt!$I$39:$FM$39)) -> 0 | M51: =SUMIF(Debt!$I$8:$FM$8,B51,Debt!$I$40:$FM$40) -> 130461.987 | N51: 6329.349597 | O51: 0.0446
B52: 2027-06-30 | C52: 2027 | D52: 130461.987 | E52: =SUMIF(Debt!$I$8:$FM$8,B52,Debt!$I$45:$FM$45) -> 6299.755716 | F52: =SUMIF(Debt!$I$8:$FM$8,B52,Debt!$I$46:$FM$46) -> 0 | G52: =SUMIF(Debt!$I$8:$FM$8,B52,Debt!$I$42:$FM$42) -> 2885.390236 | H52: =MAX(0,MIN(-SUMIF(Debt!$I$8:$FM$8,B52,Debt!$I$35:$FM$35),D52-DebtTifiaSize))+MAX(0,MIN(-SUMIF(Debt!$I$8:$FM$8,B52,Debt!$I$38:$FM$38),D52-DebtTifiaSize)) -> 0 | I52: =-SUMIF(Debt!$I$8:$FM$8,B52,Debt!$I$35:$FM$35)+MAX(0,MIN(-SUMIF(Debt!$I$8:$FM$8,B52,Debt!$I$38:$FM$38),D52-DebtTifiaSize))-H52 -> 3414.36548 | J52: =-SUMIF(Debt!$I$8:$FM$8,B52,Debt!$I$36:$FM$36)-SUMIF(Debt!$I$8:$FM$8,EOMONTH(B52,-12/P),Debt!$I$36:$FM$36) -> 0 | K52: =SUMIF(Debt!$I$8:$FM$8,B52,Debt!$I$37:$FM$37)+SUMIF(Debt!$I$8:$FM$8,EOMONTH(B52,-12/P),Debt!$I$37:$FM$37) -> 0 | L52: =ABS(SUMIF(Debt!$I$8:$FM$8,B52,Debt!$I$39:$FM$39)+SUMIF(Debt!$I$8:$FM$8,EOMONTH(B52,-12/P),Debt!$I$39:$FM$39)) -> 0 | M52: =SUMIF(Debt!$I$8:$FM$8,B52,Debt!$I$40:$FM$40) -> 127047.6215 | N52: 6299.755716 | O52: 0.0446
B53: 2027-12-31 | C53: 2027 | D53: 127047.6215 | E53: =SUMIF(Debt!$I$8:$FM$8,B53,Debt!$I$45:$FM$45) -> 6328.441519 | F53: =SUMIF(Debt!$I$8:$FM$8,B53,Debt!$I$46:$FM$46) -> 0 | G53: =SUMIF(Debt!$I$8:$FM$8,B53,Debt!$I$42:$FM$42) -> 2856.448222 | H53: =MAX(0,MIN(-SUMIF(Debt!$I$8:$FM$8,B53,Debt!$I$35:$FM$35),D53-DebtTifiaSize))+MAX(0,MIN(-SUMIF(Debt!$I$8:$FM$8,B53,Debt!$I$38:$FM$38),D53-DebtTifiaSize)) -> 0 | I53: =-SUMIF(Debt!$I$8:$FM$8,B53,Debt!$I$35:$FM$35)+MAX(0,MIN(-SUMIF(Debt!$I$8:$FM$8,B53,Debt!$I$38:$FM$38),D53-DebtTifiaSize))-H53 -> 3471.993297 | J53: =-SUMIF(Debt!$I$8:$FM$8,B53,Debt!$I$36:$FM$36)-SUMIF(Debt!$I$8:$FM$8,EOMONTH(B53,-12/P),Debt!$I$36:$FM$36) -> 0 | K53: =SUMIF(Debt!$I$8:$FM$8,B53,Debt!$I$37:$FM$37)+SUMIF(Debt!$I$8:$FM$8,EOMONTH(B53,-12/P),Debt!$I$37:$FM$37) -> 0 | L53: =ABS(SUMIF(Debt!$I$8:$FM$8,B53,Debt!$I$39:$FM$39)+SUMIF(Debt!$I$8:$FM$8,EOMONTH(B53,-12/P),Debt!$I$39:$FM$39)) -> 0 | M53: =SUMIF(Debt!$I$8:$FM$8,B53,Debt!$I$40:$FM$40) -> 123575.6282 | N53: 6328.441519 | O53: 0.0446
B54: 2028-06-30 | C54: 2028 | D54: 123575.6282 | E54: =SUMIF(Debt!$I$8:$FM$8,B54,Debt!$I$45:$FM$45) -> 6305.317267 | F54: =SUMIF(Debt!$I$8:$FM$8,B54,Debt!$I$46:$FM$46) -> 0 | G54: =SUMIF(Debt!$I$8:$FM$8,B54,Debt!$I$42:$FM$42) -> 2740.677839 | H54: =MAX(0,MIN(-SUMIF(Debt!$I$8:$FM$8,B54,Debt!$I$35:$FM$35),D54-DebtTifiaSize))+MAX(0,MIN(-SUMIF(Debt!$I$8:$FM$8,B54,Debt!$I$38:$FM$38),D54-DebtTifiaSize)) -> 0 | I54: =-SUMIF(Debt!$I$8:$FM$8,B54,Debt!$I$35:$FM$35)+MAX(0,MIN(-SUMIF(Debt!$I$8:$FM$8,B54,Debt!$I$38:$FM$38),D54-DebtTifiaSize))-H54 -> 3564.639428 | J54: =-SUMIF(Debt!$I$8:$FM$8,B54,Debt!$I$36:$FM$36)-SUMIF(Debt!$I$8:$FM$8,EOMONTH(B54,-12/P),Debt!$I$36:$FM$36) -> 0 | K54: =SUMIF(Debt!$I$8:$FM$8,B54,Debt!$I$37:$FM$37)+SUMIF(Debt!$I$8:$FM$8,EOMONTH(B54,-12/P),Debt!$I$37:$FM$37) -> 0 | L54: =ABS(SUMIF(Debt!$I$8:$FM$8,B54,Debt!$I$39:$FM$39)+SUMIF(Debt!$I$8:$FM$8,EOMONTH(B54,-12/P),Debt!$I$39:$FM$39)) -> 0 | M54: =SUMIF(Debt!$I$8:$FM$8,B54,Debt!$I$40:$FM$40) -> 120010.9888 | N54: 6305.317267 | O54: 0.0446
B55: 2028-12-31 | C55: 2028 | D55: 120010.9888 | E55: =SUMIF(Debt!$I$8:$FM$8,B55,Debt!$I$45:$FM$45) -> 6323.168636 | F55: =SUMIF(Debt!$I$8:$FM$8,B55,Debt!$I$46:$FM$46) -> 0 | G55: =SUMIF(Debt!$I$8:$FM$8,B55,Debt!$I$42:$FM$42) -> 2690.869339 | H55: =MAX(0,MIN(-SUMIF(Debt!$I$8:$FM$8,B55,Debt!$I$35:$FM$35),D55-DebtTifiaSize))+MAX(0,MIN(-SUMIF(Debt!$I$8:$FM$8,B55,Debt!$I$38:$FM$38),D55-DebtTifiaSize)) -> 0 | I55: =-SUMIF(Debt!$I$8:$FM$8,B55,Debt!$I$35:$FM$35)+MAX(0,MIN(-SUMIF(Debt!$I$8:$FM$8,B55,Debt!$I$38:$FM$38),D55-DebtTifiaSize))-H55 -> 3632.299297 | J55: =-SUMIF(Debt!$I$8:$FM$8,B55,Debt!$I$36:$FM$36)-SUMIF(Debt!$I$8:$FM$8,EOMONTH(B55,-12/P),Debt!$I$36:$FM$36) -> 0 | K55: =SUMIF(Debt!$I$8:$FM$8,B55,Debt!$I$37:$FM$37)+SUMIF(Debt!$I$8:$FM$8,EOMONTH(B55,-12/P),Debt!$I$37:$FM$37) -> 0 | L55: =ABS(SUMIF(Debt!$I$8:$FM$8,B55,Debt!$I$39:$FM$39)+SUMIF(Debt!$I$8:$FM$8,EOMONTH(B55,-12/P),Debt!$I$39:$FM$39)) -> 0 | M55: =SUMIF(Debt!$I$8:$FM$8,B55,Debt!$I$40:$FM$40) -> 116378.6895 | N55: 6323.168636 | O55: 0.0446
B56: 2029-06-30 | C56: 2029 | D56: 116378.6895 | E56: =SUMIF(Debt!$I$8:$FM$8,B56,Debt!$I$45:$FM$45) -> 6301.595053 | F56: =SUMIF(Debt!$I$8:$FM$8,B56,Debt!$I$46:$FM$46) -> 0 | G56: =SUMIF(Debt!$I$8:$FM$8,B56,Debt!$I$42:$FM$42) -> 2573.913996 | H56: =MAX(0,MIN(-SUMIF(Debt!$I$8:$FM$8,B56,Debt!$I$35:$FM$35),D56-DebtTifiaSize))+MAX(0,MIN(-SUMIF(Debt!$I$8:$FM$8,B56,Debt!$I$38:$FM$38),D56-DebtTifiaSize)) -> 0 | I56: =-SUMIF(Debt!$I$8:$FM$8,B56,Debt!$I$35:$FM$35)+MAX(0,MIN(-SUMIF(Debt!$I$8:$FM$8,B56,Debt!$I$38:$FM$38),D56-DebtTifiaSize))-H56 -> 3727.681057 | J56: =-SUMIF(Debt!$I$8:$FM$8,B56,Debt!$I$36:$FM$36)-SUMIF(Debt!$I$8:$FM$8,EOMONTH(B56,-12/P),Debt!$I$36:$FM$36) -> 0 | K56: =SUMIF(Debt!$I$8:$FM$8,B56,Debt!$I$37:$FM$37)+SUMIF(Debt!$I$8:$FM$8,EOMONTH(B56,-12/P),Debt!$I$37:$FM$37) -> 0 | L56: =ABS(SUMIF(Debt!$I$8:$FM$8,B56,Debt!$I$39:$FM$39)+SUMIF(Debt!$I$8:$FM$8,EOMONTH(B56,-12/P),Debt!$I$39:$FM$39)) -> 0 | M56: =SUMIF(Debt!$I$8:$FM$8,B56,Debt!$I$40:$FM$40) -> 112651.0084 | N56: 6301.595053 | O56: 0.0446
B57: 2029-12-31 | C57: 2029 | D57: 112651.0084 | E57: =SUMIF(Debt!$I$8:$FM$8,B57,Debt!$I$45:$FM$45) -> 6326.576465 | F57: =SUMIF(Debt!$I$8:$FM$8,B57,Debt!$I$46:$FM$46) -> 0 | G57: =SUMIF(Debt!$I$8:$FM$8,B57,Debt!$I$42:$FM$42) -> 2532.765029 | H57: =MAX(0,MIN(-SUMIF(Debt!$I$8:$FM$8,B57,Debt!$I$35:$FM$35),D57-DebtTifiaSize))+MAX(0,MIN(-SUMIF(Debt!$I$8:$FM$8,B57,Debt!$I$38:$FM$38),D57-DebtTifiaSize)) -> 0 | I57: =-SUMIF(Debt!$I$8:$FM$8,B57,Debt!$I$35:$FM$35)+MAX(0,MIN(-SUMIF(Debt!$I$8:$FM$8,B57,Debt!$I$38:$FM$38),D57-DebtTifiaSize))-H57 -> 3793.811437 | J57: =-SUMIF(Debt!$I$8:$FM$8,B57,Debt!$I$36:$FM$36)-SUMIF(Debt!$I$8:$FM$8,EOMONTH(B57,-12/P),Debt!$I$36:$FM$36) -> 0 | K57: =SUMIF(Debt!$I$8:$FM$8,B57,Debt!$I$37:$FM$37)+SUMIF(Debt!$I$8:$FM$8,EOMONTH(B57,-12/P),Debt!$I$37:$FM$37) -> 0 | L57: =ABS(SUMIF(Debt!$I$8:$FM$8,B57,Debt!$I$39:$FM$39)+SUMIF(Debt!$I$8:$FM$8,EOMONTH(B57,-12/P),Debt!$I$39:$FM$39)) -> 0 | M57: =SUMIF(Debt!$I$8:$FM$8,B57,Debt!$I$40:$FM$40) -> 108857.197 | N57: 6326.576465 | O57: 0.0446
B58: 2030-06-30 | C58: 2030 | D58: 108857.197 | E58: =SUMIF(Debt!$I$8:$FM$8,B58,Debt!$I$45:$FM$45) -> 6302.539571 | F58: =SUMIF(Debt!$I$8:$FM$8,B58,Debt!$I$46:$FM$46) -> 0 | G58: =SUMIF(Debt!$I$8:$FM$8,B58,Debt!$I$42:$FM$42) -> 2407.56331 | H58: =MAX(0,MIN(-SUMIF(Debt!$I$8:$FM$8,B58,Debt!$I$35:$FM$35),D58-DebtTifiaSize))+MAX(0,MIN(-SUMIF(Debt!$I$8:$FM$8,B58,Debt!$I$38:$FM$38),D58-DebtTifiaSize)) -> 0 | I58: =-SUMIF(Debt!$I$8:$FM$8,B58,Debt!$I$35:$FM$35)+MAX(0,MIN(-SUMIF(Debt!$I$8:$FM$8,B58,Debt!$I$38:$FM$38),D58-DebtTifiaSize))-H58 -> 3894.976261 | J58: =-SUMIF(Debt!$I$8:$FM$8,B58,Debt!$I$36:$FM$36)-SUMIF(Debt!$I$8:$FM$8,EOMONTH(B58,-12/P),Debt!$I$36:$FM$36) -> 0 | K58: =SUMIF(Debt!$I$8:$FM$8,B58,Debt!$I$37:$FM$37)+SUMIF(Debt!$I$8:$FM$8,EOMONTH(B58,-12/P),Debt!$I$37:$FM$37) -> 0 | L58: =ABS(SUMIF(Debt!$I$8:$FM$8,B58,Debt!$I$39:$FM$39)+SUMIF(Debt!$I$8:$FM$8,EOMONTH(B58,-12/P),Debt!$I$39:$FM$39)) -> 0 | M58: =SUMIF(Debt!$I$8:$FM$8,B58,Debt!$I$40:$FM$40) -> 104962.2207 | N58: 6302.539571 | O58: 0.0446
B59: 2030-12-31 | C59: 2030 | D59: 104962.2207 | E59: =SUMIF(Debt!$I$8:$FM$8,B59,Debt!$I$45:$FM$45) -> 6325.620201 | F59: =SUMIF(Debt!$I$8:$FM$8,B59,Debt!$I$46:$FM$46) -> 0 | G59: =SUMIF(Debt!$I$8:$FM$8,B59,Debt!$I$42:$FM$42) -> 2359.895803 | H59: =MAX(0,MIN(-SUMIF(Debt!$I$8:$FM$8,B59,Debt!$I$35:$FM$35),D59-DebtTifiaSize))+MAX(0,MIN(-SUMIF(Debt!$I$8:$FM$8,B59,Debt!$I$38:$FM$38),D59-DebtTifiaSize)) -> 0 | I59: =-SUMIF(Debt!$I$8:$FM$8,B59,Debt!$I$35:$FM$35)+MAX(0,MIN(-SUMIF(Debt!$I$8:$FM$8,B59,Debt!$I$38:$FM$38),D59-DebtTifiaSize))-H59 -> 3965.724398 | J59: =-SUMIF(Debt!$I$8:$FM$8,B59,Debt!$I$36:$FM$36)-SUMIF(Debt!$I$8:$FM$8,EOMONTH(B59,-12/P),Debt!$I$36:$FM$36) -> 0 | K59: =SUMIF(Debt!$I$8:$FM$8,B59,Debt!$I$37:$FM$37)+SUMIF(Debt!$I$8:$FM$8,EOMONTH(B59,-12/P),Debt!$I$37:$FM$37) -> 0 | L59: =ABS(SUMIF(Debt!$I$8:$FM$8,B59,Debt!$I$39:$FM$39)+SUMIF(Debt!$I$8:$FM$8,EOMONTH(B59,-12/P),Debt!$I$39:$FM$39)) -> 0 | M59: =SUMIF(Debt!$I$8:$FM$8,B59,Debt!$I$40:$FM$40) -> 100996.4963 | N59: 6325.620201 | O59: 0.0446
B60: 2031-06-30 | C60: 2031 | D60: 100996.4963 | E60: =SUMIF(Debt!$I$8:$FM$8,B60,Debt!$I$45:$FM$45) -> 6303.500478 | F60: =SUMIF(Debt!$I$8:$FM$8,B60,Debt!$I$46:$FM$46) -> 0 | G60: =SUMIF(Debt!$I$8:$FM$8,B60,Debt!$I$42:$FM$42) -> 2233.710455 | H60: =MAX(0,MIN(-SUMIF(Debt!$I$8:$FM$8,B60,Debt!$I$35:$FM$35),D60-DebtTifiaSize))+MAX(0,MIN(-SUMIF(Debt!$I$8:$FM$8,B60,Debt!$I$38:$FM$38),D60-DebtTifiaSize)) -> 0 | I60: =-SUMIF(Debt!$I$8:$FM$8,B60,Debt!$I$35:$FM$35)+MAX(0,MIN(-SUMIF(Debt!$I$8:$FM$8,B60,Debt!$I$38:$FM$38),D60-DebtTifiaSize))-H60 -> 4069.790023 | J60: =-SUMIF(Debt!$I$8:$FM$8,B60,Debt!$I$36:$FM$36)-SUMIF(Debt!$I$8:$FM$8,EOMONTH(B60,-12/P),Debt!$I$36:$FM$36) -> 0 | K60: =SUMIF(Debt!$I$8:$FM$8,B60,Debt!$I$37:$FM$37)+SUMIF(Debt!$I$8:$FM$8,EOMONTH(B60,-12/P),Debt!$I$37:$FM$37) -> 0 | L60: =ABS(SUMIF(Debt!$I$8:$FM$8,B60,Debt!$I$39:$FM$39)+SUMIF(Debt!$I$8:$FM$8,EOMONTH(B60,-12/P),Debt!$I$39:$FM$39)) -> 0 | M60: =SUMIF(Debt!$I$8:$FM$8,B60,Debt!$I$40:$FM$40) -> 96926.70629 | N60: 6303.500478 | O60: 0.0446
B61: 2031-12-31 | C61: 2031 | D61: 96926.70629 | E61: =SUMIF(Debt!$I$8:$FM$8,B61,Debt!$I$45:$FM$45) -> 6324.647746 | F61: =SUMIF(Debt!$I$8:$FM$8,B61,Debt!$I$46:$FM$46) -> 0 | G61: =SUMIF(Debt!$I$8:$FM$8,B61,Debt!$I$42:$FM$42) -> 2179.231021 | H61: =MAX(0,MIN(-SUMIF(Debt!$I$8:$FM$8,B61,Debt!$I$35:$FM$35),D61-DebtTifiaSize))+MAX(0,MIN(-SUMIF(Debt!$I$8:$FM$8,B61,Debt!$I$38:$FM$38),D61-DebtTifiaSize)) -> 0 | I61: =-SUMIF(Debt!$I$8:$FM$8,B61,Debt!$I$35:$FM$35)+MAX(0,MIN(-SUMIF(Debt!$I$8:$FM$8,B61,Debt!$I$38:$FM$38),D61-DebtTifiaSize))-H61 -> 4145.416726 | J61: =-SUMIF(Debt!$I$8:$FM$8,B61,Debt!$I$36:$FM$36)-SUMIF(Debt!$I$8:$FM$8,EOMONTH(B61,-12/P),Debt!$I$36:$FM$36) -> 0 | K61: =SUMIF(Debt!$I$8:$FM$8,B61,Debt!$I$37:$FM$37)+SUMIF(Debt!$I$8:$FM$8,EOMONTH(B61,-12/P),Debt!$I$37:$FM$37) -> 0 | L61: =ABS(SUMIF(Debt!$I$8:$FM$8,B61,Debt!$I$39:$FM$39)+SUMIF(Debt!$I$8:$FM$8,EOMONTH(B61,-12/P),Debt!$I$39:$FM$39)) -> 0 | M61: =SUMIF(Debt!$I$8:$FM$8,B61,Debt!$I$40:$FM$40) -> 92781.28957 | N61: 6324.647746 | O61: 0.0446
B62: 2032-06-30 | C62: 2032 | D62: 92781.28957 | E62: =SUMIF(Debt!$I$8:$FM$8,B62,Debt!$I$45:$FM$45) -> 6307.855389 | F62: =SUMIF(Debt!$I$8:$FM$8,B62,Debt!$I$46:$FM$46) -> 0 | G62: =SUMIF(Debt!$I$8:$FM$8,B62,Debt!$I$42:$FM$42) -> 2057.716622 | H62: =MAX(0,MIN(-SUMIF(Debt!$I$8:$FM$8,B62,Debt!$I$35:$FM$35),D62-DebtTifiaSize))+MAX(0,MIN(-SUMIF(Debt!$I$8:$FM$8,B62,Debt!$I$38:$FM$38),D62-DebtTifiaSize)) -> 0 | I62: =-SUMIF(Debt!$I$8:$FM$8,B62,Debt!$I$35:$FM$35)+MAX(0,MIN(-SUMIF(Debt!$I$8:$FM$8,B62,Debt!$I$38:$FM$38),D62-DebtTifiaSize))-H62 -> 4250.138767 | J62: =-SUMIF(Debt!$I$8:$FM$8,B62,Debt!$I$36:$FM$36)-SUMIF(Debt!$I$8:$FM$8,EOMONTH(B62,-12/P),Debt!$I$36:$FM$36) -> 0 | K62: =SUMIF(Debt!$I$8:$FM$8,B62,Debt!$I$37:$FM$37)+SUMIF(Debt!$I$8:$FM$8,EOMONTH(B62,-12/P),Debt!$I$37:$FM$37) -> 0 | L62: =ABS(SUMIF(Debt!$I$8:$FM$8,B62,Debt!$I$39:$FM$39)+SUMIF(Debt!$I$8:$FM$8,EOMONTH(B62,-12/P),Debt!$I$39:$FM$39)) -> 0 | M62: =SUMIF(Debt!$I$8:$FM$8,B62,Debt!$I$40:$FM$40) -> 88531.1508 | N62: 6307.855389 | O62: 0.0446
B63: 2032-12-31 | C63: 2032 | D63: 88531.1508 | E63: =SUMIF(Debt!$I$8:$FM$8,B63,Debt!$I$45:$FM$45) -> 6320.608252 | F63: =SUMIF(Debt!$I$8:$FM$8,B63,Debt!$I$46:$FM$46) -> 0 | G63: =SUMIF(Debt!$I$8:$FM$8,B63,Debt!$I$42:$FM$42) -> 1985.032885 | H63: =MAX(0,MIN(-SUMIF(Debt!$I$8:$FM$8,B63,Debt!$I$35:$FM$35),D63-DebtTifiaSize))+MAX(0,MIN(-SUMIF(Debt!$I$8:$FM$8,B63,Debt!$I$38:$FM$38),D63-DebtTifiaSize)) -> 0 | I63: =-SUMIF(Debt!$I$8:$FM$8,B63,Debt!$I$35:$FM$35)+MAX(0,MIN(-SUMIF(Debt!$I$8:$FM$8,B63,Debt!$I$38:$FM$38),D63-DebtTifiaSize))-H63 -> 4335.575367 | J63: =-SUMIF(Debt!$I$8:$FM$8,B63,Debt!$I$36:$FM$36)-SUMIF(Debt!$I$8:$FM$8,EOMONTH(B63,-12/P),Debt!$I$36:$FM$36) -> 0 | K63: =SUMIF(Debt!$I$8:$FM$8,B63,Debt!$I$37:$FM$37)+SUMIF(Debt!$I$8:$FM$8,EOMONTH(B63,-12/P),Debt!$I$37:$FM$37) -> 0 | L63: =ABS(SUMIF(Debt!$I$8:$FM$8,B63,Debt!$I$39:$FM$39)+SUMIF(Debt!$I$8:$FM$8,EOMONTH(B63,-12/P),Debt!$I$39:$FM$39)) -> 0 | M63: =SUMIF(Debt!$I$8:$FM$8,B63,Debt!$I$40:$FM$40) -> 84195.57543 | N63: 6320.608252 | O63: 0.0446
B64: 2033-06-30 | C64: 2033 | D64: 84195.57543 | E64: =SUMIF(Debt!$I$8:$FM$8,B64,Debt!$I$45:$FM$45) -> 6305.470736 | F64: =SUMIF(Debt!$I$8:$FM$8,B64,Debt!$I$46:$FM$46) -> 0 | G64: =SUMIF(Debt!$I$8:$FM$8,B64,Debt!$I$42:$FM$42) -> 1862.129321 | H64: =MAX(0,MIN(-SUMIF(Debt!$I$8:$FM$8,B64,Debt!$I$35:$FM$35),D64-DebtTifiaSize))+MAX(0,MIN(-SUMIF(Debt!$I$8:$FM$8,B64,Debt!$I$38:$FM$38),D64-DebtTifiaSize)) -> 0 | I64: =-SUMIF(Debt!$I$8:$FM$8,B64,Debt!$I$35:$FM$35)+MAX(0,MIN(-SUMIF(Debt!$I$8:$FM$8,B64,Debt!$I$38:$FM$38),D64-DebtTifiaSize))-H64 -> 4443.341415 | J64: =-SUMIF(Debt!$I$8:$FM$8,B64,Debt!$I$36:$FM$36)-SUMIF(Debt!$I$8:$FM$8,EOMONTH(B64,-12/P),Debt!$I$36:$FM$36) -> 0 | K64: =SUMIF(Debt!$I$8:$FM$8,B64,Debt!$I$37:$FM$37)+SUMIF(Debt!$I$8:$FM$8,EOMONTH(B64,-12/P),Debt!$I$37:$FM$37) -> 0 | L64: =ABS(SUMIF(Debt!$I$8:$FM$8,B64,Debt!$I$39:$FM$39)+SUMIF(Debt!$I$8:$FM$8,EOMONTH(B64,-12/P),Debt!$I$39:$FM$39)) -> 0 | M64: =SUMIF(Debt!$I$8:$FM$8,B64,Debt!$I$40:$FM$40) -> 79752.23402 | N64: 6305.470736 | O64: 0.0446
B65: 2033-12-31 | C65: 2033 | D65: 79752.23402 | E65: =SUMIF(Debt!$I$8:$FM$8,B65,Debt!$I$45:$FM$45) -> 6322.653041 | F65: =SUMIF(Debt!$I$8:$FM$8,B65,Debt!$I$46:$FM$46) -> 0 | G65: =SUMIF(Debt!$I$8:$FM$8,B65,Debt!$I$42:$FM$42) -> 1793.09242 | H65: =MAX(0,MIN(-SUMIF(Debt!$I$8:$FM$8,B65,Debt!$I$35:$FM$35),D65-DebtTifiaSize))+MAX(0,MIN(-SUMIF(Debt!$I$8:$FM$8,B65,Debt!$I$38:$FM$38),D65-DebtTifiaSize)) -> 0 | I65: =-SUMIF(Debt!$I$8:$FM$8,B65,Debt!$I$35:$FM$35)+MAX(0,MIN(-SUMIF(Debt!$I$8:$FM$8,B65,Debt!$I$38:$FM$38),D65-DebtTifiaSize))-H65 -> 4529.560621 | J65: =-SUMIF(Debt!$I$8:$FM$8,B65,Debt!$I$36:$FM$36)-SUMIF(Debt!$I$8:$FM$8,EOMONTH(B65,-12/P),Debt!$I$36:$FM$36) -> 0 | K65: =SUMIF(Debt!$I$8:$FM$8,B65,Debt!$I$37:$FM$37)+SUMIF(Debt!$I$8:$FM$8,EOMONTH(B65,-12/P),Debt!$I$37:$FM$37) -> 0 | L65: =ABS(SUMIF(Debt!$I$8:$FM$8,B65,Debt!$I$39:$FM$39)+SUMIF(Debt!$I$8:$FM$8,EOMONTH(B65,-12/P),Debt!$I$39:$FM$39)) -> 0 | M65: =SUMIF(Debt!$I$8:$FM$8,B65,Debt!$I$40:$FM$40) -> 75222.6734 | N65: 6322.653041 | O65: 0.0446
B66: 2034-06-30 | C66: 2034 | D66: 75222.6734 | E66: =SUMIF(Debt!$I$8:$FM$8,B66,Debt!$I$45:$FM$45) -> 6306.481221 | F66: =SUMIF(Debt!$I$8:$FM$8,B66,Debt!$I$46:$FM$46) -> 0 | G66: =SUMIF(Debt!$I$8:$FM$8,B66,Debt!$I$42:$FM$42) -> 1663.678228 | H66: =MAX(0,MIN(-SUMIF(Debt!$I$8:$FM$8,B66,Debt!$I$35:$FM$35),D66-DebtTifiaSize))+MAX(0,MIN(-SUMIF(Debt!$I$8:$FM$8,B66,Debt!$I$38:$FM$38),D66-DebtTifiaSize)) -> 0 | I66: =-SUMIF(Debt!$I$8:$FM$8,B66,Debt!$I$35:$FM$35)+MAX(0,MIN(-SUMIF(Debt!$I$8:$FM$8,B66,Debt!$I$38:$FM$38),D66-DebtTifiaSize))-H66 -> 4642.802993 | J66: =-SUMIF(Debt!$I$8:$FM$8,B66,Debt!$I$36:$FM$36)-SUMIF(Debt!$I$8:$FM$8,EOMONTH(B66,-12/P),Debt!$I$36:$FM$36) -> 0 | K66: =SUMIF(Debt!$I$8:$FM$8,B66,Debt!$I$37:$FM$37)+SUMIF(Debt!$I$8:$FM$8,EOMONTH(B66,-12/P),Debt!$I$37:$FM$37) -> 0 | L66: =ABS(SUMIF(Debt!$I$8:$FM$8,B66,Debt!$I$39:$FM$39)+SUMIF(Debt!$I$8:$FM$8,EOMONTH(B66,-12/P),Debt!$I$39:$FM$39)) -> 0 | M66: =SUMIF(Debt!$I$8:$FM$8,B66,Debt!$I$40:$FM$40) -> 70579.8704 | N66: 6306.481221 | O66: 0.0446
B67: 2034-12-31 | C67: 2034 | D67: 70579.8704 | E67: =SUMIF(Debt!$I$8:$FM$8,B67,Debt!$I$45:$FM$45) -> 6321.631711 | F67: =SUMIF(Debt!$I$8:$FM$8,B67,Debt!$I$46:$FM$46) -> 0 | G67: =SUMIF(Debt!$I$8:$FM$8,B67,Debt!$I$42:$FM$42) -> 1586.86753 | H67: =MAX(0,MIN(-SUMIF(Debt!$I$8:$FM$8,B67,Debt!$I$35:$FM$35),D67-DebtTifiaSize))+MAX(0,MIN(-SUMIF(Debt!$I$8:$FM$8,B67,Debt!$I$38:$FM$38),D67-DebtTifiaSize)) -> 0 | I67: =-SUMIF(Debt!$I$8:$FM$8,B67,Debt!$I$35:$FM$35)+MAX(0,MIN(-SUMIF(Debt!$I$8:$FM$8,B67,Debt!$I$38:$FM$38),D67-DebtTifiaSize))-H67 -> 4734.764181 | J67: =-SUMIF(Debt!$I$8:$FM$8,B67,Debt!$I$36:$FM$36)-SUMIF(Debt!$I$8:$FM$8,EOMONTH(B67,-12/P),Debt!$I$36:$FM$36) -> 0 | K67: =SUMIF(Debt!$I$8:$FM$8,B67,Debt!$I$37:$FM$37)+SUMIF(Debt!$I$8:$FM$8,EOMONTH(B67,-12/P),Debt!$I$37:$FM$37) -> 0 | L67: =ABS(SUMIF(Debt!$I$8:$FM$8,B67,Debt!$I$39:$FM$39)+SUMIF(Debt!$I$8:$FM$8,EOMONTH(B67,-12/P),Debt!$I$39:$FM$39)) -> 0 | M67: =SUMIF(Debt!$I$8:$FM$8,B67,Debt!$I$40:$FM$40) -> 65845.10622 | N67: 6321.631711 | O67: 0.0446
B68: 2035-06-30 | C68: 2035 | D68: 65845.10622 | E68: =SUMIF(Debt!$I$8:$FM$8,B68,Debt!$I$45:$FM$45) -> 6307.508348 | F68: =SUMIF(Debt!$I$8:$FM$8,B68,Debt!$I$46:$FM$46) -> 0 | G68: =SUMIF(Debt!$I$8:$FM$8,B68,Debt!$I$42:$FM$42) -> 1456.277273 | H68: =MAX(0,MIN(-SUMIF(Debt!$I$8:$FM$8,B68,Debt!$I$35:$FM$35),D68-DebtTifiaSize))+MAX(0,MIN(-SUMIF(Debt!$I$8:$FM$8,B68,Debt!$I$38:$FM$38),D68-DebtTifiaSize)) -> 0 | I68: =-SUMIF(Debt!$I$8:$FM$8,B68,Debt!$I$35:$FM$35)+MAX(0,MIN(-SUMIF(Debt!$I$8:$FM$8,B68,Debt!$I$38:$FM$38),D68-DebtTifiaSize))-H68 -> 4851.231076 | J68: =-SUMIF(Debt!$I$8:$FM$8,B68,Debt!$I$36:$FM$36)-SUMIF(Debt!$I$8:$FM$8,EOMONTH(B68,-12/P),Debt!$I$36:$FM$36) -> 0 | K68: =SUMIF(Debt!$I$8:$FM$8,B68,Debt!$I$37:$FM$37)+SUMIF(Debt!$I$8:$FM$8,EOMONTH(B68,-12/P),Debt!$I$37:$FM$37) -> 0 | L68: =ABS(SUMIF(Debt!$I$8:$FM$8,B68,Debt!$I$39:$FM$39)+SUMIF(Debt!$I$8:$FM$8,EOMONTH(B68,-12/P),Debt!$I$39:$FM$39)) -> 0 | M68: =SUMIF(Debt!$I$8:$FM$8,B68,Debt!$I$40:$FM$40) -> 60993.87515 | N68: 6307.508348 | O68: 0.0446
B69: 2035-12-31 | C69: 2035 | D69: 60993.87515 | E69: =SUMIF(Debt!$I$8:$FM$8,B69,Debt!$I$45:$FM$45) -> 6320.594011 | F69: =SUMIF(Debt!$I$8:$FM$8,B69,Debt!$I$46:$FM$46) -> 0 | G69: =SUMIF(Debt!$I$8:$FM$8,B69,Debt!$I$42:$FM$42) -> 1371.342841 | H69: =MAX(0,MIN(-SUMIF(Debt!$I$8:$FM$8,B69,Debt!$I$35:$FM$35),D69-DebtTifiaSize))+MAX(0,MIN(-SUMIF(Debt!$I$8:$FM$8,B69,Debt!$I$38:$FM$38),D69-DebtTifiaSize)) -> 0 | I69: =-SUMIF(Debt!$I$8:$FM$8,B69,Debt!$I$35:$FM$35)+MAX(0,MIN(-SUMIF(Debt!$I$8:$FM$8,B69,Debt!$I$38:$FM$38),D69-DebtTifiaSize))-H69 -> 4949.25117 | J69: =-SUMIF(Debt!$I$8:$FM$8,B69,Debt!$I$36:$FM$36)-SUMIF(Debt!$I$8:$FM$8,EOMONTH(B69,-12/P),Debt!$I$36:$FM$36) -> 0 | K69: =SUMIF(Debt!$I$8:$FM$8,B69,Debt!$I$37:$FM$37)+SUMIF(Debt!$I$8:$FM$8,EOMONTH(B69,-12/P),Debt!$I$37:$FM$37) -> 0 | L69: =ABS(SUMIF(Debt!$I$8:$FM$8,B69,Debt!$I$39:$FM$39)+SUMIF(Debt!$I$8:$FM$8,EOMONTH(B69,-12/P),Debt!$I$39:$FM$39)) -> 0 | M69: =SUMIF(Debt!$I$8:$FM$8,B69,Debt!$I$40:$FM$40) -> 56044.62398 | N69: 6320.594011 | O69: 0.0446
B70: 2036-06-30 | C70: 2036 | D70: 56044.62398 | E70: =SUMIF(Debt!$I$8:$FM$8,B70,Debt!$I$45:$FM$45) -> 6310.569273 | F70: =SUMIF(Debt!$I$8:$FM$8,B70,Debt!$I$46:$FM$46) -> 0 | G70: =SUMIF(Debt!$I$8:$FM$8,B70,Debt!$I$42:$FM$42) -> 1242.965633 | H70: =MAX(0,MIN(-SUMIF(Debt!$I$8:$FM$8,B70,Debt!$I$35:$FM$35),D70-DebtTifiaSize))+MAX(0,MIN(-SUMIF(Debt!$I$8:$FM$8,B70,Debt!$I$38:$FM$38),D70-DebtTifiaSize)) -> 0 | I70: =-SUMIF(Debt!$I$8:$FM$8,B70,Debt!$I$35:$FM$35)+MAX(0,MIN(-SUMIF(Debt!$I$8:$FM$8,B70,Debt!$I$38:$FM$38),D70-DebtTifiaSize))-H70 -> 5067.60364 | J70: =-SUMIF(Debt!$I$8:$FM$8,B70,Debt!$I$36:$FM$36)-SUMIF(Debt!$I$8:$FM$8,EOMONTH(B70,-12/P),Debt!$I$36:$FM$36) -> 0 | K70: =SUMIF(Debt!$I$8:$FM$8,B70,Debt!$I$37:$FM$37)+SUMIF(Debt!$I$8:$FM$8,EOMONTH(B70,-12/P),Debt!$I$37:$FM$37) -> 0 | L70: =ABS(SUMIF(Debt!$I$8:$FM$8,B70,Debt!$I$39:$FM$39)+SUMIF(Debt!$I$8:$FM$8,EOMONTH(B70,-12/P),Debt!$I$39:$FM$39)) -> 0 | M70: =SUMIF(Debt!$I$8:$FM$8,B70,Debt!$I$40:$FM$40) -> 50977.02034 | N70: 6310.569273 | O70: 0.0446
B71: 2036-12-31 | C71: 2036 | D71: 50977.02034 | E71: =SUMIF(Debt!$I$8:$FM$8,B71,Debt!$I$45:$FM$45) -> 6317.874627 | F71: =SUMIF(Debt!$I$8:$FM$8,B71,Debt!$I$46:$FM$46) -> 0 | G71: =SUMIF(Debt!$I$8:$FM$8,B71,Debt!$I$42:$FM$42) -> 1142.999507 | H71: =MAX(0,MIN(-SUMIF(Debt!$I$8:$FM$8,B71,Debt!$I$35:$FM$35),D71-DebtTifiaSize))+MAX(0,MIN(-SUMIF(Debt!$I$8:$FM$8,B71,Debt!$I$38:$FM$38),D71-DebtTifiaSize)) -> 0 | I71: =-SUMIF(Debt!$I$8:$FM$8,B71,Debt!$I$35:$FM$35)+MAX(0,MIN(-SUMIF(Debt!$I$8:$FM$8,B71,Debt!$I$38:$FM$38),D71-DebtTifiaSize))-H71 -> 5174.87512 | J71: =-SUMIF(Debt!$I$8:$FM$8,B71,Debt!$I$36:$FM$36)-SUMIF(Debt!$I$8:$FM$8,EOMONTH(B71,-12/P),Debt!$I$36:$FM$36) -> 0 | K71: =SUMIF(Debt!$I$8:$FM$8,B71,Debt!$I$37:$FM$37)+SUMIF(Debt!$I$8:$FM$8,EOMONTH(B71,-12/P),Debt!$I$37:$FM$37) -> 0 | L71: =ABS(SUMIF(Debt!$I$8:$FM$8,B71,Debt!$I$39:$FM$39)+SUMIF(Debt!$I$8:$FM$8,EOMONTH(B71,-12/P),Debt!$I$39:$FM$39)) -> 0 | M71: =SUMIF(Debt!$I$8:$FM$8,B71,Debt!$I$40:$FM$40) -> 45802.14522 | N71: 6317.874627 | O71: 0.0446
B72: 2037-06-30 | C72: 2037 | D72: 45802.14522 | E72: =SUMIF(Debt!$I$8:$FM$8,B72,Debt!$I$45:$FM$45) -> 6309.611551 | F72: =SUMIF(Debt!$I$8:$FM$8,B72,Debt!$I$46:$FM$46) -> 0 | G72: =SUMIF(Debt!$I$8:$FM$8,B72,Debt!$I$42:$FM$42) -> 1012.99287 | H72: =MAX(0,MIN(-SUMIF(Debt!$I$8:$FM$8,B72,Debt!$I$35:$FM$35),D72-DebtTifiaSize))+MAX(0,MIN(-SUMIF(Debt!$I$8:$FM$8,B72,Debt!$I$38:$FM$38),D72-DebtTifiaSize)) -> 0 | I72: =-SUMIF(Debt!$I$8:$FM$8,B72,Debt!$I$35:$FM$35)+MAX(0,MIN(-SUMIF(Debt!$I$8:$FM$8,B72,Debt!$I$38:$FM$38),D72-DebtTifiaSize))-H72 -> 5296.618681 | J72: =-SUMIF(Debt!$I$8:$FM$8,B72,Debt!$I$36:$FM$36)-SUMIF(Debt!$I$8:$FM$8,EOMONTH(B72,-12/P),Debt!$I$36:$FM$36) -> 0 | K72: =SUMIF(Debt!$I$8:$FM$8,B72,Debt!$I$37:$FM$37)+SUMIF(Debt!$I$8:$FM$8,EOMONTH(B72,-12/P),Debt!$I$37:$FM$37) -> 0 | L72: =ABS(SUMIF(Debt!$I$8:$FM$8,B72,Debt!$I$39:$FM$39)+SUMIF(Debt!$I$8:$FM$8,EOMONTH(B72,-12/P),Debt!$I$39:$FM$39)) -> 0 | M72: =SUMIF(Debt!$I$8:$FM$8,B72,Debt!$I$40:$FM$40) -> 40505.52654 | N72: 6309.611551 | O72: 0.0446
B73: 2037-12-31 | C73: 2037 | D73: 40505.52654 | E73: =SUMIF(Debt!$I$8:$FM$8,B73,Debt!$I$45:$FM$45) -> 6318.468222 | F73: =SUMIF(Debt!$I$8:$FM$8,B73,Debt!$I$46:$FM$46) -> 0 | G73: =SUMIF(Debt!$I$8:$FM$8,B73,Debt!$I$42:$FM$42) -> 910.6974054 | H73: =MAX(0,MIN(-SUMIF(Debt!$I$8:$FM$8,B73,Debt!$I$35:$FM$35),D73-DebtTifiaSize))+MAX(0,MIN(-SUMIF(Debt!$I$8:$FM$8,B73,Debt!$I$38:$FM$38),D73-DebtTifiaSize)) -> 0 | I73: =-SUMIF(Debt!$I$8:$FM$8,B73,Debt!$I$35:$FM$35)+MAX(0,MIN(-SUMIF(Debt!$I$8:$FM$8,B73,Debt!$I$38:$FM$38),D73-DebtTifiaSize))-H73 -> 5407.770817 | J73: =-SUMIF(Debt!$I$8:$FM$8,B73,Debt!$I$36:$FM$36)-SUMIF(Debt!$I$8:$FM$8,EOMONTH(B73,-12/P),Debt!$I$36:$FM$36) -> 0 | K73: =SUMIF(Debt!$I$8:$FM$8,B73,Debt!$I$37:$FM$37)+SUMIF(Debt!$I$8:$FM$8,EOMONTH(B73,-12/P),Debt!$I$37:$FM$37) -> 0 | L73: =ABS(SUMIF(Debt!$I$8:$FM$8,B73,Debt!$I$39:$FM$39)+SUMIF(Debt!$I$8:$FM$8,EOMONTH(B73,-12/P),Debt!$I$39:$FM$39)) -> 0 | M73: =SUMIF(Debt!$I$8:$FM$8,B73,Debt!$I$40:$FM$40) -> 35097.75572 | N73: 6318.468222 | O73: 0.0446
B74: 2038-06-30 | C74: 2038 | D74: 35097.75572 | E74: =SUMIF(Debt!$I$8:$FM$8,B74,Debt!$I$45:$FM$45) -> 6310.688869 | F74: =SUMIF(Debt!$I$8:$FM$8,B74,Debt!$I$46:$FM$46) -> 0 | G74: =SUMIF(Debt!$I$8:$FM$8,B74,Debt!$I$42:$FM$42) -> 776.2469666 | H74: =MAX(0,MIN(-SUMIF(Debt!$I$8:$FM$8,B74,Debt!$I$35:$FM$35),D74-DebtTifiaSize))+MAX(0,MIN(-SUMIF(Debt!$I$8:$FM$8,B74,Debt!$I$38:$FM$38),D74-DebtTifiaSize)) -> 0 | I74: =-SUMIF(Debt!$I$8:$FM$8,B74,Debt!$I$35:$FM$35)+MAX(0,MIN(-SUMIF(Debt!$I$8:$FM$8,B74,Debt!$I$38:$FM$38),D74-DebtTifiaSize))-H74 -> 5534.441903 | J74: =-SUMIF(Debt!$I$8:$FM$8,B74,Debt!$I$36:$FM$36)-SUMIF(Debt!$I$8:$FM$8,EOMONTH(B74,-12/P),Debt!$I$36:$FM$36) -> 0 | K74: =SUMIF(Debt!$I$8:$FM$8,B74,Debt!$I$37:$FM$37)+SUMIF(Debt!$I$8:$FM$8,EOMONTH(B74,-12/P),Debt!$I$37:$FM$37) -> 0 | L74: =ABS(SUMIF(Debt!$I$8:$FM$8,B74,Debt!$I$39:$FM$39)+SUMIF(Debt!$I$8:$FM$8,EOMONTH(B74,-12/P),Debt!$I$39:$FM$39)) -> 0 | M74: =SUMIF(Debt!$I$8:$FM$8,B74,Debt!$I$40:$FM$40) -> 29563.31382 | N74: 6310.688869 | O74: 0.0446
B75: =EOMONTH(B74,6) -> 2038-12-31 | C75: 2038 | D75: 29563.31382 | E75: =SUMIF(Debt!$I$8:$FM$8,B75,Debt!$I$45:$FM$45) -> 6317.381263 | F75: =SUMIF(Debt!$I$8:$FM$8,B75,Debt!$I$46:$FM$46) -> 0 | G75: =SUMIF(Debt!$I$8:$FM$8,B75,Debt!$I$42:$FM$42) -> 664.680489 | H75: =MAX(0,MIN(-SUMIF(Debt!$I$8:$FM$8,B75,Debt!$I$35:$FM$35),D75-DebtTifiaSize))+MAX(0,MIN(-SUMIF(Debt!$I$8:$FM$8,B75,Debt!$I$38:$FM$38),D75-DebtTifiaSize)) -> 0 | I75: =-SUMIF(Debt!$I$8:$FM$8,B75,Debt!$I$35:$FM$35)+MAX(0,MIN(-SUMIF(Debt!$I$8:$FM$8,B75,Debt!$I$38:$FM$38),D75-DebtTifiaSize))-H75 -> 5652.700774 | J75: =-SUMIF(Debt!$I$8:$FM$8,B75,Debt!$I$36:$FM$36)-SUMIF(Debt!$I$8:$FM$8,EOMONTH(B75,-12/P),Debt!$I$36:$FM$36) -> 0 | K75: =SUMIF(Debt!$I$8:$FM$8,B75,Debt!$I$37:$FM$37)+SUMIF(Debt!$I$8:$FM$8,EOMONTH(B75,-12/P),Debt!$I$37:$FM$37) -> 0 | L75: =ABS(SUMIF(Debt!$I$8:$FM$8,B75,Debt!$I$39:$FM$39)+SUMIF(Debt!$I$8:$FM$8,EOMONTH(B75,-12/P),Debt!$I$39:$FM$39)) -> 0 | M75: =SUMIF(Debt!$I$8:$FM$8,B75,Debt!$I$40:$FM$40) -> 23910.61304 | N75: =SUM(E75:F75)+L75+J75 -> 6317.381263 | O75: 0.0446
B76: 2039-06-30 | C76: =YEAR(B76) -> 2039 | D76: =M75 -> 23910.61304 | E76: =SUMIF(Debt!$I$8:$FM$8,B76,Debt!$I$45:$FM$45) -> 6311.782986 | F76: =SUMIF(Debt!$I$8:$FM$8,B76,Debt!$I$46:$FM$46) -> 0 | G76: =SUMIF(Debt!$I$8:$FM$8,B76,Debt!$I$42:$FM$42) -> 528.8241502 | H76: =MAX(0,MIN(-SUMIF(Debt!$I$8:$FM$8,B76,Debt!$I$35:$FM$35),D76-DebtTifiaSize))+MAX(0,MIN(-SUMIF(Debt!$I$8:$FM$8,B76,Debt!$I$38:$FM$38),D76-DebtTifiaSize)) -> 0 | I76: =-SUMIF(Debt!$I$8:$FM$8,B76,Debt!$I$35:$FM$35)+MAX(0,MIN(-SUMIF(Debt!$I$8:$FM$8,B76,Debt!$I$38:$FM$38),D76-DebtTifiaSize))-H76 -> 5782.958836 | J76: =-SUMIF(Debt!$I$8:$FM$8,B76,Debt!$I$36:$FM$36)-SUMIF(Debt!$I$8:$FM$8,EOMONTH(B76,-12/P),Debt!$I$36:$FM$36) -> 0 | K76: =SUMIF(Debt!$I$8:$FM$8,B76,Debt!$I$37:$FM$37)+SUMIF(Debt!$I$8:$FM$8,EOMONTH(B76,-12/P),Debt!$I$37:$FM$37) -> 0 | L76: =ABS(SUMIF(Debt!$I$8:$FM$8,B76,Debt!$I$39:$FM$39)+SUMIF(Debt!$I$8:$FM$8,EOMONTH(B76,-12/P),Debt!$I$39:$FM$39)) -> 0 | M76: =SUMIF(Debt!$I$8:$FM$8,B76,Debt!$I$40:$FM$40) -> 18127.65421 | N76: 6311.782986 | O76: =TifiaInterestRate -> 0.0446
B77: 2039-12-31 | C77: 2039 | D77: 18127.65421 | E77: =SUMIF(Debt!$I$8:$FM$8,B77,Debt!$I$45:$FM$45) -> 6316.277857 | F77: =SUMIF(Debt!$I$8:$FM$8,B77,Debt!$I$46:$FM$46) -> 0 | G77: =SUMIF(Debt!$I$8:$FM$8,B77,Debt!$I$42:$FM$42) -> 407.5692643 | H77: =MAX(0,MIN(-SUMIF(Debt!$I$8:$FM$8,B77,Debt!$I$35:$FM$35),D77-DebtTifiaSize))+MAX(0,MIN(-SUMIF(Debt!$I$8:$FM$8,B77,Debt!$I$38:$FM$38),D77-DebtTifiaSize)) -> 0 | I77: =-SUMIF(Debt!$I$8:$FM$8,B77,Debt!$I$35:$FM$35)+MAX(0,MIN(-SUMIF(Debt!$I$8:$FM$8,B77,Debt!$I$38:$FM$38),D77-DebtTifiaSize))-H77 -> 5908.708593 | J77: =-SUMIF(Debt!$I$8:$FM$8,B77,Debt!$I$36:$FM$36)-SUMIF(Debt!$I$8:$FM$8,EOMONTH(B77,-12/P),Debt!$I$36:$FM$36) -> 0 | K77: =SUMIF(Debt!$I$8:$FM$8,B77,Debt!$I$37:$FM$37)+SUMIF(Debt!$I$8:$FM$8,EOMONTH(B77,-12/P),Debt!$I$37:$FM$37) -> 0 | L77: =ABS(SUMIF(Debt!$I$8:$FM$8,B77,Debt!$I$39:$FM$39)+SUMIF(Debt!$I$8:$FM$8,EOMONTH(B77,-12/P),Debt!$I$39:$FM$39)) -> 0 | M77: =SUMIF(Debt!$I$8:$FM$8,B77,Debt!$I$40:$FM$40) -> 12218.94561 | N77: 6316.277857 | O77: 0.0446
B78: 2040-06-30 | C78: 2040 | D78: 12218.94561 | E78: =SUMIF(Debt!$I$8:$FM$8,B78,Debt!$I$45:$FM$45) -> 6313.460967 | F78: =SUMIF(Debt!$I$8:$FM$8,B78,Debt!$I$46:$FM$46) -> 0 | G78: =SUMIF(Debt!$I$8:$FM$8,B78,Debt!$I$42:$FM$42) -> 270.9935118 | H78: =MAX(0,MIN(-SUMIF(Debt!$I$8:$FM$8,B78,Debt!$I$35:$FM$35),D78-DebtTifiaSize))+MAX(0,MIN(-SUMIF(Debt!$I$8:$FM$8,B78,Debt!$I$38:$FM$38),D78-DebtTifiaSize)) -> 0 | I78: =-SUMIF(Debt!$I$8:$FM$8,B78,Debt!$I$35:$FM$35)+MAX(0,MIN(-SUMIF(Debt!$I$8:$FM$8,B78,Debt!$I$38:$FM$38),D78-DebtTifiaSize))-H78 -> 6042.467455 | J78: =-SUMIF(Debt!$I$8:$FM$8,B78,Debt!$I$36:$FM$36)-SUMIF(Debt!$I$8:$FM$8,EOMONTH(B78,-12/P),Debt!$I$36:$FM$36) -> 0 | K78: =SUMIF(Debt!$I$8:$FM$8,B78,Debt!$I$37:$FM$37)+SUMIF(Debt!$I$8:$FM$8,EOMONTH(B78,-12/P),Debt!$I$37:$FM$37) -> 0 | L78: =ABS(SUMIF(Debt!$I$8:$FM$8,B78,Debt!$I$39:$FM$39)+SUMIF(Debt!$I$8:$FM$8,EOMONTH(B78,-12/P),Debt!$I$39:$FM$39)) -> 0 | M78: =SUMIF(Debt!$I$8:$FM$8,B78,Debt!$I$40:$FM$40) -> 6176.478157 | N78: 6313.460967 | O78: 0.0446
B79: 2040-12-31 | C79: 2040 | D79: 6176.478157 | E79: =SUMIF(Debt!$I$8:$FM$8,B79,Debt!$I$45:$FM$45) -> 6314.966273 | F79: =SUMIF(Debt!$I$8:$FM$8,B79,Debt!$I$46:$FM$46) -> 0 | G79: =SUMIF(Debt!$I$8:$FM$8,B79,Debt!$I$42:$FM$42) -> 138.4881157 | H79: =MAX(0,MIN(-SUMIF(Debt!$I$8:$FM$8,B79,Debt!$I$35:$FM$35),D79-DebtTifiaSize))+MAX(0,MIN(-SUMIF(Debt!$I$8:$FM$8,B79,Debt!$I$38:$FM$38),D79-DebtTifiaSize)) -> 0 | I79: =-SUMIF(Debt!$I$8:$FM$8,B79,Debt!$I$35:$FM$35)+MAX(0,MIN(-SUMIF(Debt!$I$8:$FM$8,B79,Debt!$I$38:$FM$38),D79-DebtTifiaSize))-H79 -> 6176.478157 | J79: =-SUMIF(Debt!$I$8:$FM$8,B79,Debt!$I$36:$FM$36)-SUMIF(Debt!$I$8:$FM$8,EOMONTH(B79,-12/P),Debt!$I$36:$FM$36) -> 0 | K79: =SUMIF(Debt!$I$8:$FM$8,B79,Debt!$I$37:$FM$37)+SUMIF(Debt!$I$8:$FM$8,EOMONTH(B79,-12/P),Debt!$I$37:$FM$37) -> 0 | L79: =ABS(SUMIF(Debt!$I$8:$FM$8,B79,Debt!$I$39:$FM$39)+SUMIF(Debt!$I$8:$FM$8,EOMONTH(B79,-12/P),Debt!$I$39:$FM$39)) -> 0 | M79: =SUMIF(Debt!$I$8:$FM$8,B79,Debt!$I$40:$FM$40) -> 0 | N79: 6314.966273 | O79: 0.0446
B80: 2041-06-30 | C80: 2041 | D80: 0 | E80: =SUMIF(Debt!$I$8:$FM$8,B80,Debt!$I$45:$FM$45) -> 0 | F80: =SUMIF(Debt!$I$8:$FM$8,B80,Debt!$I$46:$FM$46) -> 0 | G80: =SUMIF(Debt!$I$8:$FM$8,B80,Debt!$I$42:$FM$42) -> 0 | H80: =MAX(0,MIN(-SUMIF(Debt!$I$8:$FM$8,B80,Debt!$I$35:$FM$35),D80-DebtTifiaSize))+MAX(0,MIN(-SUMIF(Debt!$I$8:$FM$8,B80,Debt!$I$38:$FM$38),D80-DebtTifiaSize)) -> 0 | I80: =-SUMIF(Debt!$I$8:$FM$8,B80,Debt!$I$35:$FM$35)+MAX(0,MIN(-SUMIF(Debt!$I$8:$FM$8,B80,Debt!$I$38:$FM$38),D80-DebtTifiaSize))-H80 -> 0 | J80: =-SUMIF(Debt!$I$8:$FM$8,B80,Debt!$I$36:$FM$36)-SUMIF(Debt!$I$8:$FM$8,EOMONTH(B80,-12/P),Debt!$I$36:$FM$36) -> 0 | K80: =SUMIF(Debt!$I$8:$FM$8,B80,Debt!$I$37:$FM$37)+SUMIF(Debt!$I$8:$FM$8,EOMONTH(B80,-12/P),Debt!$I$37:$FM$37) -> 0 | L80: =ABS(SUMIF(Debt!$I$8:$FM$8,B80,Debt!$I$39:$FM$39)+SUMIF(Debt!$I$8:$FM$8,EOMONTH(B80,-12/P),Debt!$I$39:$FM$39)) -> 0 | M80: =SUMIF(Debt!$I$8:$FM$8,B80,Debt!$I$40:$FM$40) -> 0 | N80: 0 | O80: 0.0446
B81: 2041-12-31 | C81: 2041 | D81: 0 | E81: =SUMIF(Debt!$I$8:$FM$8,B81,Debt!$I$45:$FM$45) -> 0 | F81: =SUMIF(Debt!$I$8:$FM$8,B81,Debt!$I$46:$FM$46) -> 0 | G81: =SUMIF(Debt!$I$8:$FM$8,B81,Debt!$I$42:$FM$42) -> 0 | H81: =MAX(0,MIN(-SUMIF(Debt!$I$8:$FM$8,B81,Debt!$I$35:$FM$35),D81-DebtTifiaSize))+MAX(0,MIN(-SUMIF(Debt!$I$8:$FM$8,B81,Debt!$I$38:$FM$38),D81-DebtTifiaSize)) -> 0 | I81: =-SUMIF(Debt!$I$8:$FM$8,B81,Debt!$I$35:$FM$35)+MAX(0,MIN(-SUMIF(Debt!$I$8:$FM$8,B81,Debt!$I$38:$FM$38),D81-DebtTifiaSize))-H81 -> 0 | J81: =-SUMIF(Debt!$I$8:$FM$8,B81,Debt!$I$36:$FM$36)-SUMIF(Debt!$I$8:$FM$8,EOMONTH(B81,-12/P),Debt!$I$36:$FM$36) -> 0 | K81: =SUMIF(Debt!$I$8:$FM$8,B81,Debt!$I$37:$FM$37)+SUMIF(Debt!$I$8:$FM$8,EOMONTH(B81,-12/P),Debt!$I$37:$FM$37) -> 0 | L81: =ABS(SUMIF(Debt!$I$8:$FM$8,B81,Debt!$I$39:$FM$39)+SUMIF(Debt!$I$8:$FM$8,EOMONTH(B81,-12/P),Debt!$I$39:$FM$39)) -> 0 | M81: =SUMIF(Debt!$I$8:$FM$8,B81,Debt!$I$40:$FM$40) -> 0 | N81: 0 | O81: 0.0446
E82: =SUM(E10:E81) -> 310255.2639 | F82: 39885.17405 | G82: 196731.5393 | H82: 37082.49358 | I82: 140000 | J82: 0 | K82: 0 | L82: 0 | N82: =SUM(N10:N81) -> 350140.438

Sheet Title
A11: TOLL ROAD PROJECT
A15: Financial Model
A18: Financial Close
A19: =FinClose -> 2003-04-30
A22: Table of Contents
B24: Tab Name | K24: Tab Description
B27: Assumption Tabs
B28: FinAss | K28: Financial Assumptions
B29: OpAss | K29: Operational Assumptions
B30: ConstrCostAss | K30: Construction Cost Assumption
B32: Calculation Tabs
B33: Construction | K33: Construction Phase Cash Flows - Monthly
B34: Operations | K34: Operational Cash Flows - Quarterly
B35: Depreciation | K35: Depreciation Schedules - Quarterly
B36: Debt | K36: Debt Cash Flows - Quarterly
B37: OpsCashFlow | K37: Operational Cash Flows - Quarterly
B39: Output Tabs
B40: CoverageRatios | K40: Coverage Ratios - Quarterly
B41: FinStats | K41: Financial Statements - Quarterly
B42: FinStatsAnn | K42: Financial Statements - Annual
B45: Data Book & Appendices | K45: Full Model Data Book
B46: Data Book
B47: =DataBook!B80 -> Appendix A -Real Construction Period Expenditure
B48: =DataBook!B82 -> Appendix B - Debt Drawdown Profiles
B49: =DataBook!B84 -> Appendix C - Senior Debt Interest Rates
B50: =DataBook!B86 -> Appendix D - Debt Amortisation Schedules
B51: =DataBook!B88 -> Appendix E - Construction Period Sources and Uses
B52: =DataBook!B90 -> Appendix F -Toll Revenue Tables

Sheet Summary
A1: Executive Summary
B2: ( All amounts in USD $ 000's unless otherwise stated)
B4: 1. Key Dates | G4: 5. Assumed Senior Debt Facility Description
B5: ='Financial Assumptions'!C14 -> Acquisition Date | E5: =AcqDate -> 2002-09-30 | G5: From | H5: To | J5: Duration (years) | L5: Treatment / Comment
B6: ='Financial Assumptions'!C15 -> Financial Close | E6: =FinClose -> 2003-04-30 | G6: =FinClose -> 2003-04-30 | H6: =ConstrEnd -> 2006-09-30 | J6: =DAYS360(G6,H6)/360 -> 3.416666667 | L6: Construction Phase - Interest Capitalizes
B7: ='Financial Assumptions'!C19 -> Length of Construction Period (Months) | E7: ='Financial Assumptions'!F19 -> 41 | G7: =H6+1 -> 2006-10-01 | H7: =EDATE(G7,J7*12)-1 -> 2010-09-30 | J7: ='Financial Assumptions'!F135 -> 4 | L7: Operational Phase - Interest Only
B8: ='Financial Assumptions'!C20 -> Construction End Date | E8: =EDATE(ConstrEnd,RoadDelayPeriods*12/P) -> 2006-09-30 | G8: =H7+1 -> 2010-10-01 | H8: =EDATE(G8,J8*12)-1 -> 2013-09-30 | J8: ='Financial Assumptions'!F139 -> 3 | L8: Operational Phase - Partial Cash Sweep
B9: ='Financial Assumptions'!C22 -> Full Operations Commence | E9: =E8+1 -> 2006-10-01 | G9: =H8+1 -> 2013-10-01 | H9: =EDATE(G9,J9*12)-1 -> 2021-09-30 | J9: ='Financial Assumptions'!F140 -> 8 | L9: Operational Phase - Full Cash Sweep
B10: ='Financial Assumptions'!C444 -> End of Stabilisation Period | E10: ='Financial Assumptions'!F444 -> 2008-03-31
B11: ='Financial Assumptions'!C446 -> First Calculation Date | E11: =FirstCalcDate -> 2009-06-30 | G11: 6. Interest Rate Exposure
B12: ='Financial Assumptions'!C23 -> Date of Concession End | E12: =ConEnd -> 2041-09-30 | I12: Swapped % | K12: Floating % | M12: All-in Rate (Ann,Eff) | O12: TIFIA Rate
G13: ="First " & ROUND('Financial Assumptions'!E499,2) & " years " -> First 3.41 years | I13: ='Financial Assumptions'!F499 -> 1 | K13: =1-I13 -> 0 | M13: ='Financial Assumptions'!J499 -> 0.054475 | O13: (fixed)
B14: 2. Sources of Funds | G14: ="Following " & ROUND('Financial Assumptions'!E500,2) & " years " -> Following 3 years | I14: ='Financial Assumptions'!F500 -> 1 | K14: =1-I14 -> 0 | M14: ='Financial Assumptions'!J500 -> 0.055725 | O14: ='Financial Assumptions'!$F$73 -> 0.0441
B15: Senior Bank Debt | D15: =SUMIF(Construction!$I$8:$FM$8,ConstrEnd,ConstrDebtBalance)+SUMIF(Construction!$I$8:$FM$8,ConstrEnd,Construction!$I$78:$FM$78) -> 320994.852 | E15: =D15/$D$18 -> 0.5057303497 | G15: ="Following " & ROUND('Financial Assumptions'!E501,2) & " years " -> Following 1 years | I15: ='Financial Assumptions'!F501 -> 1 | K15: =1-I15 -> 0 | M15: ='Financial Assumptions'!J501 -> 0.055725 | O15: ='Financial Assumptions'!$F$73 -> 0.0441
B16: TIFIA Debt | D16: =SUMIF(Construction!$I$8:$FM$8,ConstrEnd,TIFIAConstrDebtBal) -> 153408.8987 | E16: =D16/$D$18 -> 0.2416971347 | G16: ="Following " & ROUND('Financial Assumptions'!E502,2) & " years " -> Following 1.25 years | I16: ='Financial Assumptions'!F502 -> 1 | K16: =1-I16 -> 0 | M16: ='Financial Assumptions'!J502 -> 0.055725 | O16: ='Financial Assumptions'!$F$73 -> 0.0441
B17: Equity | D17: =InitialEquity+ConstrEquity -> 160311.6707 | E17: =D17/$D$18 -> 0.2525725156
B18: Sub Total | D18: =SUM(D15:D17) -> 634715.4214 | E18: =SUM(E15:E17) -> 1
G19: 7. Assumed TIFIA Debt Facility Description
B20: 3. Uses of Funds | G20: From | H20: To | J20: Duration (years) | L20: Treatment / Comment
B21: Purchase Price | D21: =PP -> 59134 | E21: =D21/$D$28 -> 0.09316616236 | G21: =G6 -> 2003-04-30 | H21: =H6 -> 2006-09-30 | J21: =-DAYS360(H21,G21)/360 -> 3.416666667 | L21: Construction Phase - Interest Capitalizes
B22: Financing & Acquisition Fees | D22: =FinFees+'Financial Assumptions'!F296 -> 29712.905 | E22: 0.04681295585 | G22: =G7 -> 2006-10-01 | H22: =EDATE(G22,'Financial Assumptions'!F78*12)-1 -> 2020-12-31 | J22: =-DAYS360(H22,G22)/360 -> 14.24722222 | L22: Operational Phase - Mandatory and Scheduled Interest Only
B23: Construction Costs | D23: =ConstrCosts -> 422435.7972 | E23: 0.6655514944 | G23: =H22+1 -> 2021-01-01 | H23: =EDATE(G23,'Financial Assumptions'!F79*12)-1 -> 2040-12-31 | J23: =-DAYS360(H23,G23)/360 -> 19.99722222 | L23: Operational Phase - Mandatory Interest & Principal Payments
B24: Letter of Credit Outstanding | D24: =D15-SUMIF(Construction!$I$8:$FM$8,ConstrEnd,ConstrDebtBalance) -> 930 | E24: 0.001465223577
B25: Capitalised Interest and Fees | D25: =Construction!$H$56+Construction!$H$68+Construction!$H$69+Construction!H198 -> 65252.71919 | E25: 0.1028062609 | G25: 8. Key Senior Debt Coverage Ratios
B26: Additional Equity Account | D26: =AEADD -> 33000 | E26: 0.05199180434 | I26: Minimum | J26: Min Date
B27: Reserves | D27: =InitDepDSR+InitialCashDeposit -> 24250 | E27: 0.03820609864 | G27: =CoverageRatios!C71 -> Total Mandatory DSCR | I27: =CoverageRatios!F71 -> 1.949300099 | J27: =CoverageRatios!G71 -> 2009-06-30
B28: Sub Total | D28: =SUM(D21:D27) -> 634715.4214 | E28: =SUM(E21:E27) -> 1 | G28: =CoverageRatios!C161 -> Total Debt PLCR | I28: =CoverageRatios!F161 -> 3.975615349 | J28: =CoverageRatios!G161 -> 2009-06-30
B31: 9. Operating Summary | N31: CAGRS
B32: Year Ending (31-Dec) | D32: 2007 | E32: =D32+1 -> 2008 | F32: =E32+1 -> 2009 | G32: =F32+1 -> 2010 | H32: 2011 | I32: 2012 | J32: 2013 | K32: 2014 | L32: 2015 | M32: 2016 | N32: Yr 1-5 | O32: Yr 6-10
B34: =Annual!C18 -> Operating Revenue | D34: =Annual!N18 -> 31141.95272 | E34: =Annual!O18 -> 43309.4892 | F34: =Annual!P18 -> 46472.44786 | G34: =Annual!Q18 -> 52055.56746 | H34: =Annual!R18 -> 57139.58301 | I34: =Annual!S18 -> 62755.88499 | J34: =Annual!T18 -> 68962.22782 | K34: =Annual!U18 -> 75822.74457 | L34: =Annual!V18 -> 84097.1221 | M34: =Annual!W18 -> 90980.96293 | N34: =(I34/D34)^(1/5)-1 -> 0.15043404 | O34: =(M34/I34)^(1/4)-1 -> 0.09729655989
B35: =Annual!C20 -> Operating Costs (incl. PITs) | D35: =Annual!N20 -> -12082.91285 | E35: =Annual!O20 -> -11008.93623 | F35: =Annual!P20 -> -11794.21307 | G35: =Annual!Q20 -> -11915.61492 | H35: =Annual!R20 -> -12297.02789 | I35: =Annual!S20 -> -13449.56189 | J35: =Annual!T20 -> -12549.58345 | K35: =Annual!U20 -> -12283.45577 | L35: =Annual!V20 -> -11998.54709 | M35: =Annual!W20 -> -12789.43102 | N35: =(I35/D35)^(1/5)-1 -> 0.02166213759 | O35: =(M35/I35)^(1/4)-1 -> -0.01250303043
B36: EBITDA | D36: =D34+D35 -> 19059.03986 | E36: 32300.55297 | F36: 34678.23479 | G36: 40139.95255 | H36: 44842.55512 | I36: 49306.3231 | J36: 56412.64437 | K36: 63539.2888 | L36: 72098.57501 | M36: 78191.53191 | N36: =(I36/D36)^(1/5)-1 -> 0.2093731428 | O36: =(M36/I36)^(1/4)-1 -> 0.1221845268
B37: EBITDA Growth | E37: =E36/D36-1 -> 0.6947628633 | F37: =F36/E36-1 -> 0.07361118011 | G37: 0.1574969946 | H37: 0.1171551603 | I37: 0.099543123 | J37: 0.1441259625 | K37: 0.1263306216 | L37: 0.1347085616 | M37: 0.08450870083
B39: Net Capex Cash Flows | D39: =Annual!N28 -> 0 | E39: =Annual!O28 -> -21.228416 | F39: =Annual!P28 -> -21.86526848 | G39: =Annual!Q28 -> -22.52122653 | H39: =Annual!R28 -> -1866.058783 | I39: =Annual!S28 -> -1855.671743 | J39: =Annual!T28 -> -1911.341896 | K39: =Annual!U28 -> -9281.533668 | L39: =Annual!V28 -> -10821.87959 | M39: =Annual!W28 -> -1449.154255
B43: 10. Debt Summary | N43: Full Calender Year Averages
B44: Year Ending (31-Dec) | D44: =D32 -> 2007 | E44: =E32 -> 2008 | F44: 2009 | G44: 2010 | H44: 2011 | I44: 2012 | J44: 2013 | K44: 2014 | L44: 2015 | M44: 2016 | N44: Yr 1-5 | O44: Yr 6-10
B46: =Annual!C105 -> Total Senior Bank Debt | D46: =Annual!N105 -> 320064.852 | E46: =Annual!O105 -> 320064.852 | F46: =Annual!P105 -> 320064.852 | G46: =Annual!Q105 -> 319194.8949 | H46: =Annual!R105 -> 309617.5799 | I46: =Annual!S105 -> 292030.49 | J46: =Annual!T105 -> 262185.3191 | K46: =Annual!U105 -> 228917.5026 | L46: =Annual!V105 -> 186053.1981 | M46: =Annual!W105 -> 123942.8849 | N46: =AVERAGE(D46:H46) -> 317801.4062 | O46: =AVERAGE(I46:M46) -> 218625.8789
B47: =Annual!C106 -> Total Senior CAB | D47: =Annual!N106 -> 0 | E47: =Annual!O106 -> 0 | F47: =Annual!P106 -> 0 | G47: =Annual!Q106 -> 0 | H47: =Annual!R106 -> 0 | I47: =Annual!S106 -> 0 | J47: =Annual!T106 -> 0 | K47: =Annual!U106 -> 0 | L47: =Annual!V106 -> 0 | M47: =Annual!W106 -> 0 | N47: =AVERAGE(D47:H47) -> 0 | O47: =AVERAGE(I47:M47) -> 0
B48: =Annual!C107 -> TIFIA Debt | D48: =Annual!N107 -> 162129.5606 | E48: =Annual!O107 -> 169441.162 | F48: =Annual!P107 -> 177082.4936 | G48: =Annual!Q107 -> 177082.4936 | H48: =Annual!R107 -> 177082.4936 | I48: =Annual!S107 -> 177082.4936 | J48: =Annual!T107 -> 177082.4936 | K48: =Annual!U107 -> 177082.4936 | L48: =Annual!V107 -> 177082.4936 | M48: =Annual!W107 -> 177082.4936 | N48: =AVERAGE(D48:H48) -> 172563.6407 | O48: =AVERAGE(I48:M48) -> 177082.4936
B49: Total Debt | D49: =Annual!N108 -> 482194.4127 | E49: =Annual!O108 -> 489506.0141 | F49: =Annual!P108 -> 497147.3456 | G49: =Annual!Q108 -> 496277.3885 | H49: =Annual!R108 -> 486700.0735 | I49: =Annual!S108 -> 469112.9836 | J49: =Annual!T108 -> 439267.8127 | K49: =Annual!U108 -> 405999.9962 | L49: =Annual!V108 -> 363135.6916 | M49: =Annual!W108 -> 301025.3785 | N49: 490365.0469 | O49: =AVERAGE(I49:M49) -> 395708.3725
B51: Debt/EBITDA (times) | D51: =D49/D36 -> 25.30003695 | E51: 15.15472551 | F51: 14.33600495 | G51: 12.36367651 | H51: 10.85353125 | I51: 9.514256065 | J51: 7.786690689 | K51: 6.389747255 | L51: 5.036655601 | M51: 3.849846283 | N51: 15.60159503 | O51: =AVERAGE(I51:M51) -> 6.515439179
B53: Senior DSCR | D53: =Annual!N83 -> N/A | E53: =Annual!O83 -> N/A | F53: =Annual!P83 -> 1.985363484 | G53: =Annual!Q83 -> 2.260507025 | H53: =Annual!R83 -> 2.443752245 | I53: =Annual!S83 -> 2.851851314 | J53: =Annual!T83 -> 3.468735517 | K53: =Annual!U83 -> 3.637619259 | L53: =Annual!V83 -> 4.817927251 | M53: =Annual!W83 -> 7.865457768 | N53: 2.229874251 | O53: 4.528318222
B54: Total Mandatory DSCR | D54: =Annual!N84 -> N/A | E54: =Annual!O84 -> N/A | F54: =Annual!P84 -> 1.985363484 | G54: =Annual!Q84 -> 2.260507025 | H54: =Annual!R84 -> 2.423337948 | I54: =Annual!S84 -> 2.50630062 | J54: =Annual!T84 -> 2.933971086 | K54: =Annual!U84 -> 2.946091855 | L54: =Annual!V84 -> 3.61992071 | M54: =Annual!W84 -> 5.205509084 | N54: 2.223069486 | O54: 3.442358671
B55: Total DSCR | D55: =Annual!N85 -> N/A | E55: =Annual!O85 -> N/A | F55: =Annual!P85 -> 1.985363484 | G55: =Annual!Q85 -> 1.573348441 | H55: =Annual!R85 -> 1.692880236 | I55: =Annual!S85 -> 1.937891122 | J55: =Annual!T85 -> 2.312449903 | K55: =Annual!U85 -> 2.38219577 | L55: =Annual!V85 -> 2.976356494 | M55: =Annual!W85 -> 4.351299603 | N55: 1.75053072 | O55: 2.792038578
B57: =Annual!C89 -> Senior Debt PLCR | D57: =Annual!N89 -> N/A | E57: =Annual!O89 -> N/A | F57: =Annual!P89 -> 6.192172754 | G57: =Annual!Q89 -> 6.399874463 | H57: =Annual!R89 -> 6.723359746 | I57: =Annual!S89 -> 7.324950454 | J57: =Annual!T89 -> 8.364031285 | K57: =Annual!U89 -> 9.845426619 | L57: =Annual!V89 -> 12.41049258 | M57: =Annual!W89 -> 18.94356651 | N57: 6.438468988 | O57: 11.37769349
B58: Total PLCR | D58: =Annual!N90 -> N/A | E58: =Annual!O90 -> N/A | F58: =Annual!P90 -> 3.986538143 | G58: =Annual!Q90 -> 4.116260995 | H58: =Annual!R90 -> 4.277111278 | I58: =Annual!S90 -> 4.559901229 | J58: =Annual!T90 -> 4.992230589 | K58: =Annual!U90 -> 5.551208116 | L58: =Annual!V90 -> 6.358537284 | M58: =Annual!W90 -> 7.799741986 | N58: 4.126636805 | O58: 5.852323841
B62: 11. Cashflow Summary
J63: Average Over 6 Year Intervals | O63: Avg
D64: =D44 -> 2007 | E64: =E44 -> 2008 | F64: =F44 -> 2009 | G64: =G44 -> 2010 | H64: =H44 -> 2011 | I64: Yrs 1-5 | J64: Yrs 6 -11 | K64: Yrs 12-17 | L64: Yrs 18-23 | M64: Yrs 24-29 | N64: Yrs 30-35 | O64: Yrs1-35
B66: =Annual!C18 -> Operating Revenue | D66: =Annual!N18 -> 31141.95272 | E66: =Annual!O18 -> 43309.4892 | F66: =Annual!P18 -> 46472.44786 | G66: =Annual!Q18 -> 52055.56746 | H66: =Annual!R18 -> 57139.58301 | I66: =SUM(D66:H66) -> 230119.0403 | J66: =SUM(Annual!S18:X18)/6 -> 80185.35218 | K66: =SUM(Annual!Y18:AD18)/6 -> 129633.5916 | L66: =SUM(Annual!AE18:AJ18)/6 -> 188485.7342 | M66: =SUM(Annual!AK18:AP18)/6 -> 209424.0824 | N66: =SUM(Annual!AQ18:AV18)/6 -> 253505.7111 | O66: =(SUM(J66:N66)*6+I66)/35 -> 154215.0248
B67: =Annual!C20 -> Operating Costs (incl. PITs) | D67: =Annual!N20 -> -12082.91285 | E67: =Annual!O20 -> -11008.93623 | F67: =Annual!P20 -> -11794.21307 | G67: =Annual!Q20 -> -11915.61492 | H67: =Annual!R20 -> -12297.02789 | I67: =SUM(D67:H67) -> -59098.70497 | J67: =SUM(Annual!S20:X20)/6 -> -12856.19785 | K67: =SUM(Annual!Y20:AD20)/6 -> -13342.26457 | L67: =SUM(Annual!AE20:AJ20)/6 -> -14911.47543 | M67: =SUM(Annual!AK20:AP20)/6 -> -17299.115 | N67: =SUM(Annual!AQ20:AV20)/6 -> -20644.29634 | O67: -15240.53715
B68: EBITDA | D68: =D66+D67 -> 19059.03986 | E68: 32300.55297 | F68: 34678.23479 | G68: 40139.95255 | H68: 44842.55512 | I68: 171020.3353 | J68: 67329.15433 | K68: 116291.327 | L68: 173574.2587 | M68: 192124.9674 | N68: 232861.4148 | O68: 138974.4877
O69: 0
B70: =Annual!C22 -> add: Interest on Reserves | D70: =Annual!N22 -> 1114.392204 | E70: =Annual!O22 -> 1268.801713 | F70: =Annual!P22 -> 1245.614993 | G70: =Annual!Q22 -> 760.064852 | H70: =Annual!R22 -> 537.4008337 | I70: =SUM(D70:H70) -> 4926.274596 | J70: =SUM(Annual!S22:X22)/6 -> 227.2673263 | K70: =SUM(Annual!Y22:AD22)/6 -> 7.177970982 | L70: =SUM(Annual!AE22:AJ22)/6 -> 0 | M70: =SUM(Annual!AK22:AP22)/6 -> 0 | N70: =SUM(Annual!AQ22:AV22)/6 -> 0 | O70: 180.9413251
B71: =Annual!C28 -> Capex Cash Flows (after Debt Drawdowns) | D71: =Annual!N28 -> 0 | E71: =Annual!O28 -> -21.228416 | F71: =Annual!P28 -> -21.86526848 | G71: =Annual!Q28 -> -22.52122653 | H71: =Annual!R28 -> -1866.058783 | I71: =SUM(D71:H71) -> -1931.673694 | J71: =SUM(Annual!S28:X28)/6 -> -5045.748921 | K71: =SUM(Annual!Y28:AD28)/6 -> -3907.576512 | L71: =SUM(Annual!AE28:AJ28)/6 -> -2848.632474 | M71: =SUM(Annual!AK28:AP28)/6 -> -4251.904013 | N71: =SUM(Annual!AQ28:AV28)/6 -> -3205.986487 | O71: -3356.878975
B72: CADS | D72: =SUM(D68:D71) -> 20173.43207 | E72: 33548.12627 | F72: 35901.98451 | G72: 40877.49617 | H72: 43513.89717 | I72: 174014.9362 | J72: 62510.67273 | K72: 112390.9285 | L72: 170725.6263 | M72: 187873.0634 | N72: 229655.4283 | O72: 135798.55
O73: 0
B74: =Annual!C31 -> Senior Bank Debt Interest | D74: =Annual!N31 -> -18094.13699 | E74: =Annual!O31 -> -18136.98661 | F74: =Annual!P31 -> -18083.33074 | G74: =Annual!Q31 -> -18083.33074 | H74: =Annual!R31 -> -17806.18197 | I74: =SUM(D74:H74) -> -90203.96705 | J74: =SUM(Annual!S31:X31)/6 -> -12655.07903 | K74: =SUM(Annual!Y31:AD31)/6 -> -253.0180573 | L74: =SUM(Annual!AE31:AJ31)/6 -> 0 | M74: =SUM(Annual!AK31:AP31)/6 -> 0 | N74: =SUM(Annual!AQ31:AV31)/6 -> 0 | O74: -4790.072844
B75: Mand. Senior Bank Debt Principal | D75: =Annual!N32 -> 0 | E75: =Annual!O32 -> 0 | F75: =Annual!P32 -> 0 | G75: =Annual!Q32 -> 0 | H75: =Annual!R32 -> 0 | I75: =SUM(D75:H75) -> 0 | J75: =SUM(Annual!S32:X32)/6 -> 0 | K75: =SUM(Annual!Y32:AD32)/6 -> 0 | L75: =SUM(Annual!AE32:AJ32)/6 -> 0 | M75: =SUM(Annual!AK32:AP32)/6 -> 0 | N75: =SUM(Annual!AQ32:AV32)/6 -> 0 | O75: 0
B76: =Annual!C33 -> CAB Debt Service | D76: =Annual!N33 -> 0 | E76: =Annual!O33 -> 0 | F76: =Annual!P33 -> 0 | G76: =Annual!Q33 -> 0 | H76: =Annual!R33 -> 0 | I76: =SUM(D76:H76) -> 0 | J76: =SUM(Annual!S33:X33)/6 -> 0 | K76: =SUM(Annual!Y33:AD33)/6 -> 0 | L76: =SUM(Annual!AE33:AJ33)/6 -> 0 | M76: =SUM(Annual!AK33:AP33)/6 -> 0 | N76: =SUM(Annual!AQ33:AV33)/6 -> 0 | O76: =(SUM(J76:N76)*6+I76)/35 -> 0
B77: =Annual!C35 -> Mandatory TIFIA Debt Service | D77: =Annual!N35 -> 0 | E77: =Annual!O35 -> 0 | F77: =Annual!P35 -> 0 | G77: =Annual!Q35 -> 0 | H77: =Annual!R35 -> -150 | I77: =SUM(D77:H77) -> -150 | J77: =SUM(Annual!S35:X35)/6 -> -3959.965519 | K77: =SUM(Annual!Y35:AD35)/6 -> -11944.24701 | L77: =SUM(Annual!AE35:AJ35)/6 -> -12628.29935 | M77: =SUM(Annual!AK35:AP35)/6 -> -12628.18512 | N77: =SUM(Annual!AQ35:AV35)/6 -> -10523.51365 | O77: -8864.436112
B78: =Annual!C36 -> Scheduled TIFIA Debt Service | D78: =Annual!N36+Annual!N49 -> 0 | E78: =Annual!O36+Annual!O49 -> 0 | F78: =Annual!P36+Annual!P49 -> 0 | G78: =Annual!Q36+Annual!Q49 -> -7897.879214 | H78: =Annual!R36+Annual!R49 -> -7747.879214 | I78: =SUM(D78:H78) -> -15645.75843 | J78: =SUM(Annual!S36:X36)/6+SUM(Annual!S49:X49)/6 -> -3937.913694 | K78: =SUM(Annual!Y36:AD36)/6+SUM(Annual!Y49:AD49)/6 -> -101.9889105 | L78: =SUM(Annual!AE36:AJ36)/6+SUM(Annual!AE49:AJ49)/6 -> 0 | M78: =SUM(Annual!AK36:AP36)/6+SUM(Annual!AK49:AP49)/6 -> 0 | N78: =SUM(Annual!AQ36:AV36)/6+SUM(Annual!AQ49:AV49)/6 -> 0 | O78: -1139.576402
B79: CF after Debt Service | D79: =SUM(D72:D78) -> 2079.295077 | E79: 15411.13966 | F79: 17818.65378 | G79: 14896.28622 | H79: 17809.83599 | I79: 68015.21071 | J79: 41957.71449 | K79: 100091.6745 | L79: 158097.3269 | M79: 175244.8782 | N79: 219131.9146 | O79: 121004.4647
B81: Reserve Cash Flows | D81: =SUM(Annual!N42:N46)+SUM(Annual!N53:N54) -> -2079.295077 | E81: =SUM(Annual!O42:O46)+SUM(Annual!O53:O54) -> -15411.13966 | F81: =SUM(Annual!P42:P46)+SUM(Annual!P53:P54) -> 18147.01091 | G81: =SUM(Annual!Q42:Q46)+SUM(Annual!Q53:Q54) -> 0 | H81: =SUM(Annual!R42:R46)+SUM(Annual!R53:R54) -> 443.5004169 | I81: =SUM(D81:H81) -> 1100.076598 | J81: =(SUM(Annual!S42:X46)+SUM(Annual!S53:X54))/6 -> 2003.976484 | K81: =(SUM(Annual!Y42:AD46)+SUM(Annual!Y53:AD54))/6 -> 589.3138804 | L81: =(SUM(Annual!AE42:AJ46)+SUM(Annual!AE53:AJ54))/6 -> 0 | M81: =(SUM(Annual!AK42:AP46)+SUM(Annual!AK53:AP54))/6 -> 0 | N81: =(SUM(Annual!AQ42:AV46)+SUM(Annual!AQ53:AV54))/6 -> 0 | O81: =(SUM(J81:N81)*6+I81)/35 -> 475.9948224
B82: Cash to Surplus Account | D82: =SUM(D79:D81) -> 5.911715562e-12 | E82: 0 | F82: 35965.66469 | G82: 14896.28622 | H82: 18253.3364 | I82: =SUM(D82:H82) -> 69115.28731 | J82: 43961.69098 | K82: 100680.9884 | L82: 158097.3269 | M82: 175244.8782 | N82: 219131.9146 | O82: =(SUM(J82:N82)*6+I82)/35 -> 121480.4595
B83: add: Release of AEA | D83: =Annual!N67 -> 0 | E83: =Annual!O67 -> 0 | F83: =Annual!P67 -> 11000 | G83: =Annual!Q67 -> 0 | H83: =Annual!R67 -> 22000 | I83: =SUM(D83:H83) -> 33000 | J83: =SUM(Annual!S67:X67)/6 -> 0 | K83: =SUM(Annual!Y67:AD67)/6 -> 0 | L83: =SUM(Annual!AE67:AJ67)/6 -> 0 | M83: =SUM(Annual!AK67:AP67)/6 -> 0 | N83: =SUM(Annual!AQ67:AV67)/6 -> 0 | O83: =(SUM(J83:N83)*6+I83)/35 -> 942.8571429
B84: Surplus Cash Flow | D84: =D82+D83 -> 5.911715562e-12 | E84: 0 | F84: 46965.66469 | G84: 14896.28622 | H84: 40253.3364 | I84: =SUM(D84:H84) -> 102115.2873 | J84: 43961.69098 | K84: 100680.9884 | L84: 158097.3269 | M84: 175244.8782 | N84: 219131.9146 | O84: =(SUM(J84:N84)*6+I84)/35 -> 122423.3166

Sheet Annual
C2: Overall Model Integrity | F2: =ModelIntegrity -> OK
C4: Annual Summary
A5: Time Line
C6: Period Commencing | I6: =Model_Start+1 -> 2002-01-01 | J6: =I7+1 -> 2003-01-01 | K6: 2004-01-01 | L6: 2005-01-01 | M6: 2006-01-01 | N6: 2007-01-01 | O6: 2008-01-01 | P6: 2009-01-01 | Q6: 2010-01-01 | R6: 2011-01-01 | S6: 2012-01-01 | T6: 2013-01-01 | U6: 2014-01-01 | V6: 2015-01-01 | W6: 2016-01-01 | X6: 2017-01-01 | Y6: 2018-01-01 | Z6: 2019-01-01 | AA6: 2020-01-01 | AB6: 2021-01-01 | AC6: 2022-01-01 | AD6: 2023-01-01 | AE6: 2024-01-01 | AF6: 2025-01-01 | AG6: 2026-01-01 | AH6: 2027-01-01 | AI6: 2028-01-01 | AJ6: 2029-01-01 | AK6: 2030-01-01 | AL6: 2031-01-01 | AM6: 2032-01-01 | AN6: 2033-01-01 | AO6: 2034-01-01 | AP6: =AO7+1 -> 2035-01-01 | AQ6: 2036-01-01 | AR6: 2037-01-01 | AS6: 2038-01-01 | AT6: 2039-01-01 | AU6: 2040-01-01 | AV6: 2041-01-01
C7: Period Ending | I7: =EDATE(I6,12)-1 -> 2002-12-31 | J7: 2003-12-31 | K7: 2004-12-31 | L7: 2005-12-31 | M7: 2006-12-31 | N7: 2007-12-31 | O7: 2008-12-31 | P7: 2009-12-31 | Q7: 2010-12-31 | R7: 2011-12-31 | S7: 2012-12-31 | T7: 2013-12-31 | U7: 2014-12-31 | V7: 2015-12-31 | W7: 2016-12-31 | X7: 2017-12-31 | Y7: 2018-12-31 | Z7: 2019-12-31 | AA7: 2020-12-31 | AB7: 2021-12-31 | AC7: 2022-12-31 | AD7: 2023-12-31 | AE7: 2024-12-31 | AF7: 2025-12-31 | AG7: 2026-12-31 | AH7: 2027-12-31 | AI7: 2028-12-31 | AJ7: 2029-12-31 | AK7: 2030-12-31 | AL7: 2031-12-31 | AM7: 2032-12-31 | AN7: 2033-12-31 | AO7: 2034-12-31 | AP7: 2035-12-31 | AQ7: 2036-12-31 | AR7: 2037-12-31 | AS7: 2038-12-31 | AT7: 2039-12-31 | AU7: 2040-12-31 | AV7: 2041-12-31
C8: Calender Year | I8: =YEAR(I6) -> 2002 | J8: 2003 | K8: 2004 | L8: 2005 | M8: 2006 | N8: 2007 | O8: 2008 | P8: 2009 | Q8: 2010 | R8: 2011 | S8: 2012 | T8: 2013 | U8: 2014 | V8: 2015 | W8: 2016 | X8: 2017 | Y8: 2018 | Z8: 2019 | AA8: 2020 | AB8: 2021 | AC8: 2022 | AD8: 2023 | AE8: 2024 | AF8: 2025 | AG8: 2026 | AH8: 2027 | AI8: 2028 | AJ8: 2029 | AK8: 2030 | AL8: 2031 | AM8: 2032 | AN8: 2033 | AO8: =YEAR(AO6) -> 2034 | AP8: 2035 | AQ8: 2036 | AR8: 2037 | AS8: 2038 | AT8: 2039 | AU8: 2040 | AV8: 2041
A15: Cash Flow Cascade
C17: =OpsCashFlow!C17 -> Operating CFs
C18: =OpsCashFlow!C18 -> Operating Revenue | H18: =SUM(I18:AV18) -> 5402194.457 | I18: =SUMIF(OpsCashFlow!$I$9:$FS$9,I$8,OpsCashFlow!$I18:$FS18) -> 0 | J18: =SUMIF(OpsCashFlow!$I$9:$FS$9,J$8,OpsCashFlow!$I18:$FS18) -> 0 | K18: =SUMIF(OpsCashFlow!$I$9:$FS$9,K$8,OpsCashFlow!$I18:$FS18) -> 0 | L18: =SUMIF(OpsCashFlow!$I$9:$FS$9,L$8,OpsCashFlow!$I18:$FS18) -> 0 | M18: =SUMIF(OpsCashFlow!$I$9:$FS$9,M$8,OpsCashFlow!$I18:$FS18) -> 4668.588159 | N18: =SUMIF(OpsCashFlow!$I$9:$FS$9,N$8,OpsCashFlow!$I18:$FS18) -> 31141.95272 | O18: =SUMIF(OpsCashFlow!$I$9:$FS$9,O$8,OpsCashFlow!$I18:$FS18) -> 43309.4892 | P18: =SUMIF(OpsCashFlow!$I$9:$FS$9,P$8,OpsCashFlow!$I18:$FS18) -> 46472.44786 | Q18: =SUMIF(OpsCashFlow!$I$9:$FS$9,Q$8,OpsCashFlow!$I18:$FS18) -> 52055.56746 | R18: =SUMIF(OpsCashFlow!$I$9:$FS$9,R$8,OpsCashFlow!$I18:$FS18) -> 57139.58301 | S18: =SUMIF(OpsCashFlow!$I$9:$FS$9,S$8,OpsCashFlow!$I18:$FS18) -> 62755.88499 | T18: =SUMIF(OpsCashFlow!$I$9:$FS$9,T$8,OpsCashFlow!$I18:$FS18) -> 68962.22782 | U18: =SUMIF(OpsCashFlow!$I$9:$FS$9,U$8,OpsCashFlow!$I18:$FS18) -> 75822.74457 | V18: =SUMIF(OpsCashFlow!$I$9:$FS$9,V$8,OpsCashFlow!$I18:$FS18) -> 84097.1221 | W18: =SUMIF(OpsCashFlow!$I$9:$FS$9,W$8,OpsCashFlow!$I18:$FS18) -> 90980.96293 | X18: =SUMIF(OpsCashFlow!$I$9:$FS$9,X$8,OpsCashFlow!$I18:$FS18) -> 98493.17066 | Y18: =SUMIF(OpsCashFlow!$I$9:$FS$9,Y$8,OpsCashFlow!$I18:$FS18) -> 106693.0338 | Z18: =SUMIF(OpsCashFlow!$I$9:$FS$9,Z$8,OpsCashFlow!$I18:$FS18) -> 115645.4869 | AA18: =SUMIF(OpsCashFlow!$I$9:$FS$9,AA$8,OpsCashFlow!$I18:$FS18) -> 125421.6498 | AB18: =SUMIF(OpsCashFlow!$I$9:$FS$9,AB$8,OpsCashFlow!$I18:$FS18) -> 133978.1173 | AC18: =SUMIF(OpsCashFlow!$I$9:$FS$9,AC$8,OpsCashFlow!$I18:$FS18) -> 143133.2472 | AD18: =SUMIF(OpsCashFlow!$I$9:$FS$9,AD$8,OpsCashFlow!$I18:$FS18) -> 152930.0149 | AE18: =SUMIF(OpsCashFlow!$I$9:$FS$9,AE$8,OpsCashFlow!$I18:$FS18) -> 163414.5595 | AF18: =SUMIF(OpsCashFlow!$I$9:$FS$9,AF$8,OpsCashFlow!$I18:$FS18) -> 174636.4227 | AG18: =SUMIF(OpsCashFlow!$I$9:$FS$9,AG$8,OpsCashFlow!$I18:$FS18) -> 183576.1203 | AH18: =SUMIF(OpsCashFlow!$I$9:$FS$9,AH$8,OpsCashFlow!$I18:$FS18) -> 192994.5139 | AI18: =SUMIF(OpsCashFlow!$I$9:$FS$9,AI$8,OpsCashFlow!$I18:$FS18) -> 202918.0636 | AJ18: =SUMIF(OpsCashFlow!$I$9:$FS$9,AJ$8,OpsCashFlow!$I18:$FS18) -> 213374.7249 | AK18: =SUMIF(OpsCashFlow!$I$9:$FS$9,AK$8,OpsCashFlow!$I18:$FS18) -> 189223.1317 | AL18: =SUMIF(OpsCashFlow!$I$9:$FS$9,AL$8,OpsCashFlow!$I18:$FS18) -> 196876.9566 | AM18: =SUMIF(OpsCashFlow!$I$9:$FS$9,AM$8,OpsCashFlow!$I18:$FS18) -> 204841.0867 | AN18: =SUMIF(OpsCashFlow!$I$9:$FS$9,AN$8,OpsCashFlow!$I18:$FS18) -> 213128.1302 | AO18: =SUMIF(OpsCashFlow!$I$9:$FS$9,AO$8,OpsCashFlow!$I18:$FS18) -> 221751.2092 | AP18: =SUMIF(OpsCashFlow!$I$9:$FS$9,AP$8,OpsCashFlow!$I18:$FS18) -> 230723.9798 | AQ18: =SUMIF(OpsCashFlow!$I$9:$FS$9,AQ$8,OpsCashFlow!$I18:$FS18) -> 240060.6543 | AR18: =SUMIF(OpsCashFlow!$I$9:$FS$9,AR$8,OpsCashFlow!$I18:$FS18) -> 249776.0238 | AS18: =SUMIF(OpsCashFlow!$I$9:$FS$9,AS$8,OpsCashFlow!$I18:$FS18) -> 259885.4822 | AT18: =SUMIF(OpsCashFlow!$I$9:$FS$9,AT$8,OpsCashFlow!$I18:$FS18) -> 270405.0501 | AU18: =SUMIF(OpsCashFlow!$I$9:$FS$9,AU$8,OpsCashFlow!$I18:$FS18) -> 281351.4008 | AV18: =SUMIF(OpsCashFlow!$I$9:$FS$9,AV$8,OpsCashFlow!$I18:$FS18) -> 219555.6555
C19: =OpsCashFlow!C19 -> Liquidated Damages | H19: 0 | I19: =SUMIF(OpsCashFlow!$I$9:$FS$9,I$8,OpsCashFlow!$I19:$FS19) -> 0 | J19: =SUMIF(OpsCashFlow!$I$9:$FS$9,J$8,OpsCashFlow!$I19:$FS19) -> 0 | K19: =SUMIF(OpsCashFlow!$I$9:$FS$9,K$8,OpsCashFlow!$I19:$FS19) -> 0 | L19: =SUMIF(OpsCashFlow!$I$9:$FS$9,L$8,OpsCashFlow!$I19:$FS19) -> 0 | M19: =SUMIF(OpsCashFlow!$I$9:$FS$9,M$8,OpsCashFlow!$I19:$FS19) -> 0 | N19: =SUMIF(OpsCashFlow!$I$9:$FS$9,N$8,OpsCashFlow!$I19:$FS19) -> 0 | O19: =SUMIF(OpsCashFlow!$I$9:$FS$9,O$8,OpsCashFlow!$I19:$FS19) -> 0 | P19: =SUMIF(OpsCashFlow!$I$9:$FS$9,P$8,OpsCashFlow!$I19:$FS19) -> 0 | Q19: =SUMIF(OpsCashFlow!$I$9:$FS$9,Q$8,OpsCashFlow!$I19:$FS19) -> 0 | R19: =SUMIF(OpsCashFlow!$I$9:$FS$9,R$8,OpsCashFlow!$I19:$FS19) -> 0 | S19: =SUMIF(OpsCashFlow!$I$9:$FS$9,S$8,OpsCashFlow!$I19:$FS19) -> 0 | T19: =SUMIF(OpsCashFlow!$I$9:$FS$9,T$8,OpsCashFlow!$I19:$FS19) -> 0 | U19: =SUMIF(OpsCashFlow!$I$9:$FS$9,U$8,OpsCashFlow!$I19:$FS19) -> 0 | V19: =SUMIF(OpsCashFlow!$I$9:$FS$9,V$8,OpsCashFlow!$I19:$FS19) -> 0 | W19: =SUMIF(OpsCashFlow!$I$9:$FS$9,W$8,OpsCashFlow!$I19:$FS19) -> 0 | X19: =SUMIF(OpsCashFlow!$I$9:$FS$9,X$8,OpsCashFlow!$I19:$FS19) -> 0 | Y19: =SUMIF(OpsCashFlow!$I$9:$FS$9,Y$8,OpsCashFlow!$I19:$FS19) -> 0 | Z19: =SUMIF(OpsCashFlow!$I$9:$FS$9,Z$8,OpsCashFlow!$I19:$FS19) -> 0 | AA19: =SUMIF(OpsCashFlow!$I$9:$FS$9,AA$8,OpsCashFlow!$I19:$FS19) -> 0 | AB19: =SUMIF(OpsCashFlow!$I$9:$FS$9,AB$8,OpsCashFlow!$I19:$FS19) -> 0 | AC19: =SUMIF(OpsCashFlow!$I$9:$FS$9,AC$8,OpsCashFlow!$I19:$FS19) -> 0 | AD19: =SUMIF(OpsCashFlow!$I$9:$FS$9,AD$8,OpsCashFlow!$I19:$FS19) -> 0 | AE19: =SUMIF(OpsCashFlow!$I$9:$FS$9,AE$8,OpsCashFlow!$I19:$FS19) -> 0 | AF19: =SUMIF(OpsCashFlow!$I$9:$FS$9,AF$8,OpsCashFlow!$I19:$FS19) -> 0 | AG19: =SUMIF(OpsCashFlow!$I$9:$FS$9,AG$8,OpsCashFlow!$I19:$FS19) -> 0 | AH19: =SUMIF(OpsCashFlow!$I$9:$FS$9,AH$8,OpsCashFlow!$I19:$FS19) -> 0 | AI19: =SUMIF(OpsCashFlow!$I$9:$FS$9,AI$8,OpsCashFlow!$I19:$FS19) -> 0 | AJ19: =SUMIF(OpsCashFlow!$I$9:$FS$9,AJ$8,OpsCashFlow!$I19:$FS19) -> 0 | AK19: =SUMIF(OpsCashFlow!$I$9:$FS$9,AK$8,OpsCashFlow!$I19:$FS19) -> 0 | AL19: =SUMIF(OpsCashFlow!$I$9:$FS$9,AL$8,OpsCashFlow!$I19:$FS19) -> 0 | AM19: =SUMIF(OpsCashFlow!$I$9:$FS$9,AM$8,OpsCashFlow!$I19:$FS19) -> 0 | AN19: =SUMIF(OpsCashFlow!$I$9:$FS$9,AN$8,OpsCashFlow!$I19:$FS19) -> 0 | AO19: =SUMIF(OpsCashFlow!$I$9:$FS$9,AO$8,OpsCashFlow!$I19:$FS19) -> 0 | AP19: =SUMIF(OpsCashFlow!$I$9:$FS$9,AP$8,OpsCashFlow!$I19:$FS19) -> 0 | AQ19: =SUMIF(OpsCashFlow!$I$9:$FS$9,AQ$8,OpsCashFlow!$I19:$FS19) -> 0 | AR19: =SUMIF(OpsCashFlow!$I$9:$FS$9,AR$8,OpsCashFlow!$I19:$FS19) -> 0 | AS19: =SUMIF(OpsCashFlow!$I$9:$FS$9,AS$8,OpsCashFlow!$I19:$FS19) -> 0 | AT19: =SUMIF(OpsCashFlow!$I$9:$FS$9,AT$8,OpsCashFlow!$I19:$FS19) -> 0 | AU19: =SUMIF(OpsCashFlow!$I$9:$FS$9,AU$8,OpsCashFlow!$I19:$FS19) -> 0 | AV19: =SUMIF(OpsCashFlow!$I$9:$FS$9,AV$8,OpsCashFlow!$I19:$FS19) -> 0
C20: =OpsCashFlow!C20 -> Operating Costs (incl. PITs) | H20: -535286.0447 | I20: =SUMIF(OpsCashFlow!$I$9:$FS$9,I$8,OpsCashFlow!$I20:$FS20) -> 0 | J20: =SUMIF(OpsCashFlow!$I$9:$FS$9,J$8,OpsCashFlow!$I20:$FS20) -> 0 | K20: =SUMIF(OpsCashFlow!$I$9:$FS$9,K$8,OpsCashFlow!$I20:$FS20) -> 0 | L20: =SUMIF(OpsCashFlow!$I$9:$FS$9,L$8,OpsCashFlow!$I20:$FS20) -> 0 | M20: =SUMIF(OpsCashFlow!$I$9:$FS$9,M$8,OpsCashFlow!$I20:$FS20) -> -1867.244655 | N20: =SUMIF(OpsCashFlow!$I$9:$FS$9,N$8,OpsCashFlow!$I20:$FS20) -> -12082.91285 | O20: =SUMIF(OpsCashFlow!$I$9:$FS$9,O$8,OpsCashFlow!$I20:$FS20) -> -11008.93623 | P20: =SUMIF(OpsCashFlow!$I$9:$FS$9,P$8,OpsCashFlow!$I20:$FS20) -> -11794.21307 | Q20: =SUMIF(OpsCashFlow!$I$9:$FS$9,Q$8,OpsCashFlow!$I20:$FS20) -> -11915.61492 | R20: =SUMIF(OpsCashFlow!$I$9:$FS$9,R$8,OpsCashFlow!$I20:$FS20) -> -12297.02789 | S20: =SUMIF(OpsCashFlow!$I$9:$FS$9,S$8,OpsCashFlow!$I20:$FS20) -> -13449.56189 | T20: =SUMIF(OpsCashFlow!$I$9:$FS$9,T$8,OpsCashFlow!$I20:$FS20) -> -12549.58345 | U20: =SUMIF(OpsCashFlow!$I$9:$FS$9,U$8,OpsCashFlow!$I20:$FS20) -> -12283.45577 | V20: =SUMIF(OpsCashFlow!$I$9:$FS$9,V$8,OpsCashFlow!$I20:$FS20) -> -11998.54709 | W20: =SUMIF(OpsCashFlow!$I$9:$FS$9,W$8,OpsCashFlow!$I20:$FS20) -> -12789.43102 | X20: =SUMIF(OpsCashFlow!$I$9:$FS$9,X$8,OpsCashFlow!$I20:$FS20) -> -14066.60788 | Y20: =SUMIF(OpsCashFlow!$I$9:$FS$9,Y$8,OpsCashFlow!$I20:$FS20) -> -13431.00251 | Z20: =SUMIF(OpsCashFlow!$I$9:$FS$9,Z$8,OpsCashFlow!$I20:$FS20) -> -12911.73857 | AA20: =SUMIF(OpsCashFlow!$I$9:$FS$9,AA$8,OpsCashFlow!$I20:$FS20) -> -12549.5821 | AB20: =SUMIF(OpsCashFlow!$I$9:$FS$9,AB$8,OpsCashFlow!$I20:$FS20) -> -12954.77152 | AC20: =SUMIF(OpsCashFlow!$I$9:$FS$9,AC$8,OpsCashFlow!$I20:$FS20) -> -14288.23358 | AD20: =SUMIF(OpsCashFlow!$I$9:$FS$9,AD$8,OpsCashFlow!$I20:$FS20) -> -13918.25915 | AE20: =SUMIF(OpsCashFlow!$I$9:$FS$9,AE$8,OpsCashFlow!$I20:$FS20) -> -13967.72061 | AF20: =SUMIF(OpsCashFlow!$I$9:$FS$9,AF$8,OpsCashFlow!$I20:$FS20) -> -13880.95768 | AG20: =SUMIF(OpsCashFlow!$I$9:$FS$9,AG$8,OpsCashFlow!$I20:$FS20) -> -14390.7355 | AH20: =SUMIF(OpsCashFlow!$I$9:$FS$9,AH$8,OpsCashFlow!$I20:$FS20) -> -15608.97582 | AI20: =SUMIF(OpsCashFlow!$I$9:$FS$9,AI$8,OpsCashFlow!$I20:$FS20) -> -15817.74824 | AJ20: =SUMIF(OpsCashFlow!$I$9:$FS$9,AJ$8,OpsCashFlow!$I20:$FS20) -> -15802.71472 | AK20: =SUMIF(OpsCashFlow!$I$9:$FS$9,AK$8,OpsCashFlow!$I20:$FS20) -> -15542.9497 | AL20: =SUMIF(OpsCashFlow!$I$9:$FS$9,AL$8,OpsCashFlow!$I20:$FS20) -> -16878.90725 | AM20: =SUMIF(OpsCashFlow!$I$9:$FS$9,AM$8,OpsCashFlow!$I20:$FS20) -> -17868.09275 | AN20: =SUMIF(OpsCashFlow!$I$9:$FS$9,AN$8,OpsCashFlow!$I20:$FS20) -> -17663.50525 | AO20: =SUMIF(OpsCashFlow!$I$9:$FS$9,AO$8,OpsCashFlow!$I20:$FS20) -> -17887.78234 | AP20: =SUMIF(OpsCashFlow!$I$9:$FS$9,AP$8,OpsCashFlow!$I20:$FS20) -> -17953.45272 | AQ20: =SUMIF(OpsCashFlow!$I$9:$FS$9,AQ$8,OpsCashFlow!$I20:$FS20) -> -18534.67233 | AR20: =SUMIF(OpsCashFlow!$I$9:$FS$9,AR$8,OpsCashFlow!$I20:$FS20) -> -19553.9302 | AS20: =SUMIF(OpsCashFlow!$I$9:$FS$9,AS$8,OpsCashFlow!$I20:$FS20) -> -19139.47171 | AT20: =SUMIF(OpsCashFlow!$I$9:$FS$9,AT$8,OpsCashFlow!$I20:$FS20) -> -17226.34804 | AU20: =SUMIF(OpsCashFlow!$I$9:$FS$9,AU$8,OpsCashFlow!$I20:$FS20) -> -21088.62107 | AV20: =SUMIF(OpsCashFlow!$I$9:$FS$9,AV$8,OpsCashFlow!$I20:$FS20) -> -28322.73465
C21: =OpsCashFlow!C21 -> Net Operating Cash Flows | H21: 4866908.412 | I21: =SUMIF(OpsCashFlow!$I$9:$FS$9,I$8,OpsCashFlow!$I21:$FS21) -> 0 | J21: =SUMIF(OpsCashFlow!$I$9:$FS$9,J$8,OpsCashFlow!$I21:$FS21) -> 0 | K21: =SUMIF(OpsCashFlow!$I$9:$FS$9,K$8,OpsCashFlow!$I21:$FS21) -> 0 | L21: =SUMIF(OpsCashFlow!$I$9:$FS$9,L$8,OpsCashFlow!$I21:$FS21) -> 0 | M21: =SUMIF(OpsCashFlow!$I$9:$FS$9,M$8,OpsCashFlow!$I21:$FS21) -> 2801.343504 | N21: =SUMIF(OpsCashFlow!$I$9:$FS$9,N$8,OpsCashFlow!$I21:$FS21) -> 19059.03986 | O21: =SUMIF(OpsCashFlow!$I$9:$FS$9,O$8,OpsCashFlow!$I21:$FS21) -> 32300.55297 | P21: =SUMIF(OpsCashFlow!$I$9:$FS$9,P$8,OpsCashFlow!$I21:$FS21) -> 34678.23479 | Q21: =SUMIF(OpsCashFlow!$I$9:$FS$9,Q$8,OpsCashFlow!$I21:$FS21) -> 40139.95255 | R21: =SUMIF(OpsCashFlow!$I$9:$FS$9,R$8,OpsCashFlow!$I21:$FS21) -> 44842.55512 | S21: =SUMIF(OpsCashFlow!$I$9:$FS$9,S$8,OpsCashFlow!$I21:$FS21) -> 49306.3231 | T21: =SUMIF(OpsCashFlow!$I$9:$FS$9,T$8,OpsCashFlow!$I21:$FS21) -> 56412.64437 | U21: =SUMIF(OpsCashFlow!$I$9:$FS$9,U$8,OpsCashFlow!$I21:$FS21) -> 63539.2888 | V21: =SUMIF(OpsCashFlow!$I$9:$FS$9,V$8,OpsCashFlow!$I21:$FS21) -> 72098.57501 | W21: =SUMIF(OpsCashFlow!$I$9:$FS$9,W$8,OpsCashFlow!$I21:$FS21) -> 78191.53191 | X21: =SUMIF(OpsCashFlow!$I$9:$FS$9,X$8,OpsCashFlow!$I21:$FS21) -> 84426.56278 | Y21: =SUMIF(OpsCashFlow!$I$9:$FS$9,Y$8,OpsCashFlow!$I21:$FS21) -> 93262.03126 | Z21: =SUMIF(OpsCashFlow!$I$9:$FS$9,Z$8,OpsCashFlow!$I21:$FS21) -> 102733.7483 | AA21: =SUMIF(OpsCashFlow!$I$9:$FS$9,AA$8,OpsCashFlow!$I21:$FS21) -> 112872.0677 | AB21: =SUMIF(OpsCashFlow!$I$9:$FS$9,AB$8,OpsCashFlow!$I21:$FS21) -> 121023.3457 | AC21: =SUMIF(OpsCashFlow!$I$9:$FS$9,AC$8,OpsCashFlow!$I21:$FS21) -> 128845.0136 | AD21: =SUMIF(OpsCashFlow!$I$9:$FS$9,AD$8,OpsCashFlow!$I21:$FS21) -> 139011.7557 | AE21: =SUMIF(OpsCashFlow!$I$9:$FS$9,AE$8,OpsCashFlow!$I21:$FS21) -> 149446.8389 | AF21: =SUMIF(OpsCashFlow!$I$9:$FS$9,AF$8,OpsCashFlow!$I21:$FS21) -> 160755.4651 | AG21: =SUMIF(OpsCashFlow!$I$9:$FS$9,AG$8,OpsCashFlow!$I21:$FS21) -> 169185.3848 | AH21: =SUMIF(OpsCashFlow!$I$9:$FS$9,AH$8,OpsCashFlow!$I21:$FS21) -> 177385.5381 | AI21: =SUMIF(OpsCashFlow!$I$9:$FS$9,AI$8,OpsCashFlow!$I21:$FS21) -> 187100.3154 | AJ21: =SUMIF(OpsCashFlow!$I$9:$FS$9,AJ$8,OpsCashFlow!$I21:$FS21) -> 197572.0102 | AK21: =SUMIF(OpsCashFlow!$I$9:$FS$9,AK$8,OpsCashFlow!$I21:$FS21) -> 173680.182 | AL21: =SUMIF(OpsCashFlow!$I$9:$FS$9,AL$8,OpsCashFlow!$I21:$FS21) -> 179998.0494 | AM21: =SUMIF(OpsCashFlow!$I$9:$FS$9,AM$8,OpsCashFlow!$I21:$FS21) -> 186972.9939 | AN21: =SUMIF(OpsCashFlow!$I$9:$FS$9,AN$8,OpsCashFlow!$I21:$FS21) -> 195464.625 | AO21: =SUMIF(OpsCashFlow!$I$9:$FS$9,AO$8,OpsCashFlow!$I21:$FS21) -> 203863.4269 | AP21: =SUMIF(OpsCashFlow!$I$9:$FS$9,AP$8,OpsCashFlow!$I21:$FS21) -> 212770.527 | AQ21: =SUMIF(OpsCashFlow!$I$9:$FS$9,AQ$8,OpsCashFlow!$I21:$FS21) -> 221525.9819 | AR21: =SUMIF(OpsCashFlow!$I$9:$FS$9,AR$8,OpsCashFlow!$I21:$FS21) -> 230222.0936 | AS21: =SUMIF(OpsCashFlow!$I$9:$FS$9,AS$8,OpsCashFlow!$I21:$FS21) -> 240746.0105 | AT21: =SUMIF(OpsCashFlow!$I$9:$FS$9,AT$8,OpsCashFlow!$I21:$FS21) -> 253178.702 | AU21: =SUMIF(OpsCashFlow!$I$9:$FS$9,AU$8,OpsCashFlow!$I21:$FS21) -> 260262.7797 | AV21: =SUMIF(OpsCashFlow!$I$9:$FS$9,AV$8,OpsCashFlow!$I21:$FS21) -> 191232.9209
C22: =OpsCashFlow!C22 -> add: Interest on Reserves | H22: 6619.19638 | I22: =SUMIF(OpsCashFlow!$I$9:$FS$9,I$8,OpsCashFlow!$I22:$FS22) -> 0 | J22: =SUMIF(OpsCashFlow!$I$9:$FS$9,J$8,OpsCashFlow!$I22:$FS22) -> 0 | K22: =SUMIF(OpsCashFlow!$I$9:$FS$9,K$8,OpsCashFlow!$I22:$FS22) -> 0 | L22: =SUMIF(OpsCashFlow!$I$9:$FS$9,L$8,OpsCashFlow!$I22:$FS22) -> 0 | M22: =SUMIF(OpsCashFlow!$I$9:$FS$9,M$8,OpsCashFlow!$I22:$FS22) -> 286.25 | N22: =SUMIF(OpsCashFlow!$I$9:$FS$9,N$8,OpsCashFlow!$I22:$FS22) -> 1114.392204 | O22: =SUMIF(OpsCashFlow!$I$9:$FS$9,O$8,OpsCashFlow!$I22:$FS22) -> 1268.801713 | P22: =SUMIF(OpsCashFlow!$I$9:$FS$9,P$8,OpsCashFlow!$I22:$FS22) -> 1245.614993 | Q22: =SUMIF(OpsCashFlow!$I$9:$FS$9,Q$8,OpsCashFlow!$I22:$FS22) -> 760.064852 | R22: =SUMIF(OpsCashFlow!$I$9:$FS$9,R$8,OpsCashFlow!$I22:$FS22) -> 537.4008337 | S22: =SUMIF(OpsCashFlow!$I$9:$FS$9,S$8,OpsCashFlow!$I22:$FS22) -> 306.6149588 | T22: =SUMIF(OpsCashFlow!$I$9:$FS$9,T$8,OpsCashFlow!$I22:$FS22) -> 287.1312367 | U22: =SUMIF(OpsCashFlow!$I$9:$FS$9,U$8,OpsCashFlow!$I22:$FS22) -> 257.1081279 | V22: =SUMIF(OpsCashFlow!$I$9:$FS$9,V$8,OpsCashFlow!$I22:$FS22) -> 222.1926157 | W22: =SUMIF(OpsCashFlow!$I$9:$FS$9,W$8,OpsCashFlow!$I22:$FS22) -> 176.3645423 | X22: =SUMIF(OpsCashFlow!$I$9:$FS$9,X$8,OpsCashFlow!$I22:$FS22) -> 114.1924765 | Y22: =SUMIF(OpsCashFlow!$I$9:$FS$9,Y$8,OpsCashFlow!$I22:$FS22) -> 43.06782589 | Z22: =SUMIF(OpsCashFlow!$I$9:$FS$9,Z$8,OpsCashFlow!$I22:$FS22) -> 0 | AA22: =SUMIF(OpsCashFlow!$I$9:$FS$9,AA$8,OpsCashFlow!$I22:$FS22) -> 0 | AB22: =SUMIF(OpsCashFlow!$I$9:$FS$9,AB$8,OpsCashFlow!$I22:$FS22) -> 0 | AC22: =SUMIF(OpsCashFlow!$I$9:$FS$9,AC$8,OpsCashFlow!$I22:$FS22) -> 0 | AD22: =SUMIF(OpsCashFlow!$I$9:$FS$9,AD$8,OpsCashFlow!$I22:$FS22) -> 0 | AE22: =SUMIF(OpsCashFlow!$I$9:$FS$9,AE$8,OpsCashFlow!$I22:$FS22) -> 0 | AF22: =SUMIF(OpsCashFlow!$I$9:$FS$9,AF$8,OpsCashFlow!$I22:$FS22) -> 0 | AG22: =SUMIF(OpsCashFlow!$I$9:$FS$9,AG$8,OpsCashFlow!$I22:$FS22) -> 0 | AH22: =SUMIF(OpsCashFlow!$I$9:$FS$9,AH$8,OpsCashFlow!$I22:$FS22) -> 0 | AI22: =SUMIF(OpsCashFlow!$I$9:$FS$9,AI$8,OpsCashFlow!$I22:$FS22) -> 0 | AJ22: =SUMIF(OpsCashFlow!$I$9:$FS$9,AJ$8,OpsCashFlow!$I22:$FS22) -> 0 | AK22: =SUMIF(OpsCashFlow!$I$9:$FS$9,AK$8,OpsCashFlow!$I22:$FS22) -> 0 | AL22: =SUMIF(OpsCashFlow!$I$9:$FS$9,AL$8,OpsCashFlow!$I22:$FS22) -> 0 | AM22: =SUMIF(OpsCashFlow!$I$9:$FS$9,AM$8,OpsCashFlow!$I22:$FS22) -> 0 | AN22: =SUMIF(OpsCashFlow!$I$9:$FS$9,AN$8,OpsCashFlow!$I22:$FS22) -> 0 | AO22: =SUMIF(OpsCashFlow!$I$9:$FS$9,AO$8,OpsCashFlow!$I22:$FS22) -> 0 | AP22: =SUMIF(OpsCashFlow!$I$9:$FS$9,AP$8,OpsCashFlow!$I22:$FS22) -> 0 | AQ22: =SUMIF(OpsCashFlow!$I$9:$FS$9,AQ$8,OpsCashFlow!$I22:$FS22) -> 0 | AR22: =SUMIF(OpsCashFlow!$I$9:$FS$9,AR$8,OpsCashFlow!$I22:$FS22) -> 0 | AS22: =SUMIF(OpsCashFlow!$I$9:$FS$9,AS$8,OpsCashFlow!$I22:$FS22) -> 0 | AT22: =SUMIF(OpsCashFlow!$I$9:$FS$9,AT$8,OpsCashFlow!$I22:$FS22) -> 0 | AU22: =SUMIF(OpsCashFlow!$I$9:$FS$9,AU$8,OpsCashFlow!$I22:$FS22) -> 0 | AV22: =SUMIF(OpsCashFlow!$I$9:$FS$9,AV$8,OpsCashFlow!$I22:$FS22) -> 0
C23: =OpsCashFlow!C23 -> Cash Available for Debt Service & Capex | H23: 4873527.609 | I23: =SUMIF(OpsCashFlow!$I$9:$FS$9,I$8,OpsCashFlow!$I23:$FS23) -> 0 | J23: =SUMIF(OpsCashFlow!$I$9:$FS$9,J$8,OpsCashFlow!$I23:$FS23) -> 0 | K23: =SUMIF(OpsCashFlow!$I$9:$FS$9,K$8,OpsCashFlow!$I23:$FS23) -> 0 | L23: =SUMIF(OpsCashFlow!$I$9:$FS$9,L$8,OpsCashFlow!$I23:$FS23) -> 0 | M23: =SUMIF(OpsCashFlow!$I$9:$FS$9,M$8,OpsCashFlow!$I23:$FS23) -> 3087.593504 | N23: =SUMIF(OpsCashFlow!$I$9:$FS$9,N$8,OpsCashFlow!$I23:$FS23) -> 20173.43207 | O23: =SUMIF(OpsCashFlow!$I$9:$FS$9,O$8,OpsCashFlow!$I23:$FS23) -> 33569.35468 | P23: =SUMIF(OpsCashFlow!$I$9:$FS$9,P$8,OpsCashFlow!$I23:$FS23) -> 35923.84978 | Q23: =SUMIF(OpsCashFlow!$I$9:$FS$9,Q$8,OpsCashFlow!$I23:$FS23) -> 40900.0174 | R23: =SUMIF(OpsCashFlow!$I$9:$FS$9,R$8,OpsCashFlow!$I23:$FS23) -> 45379.95595 | S23: =SUMIF(OpsCashFlow!$I$9:$FS$9,S$8,OpsCashFlow!$I23:$FS23) -> 49612.93806 | T23: =SUMIF(OpsCashFlow!$I$9:$FS$9,T$8,OpsCashFlow!$I23:$FS23) -> 56699.77561 | U23: =SUMIF(OpsCashFlow!$I$9:$FS$9,U$8,OpsCashFlow!$I23:$FS23) -> 63796.39693 | V23: =SUMIF(OpsCashFlow!$I$9:$FS$9,V$8,OpsCashFlow!$I23:$FS23) -> 72320.76762 | W23: =SUMIF(OpsCashFlow!$I$9:$FS$9,W$8,OpsCashFlow!$I23:$FS23) -> 78367.89645 | X23: =SUMIF(OpsCashFlow!$I$9:$FS$9,X$8,OpsCashFlow!$I23:$FS23) -> 84540.75526 | Y23: =SUMIF(OpsCashFlow!$I$9:$FS$9,Y$8,OpsCashFlow!$I23:$FS23) -> 93305.09909 | Z23: =SUMIF(OpsCashFlow!$I$9:$FS$9,Z$8,OpsCashFlow!$I23:$FS23) -> 102733.7483 | AA23: =SUMIF(OpsCashFlow!$I$9:$FS$9,AA$8,OpsCashFlow!$I23:$FS23) -> 112872.0677 | AB23: =SUMIF(OpsCashFlow!$I$9:$FS$9,AB$8,OpsCashFlow!$I23:$FS23) -> 121023.3457 | AC23: =SUMIF(OpsCashFlow!$I$9:$FS$9,AC$8,OpsCashFlow!$I23:$FS23) -> 128845.0136 | AD23: =SUMIF(OpsCashFlow!$I$9:$FS$9,AD$8,OpsCashFlow!$I23:$FS23) -> 139011.7557 | AE23: =SUMIF(OpsCashFlow!$I$9:$FS$9,AE$8,OpsCashFlow!$I23:$FS23) -> 149446.8389 | AF23: =SUMIF(OpsCashFlow!$I$9:$FS$9,AF$8,OpsCashFlow!$I23:$FS23) -> 160755.4651 | AG23: =SUMIF(OpsCashFlow!$I$9:$FS$9,AG$8,OpsCashFlow!$I23:$FS23) -> 169185.3848 | AH23: =SUMIF(OpsCashFlow!$I$9:$FS$9,AH$8,OpsCashFlow!$I23:$FS23) -> 177385.5381 | AI23: =SUMIF(OpsCashFlow!$I$9:$FS$9,AI$8,OpsCashFlow!$I23:$FS23) -> 187100.3154 | AJ23: =SUMIF(OpsCashFlow!$I$9:$FS$9,AJ$8,OpsCashFlow!$I23:$FS23) -> 197572.0102 | AK23: =SUMIF(OpsCashFlow!$I$9:$FS$9,AK$8,OpsCashFlow!$I23:$FS23) -> 173680.182 | AL23: =SUMIF(OpsCashFlow!$I$9:$FS$9,AL$8,OpsCashFlow!$I23:$FS23) -> 179998.0494 | AM23: =SUMIF(OpsCashFlow!$I$9:$FS$9,AM$8,OpsCashFlow!$I23:$FS23) -> 186972.9939 | AN23: =SUMIF(OpsCashFlow!$I$9:$FS$9,AN$8,OpsCashFlow!$I23:$FS23) -> 195464.625 | AO23: =SUMIF(OpsCashFlow!$I$9:$FS$9,AO$8,OpsCashFlow!$I23:$FS23) -> 203863.4269 | AP23: =SUMIF(OpsCashFlow!$I$9:$FS$9,AP$8,OpsCashFlow!$I23:$FS23) -> 212770.527 | AQ23: =SUMIF(OpsCashFlow!$I$9:$FS$9,AQ$8,OpsCashFlow!$I23:$FS23) -> 221525.9819 | AR23: =SUMIF(OpsCashFlow!$I$9:$FS$9,AR$8,OpsCashFlow!$I23:$FS23) -> 230222.0936 | AS23: =SUMIF(OpsCashFlow!$I$9:$FS$9,AS$8,OpsCashFlow!$I23:$FS23) -> 240746.0105 | AT23: =SUMIF(OpsCashFlow!$I$9:$FS$9,AT$8,OpsCashFlow!$I23:$FS23) -> 253178.702 | AU23: =SUMIF(OpsCashFlow!$I$9:$FS$9,AU$8,OpsCashFlow!$I23:$FS23) -> 260262.7797 | AV23: =SUMIF(OpsCashFlow!$I$9:$FS$9,AV$8,OpsCashFlow!$I23:$FS23) -> 191232.9209
C25: =OpsCashFlow!C25 -> Mandatory Maintenance Capex
C26: =OpsCashFlow!C26 -> Mandatory Maintenance Capex | H26: =SUM(I26:AV26) -> -117490.7641 | I26: =SUMIF(OpsCashFlow!$I$9:$FS$9,I$8,OpsCashFlow!$I26:$FS26) -> 0 | J26: =SUMIF(OpsCashFlow!$I$9:$FS$9,J$8,OpsCashFlow!$I26:$FS26) -> 0 | K26: =SUMIF(OpsCashFlow!$I$9:$FS$9,K$8,OpsCashFlow!$I26:$FS26) -> 0 | L26: =SUMIF(OpsCashFlow!$I$9:$FS$9,L$8,OpsCashFlow!$I26:$FS26) -> 0 | M26: =SUMIF(OpsCashFlow!$I$9:$FS$9,M$8,OpsCashFlow!$I26:$FS26) -> 0 | N26: =SUMIF(OpsCashFlow!$I$9:$FS$9,N$8,OpsCashFlow!$I26:$FS26) -> 0 | O26: =SUMIF(OpsCashFlow!$I$9:$FS$9,O$8,OpsCashFlow!$I26:$FS26) -> -21.228416 | P26: =SUMIF(OpsCashFlow!$I$9:$FS$9,P$8,OpsCashFlow!$I26:$FS26) -> -21.86526848 | Q26: =SUMIF(OpsCashFlow!$I$9:$FS$9,Q$8,OpsCashFlow!$I26:$FS26) -> -22.52122653 | R26: =SUMIF(OpsCashFlow!$I$9:$FS$9,R$8,OpsCashFlow!$I26:$FS26) -> -1866.058783 | S26: =SUMIF(OpsCashFlow!$I$9:$FS$9,S$8,OpsCashFlow!$I26:$FS26) -> -1855.671743 | T26: =SUMIF(OpsCashFlow!$I$9:$FS$9,T$8,OpsCashFlow!$I26:$FS26) -> -1911.341896 | U26: =SUMIF(OpsCashFlow!$I$9:$FS$9,U$8,OpsCashFlow!$I26:$FS26) -> -9281.533668 | V26: =SUMIF(OpsCashFlow!$I$9:$FS$9,V$8,OpsCashFlow!$I26:$FS26) -> -10821.87959 | W26: =SUMIF(OpsCashFlow!$I$9:$FS$9,W$8,OpsCashFlow!$I26:$FS26) -> -1449.154255 | X26: =SUMIF(OpsCashFlow!$I$9:$FS$9,X$8,OpsCashFlow!$I26:$FS26) -> -4954.912374 | Y26: =SUMIF(OpsCashFlow!$I$9:$FS$9,Y$8,OpsCashFlow!$I26:$FS26) -> -5103.559745 | Z26: =SUMIF(OpsCashFlow!$I$9:$FS$9,Z$8,OpsCashFlow!$I26:$FS26) -> -7735.739862 | AA26: =SUMIF(OpsCashFlow!$I$9:$FS$9,AA$8,OpsCashFlow!$I26:$FS26) -> -5126.110368 | AB26: =SUMIF(OpsCashFlow!$I$9:$FS$9,AB$8,OpsCashFlow!$I26:$FS26) -> -2732.977175 | AC26: =SUMIF(OpsCashFlow!$I$9:$FS$9,AC$8,OpsCashFlow!$I26:$FS26) -> -178.388244 | AD26: =SUMIF(OpsCashFlow!$I$9:$FS$9,AD$8,OpsCashFlow!$I26:$FS26) -> -2568.68368 | AE26: =SUMIF(OpsCashFlow!$I$9:$FS$9,AE$8,OpsCashFlow!$I26:$FS26) -> -2645.744191 | AF26: =SUMIF(OpsCashFlow!$I$9:$FS$9,AF$8,OpsCashFlow!$I26:$FS26) -> -2725.116516 | AG26: =SUMIF(OpsCashFlow!$I$9:$FS$9,AG$8,OpsCashFlow!$I26:$FS26) -> -200.7775402 | AH26: =SUMIF(OpsCashFlow!$I$9:$FS$9,AH$8,OpsCashFlow!$I26:$FS26) -> -2130.048924 | AI26: =SUMIF(OpsCashFlow!$I$9:$FS$9,AI$8,OpsCashFlow!$I26:$FS26) -> -2193.950392 | AJ26: =SUMIF(OpsCashFlow!$I$9:$FS$9,AJ$8,OpsCashFlow!$I26:$FS26) -> -7196.157284 | AK26: =SUMIF(OpsCashFlow!$I$9:$FS$9,AK$8,OpsCashFlow!$I26:$FS26) -> -7412.042003 | AL26: =SUMIF(OpsCashFlow!$I$9:$FS$9,AL$8,OpsCashFlow!$I26:$FS26) -> -7750.781361 | AM26: =SUMIF(OpsCashFlow!$I$9:$FS$9,AM$8,OpsCashFlow!$I26:$FS26) -> -3787.874351 | AN26: =SUMIF(OpsCashFlow!$I$9:$FS$9,AN$8,OpsCashFlow!$I26:$FS26) -> -3901.510581 | AO26: =SUMIF(OpsCashFlow!$I$9:$FS$9,AO$8,OpsCashFlow!$I26:$FS26) -> -254.3389809 | AP26: =SUMIF(OpsCashFlow!$I$9:$FS$9,AP$8,OpsCashFlow!$I26:$FS26) -> -2404.8768 | AQ26: =SUMIF(OpsCashFlow!$I$9:$FS$9,AQ$8,OpsCashFlow!$I26:$FS26) -> -4986.425595 | AR26: =SUMIF(OpsCashFlow!$I$9:$FS$9,AR$8,OpsCashFlow!$I26:$FS26) -> -5136.018363 | AS26: =SUMIF(OpsCashFlow!$I$9:$FS$9,AS$8,OpsCashFlow!$I26:$FS26) -> -2948.485867 | AT26: =SUMIF(OpsCashFlow!$I$9:$FS$9,AT$8,OpsCashFlow!$I26:$FS26) -> -3036.940443 | AU26: =SUMIF(OpsCashFlow!$I$9:$FS$9,AU$8,OpsCashFlow!$I26:$FS26) -> -3128.048656 | AV26: =SUMIF(OpsCashFlow!$I$9:$FS$9,AV$8,OpsCashFlow!$I26:$FS26) -> 0
C27: =OpsCashFlow!C27 -> add: Drawdown for Senior Debt Facility | H27: =SUM(I27:AV27) -> 0 | I27: =SUMIF(OpsCashFlow!$I$9:$FS$9,I$8,OpsCashFlow!$I27:$FS27) -> 0 | J27: =SUMIF(OpsCashFlow!$I$9:$FS$9,J$8,OpsCashFlow!$I27:$FS27) -> 0 | K27: =SUMIF(OpsCashFlow!$I$9:$FS$9,K$8,OpsCashFlow!$I27:$FS27) -> 0 | L27: =SUMIF(OpsCashFlow!$I$9:$FS$9,L$8,OpsCashFlow!$I27:$FS27) -> 0 | M27: =SUMIF(OpsCashFlow!$I$9:$FS$9,M$8,OpsCashFlow!$I27:$FS27) -> 0 | N27: =SUMIF(OpsCashFlow!$I$9:$FS$9,N$8,OpsCashFlow!$I27:$FS27) -> 0 | O27: =SUMIF(OpsCashFlow!$I$9:$FS$9,O$8,OpsCashFlow!$I27:$FS27) -> 0 | P27: =SUMIF(OpsCashFlow!$I$9:$FS$9,P$8,OpsCashFlow!$I27:$FS27) -> 0 | Q27: =SUMIF(OpsCashFlow!$I$9:$FS$9,Q$8,OpsCashFlow!$I27:$FS27) -> 0 | R27: =SUMIF(OpsCashFlow!$I$9:$FS$9,R$8,OpsCashFlow!$I27:$FS27) -> 0 | S27: =SUMIF(OpsCashFlow!$I$9:$FS$9,S$8,OpsCashFlow!$I27:$FS27) -> 0 | T27: =SUMIF(OpsCashFlow!$I$9:$FS$9,T$8,OpsCashFlow!$I27:$FS27) -> 0 | U27: =SUMIF(OpsCashFlow!$I$9:$FS$9,U$8,OpsCashFlow!$I27:$FS27) -> 0 | V27: =SUMIF(OpsCashFlow!$I$9:$FS$9,V$8,OpsCashFlow!$I27:$FS27) -> 0 | W27: =SUMIF(OpsCashFlow!$I$9:$FS$9,W$8,OpsCashFlow!$I27:$FS27) -> 0 | X27: =SUMIF(OpsCashFlow!$I$9:$FS$9,X$8,OpsCashFlow!$I27:$FS27) -> 0 | Y27: =SUMIF(OpsCashFlow!$I$9:$FS$9,Y$8,OpsCashFlow!$I27:$FS27) -> 0 | Z27: =SUMIF(OpsCashFlow!$I$9:$FS$9,Z$8,OpsCashFlow!$I27:$FS27) -> 0 | AA27: =SUMIF(OpsCashFlow!$I$9:$FS$9,AA$8,OpsCashFlow!$I27:$FS27) -> 0 | AB27: =SUMIF(OpsCashFlow!$I$9:$FS$9,AB$8,OpsCashFlow!$I27:$FS27) -> 0 | AC27: =SUMIF(OpsCashFlow!$I$9:$FS$9,AC$8,OpsCashFlow!$I27:$FS27) -> 0 | AD27: =SUMIF(OpsCashFlow!$I$9:$FS$9,AD$8,OpsCashFlow!$I27:$FS27) -> 0 | AE27: =SUMIF(OpsCashFlow!$I$9:$FS$9,AE$8,OpsCashFlow!$I27:$FS27) -> 0 | AF27: =SUMIF(OpsCashFlow!$I$9:$FS$9,AF$8,OpsCashFlow!$I27:$FS27) -> 0 | AG27: =SUMIF(OpsCashFlow!$I$9:$FS$9,AG$8,OpsCashFlow!$I27:$FS27) -> 0 | AH27: =SUMIF(OpsCashFlow!$I$9:$FS$9,AH$8,OpsCashFlow!$I27:$FS27) -> 0 | AI27: =SUMIF(OpsCashFlow!$I$9:$FS$9,AI$8,OpsCashFlow!$I27:$FS27) -> 0 | AJ27: =SUMIF(OpsCashFlow!$I$9:$FS$9,AJ$8,OpsCashFlow!$I27:$FS27) -> 0 | AK27: =SUMIF(OpsCashFlow!$I$9:$FS$9,AK$8,OpsCashFlow!$I27:$FS27) -> 0 | AL27: =SUMIF(OpsCashFlow!$I$9:$FS$9,AL$8,OpsCashFlow!$I27:$FS27) -> 0 | AM27: =SUMIF(OpsCashFlow!$I$9:$FS$9,AM$8,OpsCashFlow!$I27:$FS27) -> 0 | AN27: =SUMIF(OpsCashFlow!$I$9:$FS$9,AN$8,OpsCashFlow!$I27:$FS27) -> 0 | AO27: =SUMIF(OpsCashFlow!$I$9:$FS$9,AO$8,OpsCashFlow!$I27:$FS27) -> 0 | AP27: =SUMIF(OpsCashFlow!$I$9:$FS$9,AP$8,OpsCashFlow!$I27:$FS27) -> 0 | AQ27: =SUMIF(OpsCashFlow!$I$9:$FS$9,AQ$8,OpsCashFlow!$I27:$FS27) -> 0 | AR27: =SUMIF(OpsCashFlow!$I$9:$FS$9,AR$8,OpsCashFlow!$I27:$FS27) -> 0 | AS27: =SUMIF(OpsCashFlow!$I$9:$FS$9,AS$8,OpsCashFlow!$I27:$FS27) -> 0 | AT27: =SUMIF(OpsCashFlow!$I$9:$FS$9,AT$8,OpsCashFlow!$I27:$FS27) -> 0 | AU27: =SUMIF(OpsCashFlow!$I$9:$FS$9,AU$8,OpsCashFlow!$I27:$FS27) -> 0 | AV27: =SUMIF(OpsCashFlow!$I$9:$FS$9,AV$8,OpsCashFlow!$I27:$FS27) -> 0
C28: =OpsCashFlow!C28 -> Capex Cash Flows (after Debt Drawdowns) | H28: =SUM(I28:AV28) -> -117490.7641 | I28: =SUMIF(OpsCashFlow!$I$9:$FS$9,I$8,OpsCashFlow!$I28:$FS28) -> 0 | J28: =SUMIF(OpsCashFlow!$I$9:$FS$9,J$8,OpsCashFlow!$I28:$FS28) -> 0 | K28: =SUMIF(OpsCashFlow!$I$9:$FS$9,K$8,OpsCashFlow!$I28:$FS28) -> 0 | L28: =SUMIF(OpsCashFlow!$I$9:$FS$9,L$8,OpsCashFlow!$I28:$FS28) -> 0 | M28: =SUMIF(OpsCashFlow!$I$9:$FS$9,M$8,OpsCashFlow!$I28:$FS28) -> 0 | N28: =SUMIF(OpsCashFlow!$I$9:$FS$9,N$8,OpsCashFlow!$I28:$FS28) -> 0 | O28: =SUMIF(OpsCashFlow!$I$9:$FS$9,O$8,OpsCashFlow!$I28:$FS28) -> -21.228416 | P28: =SUMIF(OpsCashFlow!$I$9:$FS$9,P$8,OpsCashFlow!$I28:$FS28) -> -21.86526848 | Q28: =SUMIF(OpsCashFlow!$I$9:$FS$9,Q$8,OpsCashFlow!$I28:$FS28) -> -22.52122653 | R28: =SUMIF(OpsCashFlow!$I$9:$FS$9,R$8,OpsCashFlow!$I28:$FS28) -> -1866.058783 | S28: =SUMIF(OpsCashFlow!$I$9:$FS$9,S$8,OpsCashFlow!$I28:$FS28) -> -1855.671743 | T28: =SUMIF(OpsCashFlow!$I$9:$FS$9,T$8,OpsCashFlow!$I28:$FS28) -> -1911.341896 | U28: =SUMIF(OpsCashFlow!$I$9:$FS$9,U$8,OpsCashFlow!$I28:$FS28) -> -9281.533668 | V28: =SUMIF(OpsCashFlow!$I$9:$FS$9,V$8,OpsCashFlow!$I28:$FS28) -> -10821.87959 | W28: =SUMIF(OpsCashFlow!$I$9:$FS$9,W$8,OpsCashFlow!$I28:$FS28) -> -1449.154255 | X28: =SUMIF(OpsCashFlow!$I$9:$FS$9,X$8,OpsCashFlow!$I28:$FS28) -> -4954.912374 | Y28: =SUMIF(OpsCashFlow!$I$9:$FS$9,Y$8,OpsCashFlow!$I28:$FS28) -> -5103.559745 | Z28: =SUMIF(OpsCashFlow!$I$9:$FS$9,Z$8,OpsCashFlow!$I28:$FS28) -> -7735.739862 | AA28: =SUMIF(OpsCashFlow!$I$9:$FS$9,AA$8,OpsCashFlow!$I28:$FS28) -> -5126.110368 | AB28: =SUMIF(OpsCashFlow!$I$9:$FS$9,AB$8,OpsCashFlow!$I28:$FS28) -> -2732.977175 | AC28: =SUMIF(OpsCashFlow!$I$9:$FS$9,AC$8,OpsCashFlow!$I28:$FS28) -> -178.388244 | AD28: =SUMIF(OpsCashFlow!$I$9:$FS$9,AD$8,OpsCashFlow!$I28:$FS28) -> -2568.68368 | AE28: =SUMIF(OpsCashFlow!$I$9:$FS$9,AE$8,OpsCashFlow!$I28:$FS28) -> -2645.744191 | AF28: =SUMIF(OpsCashFlow!$I$9:$FS$9,AF$8,OpsCashFlow!$I28:$FS28) -> -2725.116516 | AG28: =SUMIF(OpsCashFlow!$I$9:$FS$9,AG$8,OpsCashFlow!$I28:$FS28) -> -200.7775402 | AH28: =SUMIF(OpsCashFlow!$I$9:$FS$9,AH$8,OpsCashFlow!$I28:$FS28) -> -2130.048924 | AI28: =SUMIF(OpsCashFlow!$I$9:$FS$9,AI$8,OpsCashFlow!$I28:$FS28) -> -2193.950392 | AJ28: =SUMIF(OpsCashFlow!$I$9:$FS$9,AJ$8,OpsCashFlow!$I28:$FS28) -> -7196.157284 | AK28: =SUMIF(OpsCashFlow!$I$9:$FS$9,AK$8,OpsCashFlow!$I28:$FS28) -> -7412.042003 | AL28: =SUMIF(OpsCashFlow!$I$9:$FS$9,AL$8,OpsCashFlow!$I28:$FS28) -> -7750.781361 | AM28: =SUMIF(OpsCashFlow!$I$9:$FS$9,AM$8,OpsCashFlow!$I28:$FS28) -> -3787.874351 | AN28: =SUMIF(OpsCashFlow!$I$9:$FS$9,AN$8,OpsCashFlow!$I28:$FS28) -> -3901.510581 | AO28: =SUMIF(OpsCashFlow!$I$9:$FS$9,AO$8,OpsCashFlow!$I28:$FS28) -> -254.3389809 | AP28: =SUMIF(OpsCashFlow!$I$9:$FS$9,AP$8,OpsCashFlow!$I28:$FS28) -> -2404.8768 | AQ28: =SUMIF(OpsCashFlow!$I$9:$FS$9,AQ$8,OpsCashFlow!$I28:$FS28) -> -4986.425595 | AR28: =SUMIF(OpsCashFlow!$I$9:$FS$9,AR$8,OpsCashFlow!$I28:$FS28) -> -5136.018363 | AS28: =SUMIF(OpsCashFlow!$I$9:$FS$9,AS$8,OpsCashFlow!$I28:$FS28) -> -2948.485867 | AT28: =SUMIF(OpsCashFlow!$I$9:$FS$9,AT$8,OpsCashFlow!$I28:$FS28) -> -3036.940443 | AU28: =SUMIF(OpsCashFlow!$I$9:$FS$9,AU$8,OpsCashFlow!$I28:$FS28) -> -3128.048656 | AV28: =SUMIF(OpsCashFlow!$I$9:$FS$9,AV$8,OpsCashFlow!$I28:$FS28) -> 0
C30: =OpsCashFlow!C30 -> Debt Service CFs
C31: =OpsCashFlow!C31 -> Senior Bank Debt Interest | H31: =SUM(I31:AV31) -> -172214.171 | I31: =SUMIF(OpsCashFlow!$I$9:$FS$9,I$8,OpsCashFlow!$I31:$FS31) -> 0 | J31: =SUMIF(OpsCashFlow!$I$9:$FS$9,J$8,OpsCashFlow!$I31:$FS31) -> 0 | K31: =SUMIF(OpsCashFlow!$I$9:$FS$9,K$8,OpsCashFlow!$I31:$FS31) -> 0 | L31: =SUMIF(OpsCashFlow!$I$9:$FS$9,L$8,OpsCashFlow!$I31:$FS31) -> 0 | M31: =SUMIF(OpsCashFlow!$I$9:$FS$9,M$8,OpsCashFlow!$I31:$FS31) -> -4561.621463 | N31: =SUMIF(OpsCashFlow!$I$9:$FS$9,N$8,OpsCashFlow!$I31:$FS31) -> -18094.13699 | O31: =SUMIF(OpsCashFlow!$I$9:$FS$9,O$8,OpsCashFlow!$I31:$FS31) -> -18136.98661 | P31: =SUMIF(OpsCashFlow!$I$9:$FS$9,P$8,OpsCashFlow!$I31:$FS31) -> -18083.33074 | Q31: =SUMIF(OpsCashFlow!$I$9:$FS$9,Q$8,OpsCashFlow!$I31:$FS31) -> -18083.33074 | R31: =SUMIF(OpsCashFlow!$I$9:$FS$9,R$8,OpsCashFlow!$I31:$FS31) -> -17806.18197 | S31: =SUMIF(OpsCashFlow!$I$9:$FS$9,S$8,OpsCashFlow!$I31:$FS31) -> -16746.05758 | T31: =SUMIF(OpsCashFlow!$I$9:$FS$9,T$8,OpsCashFlow!$I31:$FS31) -> -15794.92972 | U31: =SUMIF(OpsCashFlow!$I$9:$FS$9,U$8,OpsCashFlow!$I31:$FS31) -> -14986.41264 | V31: =SUMIF(OpsCashFlow!$I$9:$FS$9,V$8,OpsCashFlow!$I31:$FS31) -> -12764.59457 | W31: =SUMIF(OpsCashFlow!$I$9:$FS$9,W$8,OpsCashFlow!$I31:$FS31) -> -9779.309033 | X31: =SUMIF(OpsCashFlow!$I$9:$FS$9,X$8,OpsCashFlow!$I31:$FS31) -> -5859.170606 | Y31: =SUMIF(OpsCashFlow!$I$9:$FS$9,Y$8,OpsCashFlow!$I31:$FS31) -> -1518.108344 | Z31: =SUMIF(OpsCashFlow!$I$9:$FS$9,Z$8,OpsCashFlow!$I31:$FS31) -> 0 | AA31: =SUMIF(OpsCashFlow!$I$9:$FS$9,AA$8,OpsCashFlow!$I31:$FS31) -> 0 | AB31: =SUMIF(OpsCashFlow!$I$9:$FS$9,AB$8,OpsCashFlow!$I31:$FS31) -> 0 | AC31: =SUMIF(OpsCashFlow!$I$9:$FS$9,AC$8,OpsCashFlow!$I31:$FS31) -> 0 | AD31: =SUMIF(OpsCashFlow!$I$9:$FS$9,AD$8,OpsCashFlow!$I31:$FS31) -> 0 | AE31: =SUMIF(OpsCashFlow!$I$9:$FS$9,AE$8,OpsCashFlow!$I31:$FS31) -> 0 | AF31: =SUMIF(OpsCashFlow!$I$9:$FS$9,AF$8,OpsCashFlow!$I31:$FS31) -> 0 | AG31: =SUMIF(OpsCashFlow!$I$9:$FS$9,AG$8,OpsCashFlow!$I31:$FS31) -> 0 | AH31: =SUMIF(OpsCashFlow!$I$9:$FS$9,AH$8,OpsCashFlow!$I31:$FS31) -> 0 | AI31: =SUMIF(OpsCashFlow!$I$9:$FS$9,AI$8,OpsCashFlow!$I31:$FS31) -> 0 | AJ31: =SUMIF(OpsCashFlow!$I$9:$FS$9,AJ$8,OpsCashFlow!$I31:$FS31) -> 0 | AK31: =SUMIF(OpsCashFlow!$I$9:$FS$9,AK$8,OpsCashFlow!$I31:$FS31) -> 0 | AL31: =SUMIF(OpsCashFlow!$I$9:$FS$9,AL$8,OpsCashFlow!$I31:$FS31) -> 0 | AM31: =SUMIF(OpsCashFlow!$I$9:$FS$9,AM$8,OpsCashFlow!$I31:$FS31) -> 0 | AN31: =SUMIF(OpsCashFlow!$I$9:$FS$9,AN$8,OpsCashFlow!$I31:$FS31) -> 0 | AO31: =SUMIF(OpsCashFlow!$I$9:$FS$9,AO$8,OpsCashFlow!$I31:$FS31) -> 0 | AP31: =SUMIF(OpsCashFlow!$I$9:$FS$9,AP$8,OpsCashFlow!$I31:$FS31) -> 0 | AQ31: =SUMIF(OpsCashFlow!$I$9:$FS$9,AQ$8,OpsCashFlow!$I31:$FS31) -> 0 | AR31: =SUMIF(OpsCashFlow!$I$9:$FS$9,AR$8,OpsCashFlow!$I31:$FS31) -> 0 | AS31: =SUMIF(OpsCashFlow!$I$9:$FS$9,AS$8,OpsCashFlow!$I31:$FS31) -> 0 | AT31: =SUMIF(OpsCashFlow!$I$9:$FS$9,AT$8,OpsCashFlow!$I31:$FS31) -> 0 | AU31: =SUMIF(OpsCashFlow!$I$9:$FS$9,AU$8,OpsCashFlow!$I31:$FS31) -> 0 | AV31: =SUMIF(OpsCashFlow!$I$9:$FS$9,AV$8,OpsCashFlow!$I31:$FS31) -> 0
C32: =OpsCashFlow!C32 -> Mandatory Senior Bank Debt Principal | H32: 0 | I32: =SUMIF(OpsCashFlow!$I$9:$FS$9,I$8,OpsCashFlow!$I32:$FS32) -> 0 | J32: =SUMIF(OpsCashFlow!$I$9:$FS$9,J$8,OpsCashFlow!$I32:$FS32) -> 0 | K32: =SUMIF(OpsCashFlow!$I$9:$FS$9,K$8,OpsCashFlow!$I32:$FS32) -> 0 | L32: =SUMIF(OpsCashFlow!$I$9:$FS$9,L$8,OpsCashFlow!$I32:$FS32) -> 0 | M32: =SUMIF(OpsCashFlow!$I$9:$FS$9,M$8,OpsCashFlow!$I32:$FS32) -> 0 | N32: =SUMIF(OpsCashFlow!$I$9:$FS$9,N$8,OpsCashFlow!$I32:$FS32) -> 0 | O32: =SUMIF(OpsCashFlow!$I$9:$FS$9,O$8,OpsCashFlow!$I32:$FS32) -> 0 | P32: =SUMIF(OpsCashFlow!$I$9:$FS$9,P$8,OpsCashFlow!$I32:$FS32) -> 0 | Q32: =SUMIF(OpsCashFlow!$I$9:$FS$9,Q$8,OpsCashFlow!$I32:$FS32) -> 0 | R32: =SUMIF(OpsCashFlow!$I$9:$FS$9,R$8,OpsCashFlow!$I32:$FS32) -> 0 | S32: =SUMIF(OpsCashFlow!$I$9:$FS$9,S$8,OpsCashFlow!$I32:$FS32) -> 0 | T32: =SUMIF(OpsCashFlow!$I$9:$FS$9,T$8,OpsCashFlow!$I32:$FS32) -> 0 | U32: =SUMIF(OpsCashFlow!$I$9:$FS$9,U$8,OpsCashFlow!$I32:$FS32) -> 0 | V32: =SUMIF(OpsCashFlow!$I$9:$FS$9,V$8,OpsCashFlow!$I32:$FS32) -> 0 | W32: =SUMIF(OpsCashFlow!$I$9:$FS$9,W$8,OpsCashFlow!$I32:$FS32) -> 0 | X32: =SUMIF(OpsCashFlow!$I$9:$FS$9,X$8,OpsCashFlow!$I32:$FS32) -> 0 | Y32: =SUMIF(OpsCashFlow!$I$9:$FS$9,Y$8,OpsCashFlow!$I32:$FS32) -> 0 | Z32: =SUMIF(OpsCashFlow!$I$9:$FS$9,Z$8,OpsCashFlow!$I32:$FS32) -> 0 | AA32: =SUMIF(OpsCashFlow!$I$9:$FS$9,AA$8,OpsCashFlow!$I32:$FS32) -> 0 | AB32: =SUMIF(OpsCashFlow!$I$9:$FS$9,AB$8,OpsCashFlow!$I32:$FS32) -> 0 | AC32: =SUMIF(OpsCashFlow!$I$9:$FS$9,AC$8,OpsCashFlow!$I32:$FS32) -> 0 | AD32: =SUMIF(OpsCashFlow!$I$9:$FS$9,AD$8,OpsCashFlow!$I32:$FS32) -> 0 | AE32: =SUMIF(OpsCashFlow!$I$9:$FS$9,AE$8,OpsCashFlow!$I32:$FS32) -> 0 | AF32: =SUMIF(OpsCashFlow!$I$9:$FS$9,AF$8,OpsCashFlow!$I32:$FS32) -> 0 | AG32: =SUMIF(OpsCashFlow!$I$9:$FS$9,AG$8,OpsCashFlow!$I32:$FS32) -> 0 | AH32: =SUMIF(OpsCashFlow!$I$9:$FS$9,AH$8,OpsCashFlow!$I32:$FS32) -> 0 | AI32: =SUMIF(OpsCashFlow!$I$9:$FS$9,AI$8,OpsCashFlow!$I32:$FS32) -> 0 | AJ32: =SUMIF(OpsCashFlow!$I$9:$FS$9,AJ$8,OpsCashFlow!$I32:$FS32) -> 0 | AK32: =SUMIF(OpsCashFlow!$I$9:$FS$9,AK$8,OpsCashFlow!$I32:$FS32) -> 0 | AL32: =SUMIF(OpsCashFlow!$I$9:$FS$9,AL$8,OpsCashFlow!$I32:$FS32) -> 0 | AM32: =SUMIF(OpsCashFlow!$I$9:$FS$9,AM$8,OpsCashFlow!$I32:$FS32) -> 0 | AN32: =SUMIF(OpsCashFlow!$I$9:$FS$9,AN$8,OpsCashFlow!$I32:$FS32) -> 0 | AO32: =SUMIF(OpsCashFlow!$I$9:$FS$9,AO$8,OpsCashFlow!$I32:$FS32) -> 0 | AP32: =SUMIF(OpsCashFlow!$I$9:$FS$9,AP$8,OpsCashFlow!$I32:$FS32) -> 0 | AQ32: =SUMIF(OpsCashFlow!$I$9:$FS$9,AQ$8,OpsCashFlow!$I32:$FS32) -> 0 | AR32: =SUMIF(OpsCashFlow!$I$9:$FS$9,AR$8,OpsCashFlow!$I32:$FS32) -> 0 | AS32: =SUMIF(OpsCashFlow!$I$9:$FS$9,AS$8,OpsCashFlow!$I32:$FS32) -> 0 | AT32: =SUMIF(OpsCashFlow!$I$9:$FS$9,AT$8,OpsCashFlow!$I32:$FS32) -> 0 | AU32: =SUMIF(OpsCashFlow!$I$9:$FS$9,AU$8,OpsCashFlow!$I32:$FS32) -> 0 | AV32: =SUMIF(OpsCashFlow!$I$9:$FS$9,AV$8,OpsCashFlow!$I32:$FS32) -> 0
C33: =OpsCashFlow!C33 -> CAB Debt Service | H33: 0 | I33: =SUMIF(OpsCashFlow!$I$9:$FS$9,I$8,OpsCashFlow!$I33:$FS33) -> 0 | J33: =SUMIF(OpsCashFlow!$I$9:$FS$9,J$8,OpsCashFlow!$I33:$FS33) -> 0 | K33: =SUMIF(OpsCashFlow!$I$9:$FS$9,K$8,OpsCashFlow!$I33:$FS33) -> 0 | L33: =SUMIF(OpsCashFlow!$I$9:$FS$9,L$8,OpsCashFlow!$I33:$FS33) -> 0 | M33: =SUMIF(OpsCashFlow!$I$9:$FS$9,M$8,OpsCashFlow!$I33:$FS33) -> 0 | N33: =SUMIF(OpsCashFlow!$I$9:$FS$9,N$8,OpsCashFlow!$I33:$FS33) -> 0 | O33: =SUMIF(OpsCashFlow!$I$9:$FS$9,O$8,OpsCashFlow!$I33:$FS33) -> 0 | P33: =SUMIF(OpsCashFlow!$I$9:$FS$9,P$8,OpsCashFlow!$I33:$FS33) -> 0 | Q33: =SUMIF(OpsCashFlow!$I$9:$FS$9,Q$8,OpsCashFlow!$I33:$FS33) -> 0 | R33: =SUMIF(OpsCashFlow!$I$9:$FS$9,R$8,OpsCashFlow!$I33:$FS33) -> 0 | S33: =SUMIF(OpsCashFlow!$I$9:$FS$9,S$8,OpsCashFlow!$I33:$FS33) -> 0 | T33: =SUMIF(OpsCashFlow!$I$9:$FS$9,T$8,OpsCashFlow!$I33:$FS33) -> 0 | U33: =SUMIF(OpsCashFlow!$I$9:$FS$9,U$8,OpsCashFlow!$I33:$FS33) -> 0 | V33: =SUMIF(OpsCashFlow!$I$9:$FS$9,V$8,OpsCashFlow!$I33:$FS33) -> 0 | W33: =SUMIF(OpsCashFlow!$I$9:$FS$9,W$8,OpsCashFlow!$I33:$FS33) -> 0 | X33: =SUMIF(OpsCashFlow!$I$9:$FS$9,X$8,OpsCashFlow!$I33:$FS33) -> 0 | Y33: =SUMIF(OpsCashFlow!$I$9:$FS$9,Y$8,OpsCashFlow!$I33:$FS33) -> 0 | Z33: =SUMIF(OpsCashFlow!$I$9:$FS$9,Z$8,OpsCashFlow!$I33:$FS33) -> 0 | AA33: =SUMIF(OpsCashFlow!$I$9:$FS$9,AA$8,OpsCashFlow!$I33:$FS33) -> 0 | AB33: =SUMIF(OpsCashFlow!$I$9:$FS$9,AB$8,OpsCashFlow!$I33:$FS33) -> 0 | AC33: =SUMIF(OpsCashFlow!$I$9:$FS$9,AC$8,OpsCashFlow!$I33:$FS33) -> 0 | AD33: =SUMIF(OpsCashFlow!$I$9:$FS$9,AD$8,OpsCashFlow!$I33:$FS33) -> 0 | AE33: =SUMIF(OpsCashFlow!$I$9:$FS$9,AE$8,OpsCashFlow!$I33:$FS33) -> 0 | AF33: =SUMIF(OpsCashFlow!$I$9:$FS$9,AF$8,OpsCashFlow!$I33:$FS33) -> 0 | AG33: =SUMIF(OpsCashFlow!$I$9:$FS$9,AG$8,OpsCashFlow!$I33:$FS33) -> 0 | AH33: =SUMIF(OpsCashFlow!$I$9:$FS$9,AH$8,OpsCashFlow!$I33:$FS33) -> 0 | AI33: =SUMIF(OpsCashFlow!$I$9:$FS$9,AI$8,OpsCashFlow!$I33:$FS33) -> 0 | AJ33: =SUMIF(OpsCashFlow!$I$9:$FS$9,AJ$8,OpsCashFlow!$I33:$FS33) -> 0 | AK33: =SUMIF(OpsCashFlow!$I$9:$FS$9,AK$8,OpsCashFlow!$I33:$FS33) -> 0 | AL33: =SUMIF(OpsCashFlow!$I$9:$FS$9,AL$8,OpsCashFlow!$I33:$FS33) -> 0 | AM33: =SUMIF(OpsCashFlow!$I$9:$FS$9,AM$8,OpsCashFlow!$I33:$FS33) -> 0 | AN33: =SUMIF(OpsCashFlow!$I$9:$FS$9,AN$8,OpsCashFlow!$I33:$FS33) -> 0 | AO33: =SUMIF(OpsCashFlow!$I$9:$FS$9,AO$8,OpsCashFlow!$I33:$FS33) -> 0 | AP33: =SUMIF(OpsCashFlow!$I$9:$FS$9,AP$8,OpsCashFlow!$I33:$FS33) -> 0 | AQ33: =SUMIF(OpsCashFlow!$I$9:$FS$9,AQ$8,OpsCashFlow!$I33:$FS33) -> 0 | AR33: =SUMIF(OpsCashFlow!$I$9:$FS$9,AR$8,OpsCashFlow!$I33:$FS33) -> 0 | AS33: =SUMIF(OpsCashFlow!$I$9:$FS$9,AS$8,OpsCashFlow!$I33:$FS33) -> 0 | AT33: =SUMIF(OpsCashFlow!$I$9:$FS$9,AT$8,OpsCashFlow!$I33:$FS33) -> 0 | AU33: =SUMIF(OpsCashFlow!$I$9:$FS$9,AU$8,OpsCashFlow!$I33:$FS33) -> 0 | AV33: =SUMIF(OpsCashFlow!$I$9:$FS$9,AV$8,OpsCashFlow!$I33:$FS33) -> 0
C34: =OpsCashFlow!C34 -> Deposit to Debt Service Reserve | H34: =SUM(I34:AV34) -> 0 | I34: =SUMIF(OpsCashFlow!$I$9:$FS$9,I$8,OpsCashFlow!$I34:$FS34) -> 0 | J34: =SUMIF(OpsCashFlow!$I$9:$FS$9,J$8,OpsCashFlow!$I34:$FS34) -> 0 | K34: =SUMIF(OpsCashFlow!$I$9:$FS$9,K$8,OpsCashFlow!$I34:$FS34) -> 0 | L34: =SUMIF(OpsCashFlow!$I$9:$FS$9,L$8,OpsCashFlow!$I34:$FS34) -> 0 | M34: =SUMIF(OpsCashFlow!$I$9:$FS$9,M$8,OpsCashFlow!$I34:$FS34) -> 0 | N34: =SUMIF(OpsCashFlow!$I$9:$FS$9,N$8,OpsCashFlow!$I34:$FS34) -> 0 | O34: =SUMIF(OpsCashFlow!$I$9:$FS$9,O$8,OpsCashFlow!$I34:$FS34) -> 0 | P34: =SUMIF(OpsCashFlow!$I$9:$FS$9,P$8,OpsCashFlow!$I34:$FS34) -> 0 | Q34: =SUMIF(OpsCashFlow!$I$9:$FS$9,Q$8,OpsCashFlow!$I34:$FS34) -> 0 | R34: =SUMIF(OpsCashFlow!$I$9:$FS$9,R$8,OpsCashFlow!$I34:$FS34) -> 0 | S34: =SUMIF(OpsCashFlow!$I$9:$FS$9,S$8,OpsCashFlow!$I34:$FS34) -> 0 | T34: =SUMIF(OpsCashFlow!$I$9:$FS$9,T$8,OpsCashFlow!$I34:$FS34) -> 0 | U34: =SUMIF(OpsCashFlow!$I$9:$FS$9,U$8,OpsCashFlow!$I34:$FS34) -> 0 | V34: =SUMIF(OpsCashFlow!$I$9:$FS$9,V$8,OpsCashFlow!$I34:$FS34) -> 0 | W34: =SUMIF(OpsCashFlow!$I$9:$FS$9,W$8,OpsCashFlow!$I34:$FS34) -> 0 | X34: =SUMIF(OpsCashFlow!$I$9:$FS$9,X$8,OpsCashFlow!$I34:$FS34) -> 0 | Y34: =SUMIF(OpsCashFlow!$I$9:$FS$9,Y$8,OpsCashFlow!$I34:$FS34) -> 0 | Z34: =SUMIF(OpsCashFlow!$I$9:$FS$9,Z$8,OpsCashFlow!$I34:$FS34) -> 0 | AA34: =SUMIF(OpsCashFlow!$I$9:$FS$9,AA$8,OpsCashFlow!$I34:$FS34) -> 0 | AB34: =SUMIF(OpsCashFlow!$I$9:$FS$9,AB$8,OpsCashFlow!$I34:$FS34) -> 0 | AC34: =SUMIF(OpsCashFlow!$I$9:$FS$9,AC$8,OpsCashFlow!$I34:$FS34) -> 0 | AD34: =SUMIF(OpsCashFlow!$I$9:$FS$9,AD$8,OpsCashFlow!$I34:$FS34) -> 0 | AE34: =SUMIF(OpsCashFlow!$I$9:$FS$9,AE$8,OpsCashFlow!$I34:$FS34) -> 0 | AF34: =SUMIF(OpsCashFlow!$I$9:$FS$9,AF$8,OpsCashFlow!$I34:$FS34) -> 0 | AG34: =SUMIF(OpsCashFlow!$I$9:$FS$9,AG$8,OpsCashFlow!$I34:$FS34) -> 0 | AH34: =SUMIF(OpsCashFlow!$I$9:$FS$9,AH$8,OpsCashFlow!$I34:$FS34) -> 0 | AI34: =SUMIF(OpsCashFlow!$I$9:$FS$9,AI$8,OpsCashFlow!$I34:$FS34) -> 0 | AJ34: =SUMIF(OpsCashFlow!$I$9:$FS$9,AJ$8,OpsCashFlow!$I34:$FS34) -> 0 | AK34: =SUMIF(OpsCashFlow!$I$9:$FS$9,AK$8,OpsCashFlow!$I34:$FS34) -> 0 | AL34: =SUMIF(OpsCashFlow!$I$9:$FS$9,AL$8,OpsCashFlow!$I34:$FS34) -> 0 | AM34: =SUMIF(OpsCashFlow!$I$9:$FS$9,AM$8,OpsCashFlow!$I34:$FS34) -> 0 | AN34: =SUMIF(OpsCashFlow!$I$9:$FS$9,AN$8,OpsCashFlow!$I34:$FS34) -> 0 | AO34: =SUMIF(OpsCashFlow!$I$9:$FS$9,AO$8,OpsCashFlow!$I34:$FS34) -> 0 | AP34: =SUMIF(OpsCashFlow!$I$9:$FS$9,AP$8,OpsCashFlow!$I34:$FS34) -> 0 | AQ34: =SUMIF(OpsCashFlow!$I$9:$FS$9,AQ$8,OpsCashFlow!$I34:$FS34) -> 0 | AR34: =SUMIF(OpsCashFlow!$I$9:$FS$9,AR$8,OpsCashFlow!$I34:$FS34) -> 0 | AS34: =SUMIF(OpsCashFlow!$I$9:$FS$9,AS$8,OpsCashFlow!$I34:$FS34) -> 0 | AT34: =SUMIF(OpsCashFlow!$I$9:$FS$9,AT$8,OpsCashFlow!$I34:$FS34) -> 0 | AU34: =SUMIF(OpsCashFlow!$I$9:$FS$9,AU$8,OpsCashFlow!$I34:$FS34) -> 0 | AV34: =SUMIF(OpsCashFlow!$I$9:$FS$9,AV$8,OpsCashFlow!$I34:$FS34) -> 0
C35: =OpsCashFlow!C35 -> Mandatory TIFIA Debt Service | H35: -310255.2639 | I35: =SUMIF(OpsCashFlow!$I$9:$FS$9,I$8,OpsCashFlow!$I35:$FS35) -> 0 | J35: =SUMIF(OpsCashFlow!$I$9:$FS$9,J$8,OpsCashFlow!$I35:$FS35) -> 0 | K35: =SUMIF(OpsCashFlow!$I$9:$FS$9,K$8,OpsCashFlow!$I35:$FS35) -> 0 | L35: =SUMIF(OpsCashFlow!$I$9:$FS$9,L$8,OpsCashFlow!$I35:$FS35) -> 0 | M35: =SUMIF(OpsCashFlow!$I$9:$FS$9,M$8,OpsCashFlow!$I35:$FS35) -> 0 | N35: =SUMIF(OpsCashFlow!$I$9:$FS$9,N$8,OpsCashFlow!$I35:$FS35) -> 0 | O35: =SUMIF(OpsCashFlow!$I$9:$FS$9,O$8,OpsCashFlow!$I35:$FS35) -> 0 | P35: =SUMIF(OpsCashFlow!$I$9:$FS$9,P$8,OpsCashFlow!$I35:$FS35) -> 0 | Q35: =SUMIF(OpsCashFlow!$I$9:$FS$9,Q$8,OpsCashFlow!$I35:$FS35) -> 0 | R35: =SUMIF(OpsCashFlow!$I$9:$FS$9,R$8,OpsCashFlow!$I35:$FS35) -> -150 | S35: =SUMIF(OpsCashFlow!$I$9:$FS$9,S$8,OpsCashFlow!$I35:$FS35) -> -2308.825912 | T35: =SUMIF(OpsCashFlow!$I$9:$FS$9,T$8,OpsCashFlow!$I35:$FS35) -> -2878.885428 | U35: =SUMIF(OpsCashFlow!$I$9:$FS$9,U$8,OpsCashFlow!$I35:$FS35) -> -3517.716196 | V35: =SUMIF(OpsCashFlow!$I$9:$FS$9,V$8,OpsCashFlow!$I35:$FS35) -> -4224.420648 | W35: =SUMIF(OpsCashFlow!$I$9:$FS$9,W$8,OpsCashFlow!$I35:$FS35) -> -4997.102065 | X35: =SUMIF(OpsCashFlow!$I$9:$FS$9,X$8,OpsCashFlow!$I35:$FS35) -> -5832.842869 | Y35: =SUMIF(OpsCashFlow!$I$9:$FS$9,Y$8,OpsCashFlow!$I35:$FS35) -> -8528.559106 | Z35: =SUMIF(OpsCashFlow!$I$9:$FS$9,Z$8,OpsCashFlow!$I35:$FS35) -> -12255.23 | AA35: =SUMIF(OpsCashFlow!$I$9:$FS$9,AA$8,OpsCashFlow!$I35:$FS35) -> -12996.91 | AB35: =SUMIF(OpsCashFlow!$I$9:$FS$9,AB$8,OpsCashFlow!$I35:$FS35) -> -12628.27371 | AC35: =SUMIF(OpsCashFlow!$I$9:$FS$9,AC$8,OpsCashFlow!$I35:$FS35) -> -12628.26096 | AD35: =SUMIF(OpsCashFlow!$I$9:$FS$9,AD$8,OpsCashFlow!$I35:$FS35) -> -12628.24829 | AE35: =SUMIF(OpsCashFlow!$I$9:$FS$9,AE$8,OpsCashFlow!$I35:$FS35) -> -12628.51015 | AF35: =SUMIF(OpsCashFlow!$I$9:$FS$9,AF$8,OpsCashFlow!$I35:$FS35) -> -12628.22184 | AG35: =SUMIF(OpsCashFlow!$I$9:$FS$9,AG$8,OpsCashFlow!$I35:$FS35) -> -12628.20947 | AH35: =SUMIF(OpsCashFlow!$I$9:$FS$9,AH$8,OpsCashFlow!$I35:$FS35) -> -12628.19723 | AI35: =SUMIF(OpsCashFlow!$I$9:$FS$9,AI$8,OpsCashFlow!$I35:$FS35) -> -12628.4859 | AJ35: =SUMIF(OpsCashFlow!$I$9:$FS$9,AJ$8,OpsCashFlow!$I35:$FS35) -> -12628.17152 | AK35: =SUMIF(OpsCashFlow!$I$9:$FS$9,AK$8,OpsCashFlow!$I35:$FS35) -> -12628.15977 | AL35: =SUMIF(OpsCashFlow!$I$9:$FS$9,AL$8,OpsCashFlow!$I35:$FS35) -> -12628.14822 | AM35: =SUMIF(OpsCashFlow!$I$9:$FS$9,AM$8,OpsCashFlow!$I35:$FS35) -> -12628.46364 | AN35: =SUMIF(OpsCashFlow!$I$9:$FS$9,AN$8,OpsCashFlow!$I35:$FS35) -> -12628.12378 | AO35: =SUMIF(OpsCashFlow!$I$9:$FS$9,AO$8,OpsCashFlow!$I35:$FS35) -> -12628.11293 | AP35: =SUMIF(OpsCashFlow!$I$9:$FS$9,AP$8,OpsCashFlow!$I35:$FS35) -> -12628.10236 | AQ35: =SUMIF(OpsCashFlow!$I$9:$FS$9,AQ$8,OpsCashFlow!$I35:$FS35) -> -12628.4439 | AR35: =SUMIF(OpsCashFlow!$I$9:$FS$9,AR$8,OpsCashFlow!$I35:$FS35) -> -12628.07977 | AS35: =SUMIF(OpsCashFlow!$I$9:$FS$9,AS$8,OpsCashFlow!$I35:$FS35) -> -12628.07013 | AT35: =SUMIF(OpsCashFlow!$I$9:$FS$9,AT$8,OpsCashFlow!$I35:$FS35) -> -12628.06084 | AU35: =SUMIF(OpsCashFlow!$I$9:$FS$9,AU$8,OpsCashFlow!$I35:$FS35) -> -12628.42724 | AV35: =SUMIF(OpsCashFlow!$I$9:$FS$9,AV$8,OpsCashFlow!$I35:$FS35) -> 0
C36: =OpsCashFlow!C36 -> Scheduled TIFIA Debt Service | H36: -39885.17405 | I36: =SUMIF(OpsCashFlow!$I$9:$FS$9,I$8,OpsCashFlow!$I36:$FS36) -> 0 | J36: =SUMIF(OpsCashFlow!$I$9:$FS$9,J$8,OpsCashFlow!$I36:$FS36) -> 0 | K36: =SUMIF(OpsCashFlow!$I$9:$FS$9,K$8,OpsCashFlow!$I36:$FS36) -> 0 | L36: =SUMIF(OpsCashFlow!$I$9:$FS$9,L$8,OpsCashFlow!$I36:$FS36) -> 0 | M36: =SUMIF(OpsCashFlow!$I$9:$FS$9,M$8,OpsCashFlow!$I36:$FS36) -> 0 | N36: =SUMIF(OpsCashFlow!$I$9:$FS$9,N$8,OpsCashFlow!$I36:$FS36) -> 0 | O36: =SUMIF(OpsCashFlow!$I$9:$FS$9,O$8,OpsCashFlow!$I36:$FS36) -> 0 | P36: =SUMIF(OpsCashFlow!$I$9:$FS$9,P$8,OpsCashFlow!$I36:$FS36) -> 0 | Q36: =SUMIF(OpsCashFlow!$I$9:$FS$9,Q$8,OpsCashFlow!$I36:$FS36) -> -7897.879214 | R36: =SUMIF(OpsCashFlow!$I$9:$FS$9,R$8,OpsCashFlow!$I36:$FS36) -> -7747.879214 | S36: =SUMIF(OpsCashFlow!$I$9:$FS$9,S$8,OpsCashFlow!$I36:$FS36) -> -5589.053302 | T36: =SUMIF(OpsCashFlow!$I$9:$FS$9,T$8,OpsCashFlow!$I36:$FS36) -> -5018.993786 | U36: =SUMIF(OpsCashFlow!$I$9:$FS$9,U$8,OpsCashFlow!$I36:$FS36) -> -4380.163018 | V36: =SUMIF(OpsCashFlow!$I$9:$FS$9,V$8,OpsCashFlow!$I36:$FS36) -> -3673.458566 | W36: =SUMIF(OpsCashFlow!$I$9:$FS$9,W$8,OpsCashFlow!$I36:$FS36) -> -2900.777149 | X36: =SUMIF(OpsCashFlow!$I$9:$FS$9,X$8,OpsCashFlow!$I36:$FS36) -> -2065.036345 | Y36: =SUMIF(OpsCashFlow!$I$9:$FS$9,Y$8,OpsCashFlow!$I36:$FS36) -> -611.9334628 | Z36: =SUMIF(OpsCashFlow!$I$9:$FS$9,Z$8,OpsCashFlow!$I36:$FS36) -> 0 | AA36: =SUMIF(OpsCashFlow!$I$9:$FS$9,AA$8,OpsCashFlow!$I36:$FS36) -> 0 | AB36: =SUMIF(OpsCashFlow!$I$9:$FS$9,AB$8,OpsCashFlow!$I36:$FS36) -> 0 | AC36: =SUMIF(OpsCashFlow!$I$9:$FS$9,AC$8,OpsCashFlow!$I36:$FS36) -> 0 | AD36: =SUMIF(OpsCashFlow!$I$9:$FS$9,AD$8,OpsCashFlow!$I36:$FS36) -> 0 | AE36: =SUMIF(OpsCashFlow!$I$9:$FS$9,AE$8,OpsCashFlow!$I36:$FS36) -> 0 | AF36: =SUMIF(OpsCashFlow!$I$9:$FS$9,AF$8,OpsCashFlow!$I36:$FS36) -> 0 | AG36: =SUMIF(OpsCashFlow!$I$9:$FS$9,AG$8,OpsCashFlow!$I36:$FS36) -> 0 | AH36: =SUMIF(OpsCashFlow!$I$9:$FS$9,AH$8,OpsCashFlow!$I36:$FS36) -> 0 | AI36: =SUMIF(OpsCashFlow!$I$9:$FS$9,AI$8,OpsCashFlow!$I36:$FS36) -> 0 | AJ36: =SUMIF(OpsCashFlow!$I$9:$FS$9,AJ$8,OpsCashFlow!$I36:$FS36) -> 0 | AK36: =SUMIF(OpsCashFlow!$I$9:$FS$9,AK$8,OpsCashFlow!$I36:$FS36) -> 0 | AL36: =SUMIF(OpsCashFlow!$I$9:$FS$9,AL$8,OpsCashFlow!$I36:$FS36) -> 0 | AM36: =SUMIF(OpsCashFlow!$I$9:$FS$9,AM$8,OpsCashFlow!$I36:$FS36) -> 0 | AN36: =SUMIF(OpsCashFlow!$I$9:$FS$9,AN$8,OpsCashFlow!$I36:$FS36) -> 0 | AO36: =SUMIF(OpsCashFlow!$I$9:$FS$9,AO$8,OpsCashFlow!$I36:$FS36) -> 0 | AP36: =SUMIF(OpsCashFlow!$I$9:$FS$9,AP$8,OpsCashFlow!$I36:$FS36) -> 0 | AQ36: =SUMIF(OpsCashFlow!$I$9:$FS$9,AQ$8,OpsCashFlow!$I36:$FS36) -> 0 | AR36: =SUMIF(OpsCashFlow!$I$9:$FS$9,AR$8,OpsCashFlow!$I36:$FS36) -> 0 | AS36: =SUMIF(OpsCashFlow!$I$9:$FS$9,AS$8,OpsCashFlow!$I36:$FS36) -> 0 | AT36: =SUMIF(OpsCashFlow!$I$9:$FS$9,AT$8,OpsCashFlow!$I36:$FS36) -> 0 | AU36: =SUMIF(OpsCashFlow!$I$9:$FS$9,AU$8,OpsCashFlow!$I36:$FS36) -> 0 | AV36: =SUMIF(OpsCashFlow!$I$9:$FS$9,AV$8,OpsCashFlow!$I36:$FS36) -> 0
C37: =OpsCashFlow!C37 -> Debt Service Obligations | H37: -522354.609 | I37: =SUMIF(OpsCashFlow!$I$9:$FS$9,I$8,OpsCashFlow!$I37:$FS37) -> 0 | J37: =SUMIF(OpsCashFlow!$I$9:$FS$9,J$8,OpsCashFlow!$I37:$FS37) -> 0 | K37: =SUMIF(OpsCashFlow!$I$9:$FS$9,K$8,OpsCashFlow!$I37:$FS37) -> 0 | L37: =SUMIF(OpsCashFlow!$I$9:$FS$9,L$8,OpsCashFlow!$I37:$FS37) -> 0 | M37: =SUMIF(OpsCashFlow!$I$9:$FS$9,M$8,OpsCashFlow!$I37:$FS37) -> -4561.621463 | N37: =SUMIF(OpsCashFlow!$I$9:$FS$9,N$8,OpsCashFlow!$I37:$FS37) -> -18094.13699 | O37: =SUMIF(OpsCashFlow!$I$9:$FS$9,O$8,OpsCashFlow!$I37:$FS37) -> -18136.98661 | P37: =SUMIF(OpsCashFlow!$I$9:$FS$9,P$8,OpsCashFlow!$I37:$FS37) -> -18083.33074 | Q37: =SUMIF(OpsCashFlow!$I$9:$FS$9,Q$8,OpsCashFlow!$I37:$FS37) -> -25981.20995 | R37: =SUMIF(OpsCashFlow!$I$9:$FS$9,R$8,OpsCashFlow!$I37:$FS37) -> -25704.06118 | S37: =SUMIF(OpsCashFlow!$I$9:$FS$9,S$8,OpsCashFlow!$I37:$FS37) -> -24643.9368 | T37: =SUMIF(OpsCashFlow!$I$9:$FS$9,T$8,OpsCashFlow!$I37:$FS37) -> -23692.80893 | U37: =SUMIF(OpsCashFlow!$I$9:$FS$9,U$8,OpsCashFlow!$I37:$FS37) -> -22884.29186 | V37: =SUMIF(OpsCashFlow!$I$9:$FS$9,V$8,OpsCashFlow!$I37:$FS37) -> -20662.47378 | W37: =SUMIF(OpsCashFlow!$I$9:$FS$9,W$8,OpsCashFlow!$I37:$FS37) -> -17677.18825 | X37: =SUMIF(OpsCashFlow!$I$9:$FS$9,X$8,OpsCashFlow!$I37:$FS37) -> -13757.04982 | Y37: =SUMIF(OpsCashFlow!$I$9:$FS$9,Y$8,OpsCashFlow!$I37:$FS37) -> -10658.60091 | Z37: =SUMIF(OpsCashFlow!$I$9:$FS$9,Z$8,OpsCashFlow!$I37:$FS37) -> -12255.23 | AA37: =SUMIF(OpsCashFlow!$I$9:$FS$9,AA$8,OpsCashFlow!$I37:$FS37) -> -12996.91 | AB37: =SUMIF(OpsCashFlow!$I$9:$FS$9,AB$8,OpsCashFlow!$I37:$FS37) -> -12628.27371 | AC37: =SUMIF(OpsCashFlow!$I$9:$FS$9,AC$8,OpsCashFlow!$I37:$FS37) -> -12628.26096 | AD37: =SUMIF(OpsCashFlow!$I$9:$FS$9,AD$8,OpsCashFlow!$I37:$FS37) -> -12628.24829 | AE37: =SUMIF(OpsCashFlow!$I$9:$FS$9,AE$8,OpsCashFlow!$I37:$FS37) -> -12628.51015 | AF37: =SUMIF(OpsCashFlow!$I$9:$FS$9,AF$8,OpsCashFlow!$I37:$FS37) -> -12628.22184 | AG37: =SUMIF(OpsCashFlow!$I$9:$FS$9,AG$8,OpsCashFlow!$I37:$FS37) -> -12628.20947 | AH37: =SUMIF(OpsCashFlow!$I$9:$FS$9,AH$8,OpsCashFlow!$I37:$FS37) -> -12628.19723 | AI37: =SUMIF(OpsCashFlow!$I$9:$FS$9,AI$8,OpsCashFlow!$I37:$FS37) -> -12628.4859 | AJ37: =SUMIF(OpsCashFlow!$I$9:$FS$9,AJ$8,OpsCashFlow!$I37:$FS37) -> -12628.17152 | AK37: =SUMIF(OpsCashFlow!$I$9:$FS$9,AK$8,OpsCashFlow!$I37:$FS37) -> -12628.15977 | AL37: =SUMIF(OpsCashFlow!$I$9:$FS$9,AL$8,OpsCashFlow!$I37:$FS37) -> -12628.14822 | AM37: =SUMIF(OpsCashFlow!$I$9:$FS$9,AM$8,OpsCashFlow!$I37:$FS37) -> -12628.46364 | AN37: =SUMIF(OpsCashFlow!$I$9:$FS$9,AN$8,OpsCashFlow!$I37:$FS37) -> -12628.12378 | AO37: =SUMIF(OpsCashFlow!$I$9:$FS$9,AO$8,OpsCashFlow!$I37:$FS37) -> -12628.11293 | AP37: =SUMIF(OpsCashFlow!$I$9:$FS$9,AP$8,OpsCashFlow!$I37:$FS37) -> -12628.10236 | AQ37: =SUMIF(OpsCashFlow!$I$9:$FS$9,AQ$8,OpsCashFlow!$I37:$FS37) -> -12628.4439 | AR37: =SUMIF(OpsCashFlow!$I$9:$FS$9,AR$8,OpsCashFlow!$I37:$FS37) -> -12628.07977 | AS37: =SUMIF(OpsCashFlow!$I$9:$FS$9,AS$8,OpsCashFlow!$I37:$FS37) -> -12628.07013 | AT37: =SUMIF(OpsCashFlow!$I$9:$FS$9,AT$8,OpsCashFlow!$I37:$FS37) -> -12628.06084 | AU37: =SUMIF(OpsCashFlow!$I$9:$FS$9,AU$8,OpsCashFlow!$I37:$FS37) -> -12628.42724 | AV37: =SUMIF(OpsCashFlow!$I$9:$FS$9,AV$8,OpsCashFlow!$I37:$FS37) -> 0
C39: =OpsCashFlow!C39 -> Post Debt & Capex / Pre - Reserve Service Cash Flows | H39: =SUM(I39:AV39) -> 4233682.236 | I39: =SUMIF(OpsCashFlow!$I$9:$FS$9,I$8,OpsCashFlow!$I39:$FS39) -> 0 | J39: =SUMIF(OpsCashFlow!$I$9:$FS$9,J$8,OpsCashFlow!$I39:$FS39) -> 0 | K39: =SUMIF(OpsCashFlow!$I$9:$FS$9,K$8,OpsCashFlow!$I39:$FS39) -> 0 | L39: =SUMIF(OpsCashFlow!$I$9:$FS$9,L$8,OpsCashFlow!$I39:$FS39) -> 0 | M39: =SUMIF(OpsCashFlow!$I$9:$FS$9,M$8,OpsCashFlow!$I39:$FS39) -> -1474.027959 | N39: =SUMIF(OpsCashFlow!$I$9:$FS$9,N$8,OpsCashFlow!$I39:$FS39) -> 2079.295077 | O39: =SUMIF(OpsCashFlow!$I$9:$FS$9,O$8,OpsCashFlow!$I39:$FS39) -> 15411.13966 | P39: =SUMIF(OpsCashFlow!$I$9:$FS$9,P$8,OpsCashFlow!$I39:$FS39) -> 17818.65378 | Q39: =SUMIF(OpsCashFlow!$I$9:$FS$9,Q$8,OpsCashFlow!$I39:$FS39) -> 14896.28622 | R39: =SUMIF(OpsCashFlow!$I$9:$FS$9,R$8,OpsCashFlow!$I39:$FS39) -> 17809.83599 | S39: =SUMIF(OpsCashFlow!$I$9:$FS$9,S$8,OpsCashFlow!$I39:$FS39) -> 23113.32952 | T39: =SUMIF(OpsCashFlow!$I$9:$FS$9,T$8,OpsCashFlow!$I39:$FS39) -> 31095.62478 | U39: =SUMIF(OpsCashFlow!$I$9:$FS$9,U$8,OpsCashFlow!$I39:$FS39) -> 31630.57141 | V39: =SUMIF(OpsCashFlow!$I$9:$FS$9,V$8,OpsCashFlow!$I39:$FS39) -> 40836.41425 | W39: =SUMIF(OpsCashFlow!$I$9:$FS$9,W$8,OpsCashFlow!$I39:$FS39) -> 59241.55395 | X39: =SUMIF(OpsCashFlow!$I$9:$FS$9,X$8,OpsCashFlow!$I39:$FS39) -> 65828.79307 | Y39: =SUMIF(OpsCashFlow!$I$9:$FS$9,Y$8,OpsCashFlow!$I39:$FS39) -> 77542.93843 | Z39: =SUMIF(OpsCashFlow!$I$9:$FS$9,Z$8,OpsCashFlow!$I39:$FS39) -> 82742.77843 | AA39: =SUMIF(OpsCashFlow!$I$9:$FS$9,AA$8,OpsCashFlow!$I39:$FS39) -> 94749.04732 | AB39: =SUMIF(OpsCashFlow!$I$9:$FS$9,AB$8,OpsCashFlow!$I39:$FS39) -> 105662.0949 | AC39: =SUMIF(OpsCashFlow!$I$9:$FS$9,AC$8,OpsCashFlow!$I39:$FS39) -> 116038.3644 | AD39: =SUMIF(OpsCashFlow!$I$9:$FS$9,AD$8,OpsCashFlow!$I39:$FS39) -> 123814.8238 | AE39: =SUMIF(OpsCashFlow!$I$9:$FS$9,AE$8,OpsCashFlow!$I39:$FS39) -> 134172.5846 | AF39: =SUMIF(OpsCashFlow!$I$9:$FS$9,AF$8,OpsCashFlow!$I39:$FS39) -> 145402.1267 | AG39: =SUMIF(OpsCashFlow!$I$9:$FS$9,AG$8,OpsCashFlow!$I39:$FS39) -> 156356.3978 | AH39: =SUMIF(OpsCashFlow!$I$9:$FS$9,AH$8,OpsCashFlow!$I39:$FS39) -> 162627.2919 | AI39: =SUMIF(OpsCashFlow!$I$9:$FS$9,AI$8,OpsCashFlow!$I39:$FS39) -> 172277.8791 | AJ39: =SUMIF(OpsCashFlow!$I$9:$FS$9,AJ$8,OpsCashFlow!$I39:$FS39) -> 177747.6814 | AK39: =SUMIF(OpsCashFlow!$I$9:$FS$9,AK$8,OpsCashFlow!$I39:$FS39) -> 153639.9802 | AL39: =SUMIF(OpsCashFlow!$I$9:$FS$9,AL$8,OpsCashFlow!$I39:$FS39) -> 159619.1198 | AM39: =SUMIF(OpsCashFlow!$I$9:$FS$9,AM$8,OpsCashFlow!$I39:$FS39) -> 170556.6559 | AN39: =SUMIF(OpsCashFlow!$I$9:$FS$9,AN$8,OpsCashFlow!$I39:$FS39) -> 178934.9906 | AO39: =SUMIF(OpsCashFlow!$I$9:$FS$9,AO$8,OpsCashFlow!$I39:$FS39) -> 190980.975 | AP39: =SUMIF(OpsCashFlow!$I$9:$FS$9,AP$8,OpsCashFlow!$I39:$FS39) -> 197737.5479 | AQ39: =SUMIF(OpsCashFlow!$I$9:$FS$9,AQ$8,OpsCashFlow!$I39:$FS39) -> 203911.1124 | AR39: =SUMIF(OpsCashFlow!$I$9:$FS$9,AR$8,OpsCashFlow!$I39:$FS39) -> 212457.9955 | AS39: =SUMIF(OpsCashFlow!$I$9:$FS$9,AS$8,OpsCashFlow!$I39:$FS39) -> 225169.4545 | AT39: =SUMIF(OpsCashFlow!$I$9:$FS$9,AT$8,OpsCashFlow!$I39:$FS39) -> 237513.7007 | AU39: =SUMIF(OpsCashFlow!$I$9:$FS$9,AU$8,OpsCashFlow!$I39:$FS39) -> 244506.3038 | AV39: =SUMIF(OpsCashFlow!$I$9:$FS$9,AV$8,OpsCashFlow!$I39:$FS39) -> 191232.9209
C41: =OpsCashFlow!C41 -> Reserve Cash Flows
C42: =OpsCashFlow!C42 -> Release of Cash From Cash Holding Account to meet Cash Shortfall | H42: =SUM(I42:AV42) -> 1883.846742 | I42: =SUMIF(OpsCashFlow!$I$9:$FS$9,I$8,OpsCashFlow!$I42:$FS42) -> 0 | J42: =SUMIF(OpsCashFlow!$I$9:$FS$9,J$8,OpsCashFlow!$I42:$FS42) -> 0 | K42: =SUMIF(OpsCashFlow!$I$9:$FS$9,K$8,OpsCashFlow!$I42:$FS42) -> 0 | L42: =SUMIF(OpsCashFlow!$I$9:$FS$9,L$8,OpsCashFlow!$I42:$FS42) -> 0 | M42: =SUMIF(OpsCashFlow!$I$9:$FS$9,M$8,OpsCashFlow!$I42:$FS42) -> 1474.027959 | N42: =SUMIF(OpsCashFlow!$I$9:$FS$9,N$8,OpsCashFlow!$I42:$FS42) -> 409.8187823 | O42: =SUMIF(OpsCashFlow!$I$9:$FS$9,O$8,OpsCashFlow!$I42:$FS42) -> 0 | P42: =SUMIF(OpsCashFlow!$I$9:$FS$9,P$8,OpsCashFlow!$I42:$FS42) -> 0 | Q42: =SUMIF(OpsCashFlow!$I$9:$FS$9,Q$8,OpsCashFlow!$I42:$FS42) -> 0 | R42: =SUMIF(OpsCashFlow!$I$9:$FS$9,R$8,OpsCashFlow!$I42:$FS42) -> 0 | S42: =SUMIF(OpsCashFlow!$I$9:$FS$9,S$8,OpsCashFlow!$I42:$FS42) -> 0 | T42: =SUMIF(OpsCashFlow!$I$9:$FS$9,T$8,OpsCashFlow!$I42:$FS42) -> 0 | U42: =SUMIF(OpsCashFlow!$I$9:$FS$9,U$8,OpsCashFlow!$I42:$FS42) -> 0 | V42: =SUMIF(OpsCashFlow!$I$9:$FS$9,V$8,OpsCashFlow!$I42:$FS42) -> 0 | W42: =SUMIF(OpsCashFlow!$I$9:$FS$9,W$8,OpsCashFlow!$I42:$FS42) -> 0 | X42: =SUMIF(OpsCashFlow!$I$9:$FS$9,X$8,OpsCashFlow!$I42:$FS42) -> 0 | Y42: =SUMIF(OpsCashFlow!$I$9:$FS$9,Y$8,OpsCashFlow!$I42:$FS42) -> 0 | Z42: =SUMIF(OpsCashFlow!$I$9:$FS$9,Z$8,OpsCashFlow!$I42:$FS42) -> 0 | AA42: =SUMIF(OpsCashFlow!$I$9:$FS$9,AA$8,OpsCashFlow!$I42:$FS42) -> 0 | AB42: =SUMIF(OpsCashFlow!$I$9:$FS$9,AB$8,OpsCashFlow!$I42:$FS42) -> 0 | AC42: =SUMIF(OpsCashFlow!$I$9:$FS$9,AC$8,OpsCashFlow!$I42:$FS42) -> 0 | AD42: =SUMIF(OpsCashFlow!$I$9:$FS$9,AD$8,OpsCashFlow!$I42:$FS42) -> 0 | AE42: =SUMIF(OpsCashFlow!$I$9:$FS$9,AE$8,OpsCashFlow!$I42:$FS42) -> 0 | AF42: =SUMIF(OpsCashFlow!$I$9:$FS$9,AF$8,OpsCashFlow!$I42:$FS42) -> 0 | AG42: =SUMIF(OpsCashFlow!$I$9:$FS$9,AG$8,OpsCashFlow!$I42:$FS42) -> 0 | AH42: =SUMIF(OpsCashFlow!$I$9:$FS$9,AH$8,OpsCashFlow!$I42:$FS42) -> 0 | AI42: =SUMIF(OpsCashFlow!$I$9:$FS$9,AI$8,OpsCashFlow!$I42:$FS42) -> 0 | AJ42: =SUMIF(OpsCashFlow!$I$9:$FS$9,AJ$8,OpsCashFlow!$I42:$FS42) -> 0 | AK42: =SUMIF(OpsCashFlow!$I$9:$FS$9,AK$8,OpsCashFlow!$I42:$FS42) -> 0 | AL42: =SUMIF(OpsCashFlow!$I$9:$FS$9,AL$8,OpsCashFlow!$I42:$FS42) -> 0 | AM42: =SUMIF(OpsCashFlow!$I$9:$FS$9,AM$8,OpsCashFlow!$I42:$FS42) -> 0 | AN42: =SUMIF(OpsCashFlow!$I$9:$FS$9,AN$8,OpsCashFlow!$I42:$FS42) -> 0 | AO42: =SUMIF(OpsCashFlow!$I$9:$FS$9,AO$8,OpsCashFlow!$I42:$FS42) -> 0 | AP42: =SUMIF(OpsCashFlow!$I$9:$FS$9,AP$8,OpsCashFlow!$I42:$FS42) -> 0 | AQ42: =SUMIF(OpsCashFlow!$I$9:$FS$9,AQ$8,OpsCashFlow!$I42:$FS42) -> 0 | AR42: =SUMIF(OpsCashFlow!$I$9:$FS$9,AR$8,OpsCashFlow!$I42:$FS42) -> 0 | AS42: =SUMIF(OpsCashFlow!$I$9:$FS$9,AS$8,OpsCashFlow!$I42:$FS42) -> 0 | AT42: =SUMIF(OpsCashFlow!$I$9:$FS$9,AT$8,OpsCashFlow!$I42:$FS42) -> 0 | AU42: =SUMIF(OpsCashFlow!$I$9:$FS$9,AU$8,OpsCashFlow!$I42:$FS42) -> 0 | AV42: =SUMIF(OpsCashFlow!$I$9:$FS$9,AV$8,OpsCashFlow!$I42:$FS42) -> 0
C43: =OpsCashFlow!C43 -> Release of Cash From Cash Reserve Account | H43: 0 | I43: =SUMIF(OpsCashFlow!$I$9:$FS$9,I$8,OpsCashFlow!$I43:$FS43) -> 0 | J43: =SUMIF(OpsCashFlow!$I$9:$FS$9,J$8,OpsCashFlow!$I43:$FS43) -> 0 | K43: =SUMIF(OpsCashFlow!$I$9:$FS$9,K$8,OpsCashFlow!$I43:$FS43) -> 0 | L43: =SUMIF(OpsCashFlow!$I$9:$FS$9,L$8,OpsCashFlow!$I43:$FS43) -> 0 | M43: =SUMIF(OpsCashFlow!$I$9:$FS$9,M$8,OpsCashFlow!$I43:$FS43) -> 0 | N43: =SUMIF(OpsCashFlow!$I$9:$FS$9,N$8,OpsCashFlow!$I43:$FS43) -> 0 | O43: =SUMIF(OpsCashFlow!$I$9:$FS$9,O$8,OpsCashFlow!$I43:$FS43) -> 0 | P43: =SUMIF(OpsCashFlow!$I$9:$FS$9,P$8,OpsCashFlow!$I43:$FS43) -> 0 | Q43: =SUMIF(OpsCashFlow!$I$9:$FS$9,Q$8,OpsCashFlow!$I43:$FS43) -> 0 | R43: =SUMIF(OpsCashFlow!$I$9:$FS$9,R$8,OpsCashFlow!$I43:$FS43) -> 0 | S43: =SUMIF(OpsCashFlow!$I$9:$FS$9,S$8,OpsCashFlow!$I43:$FS43) -> 0 | T43: =SUMIF(OpsCashFlow!$I$9:$FS$9,T$8,OpsCashFlow!$I43:$FS43) -> 0 | U43: =SUMIF(OpsCashFlow!$I$9:$FS$9,U$8,OpsCashFlow!$I43:$FS43) -> 0 | V43: =SUMIF(OpsCashFlow!$I$9:$FS$9,V$8,OpsCashFlow!$I43:$FS43) -> 0 | W43: =SUMIF(OpsCashFlow!$I$9:$FS$9,W$8,OpsCashFlow!$I43:$FS43) -> 0 | X43: =SUMIF(OpsCashFlow!$I$9:$FS$9,X$8,OpsCashFlow!$I43:$FS43) -> 0 | Y43: =SUMIF(OpsCashFlow!$I$9:$FS$9,Y$8,OpsCashFlow!$I43:$FS43) -> 0 | Z43: =SUMIF(OpsCashFlow!$I$9:$FS$9,Z$8,OpsCashFlow!$I43:$FS43) -> 0 | AA43: =SUMIF(OpsCashFlow!$I$9:$FS$9,AA$8,OpsCashFlow!$I43:$FS43) -> 0 | AB43: =SUMIF(OpsCashFlow!$I$9:$FS$9,AB$8,OpsCashFlow!$I43:$FS43) -> 0 | AC43: =SUMIF(OpsCashFlow!$I$9:$FS$9,AC$8,OpsCashFlow!$I43:$FS43) -> 0 | AD43: =SUMIF(OpsCashFlow!$I$9:$FS$9,AD$8,OpsCashFlow!$I43:$FS43) -> 0 | AE43: =SUMIF(OpsCashFlow!$I$9:$FS$9,AE$8,OpsCashFlow!$I43:$FS43) -> 0 | AF43: =SUMIF(OpsCashFlow!$I$9:$FS$9,AF$8,OpsCashFlow!$I43:$FS43) -> 0 | AG43: =SUMIF(OpsCashFlow!$I$9:$FS$9,AG$8,OpsCashFlow!$I43:$FS43) -> 0 | AH43: =SUMIF(OpsCashFlow!$I$9:$FS$9,AH$8,OpsCashFlow!$I43:$FS43) -> 0 | AI43: =SUMIF(OpsCashFlow!$I$9:$FS$9,AI$8,OpsCashFlow!$I43:$FS43) -> 0 | AJ43: =SUMIF(OpsCashFlow!$I$9:$FS$9,AJ$8,OpsCashFlow!$I43:$FS43) -> 0 | AK43: =SUMIF(OpsCashFlow!$I$9:$FS$9,AK$8,OpsCashFlow!$I43:$FS43) -> 0 | AL43: =SUMIF(OpsCashFlow!$I$9:$FS$9,AL$8,OpsCashFlow!$I43:$FS43) -> 0 | AM43: =SUMIF(OpsCashFlow!$I$9:$FS$9,AM$8,OpsCashFlow!$I43:$FS43) -> 0 | AN43: =SUMIF(OpsCashFlow!$I$9:$FS$9,AN$8,OpsCashFlow!$I43:$FS43) -> 0 | AO43: =SUMIF(OpsCashFlow!$I$9:$FS$9,AO$8,OpsCashFlow!$I43:$FS43) -> 0 | AP43: =SUMIF(OpsCashFlow!$I$9:$FS$9,AP$8,OpsCashFlow!$I43:$FS43) -> 0 | AQ43: =SUMIF(OpsCashFlow!$I$9:$FS$9,AQ$8,OpsCashFlow!$I43:$FS43) -> 0 | AR43: =SUMIF(OpsCashFlow!$I$9:$FS$9,AR$8,OpsCashFlow!$I43:$FS43) -> 0 | AS43: =SUMIF(OpsCashFlow!$I$9:$FS$9,AS$8,OpsCashFlow!$I43:$FS43) -> 0 | AT43: =SUMIF(OpsCashFlow!$I$9:$FS$9,AT$8,OpsCashFlow!$I43:$FS43) -> 0 | AU43: =SUMIF(OpsCashFlow!$I$9:$FS$9,AU$8,OpsCashFlow!$I43:$FS43) -> 0 | AV43: =SUMIF(OpsCashFlow!$I$9:$FS$9,AV$8,OpsCashFlow!$I43:$FS43) -> 0
C44: =OpsCashFlow!C44 -> Release From Cash at Bank to Hold Cash During Stabilisation Period | H44: 0 | I44: =SUMIF(OpsCashFlow!$I$9:$FS$9,I$8,OpsCashFlow!$I44:$FS44) -> 0 | J44: =SUMIF(OpsCashFlow!$I$9:$FS$9,J$8,OpsCashFlow!$I44:$FS44) -> 0 | K44: =SUMIF(OpsCashFlow!$I$9:$FS$9,K$8,OpsCashFlow!$I44:$FS44) -> 0 | L44: =SUMIF(OpsCashFlow!$I$9:$FS$9,L$8,OpsCashFlow!$I44:$FS44) -> 0 | M44: =SUMIF(OpsCashFlow!$I$9:$FS$9,M$8,OpsCashFlow!$I44:$FS44) -> 0 | N44: =SUMIF(OpsCashFlow!$I$9:$FS$9,N$8,OpsCashFlow!$I44:$FS44) -> 0 | O44: =SUMIF(OpsCashFlow!$I$9:$FS$9,O$8,OpsCashFlow!$I44:$FS44) -> 0 | P44: =SUMIF(OpsCashFlow!$I$9:$FS$9,P$8,OpsCashFlow!$I44:$FS44) -> 0 | Q44: =SUMIF(OpsCashFlow!$I$9:$FS$9,Q$8,OpsCashFlow!$I44:$FS44) -> 0 | R44: =SUMIF(OpsCashFlow!$I$9:$FS$9,R$8,OpsCashFlow!$I44:$FS44) -> 0 | S44: =SUMIF(OpsCashFlow!$I$9:$FS$9,S$8,OpsCashFlow!$I44:$FS44) -> 0 | T44: =SUMIF(OpsCashFlow!$I$9:$FS$9,T$8,OpsCashFlow!$I44:$FS44) -> 0 | U44: =SUMIF(OpsCashFlow!$I$9:$FS$9,U$8,OpsCashFlow!$I44:$FS44) -> 0 | V44: =SUMIF(OpsCashFlow!$I$9:$FS$9,V$8,OpsCashFlow!$I44:$FS44) -> 0 | W44: =SUMIF(OpsCashFlow!$I$9:$FS$9,W$8,OpsCashFlow!$I44:$FS44) -> 0 | X44: =SUMIF(OpsCashFlow!$I$9:$FS$9,X$8,OpsCashFlow!$I44:$FS44) -> 0 | Y44: =SUMIF(OpsCashFlow!$I$9:$FS$9,Y$8,OpsCashFlow!$I44:$FS44) -> 0 | Z44: =SUMIF(OpsCashFlow!$I$9:$FS$9,Z$8,OpsCashFlow!$I44:$FS44) -> 0 | AA44: =SUMIF(OpsCashFlow!$I$9:$FS$9,AA$8,OpsCashFlow!$I44:$FS44) -> 0 | AB44: =SUMIF(OpsCashFlow!$I$9:$FS$9,AB$8,OpsCashFlow!$I44:$FS44) -> 0 | AC44: =SUMIF(OpsCashFlow!$I$9:$FS$9,AC$8,OpsCashFlow!$I44:$FS44) -> 0 | AD44: =SUMIF(OpsCashFlow!$I$9:$FS$9,AD$8,OpsCashFlow!$I44:$FS44) -> 0 | AE44: =SUMIF(OpsCashFlow!$I$9:$FS$9,AE$8,OpsCashFlow!$I44:$FS44) -> 0 | AF44: =SUMIF(OpsCashFlow!$I$9:$FS$9,AF$8,OpsCashFlow!$I44:$FS44) -> 0 | AG44: =SUMIF(OpsCashFlow!$I$9:$FS$9,AG$8,OpsCashFlow!$I44:$FS44) -> 0 | AH44: =SUMIF(OpsCashFlow!$I$9:$FS$9,AH$8,OpsCashFlow!$I44:$FS44) -> 0 | AI44: =SUMIF(OpsCashFlow!$I$9:$FS$9,AI$8,OpsCashFlow!$I44:$FS44) -> 0 | AJ44: =SUMIF(OpsCashFlow!$I$9:$FS$9,AJ$8,OpsCashFlow!$I44:$FS44) -> 0 | AK44: =SUMIF(OpsCashFlow!$I$9:$FS$9,AK$8,OpsCashFlow!$I44:$FS44) -> 0 | AL44: =SUMIF(OpsCashFlow!$I$9:$FS$9,AL$8,OpsCashFlow!$I44:$FS44) -> 0 | AM44: =SUMIF(OpsCashFlow!$I$9:$FS$9,AM$8,OpsCashFlow!$I44:$FS44) -> 0 | AN44: =SUMIF(OpsCashFlow!$I$9:$FS$9,AN$8,OpsCashFlow!$I44:$FS44) -> 0 | AO44: =SUMIF(OpsCashFlow!$I$9:$FS$9,AO$8,OpsCashFlow!$I44:$FS44) -> 0 | AP44: =SUMIF(OpsCashFlow!$I$9:$FS$9,AP$8,OpsCashFlow!$I44:$FS44) -> 0 | AQ44: =SUMIF(OpsCashFlow!$I$9:$FS$9,AQ$8,OpsCashFlow!$I44:$FS44) -> 0 | AR44: =SUMIF(OpsCashFlow!$I$9:$FS$9,AR$8,OpsCashFlow!$I44:$FS44) -> 0 | AS44: =SUMIF(OpsCashFlow!$I$9:$FS$9,AS$8,OpsCashFlow!$I44:$FS44) -> 0 | AT44: =SUMIF(OpsCashFlow!$I$9:$FS$9,AT$8,OpsCashFlow!$I44:$FS44) -> 0 | AU44: =SUMIF(OpsCashFlow!$I$9:$FS$9,AU$8,OpsCashFlow!$I44:$FS44) -> 0 | AV44: =SUMIF(OpsCashFlow!$I$9:$FS$9,AV$8,OpsCashFlow!$I44:$FS44) -> 0
C45: =OpsCashFlow!C45 -> Release from Additional Equity Account | H45: 0 | I45: =SUMIF(OpsCashFlow!$I$9:$FS$9,I$8,OpsCashFlow!$I45:$FS45) -> 0 | J45: =SUMIF(OpsCashFlow!$I$9:$FS$9,J$8,OpsCashFlow!$I45:$FS45) -> 0 | K45: =SUMIF(OpsCashFlow!$I$9:$FS$9,K$8,OpsCashFlow!$I45:$FS45) -> 0 | L45: =SUMIF(OpsCashFlow!$I$9:$FS$9,L$8,OpsCashFlow!$I45:$FS45) -> 0 | M45: =SUMIF(OpsCashFlow!$I$9:$FS$9,M$8,OpsCashFlow!$I45:$FS45) -> 0 | N45: =SUMIF(OpsCashFlow!$I$9:$FS$9,N$8,OpsCashFlow!$I45:$FS45) -> 0 | O45: =SUMIF(OpsCashFlow!$I$9:$FS$9,O$8,OpsCashFlow!$I45:$FS45) -> 0 | P45: =SUMIF(OpsCashFlow!$I$9:$FS$9,P$8,OpsCashFlow!$I45:$FS45) -> 0 | Q45: =SUMIF(OpsCashFlow!$I$9:$FS$9,Q$8,OpsCashFlow!$I45:$FS45) -> 0 | R45: =SUMIF(OpsCashFlow!$I$9:$FS$9,R$8,OpsCashFlow!$I45:$FS45) -> 0 | S45: =SUMIF(OpsCashFlow!$I$9:$FS$9,S$8,OpsCashFlow!$I45:$FS45) -> 0 | T45: =SUMIF(OpsCashFlow!$I$9:$FS$9,T$8,OpsCashFlow!$I45:$FS45) -> 0 | U45: =SUMIF(OpsCashFlow!$I$9:$FS$9,U$8,OpsCashFlow!$I45:$FS45) -> 0 | V45: =SUMIF(OpsCashFlow!$I$9:$FS$9,V$8,OpsCashFlow!$I45:$FS45) -> 0 | W45: =SUMIF(OpsCashFlow!$I$9:$FS$9,W$8,OpsCashFlow!$I45:$FS45) -> 0 | X45: =SUMIF(OpsCashFlow!$I$9:$FS$9,X$8,OpsCashFlow!$I45:$FS45) -> 0 | Y45: =SUMIF(OpsCashFlow!$I$9:$FS$9,Y$8,OpsCashFlow!$I45:$FS45) -> 0 | Z45: =SUMIF(OpsCashFlow!$I$9:$FS$9,Z$8,OpsCashFlow!$I45:$FS45) -> 0 | AA45: =SUMIF(OpsCashFlow!$I$9:$FS$9,AA$8,OpsCashFlow!$I45:$FS45) -> 0 | AB45: =SUMIF(OpsCashFlow!$I$9:$FS$9,AB$8,OpsCashFlow!$I45:$FS45) -> 0 | AC45: =SUMIF(OpsCashFlow!$I$9:$FS$9,AC$8,OpsCashFlow!$I45:$FS45) -> 0 | AD45: =SUMIF(OpsCashFlow!$I$9:$FS$9,AD$8,OpsCashFlow!$I45:$FS45) -> 0 | AE45: =SUMIF(OpsCashFlow!$I$9:$FS$9,AE$8,OpsCashFlow!$I45:$FS45) -> 0 | AF45: =SUMIF(OpsCashFlow!$I$9:$FS$9,AF$8,OpsCashFlow!$I45:$FS45) -> 0 | AG45: =SUMIF(OpsCashFlow!$I$9:$FS$9,AG$8,OpsCashFlow!$I45:$FS45) -> 0 | AH45: =SUMIF(OpsCashFlow!$I$9:$FS$9,AH$8,OpsCashFlow!$I45:$FS45) -> 0 | AI45: =SUMIF(OpsCashFlow!$I$9:$FS$9,AI$8,OpsCashFlow!$I45:$FS45) -> 0 | AJ45: =SUMIF(OpsCashFlow!$I$9:$FS$9,AJ$8,OpsCashFlow!$I45:$FS45) -> 0 | AK45: =SUMIF(OpsCashFlow!$I$9:$FS$9,AK$8,OpsCashFlow!$I45:$FS45) -> 0 | AL45: =SUMIF(OpsCashFlow!$I$9:$FS$9,AL$8,OpsCashFlow!$I45:$FS45) -> 0 | AM45: =SUMIF(OpsCashFlow!$I$9:$FS$9,AM$8,OpsCashFlow!$I45:$FS45) -> 0 | AN45: =SUMIF(OpsCashFlow!$I$9:$FS$9,AN$8,OpsCashFlow!$I45:$FS45) -> 0 | AO45: =SUMIF(OpsCashFlow!$I$9:$FS$9,AO$8,OpsCashFlow!$I45:$FS45) -> 0 | AP45: =SUMIF(OpsCashFlow!$I$9:$FS$9,AP$8,OpsCashFlow!$I45:$FS45) -> 0 | AQ45: =SUMIF(OpsCashFlow!$I$9:$FS$9,AQ$8,OpsCashFlow!$I45:$FS45) -> 0 | AR45: =SUMIF(OpsCashFlow!$I$9:$FS$9,AR$8,OpsCashFlow!$I45:$FS45) -> 0 | AS45: =SUMIF(OpsCashFlow!$I$9:$FS$9,AS$8,OpsCashFlow!$I45:$FS45) -> 0 | AT45: =SUMIF(OpsCashFlow!$I$9:$FS$9,AT$8,OpsCashFlow!$I45:$FS45) -> 0 | AU45: =SUMIF(OpsCashFlow!$I$9:$FS$9,AU$8,OpsCashFlow!$I45:$FS45) -> 0 | AV45: =SUMIF(OpsCashFlow!$I$9:$FS$9,AV$8,OpsCashFlow!$I45:$FS45) -> 0
C46: =OpsCashFlow!C46 -> Withdrawal from Debt Service Reserve | H46: 16250 | I46: =SUMIF(OpsCashFlow!$I$9:$FS$9,I$8,OpsCashFlow!$I46:$FS46) -> 0 | J46: =SUMIF(OpsCashFlow!$I$9:$FS$9,J$8,OpsCashFlow!$I46:$FS46) -> 0 | K46: =SUMIF(OpsCashFlow!$I$9:$FS$9,K$8,OpsCashFlow!$I46:$FS46) -> 0 | L46: =SUMIF(OpsCashFlow!$I$9:$FS$9,L$8,OpsCashFlow!$I46:$FS46) -> 0 | M46: =SUMIF(OpsCashFlow!$I$9:$FS$9,M$8,OpsCashFlow!$I46:$FS46) -> 246.757399 | N46: =SUMIF(OpsCashFlow!$I$9:$FS$9,N$8,OpsCashFlow!$I46:$FS46) -> 0 | O46: =SUMIF(OpsCashFlow!$I$9:$FS$9,O$8,OpsCashFlow!$I46:$FS46) -> 0 | P46: =SUMIF(OpsCashFlow!$I$9:$FS$9,P$8,OpsCashFlow!$I46:$FS46) -> 0 | Q46: =SUMIF(OpsCashFlow!$I$9:$FS$9,Q$8,OpsCashFlow!$I46:$FS46) -> 0 | R46: =SUMIF(OpsCashFlow!$I$9:$FS$9,R$8,OpsCashFlow!$I46:$FS46) -> 443.5004169 | S46: =SUMIF(OpsCashFlow!$I$9:$FS$9,S$8,OpsCashFlow!$I46:$FS46) -> 761.3909294 | T46: =SUMIF(OpsCashFlow!$I$9:$FS$9,T$8,OpsCashFlow!$I46:$FS46) -> 1380.96544 | U46: =SUMIF(OpsCashFlow!$I$9:$FS$9,U$8,OpsCashFlow!$I46:$FS46) -> 1637.245069 | V46: =SUMIF(OpsCashFlow!$I$9:$FS$9,V$8,OpsCashFlow!$I46:$FS46) -> 2027.89032 | W46: =SUMIF(OpsCashFlow!$I$9:$FS$9,W$8,OpsCashFlow!$I46:$FS46) -> 2868.759201 | X46: =SUMIF(OpsCashFlow!$I$9:$FS$9,X$8,OpsCashFlow!$I46:$FS46) -> 3347.607943 | Y46: =SUMIF(OpsCashFlow!$I$9:$FS$9,Y$8,OpsCashFlow!$I46:$FS46) -> 3535.883282 | Z46: =SUMIF(OpsCashFlow!$I$9:$FS$9,Z$8,OpsCashFlow!$I46:$FS46) -> 0 | AA46: =SUMIF(OpsCashFlow!$I$9:$FS$9,AA$8,OpsCashFlow!$I46:$FS46) -> 0 | AB46: =SUMIF(OpsCashFlow!$I$9:$FS$9,AB$8,OpsCashFlow!$I46:$FS46) -> 0 | AC46: =SUMIF(OpsCashFlow!$I$9:$FS$9,AC$8,OpsCashFlow!$I46:$FS46) -> 0 | AD46: =SUMIF(OpsCashFlow!$I$9:$FS$9,AD$8,OpsCashFlow!$I46:$FS46) -> 0 | AE46: =SUMIF(OpsCashFlow!$I$9:$FS$9,AE$8,OpsCashFlow!$I46:$FS46) -> 0 | AF46: =SUMIF(OpsCashFlow!$I$9:$FS$9,AF$8,OpsCashFlow!$I46:$FS46) -> 0 | AG46: =SUMIF(OpsCashFlow!$I$9:$FS$9,AG$8,OpsCashFlow!$I46:$FS46) -> 0 | AH46: =SUMIF(OpsCashFlow!$I$9:$FS$9,AH$8,OpsCashFlow!$I46:$FS46) -> 0 | AI46: =SUMIF(OpsCashFlow!$I$9:$FS$9,AI$8,OpsCashFlow!$I46:$FS46) -> 0 | AJ46: =SUMIF(OpsCashFlow!$I$9:$FS$9,AJ$8,OpsCashFlow!$I46:$FS46) -> 0 | AK46: =SUMIF(OpsCashFlow!$I$9:$FS$9,AK$8,OpsCashFlow!$I46:$FS46) -> 0 | AL46: =SUMIF(OpsCashFlow!$I$9:$FS$9,AL$8,OpsCashFlow!$I46:$FS46) -> 0 | AM46: =SUMIF(OpsCashFlow!$I$9:$FS$9,AM$8,OpsCashFlow!$I46:$FS46) -> 0 | AN46: =SUMIF(OpsCashFlow!$I$9:$FS$9,AN$8,OpsCashFlow!$I46:$FS46) -> 0 | AO46: =SUMIF(OpsCashFlow!$I$9:$FS$9,AO$8,OpsCashFlow!$I46:$FS46) -> 0 | AP46: =SUMIF(OpsCashFlow!$I$9:$FS$9,AP$8,OpsCashFlow!$I46:$FS46) -> 0 | AQ46: =SUMIF(OpsCashFlow!$I$9:$FS$9,AQ$8,OpsCashFlow!$I46:$FS46) -> 0 | AR46: =SUMIF(OpsCashFlow!$I$9:$FS$9,AR$8,OpsCashFlow!$I46:$FS46) -> 0 | AS46: =SUMIF(OpsCashFlow!$I$9:$FS$9,AS$8,OpsCashFlow!$I46:$FS46) -> 0 | AT46: =SUMIF(OpsCashFlow!$I$9:$FS$9,AT$8,OpsCashFlow!$I46:$FS46) -> 0 | AU46: =SUMIF(OpsCashFlow!$I$9:$FS$9,AU$8,OpsCashFlow!$I46:$FS46) -> 0 | AV46: =SUMIF(OpsCashFlow!$I$9:$FS$9,AV$8,OpsCashFlow!$I46:$FS46) -> 0
C47: =OpsCashFlow!C47 -> Post Reserving Cash Flows | H47: 4251816.082 | I47: =SUMIF(OpsCashFlow!$I$9:$FS$9,I$8,OpsCashFlow!$I47:$FS47) -> 0 | J47: =SUMIF(OpsCashFlow!$I$9:$FS$9,J$8,OpsCashFlow!$I47:$FS47) -> 0 | K47: =SUMIF(OpsCashFlow!$I$9:$FS$9,K$8,OpsCashFlow!$I47:$FS47) -> 0 | L47: =SUMIF(OpsCashFlow!$I$9:$FS$9,L$8,OpsCashFlow!$I47:$FS47) -> 0 | M47: =SUMIF(OpsCashFlow!$I$9:$FS$9,M$8,OpsCashFlow!$I47:$FS47) -> 246.757399 | N47: =SUMIF(OpsCashFlow!$I$9:$FS$9,N$8,OpsCashFlow!$I47:$FS47) -> 2489.11386 | O47: =SUMIF(OpsCashFlow!$I$9:$FS$9,O$8,OpsCashFlow!$I47:$FS47) -> 15411.13966 | P47: =SUMIF(OpsCashFlow!$I$9:$FS$9,P$8,OpsCashFlow!$I47:$FS47) -> 17818.65378 | Q47: =SUMIF(OpsCashFlow!$I$9:$FS$9,Q$8,OpsCashFlow!$I47:$FS47) -> 14896.28622 | R47: =SUMIF(OpsCashFlow!$I$9:$FS$9,R$8,OpsCashFlow!$I47:$FS47) -> 18253.3364 | S47: =SUMIF(OpsCashFlow!$I$9:$FS$9,S$8,OpsCashFlow!$I47:$FS47) -> 23874.72045 | T47: =SUMIF(OpsCashFlow!$I$9:$FS$9,T$8,OpsCashFlow!$I47:$FS47) -> 32476.59022 | U47: =SUMIF(OpsCashFlow!$I$9:$FS$9,U$8,OpsCashFlow!$I47:$FS47) -> 33267.81647 | V47: =SUMIF(OpsCashFlow!$I$9:$FS$9,V$8,OpsCashFlow!$I47:$FS47) -> 42864.30457 | W47: =SUMIF(OpsCashFlow!$I$9:$FS$9,W$8,OpsCashFlow!$I47:$FS47) -> 62110.31315 | X47: =SUMIF(OpsCashFlow!$I$9:$FS$9,X$8,OpsCashFlow!$I47:$FS47) -> 69176.40101 | Y47: =SUMIF(OpsCashFlow!$I$9:$FS$9,Y$8,OpsCashFlow!$I47:$FS47) -> 81078.82171 | Z47: =SUMIF(OpsCashFlow!$I$9:$FS$9,Z$8,OpsCashFlow!$I47:$FS47) -> 82742.77843 | AA47: =SUMIF(OpsCashFlow!$I$9:$FS$9,AA$8,OpsCashFlow!$I47:$FS47) -> 94749.04732 | AB47: =SUMIF(OpsCashFlow!$I$9:$FS$9,AB$8,OpsCashFlow!$I47:$FS47) -> 105662.0949 | AC47: =SUMIF(OpsCashFlow!$I$9:$FS$9,AC$8,OpsCashFlow!$I47:$FS47) -> 116038.3644 | AD47: =SUMIF(OpsCashFlow!$I$9:$FS$9,AD$8,OpsCashFlow!$I47:$FS47) -> 123814.8238 | AE47: =SUMIF(OpsCashFlow!$I$9:$FS$9,AE$8,OpsCashFlow!$I47:$FS47) -> 134172.5846 | AF47: =SUMIF(OpsCashFlow!$I$9:$FS$9,AF$8,OpsCashFlow!$I47:$FS47) -> 145402.1267 | AG47: =SUMIF(OpsCashFlow!$I$9:$FS$9,AG$8,OpsCashFlow!$I47:$FS47) -> 156356.3978 | AH47: =SUMIF(OpsCashFlow!$I$9:$FS$9,AH$8,OpsCashFlow!$I47:$FS47) -> 162627.2919 | AI47: =SUMIF(OpsCashFlow!$I$9:$FS$9,AI$8,OpsCashFlow!$I47:$FS47) -> 172277.8791 | AJ47: =SUMIF(OpsCashFlow!$I$9:$FS$9,AJ$8,OpsCashFlow!$I47:$FS47) -> 177747.6814 | AK47: =SUMIF(OpsCashFlow!$I$9:$FS$9,AK$8,OpsCashFlow!$I47:$FS47) -> 153639.9802 | AL47: =SUMIF(OpsCashFlow!$I$9:$FS$9,AL$8,OpsCashFlow!$I47:$FS47) -> 159619.1198 | AM47: =SUMIF(OpsCashFlow!$I$9:$FS$9,AM$8,OpsCashFlow!$I47:$FS47) -> 170556.6559 | AN47: =SUMIF(OpsCashFlow!$I$9:$FS$9,AN$8,OpsCashFlow!$I47:$FS47) -> 178934.9906 | AO47: =SUMIF(OpsCashFlow!$I$9:$FS$9,AO$8,OpsCashFlow!$I47:$FS47) -> 190980.975 | AP47: =SUMIF(OpsCashFlow!$I$9:$FS$9,AP$8,OpsCashFlow!$I47:$FS47) -> 197737.5479 | AQ47: =SUMIF(OpsCashFlow!$I$9:$FS$9,AQ$8,OpsCashFlow!$I47:$FS47) -> 203911.1124 | AR47: =SUMIF(OpsCashFlow!$I$9:$FS$9,AR$8,OpsCashFlow!$I47:$FS47) -> 212457.9955 | AS47: =SUMIF(OpsCashFlow!$I$9:$FS$9,AS$8,OpsCashFlow!$I47:$FS47) -> 225169.4545 | AT47: =SUMIF(OpsCashFlow!$I$9:$FS$9,AT$8,OpsCashFlow!$I47:$FS47) -> 237513.7007 | AU47: =SUMIF(OpsCashFlow!$I$9:$FS$9,AU$8,OpsCashFlow!$I47:$FS47) -> 244506.3038 | AV47: =SUMIF(OpsCashFlow!$I$9:$FS$9,AV$8,OpsCashFlow!$I47:$FS47) -> 191232.9209
C49: =OpsCashFlow!C49 -> Capitalization of Scheduled TIFIA Debt Service | H49: =SUM(I49:AV49) -> 0 | I49: =SUMIF(OpsCashFlow!$I$9:$FS$9,I$8,OpsCashFlow!$I49:$FS49) -> 0 | J49: =SUMIF(OpsCashFlow!$I$9:$FS$9,J$8,OpsCashFlow!$I49:$FS49) -> 0 | K49: =SUMIF(OpsCashFlow!$I$9:$FS$9,K$8,OpsCashFlow!$I49:$FS49) -> 0 | L49: =SUMIF(OpsCashFlow!$I$9:$FS$9,L$8,OpsCashFlow!$I49:$FS49) -> 0 | M49: =SUMIF(OpsCashFlow!$I$9:$FS$9,M$8,OpsCashFlow!$I49:$FS49) -> 0 | N49: =SUMIF(OpsCashFlow!$I$9:$FS$9,N$8,OpsCashFlow!$I49:$FS49) -> 0 | O49: =SUMIF(OpsCashFlow!$I$9:$FS$9,O$8,OpsCashFlow!$I49:$FS49) -> 0 | P49: =SUMIF(OpsCashFlow!$I$9:$FS$9,P$8,OpsCashFlow!$I49:$FS49) -> 0 | Q49: =SUMIF(OpsCashFlow!$I$9:$FS$9,Q$8,OpsCashFlow!$I49:$FS49) -> 0 | R49: =SUMIF(OpsCashFlow!$I$9:$FS$9,R$8,OpsCashFlow!$I49:$FS49) -> 0 | S49: =SUMIF(OpsCashFlow!$I$9:$FS$9,S$8,OpsCashFlow!$I49:$FS49) -> 0 | T49: =SUMIF(OpsCashFlow!$I$9:$FS$9,T$8,OpsCashFlow!$I49:$FS49) -> 0 | U49: =SUMIF(OpsCashFlow!$I$9:$FS$9,U$8,OpsCashFlow!$I49:$FS49) -> 0 | V49: =SUMIF(OpsCashFlow!$I$9:$FS$9,V$8,OpsCashFlow!$I49:$FS49) -> 0 | W49: =SUMIF(OpsCashFlow!$I$9:$FS$9,W$8,OpsCashFlow!$I49:$FS49) -> 0 | X49: =SUMIF(OpsCashFlow!$I$9:$FS$9,X$8,OpsCashFlow!$I49:$FS49) -> 0 | Y49: =SUMIF(OpsCashFlow!$I$9:$FS$9,Y$8,OpsCashFlow!$I49:$FS49) -> 0 | Z49: =SUMIF(OpsCashFlow!$I$9:$FS$9,Z$8,OpsCashFlow!$I49:$FS49) -> 0 | AA49: =SUMIF(OpsCashFlow!$I$9:$FS$9,AA$8,OpsCashFlow!$I49:$FS49) -> 0 | AB49: =SUMIF(OpsCashFlow!$I$9:$FS$9,AB$8,OpsCashFlow!$I49:$FS49) -> 0 | AC49: =SUMIF(OpsCashFlow!$I$9:$FS$9,AC$8,OpsCashFlow!$I49:$FS49) -> 0 | AD49: =SUMIF(OpsCashFlow!$I$9:$FS$9,AD$8,OpsCashFlow!$I49:$FS49) -> 0 | AE49: =SUMIF(OpsCashFlow!$I$9:$FS$9,AE$8,OpsCashFlow!$I49:$FS49) -> 0 | AF49: =SUMIF(OpsCashFlow!$I$9:$FS$9,AF$8,OpsCashFlow!$I49:$FS49) -> 0 | AG49: =SUMIF(OpsCashFlow!$I$9:$FS$9,AG$8,OpsCashFlow!$I49:$FS49) -> 0 | AH49: =SUMIF(OpsCashFlow!$I$9:$FS$9,AH$8,OpsCashFlow!$I49:$FS49) -> 0 | AI49: =SUMIF(OpsCashFlow!$I$9:$FS$9,AI$8,OpsCashFlow!$I49:$FS49) -> 0 | AJ49: =SUMIF(OpsCashFlow!$I$9:$FS$9,AJ$8,OpsCashFlow!$I49:$FS49) -> 0 | AK49: =SUMIF(OpsCashFlow!$I$9:$FS$9,AK$8,OpsCashFlow!$I49:$FS49) -> 0 | AL49: =SUMIF(OpsCashFlow!$I$9:$FS$9,AL$8,OpsCashFlow!$I49:$FS49) -> 0 | AM49: =SUMIF(OpsCashFlow!$I$9:$FS$9,AM$8,OpsCashFlow!$I49:$FS49) -> 0 | AN49: =SUMIF(OpsCashFlow!$I$9:$FS$9,AN$8,OpsCashFlow!$I49:$FS49) -> 0 | AO49: =SUMIF(OpsCashFlow!$I$9:$FS$9,AO$8,OpsCashFlow!$I49:$FS49) -> 0 | AP49: =SUMIF(OpsCashFlow!$I$9:$FS$9,AP$8,OpsCashFlow!$I49:$FS49) -> 0 | AQ49: =SUMIF(OpsCashFlow!$I$9:$FS$9,AQ$8,OpsCashFlow!$I49:$FS49) -> 0 | AR49: =SUMIF(OpsCashFlow!$I$9:$FS$9,AR$8,OpsCashFlow!$I49:$FS49) -> 0 | AS49: =SUMIF(OpsCashFlow!$I$9:$FS$9,AS$8,OpsCashFlow!$I49:$FS49) -> 0 | AT49: =SUMIF(OpsCashFlow!$I$9:$FS$9,AT$8,OpsCashFlow!$I49:$FS49) -> 0 | AU49: =SUMIF(OpsCashFlow!$I$9:$FS$9,AU$8,OpsCashFlow!$I49:$FS49) -> 0 | AV49: =SUMIF(OpsCashFlow!$I$9:$FS$9,AV$8,OpsCashFlow!$I49:$FS49) -> 0
C51: =OpsCashFlow!C51 -> Cash to Surplus Account | H51: =SUM(I51:AV51) -> 4251816.082 | I51: =SUMIF(OpsCashFlow!$I$9:$FS$9,I$8,OpsCashFlow!$I51:$FS51) -> 0 | J51: =SUMIF(OpsCashFlow!$I$9:$FS$9,J$8,OpsCashFlow!$I51:$FS51) -> 0 | K51: =SUMIF(OpsCashFlow!$I$9:$FS$9,K$8,OpsCashFlow!$I51:$FS51) -> 0 | L51: =SUMIF(OpsCashFlow!$I$9:$FS$9,L$8,OpsCashFlow!$I51:$FS51) -> 0 | M51: =SUMIF(OpsCashFlow!$I$9:$FS$9,M$8,OpsCashFlow!$I51:$FS51) -> 246.757399 | N51: =SUMIF(OpsCashFlow!$I$9:$FS$9,N$8,OpsCashFlow!$I51:$FS51) -> 2489.11386 | O51: =SUMIF(OpsCashFlow!$I$9:$FS$9,O$8,OpsCashFlow!$I51:$FS51) -> 15411.13966 | P51: =SUMIF(OpsCashFlow!$I$9:$FS$9,P$8,OpsCashFlow!$I51:$FS51) -> 17818.65378 | Q51: =SUMIF(OpsCashFlow!$I$9:$FS$9,Q$8,OpsCashFlow!$I51:$FS51) -> 14896.28622 | R51: =SUMIF(OpsCashFlow!$I$9:$FS$9,R$8,OpsCashFlow!$I51:$FS51) -> 18253.3364 | S51: =SUMIF(OpsCashFlow!$I$9:$FS$9,S$8,OpsCashFlow!$I51:$FS51) -> 23874.72045 | T51: =SUMIF(OpsCashFlow!$I$9:$FS$9,T$8,OpsCashFlow!$I51:$FS51) -> 32476.59022 | U51: =SUMIF(OpsCashFlow!$I$9:$FS$9,U$8,OpsCashFlow!$I51:$FS51) -> 33267.81647 | V51: =SUMIF(OpsCashFlow!$I$9:$FS$9,V$8,OpsCashFlow!$I51:$FS51) -> 42864.30457 | W51: =SUMIF(OpsCashFlow!$I$9:$FS$9,W$8,OpsCashFlow!$I51:$FS51) -> 62110.31315 | X51: =SUMIF(OpsCashFlow!$I$9:$FS$9,X$8,OpsCashFlow!$I51:$FS51) -> 69176.40101 | Y51: =SUMIF(OpsCashFlow!$I$9:$FS$9,Y$8,OpsCashFlow!$I51:$FS51) -> 81078.82171 | Z51: =SUMIF(OpsCashFlow!$I$9:$FS$9,Z$8,OpsCashFlow!$I51:$FS51) -> 82742.77843 | AA51: =SUMIF(OpsCashFlow!$I$9:$FS$9,AA$8,OpsCashFlow!$I51:$FS51) -> 94749.04732 | AB51: =SUMIF(OpsCashFlow!$I$9:$FS$9,AB$8,OpsCashFlow!$I51:$FS51) -> 105662.0949 | AC51: =SUMIF(OpsCashFlow!$I$9:$FS$9,AC$8,OpsCashFlow!$I51:$FS51) -> 116038.3644 | AD51: =SUMIF(OpsCashFlow!$I$9:$FS$9,AD$8,OpsCashFlow!$I51:$FS51) -> 123814.8238 | AE51: =SUMIF(OpsCashFlow!$I$9:$FS$9,AE$8,OpsCashFlow!$I51:$FS51) -> 134172.5846 | AF51: =SUMIF(OpsCashFlow!$I$9:$FS$9,AF$8,OpsCashFlow!$I51:$FS51) -> 145402.1267 | AG51: =SUMIF(OpsCashFlow!$I$9:$FS$9,AG$8,OpsCashFlow!$I51:$FS51) -> 156356.3978 | AH51: =SUMIF(OpsCashFlow!$I$9:$FS$9,AH$8,OpsCashFlow!$I51:$FS51) -> 162627.2919 | AI51: =SUMIF(OpsCashFlow!$I$9:$FS$9,AI$8,OpsCashFlow!$I51:$FS51) -> 172277.8791 | AJ51: =SUMIF(OpsCashFlow!$I$9:$FS$9,AJ$8,OpsCashFlow!$I51:$FS51) -> 177747.6814 | AK51: =SUMIF(OpsCashFlow!$I$9:$FS$9,AK$8,OpsCashFlow!$I51:$FS51) -> 153639.9802 | AL51: =SUMIF(OpsCashFlow!$I$9:$FS$9,AL$8,OpsCashFlow!$I51:$FS51) -> 159619.1198 | AM51: =SUMIF(OpsCashFlow!$I$9:$FS$9,AM$8,OpsCashFlow!$I51:$FS51) -> 170556.6559 | AN51: =SUMIF(OpsCashFlow!$I$9:$FS$9,AN$8,OpsCashFlow!$I51:$FS51) -> 178934.9906 | AO51: =SUMIF(OpsCashFlow!$I$9:$FS$9,AO$8,OpsCashFlow!$I51:$FS51) -> 190980.975 | AP51: =SUMIF(OpsCashFlow!$I$9:$FS$9,AP$8,OpsCashFlow!$I51:$FS51) -> 197737.5479 | AQ51: =SUMIF(OpsCashFlow!$I$9:$FS$9,AQ$8,OpsCashFlow!$I51:$FS51) -> 203911.1124 | AR51: =SUMIF(OpsCashFlow!$I$9:$FS$9,AR$8,OpsCashFlow!$I51:$FS51) -> 212457.9955 | AS51: =SUMIF(OpsCashFlow!$I$9:$FS$9,AS$8,OpsCashFlow!$I51:$FS51) -> 225169.4545 | AT51: =SUMIF(OpsCashFlow!$I$9:$FS$9,AT$8,OpsCashFlow!$I51:$FS51) -> 237513.7007 | AU51: =SUMIF(OpsCashFlow!$I$9:$FS$9,AU$8,OpsCashFlow!$I51:$FS51) -> 244506.3038 | AV51: =SUMIF(OpsCashFlow!$I$9:$FS$9,AV$8,OpsCashFlow!$I51:$FS51) -> 191232.9209
C52: =OpsCashFlow!C52 -> less: Senior Debt Principal Repayment | H52: =SUM(I52:AV52) -> -320064.852 | I52: =SUMIF(OpsCashFlow!$I$9:$FS$9,I$8,OpsCashFlow!$I52:$FS52) -> 0 | J52: =SUMIF(OpsCashFlow!$I$9:$FS$9,J$8,OpsCashFlow!$I52:$FS52) -> 0 | K52: =SUMIF(OpsCashFlow!$I$9:$FS$9,K$8,OpsCashFlow!$I52:$FS52) -> 0 | L52: =SUMIF(OpsCashFlow!$I$9:$FS$9,L$8,OpsCashFlow!$I52:$FS52) -> 0 | M52: =SUMIF(OpsCashFlow!$I$9:$FS$9,M$8,OpsCashFlow!$I52:$FS52) -> 0 | N52: =SUMIF(OpsCashFlow!$I$9:$FS$9,N$8,OpsCashFlow!$I52:$FS52) -> 0 | O52: =SUMIF(OpsCashFlow!$I$9:$FS$9,O$8,OpsCashFlow!$I52:$FS52) -> 0 | P52: =SUMIF(OpsCashFlow!$I$9:$FS$9,P$8,OpsCashFlow!$I52:$FS52) -> 0 | Q52: =SUMIF(OpsCashFlow!$I$9:$FS$9,Q$8,OpsCashFlow!$I52:$FS52) -> -869.9571217 | R52: =SUMIF(OpsCashFlow!$I$9:$FS$9,R$8,OpsCashFlow!$I52:$FS52) -> -9577.314995 | S52: =SUMIF(OpsCashFlow!$I$9:$FS$9,S$8,OpsCashFlow!$I52:$FS52) -> -17587.08989 | T52: =SUMIF(OpsCashFlow!$I$9:$FS$9,T$8,OpsCashFlow!$I52:$FS52) -> -29845.17092 | U52: =SUMIF(OpsCashFlow!$I$9:$FS$9,U$8,OpsCashFlow!$I52:$FS52) -> -33267.81647 | V52: =SUMIF(OpsCashFlow!$I$9:$FS$9,V$8,OpsCashFlow!$I52:$FS52) -> -42864.30457 | W52: =SUMIF(OpsCashFlow!$I$9:$FS$9,W$8,OpsCashFlow!$I52:$FS52) -> -62110.31315 | X52: =SUMIF(OpsCashFlow!$I$9:$FS$9,X$8,OpsCashFlow!$I52:$FS52) -> -69176.40101 | Y52: =SUMIF(OpsCashFlow!$I$9:$FS$9,Y$8,OpsCashFlow!$I52:$FS52) -> -54766.48389 | Z52: =SUMIF(OpsCashFlow!$I$9:$FS$9,Z$8,OpsCashFlow!$I52:$FS52) -> 0 | AA52: =SUMIF(OpsCashFlow!$I$9:$FS$9,AA$8,OpsCashFlow!$I52:$FS52) -> 0 | AB52: =SUMIF(OpsCashFlow!$I$9:$FS$9,AB$8,OpsCashFlow!$I52:$FS52) -> 0 | AC52: =SUMIF(OpsCashFlow!$I$9:$FS$9,AC$8,OpsCashFlow!$I52:$FS52) -> 0 | AD52: =SUMIF(OpsCashFlow!$I$9:$FS$9,AD$8,OpsCashFlow!$I52:$FS52) -> 0 | AE52: =SUMIF(OpsCashFlow!$I$9:$FS$9,AE$8,OpsCashFlow!$I52:$FS52) -> 0 | AF52: =SUMIF(OpsCashFlow!$I$9:$FS$9,AF$8,OpsCashFlow!$I52:$FS52) -> 0 | AG52: =SUMIF(OpsCashFlow!$I$9:$FS$9,AG$8,OpsCashFlow!$I52:$FS52) -> 0 | AH52: =SUMIF(OpsCashFlow!$I$9:$FS$9,AH$8,OpsCashFlow!$I52:$FS52) -> 0 | AI52: =SUMIF(OpsCashFlow!$I$9:$FS$9,AI$8,OpsCashFlow!$I52:$FS52) -> 0 | AJ52: =SUMIF(OpsCashFlow!$I$9:$FS$9,AJ$8,OpsCashFlow!$I52:$FS52) -> 0 | AK52: =SUMIF(OpsCashFlow!$I$9:$FS$9,AK$8,OpsCashFlow!$I52:$FS52) -> 0 | AL52: =SUMIF(OpsCashFlow!$I$9:$FS$9,AL$8,OpsCashFlow!$I52:$FS52) -> 0 | AM52: =SUMIF(OpsCashFlow!$I$9:$FS$9,AM$8,OpsCashFlow!$I52:$FS52) -> 0 | AN52: =SUMIF(OpsCashFlow!$I$9:$FS$9,AN$8,OpsCashFlow!$I52:$FS52) -> 0 | AO52: =SUMIF(OpsCashFlow!$I$9:$FS$9,AO$8,OpsCashFlow!$I52:$FS52) -> 0 | AP52: =SUMIF(OpsCashFlow!$I$9:$FS$9,AP$8,OpsCashFlow!$I52:$FS52) -> 0 | AQ52: =SUMIF(OpsCashFlow!$I$9:$FS$9,AQ$8,OpsCashFlow!$I52:$FS52) -> 0 | AR52: =SUMIF(OpsCashFlow!$I$9:$FS$9,AR$8,OpsCashFlow!$I52:$FS52) -> 0 | AS52: =SUMIF(OpsCashFlow!$I$9:$FS$9,AS$8,OpsCashFlow!$I52:$FS52) -> 0 | AT52: =SUMIF(OpsCashFlow!$I$9:$FS$9,AT$8,OpsCashFlow!$I52:$FS52) -> 0 | AU52: =SUMIF(OpsCashFlow!$I$9:$FS$9,AU$8,OpsCashFlow!$I52:$FS52) -> 0 | AV52: =SUMIF(OpsCashFlow!$I$9:$FS$9,AV$8,OpsCashFlow!$I52:$FS52) -> 0
C53: =OpsCashFlow!C53 -> less: Deposit to Cash Account During Coverage Ratio Holiday | H53: =SUM(I53:AV53) -> -22730.71073 | I53: =SUMIF(OpsCashFlow!$I$9:$FS$9,I$8,OpsCashFlow!$I53:$FS53) -> 0 | J53: =SUMIF(OpsCashFlow!$I$9:$FS$9,J$8,OpsCashFlow!$I53:$FS53) -> 0 | K53: =SUMIF(OpsCashFlow!$I$9:$FS$9,K$8,OpsCashFlow!$I53:$FS53) -> 0 | L53: =SUMIF(OpsCashFlow!$I$9:$FS$9,L$8,OpsCashFlow!$I53:$FS53) -> 0 | M53: =SUMIF(OpsCashFlow!$I$9:$FS$9,M$8,OpsCashFlow!$I53:$FS53) -> -246.757399 | N53: =SUMIF(OpsCashFlow!$I$9:$FS$9,N$8,OpsCashFlow!$I53:$FS53) -> -2489.11386 | O53: =SUMIF(OpsCashFlow!$I$9:$FS$9,O$8,OpsCashFlow!$I53:$FS53) -> -15411.13966 | P53: =SUMIF(OpsCashFlow!$I$9:$FS$9,P$8,OpsCashFlow!$I53:$FS53) -> -4583.699816 | Q53: =SUMIF(OpsCashFlow!$I$9:$FS$9,Q$8,OpsCashFlow!$I53:$FS53) -> 0 | R53: =SUMIF(OpsCashFlow!$I$9:$FS$9,R$8,OpsCashFlow!$I53:$FS53) -> 0 | S53: =SUMIF(OpsCashFlow!$I$9:$FS$9,S$8,OpsCashFlow!$I53:$FS53) -> 0 | T53: =SUMIF(OpsCashFlow!$I$9:$FS$9,T$8,OpsCashFlow!$I53:$FS53) -> 0 | U53: =SUMIF(OpsCashFlow!$I$9:$FS$9,U$8,OpsCashFlow!$I53:$FS53) -> 0 | V53: =SUMIF(OpsCashFlow!$I$9:$FS$9,V$8,OpsCashFlow!$I53:$FS53) -> 0 | W53: =SUMIF(OpsCashFlow!$I$9:$FS$9,W$8,OpsCashFlow!$I53:$FS53) -> 0 | X53: =SUMIF(OpsCashFlow!$I$9:$FS$9,X$8,OpsCashFlow!$I53:$FS53) -> 0 | Y53: =SUMIF(OpsCashFlow!$I$9:$FS$9,Y$8,OpsCashFlow!$I53:$FS53) -> 0 | Z53: =SUMIF(OpsCashFlow!$I$9:$FS$9,Z$8,OpsCashFlow!$I53:$FS53) -> 0 | AA53: =SUMIF(OpsCashFlow!$I$9:$FS$9,AA$8,OpsCashFlow!$I53:$FS53) -> 0 | AB53: =SUMIF(OpsCashFlow!$I$9:$FS$9,AB$8,OpsCashFlow!$I53:$FS53) -> 0 | AC53: =SUMIF(OpsCashFlow!$I$9:$FS$9,AC$8,OpsCashFlow!$I53:$FS53) -> 0 | AD53: =SUMIF(OpsCashFlow!$I$9:$FS$9,AD$8,OpsCashFlow!$I53:$FS53) -> 0 | AE53: =SUMIF(OpsCashFlow!$I$9:$FS$9,AE$8,OpsCashFlow!$I53:$FS53) -> 0 | AF53: =SUMIF(OpsCashFlow!$I$9:$FS$9,AF$8,OpsCashFlow!$I53:$FS53) -> 0 | AG53: =SUMIF(OpsCashFlow!$I$9:$FS$9,AG$8,OpsCashFlow!$I53:$FS53) -> 0 | AH53: =SUMIF(OpsCashFlow!$I$9:$FS$9,AH$8,OpsCashFlow!$I53:$FS53) -> 0 | AI53: =SUMIF(OpsCashFlow!$I$9:$FS$9,AI$8,OpsCashFlow!$I53:$FS53) -> 0 | AJ53: =SUMIF(OpsCashFlow!$I$9:$FS$9,AJ$8,OpsCashFlow!$I53:$FS53) -> 0 | AK53: =SUMIF(OpsCashFlow!$I$9:$FS$9,AK$8,OpsCashFlow!$I53:$FS53) -> 0 | AL53: =SUMIF(OpsCashFlow!$I$9:$FS$9,AL$8,OpsCashFlow!$I53:$FS53) -> 0 | AM53: =SUMIF(OpsCashFlow!$I$9:$FS$9,AM$8,OpsCashFlow!$I53:$FS53) -> 0 | AN53: =SUMIF(OpsCashFlow!$I$9:$FS$9,AN$8,OpsCashFlow!$I53:$FS53) -> 0 | AO53: =SUMIF(OpsCashFlow!$I$9:$FS$9,AO$8,OpsCashFlow!$I53:$FS53) -> 0 | AP53: =SUMIF(OpsCashFlow!$I$9:$FS$9,AP$8,OpsCashFlow!$I53:$FS53) -> 0 | AQ53: =SUMIF(OpsCashFlow!$I$9:$FS$9,AQ$8,OpsCashFlow!$I53:$FS53) -> 0 | AR53: =SUMIF(OpsCashFlow!$I$9:$FS$9,AR$8,OpsCashFlow!$I53:$FS53) -> 0 | AS53: =SUMIF(OpsCashFlow!$I$9:$FS$9,AS$8,OpsCashFlow!$I53:$FS53) -> 0 | AT53: =SUMIF(OpsCashFlow!$I$9:$FS$9,AT$8,OpsCashFlow!$I53:$FS53) -> 0 | AU53: =SUMIF(OpsCashFlow!$I$9:$FS$9,AU$8,OpsCashFlow!$I53:$FS53) -> 0 | AV53: =SUMIF(OpsCashFlow!$I$9:$FS$9,AV$8,OpsCashFlow!$I53:$FS53) -> 0
C54: =OpsCashFlow!C54 -> add: Release From Cash Account at End of Coverage Ratio Holiday | H54: =SUM(I54:AV54) -> 22730.71073 | I54: =SUMIF(OpsCashFlow!$I$9:$FS$9,I$8,OpsCashFlow!$I54:$FS54) -> 0 | J54: =SUMIF(OpsCashFlow!$I$9:$FS$9,J$8,OpsCashFlow!$I54:$FS54) -> 0 | K54: =SUMIF(OpsCashFlow!$I$9:$FS$9,K$8,OpsCashFlow!$I54:$FS54) -> 0 | L54: =SUMIF(OpsCashFlow!$I$9:$FS$9,L$8,OpsCashFlow!$I54:$FS54) -> 0 | M54: =SUMIF(OpsCashFlow!$I$9:$FS$9,M$8,OpsCashFlow!$I54:$FS54) -> 0 | N54: =SUMIF(OpsCashFlow!$I$9:$FS$9,N$8,OpsCashFlow!$I54:$FS54) -> 0 | O54: =SUMIF(OpsCashFlow!$I$9:$FS$9,O$8,OpsCashFlow!$I54:$FS54) -> 0 | P54: =SUMIF(OpsCashFlow!$I$9:$FS$9,P$8,OpsCashFlow!$I54:$FS54) -> 22730.71073 | Q54: =SUMIF(OpsCashFlow!$I$9:$FS$9,Q$8,OpsCashFlow!$I54:$FS54) -> 0 | R54: =SUMIF(OpsCashFlow!$I$9:$FS$9,R$8,OpsCashFlow!$I54:$FS54) -> 0 | S54: =SUMIF(OpsCashFlow!$I$9:$FS$9,S$8,OpsCashFlow!$I54:$FS54) -> 0 | T54: =SUMIF(OpsCashFlow!$I$9:$FS$9,T$8,OpsCashFlow!$I54:$FS54) -> 0 | U54: =SUMIF(OpsCashFlow!$I$9:$FS$9,U$8,OpsCashFlow!$I54:$FS54) -> 0 | V54: =SUMIF(OpsCashFlow!$I$9:$FS$9,V$8,OpsCashFlow!$I54:$FS54) -> 0 | W54: =SUMIF(OpsCashFlow!$I$9:$FS$9,W$8,OpsCashFlow!$I54:$FS54) -> 0 | X54: =SUMIF(OpsCashFlow!$I$9:$FS$9,X$8,OpsCashFlow!$I54:$FS54) -> 0 | Y54: =SUMIF(OpsCashFlow!$I$9:$FS$9,Y$8,OpsCashFlow!$I54:$FS54) -> 0 | Z54: =SUMIF(OpsCashFlow!$I$9:$FS$9,Z$8,OpsCashFlow!$I54:$FS54) -> 0 | AA54: =SUMIF(OpsCashFlow!$I$9:$FS$9,AA$8,OpsCashFlow!$I54:$FS54) -> 0 | AB54: =SUMIF(OpsCashFlow!$I$9:$FS$9,AB$8,OpsCashFlow!$I54:$FS54) -> 0 | AC54: =SUMIF(OpsCashFlow!$I$9:$FS$9,AC$8,OpsCashFlow!$I54:$FS54) -> 0 | AD54: =SUMIF(OpsCashFlow!$I$9:$FS$9,AD$8,OpsCashFlow!$I54:$FS54) -> 0 | AE54: =SUMIF(OpsCashFlow!$I$9:$FS$9,AE$8,OpsCashFlow!$I54:$FS54) -> 0 | AF54: =SUMIF(OpsCashFlow!$I$9:$FS$9,AF$8,OpsCashFlow!$I54:$FS54) -> 0 | AG54: =SUMIF(OpsCashFlow!$I$9:$FS$9,AG$8,OpsCashFlow!$I54:$FS54) -> 0 | AH54: =SUMIF(OpsCashFlow!$I$9:$FS$9,AH$8,OpsCashFlow!$I54:$FS54) -> 0 | AI54: =SUMIF(OpsCashFlow!$I$9:$FS$9,AI$8,OpsCashFlow!$I54:$FS54) -> 0 | AJ54: =SUMIF(OpsCashFlow!$I$9:$FS$9,AJ$8,OpsCashFlow!$I54:$FS54) -> 0 | AK54: =SUMIF(OpsCashFlow!$I$9:$FS$9,AK$8,OpsCashFlow!$I54:$FS54) -> 0 | AL54: =SUMIF(OpsCashFlow!$I$9:$FS$9,AL$8,OpsCashFlow!$I54:$FS54) -> 0 | AM54: =SUMIF(OpsCashFlow!$I$9:$FS$9,AM$8,OpsCashFlow!$I54:$FS54) -> 0 | AN54: =SUMIF(OpsCashFlow!$I$9:$FS$9,AN$8,OpsCashFlow!$I54:$FS54) -> 0 | AO54: =SUMIF(OpsCashFlow!$I$9:$FS$9,AO$8,OpsCashFlow!$I54:$FS54) -> 0 | AP54: =SUMIF(OpsCashFlow!$I$9:$FS$9,AP$8,OpsCashFlow!$I54:$FS54) -> 0 | AQ54: =SUMIF(OpsCashFlow!$I$9:$FS$9,AQ$8,OpsCashFlow!$I54:$FS54) -> 0 | AR54: =SUMIF(OpsCashFlow!$I$9:$FS$9,AR$8,OpsCashFlow!$I54:$FS54) -> 0 | AS54: =SUMIF(OpsCashFlow!$I$9:$FS$9,AS$8,OpsCashFlow!$I54:$FS54) -> 0 | AT54: =SUMIF(OpsCashFlow!$I$9:$FS$9,AT$8,OpsCashFlow!$I54:$FS54) -> 0 | AU54: =SUMIF(OpsCashFlow!$I$9:$FS$9,AU$8,OpsCashFlow!$I54:$FS54) -> 0 | AV54: =SUMIF(OpsCashFlow!$I$9:$FS$9,AV$8,OpsCashFlow!$I54:$FS54) -> 0
C55: =OpsCashFlow!C55 -> Cash Available For Equity | H55: =SUM(I55:AV55) -> 3931751.23 | I55: =SUMIF(OpsCashFlow!$I$9:$FS$9,I$8,OpsCashFlow!$I55:$FS55) -> 0 | J55: =SUMIF(OpsCashFlow!$I$9:$FS$9,J$8,OpsCashFlow!$I55:$FS55) -> 0 | K55: =SUMIF(OpsCashFlow!$I$9:$FS$9,K$8,OpsCashFlow!$I55:$FS55) -> 0 | L55: =SUMIF(OpsCashFlow!$I$9:$FS$9,L$8,OpsCashFlow!$I55:$FS55) -> 0 | M55: =SUMIF(OpsCashFlow!$I$9:$FS$9,M$8,OpsCashFlow!$I55:$FS55) -> 0 | N55: =SUMIF(OpsCashFlow!$I$9:$FS$9,N$8,OpsCashFlow!$I55:$FS55) -> 0 | O55: =SUMIF(OpsCashFlow!$I$9:$FS$9,O$8,OpsCashFlow!$I55:$FS55) -> 0 | P55: =SUMIF(OpsCashFlow!$I$9:$FS$9,P$8,OpsCashFlow!$I55:$FS55) -> 35965.66469 | Q55: =SUMIF(OpsCashFlow!$I$9:$FS$9,Q$8,OpsCashFlow!$I55:$FS55) -> 14026.3291 | R55: =SUMIF(OpsCashFlow!$I$9:$FS$9,R$8,OpsCashFlow!$I55:$FS55) -> 8676.021407 | S55: =SUMIF(OpsCashFlow!$I$9:$FS$9,S$8,OpsCashFlow!$I55:$FS55) -> 6287.630562 | T55: =SUMIF(OpsCashFlow!$I$9:$FS$9,T$8,OpsCashFlow!$I55:$FS55) -> 2631.419301 | U55: =SUMIF(OpsCashFlow!$I$9:$FS$9,U$8,OpsCashFlow!$I55:$FS55) -> 0 | V55: =SUMIF(OpsCashFlow!$I$9:$FS$9,V$8,OpsCashFlow!$I55:$FS55) -> 0 | W55: =SUMIF(OpsCashFlow!$I$9:$FS$9,W$8,OpsCashFlow!$I55:$FS55) -> 0 | X55: =SUMIF(OpsCashFlow!$I$9:$FS$9,X$8,OpsCashFlow!$I55:$FS55) -> 0 | Y55: =SUMIF(OpsCashFlow!$I$9:$FS$9,Y$8,OpsCashFlow!$I55:$FS55) -> 26312.33782 | Z55: =SUMIF(OpsCashFlow!$I$9:$FS$9,Z$8,OpsCashFlow!$I55:$FS55) -> 82742.77843 | AA55: =SUMIF(OpsCashFlow!$I$9:$FS$9,AA$8,OpsCashFlow!$I55:$FS55) -> 94749.04732 | AB55: =SUMIF(OpsCashFlow!$I$9:$FS$9,AB$8,OpsCashFlow!$I55:$FS55) -> 105662.0949 | AC55: =SUMIF(OpsCashFlow!$I$9:$FS$9,AC$8,OpsCashFlow!$I55:$FS55) -> 116038.3644 | AD55: =SUMIF(OpsCashFlow!$I$9:$FS$9,AD$8,OpsCashFlow!$I55:$FS55) -> 123814.8238 | AE55: =SUMIF(OpsCashFlow!$I$9:$FS$9,AE$8,OpsCashFlow!$I55:$FS55) -> 134172.5846 | AF55: =SUMIF(OpsCashFlow!$I$9:$FS$9,AF$8,OpsCashFlow!$I55:$FS55) -> 145402.1267 | AG55: =SUMIF(OpsCashFlow!$I$9:$FS$9,AG$8,OpsCashFlow!$I55:$FS55) -> 156356.3978 | AH55: =SUMIF(OpsCashFlow!$I$9:$FS$9,AH$8,OpsCashFlow!$I55:$FS55) -> 162627.2919 | AI55: =SUMIF(OpsCashFlow!$I$9:$FS$9,AI$8,OpsCashFlow!$I55:$FS55) -> 172277.8791 | AJ55: =SUMIF(OpsCashFlow!$I$9:$FS$9,AJ$8,OpsCashFlow!$I55:$FS55) -> 177747.6814 | AK55: =SUMIF(OpsCashFlow!$I$9:$FS$9,AK$8,OpsCashFlow!$I55:$FS55) -> 153639.9802 | AL55: =SUMIF(OpsCashFlow!$I$9:$FS$9,AL$8,OpsCashFlow!$I55:$FS55) -> 159619.1198 | AM55: =SUMIF(OpsCashFlow!$I$9:$FS$9,AM$8,OpsCashFlow!$I55:$FS55) -> 170556.6559 | AN55: =SUMIF(OpsCashFlow!$I$9:$FS$9,AN$8,OpsCashFlow!$I55:$FS55) -> 178934.9906 | AO55: =SUMIF(OpsCashFlow!$I$9:$FS$9,AO$8,OpsCashFlow!$I55:$FS55) -> 190980.975 | AP55: =SUMIF(OpsCashFlow!$I$9:$FS$9,AP$8,OpsCashFlow!$I55:$FS55) -> 197737.5479 | AQ55: =SUMIF(OpsCashFlow!$I$9:$FS$9,AQ$8,OpsCashFlow!$I55:$FS55) -> 203911.1124 | AR55: =SUMIF(OpsCashFlow!$I$9:$FS$9,AR$8,OpsCashFlow!$I55:$FS55) -> 212457.9955 | AS55: =SUMIF(OpsCashFlow!$I$9:$FS$9,AS$8,OpsCashFlow!$I55:$FS55) -> 225169.4545 | AT55: =SUMIF(OpsCashFlow!$I$9:$FS$9,AT$8,OpsCashFlow!$I55:$FS55) -> 237513.7007 | AU55: =SUMIF(OpsCashFlow!$I$9:$FS$9,AU$8,OpsCashFlow!$I55:$FS55) -> 244506.3038 | AV55: =SUMIF(OpsCashFlow!$I$9:$FS$9,AV$8,OpsCashFlow!$I55:$FS55) -> 191232.9209
C57: =OpsCashFlow!C57 -> Equity Cash Flows
C58: =OpsCashFlow!C58 -> Surplus Cash Flows | H58: =SUM(I58:AV58) -> 3931751.23 | I58: =SUMIF(OpsCashFlow!$I$9:$FS$9,I$8,OpsCashFlow!$I58:$FS58) -> 0 | J58: =SUMIF(OpsCashFlow!$I$9:$FS$9,J$8,OpsCashFlow!$I58:$FS58) -> 0 | K58: =SUMIF(OpsCashFlow!$I$9:$FS$9,K$8,OpsCashFlow!$I58:$FS58) -> 0 | L58: =SUMIF(OpsCashFlow!$I$9:$FS$9,L$8,OpsCashFlow!$I58:$FS58) -> 0 | M58: =SUMIF(OpsCashFlow!$I$9:$FS$9,M$8,OpsCashFlow!$I58:$FS58) -> 0 | N58: =SUMIF(OpsCashFlow!$I$9:$FS$9,N$8,OpsCashFlow!$I58:$FS58) -> 0 | O58: =SUMIF(OpsCashFlow!$I$9:$FS$9,O$8,OpsCashFlow!$I58:$FS58) -> 0 | P58: =SUMIF(OpsCashFlow!$I$9:$FS$9,P$8,OpsCashFlow!$I58:$FS58) -> 35965.66469 | Q58: =SUMIF(OpsCashFlow!$I$9:$FS$9,Q$8,OpsCashFlow!$I58:$FS58) -> 14026.3291 | R58: =SUMIF(OpsCashFlow!$I$9:$FS$9,R$8,OpsCashFlow!$I58:$FS58) -> 8676.021407 | S58: =SUMIF(OpsCashFlow!$I$9:$FS$9,S$8,OpsCashFlow!$I58:$FS58) -> 6287.630562 | T58: =SUMIF(OpsCashFlow!$I$9:$FS$9,T$8,OpsCashFlow!$I58:$FS58) -> 2631.419301 | U58: =SUMIF(OpsCashFlow!$I$9:$FS$9,U$8,OpsCashFlow!$I58:$FS58) -> 0 | V58: =SUMIF(OpsCashFlow!$I$9:$FS$9,V$8,OpsCashFlow!$I58:$FS58) -> 0 | W58: =SUMIF(OpsCashFlow!$I$9:$FS$9,W$8,OpsCashFlow!$I58:$FS58) -> 0 | X58: =SUMIF(OpsCashFlow!$I$9:$FS$9,X$8,OpsCashFlow!$I58:$FS58) -> 0 | Y58: =SUMIF(OpsCashFlow!$I$9:$FS$9,Y$8,OpsCashFlow!$I58:$FS58) -> 26312.33782 | Z58: =SUMIF(OpsCashFlow!$I$9:$FS$9,Z$8,OpsCashFlow!$I58:$FS58) -> 82742.77843 | AA58: =SUMIF(OpsCashFlow!$I$9:$FS$9,AA$8,OpsCashFlow!$I58:$FS58) -> 94749.04732 | AB58: =SUMIF(OpsCashFlow!$I$9:$FS$9,AB$8,OpsCashFlow!$I58:$FS58) -> 105662.0949 | AC58: =SUMIF(OpsCashFlow!$I$9:$FS$9,AC$8,OpsCashFlow!$I58:$FS58) -> 116038.3644 | AD58: =SUMIF(OpsCashFlow!$I$9:$FS$9,AD$8,OpsCashFlow!$I58:$FS58) -> 123814.8238 | AE58: =SUMIF(OpsCashFlow!$I$9:$FS$9,AE$8,OpsCashFlow!$I58:$FS58) -> 134172.5846 | AF58: =SUMIF(OpsCashFlow!$I$9:$FS$9,AF$8,OpsCashFlow!$I58:$FS58) -> 145402.1267 | AG58: =SUMIF(OpsCashFlow!$I$9:$FS$9,AG$8,OpsCashFlow!$I58:$FS58) -> 156356.3978 | AH58: =SUMIF(OpsCashFlow!$I$9:$FS$9,AH$8,OpsCashFlow!$I58:$FS58) -> 162627.2919 | AI58: =SUMIF(OpsCashFlow!$I$9:$FS$9,AI$8,OpsCashFlow!$I58:$FS58) -> 172277.8791 | AJ58: =SUMIF(OpsCashFlow!$I$9:$FS$9,AJ$8,OpsCashFlow!$I58:$FS58) -> 177747.6814 | AK58: =SUMIF(OpsCashFlow!$I$9:$FS$9,AK$8,OpsCashFlow!$I58:$FS58) -> 153639.9802 | AL58: =SUMIF(OpsCashFlow!$I$9:$FS$9,AL$8,OpsCashFlow!$I58:$FS58) -> 159619.1198 | AM58: =SUMIF(OpsCashFlow!$I$9:$FS$9,AM$8,OpsCashFlow!$I58:$FS58) -> 170556.6559 | AN58: =SUMIF(OpsCashFlow!$I$9:$FS$9,AN$8,OpsCashFlow!$I58:$FS58) -> 178934.9906 | AO58: =SUMIF(OpsCashFlow!$I$9:$FS$9,AO$8,OpsCashFlow!$I58:$FS58) -> 190980.975 | AP58: =SUMIF(OpsCashFlow!$I$9:$FS$9,AP$8,OpsCashFlow!$I58:$FS58) -> 197737.5479 | AQ58: =SUMIF(OpsCashFlow!$I$9:$FS$9,AQ$8,OpsCashFlow!$I58:$FS58) -> 203911.1124 | AR58: =SUMIF(OpsCashFlow!$I$9:$FS$9,AR$8,OpsCashFlow!$I58:$FS58) -> 212457.9955 | AS58: =SUMIF(OpsCashFlow!$I$9:$FS$9,AS$8,OpsCashFlow!$I58:$FS58) -> 225169.4545 | AT58: =SUMIF(OpsCashFlow!$I$9:$FS$9,AT$8,OpsCashFlow!$I58:$FS58) -> 237513.7007 | AU58: =SUMIF(OpsCashFlow!$I$9:$FS$9,AU$8,OpsCashFlow!$I58:$FS58) -> 244506.3038 | AV58: =SUMIF(OpsCashFlow!$I$9:$FS$9,AV$8,OpsCashFlow!$I58:$FS58) -> 191232.9209
C59: =OpsCashFlow!C59 -> less: Deposit to Reserve Account | H59: 0 | I59: =SUMIF(OpsCashFlow!$I$9:$FS$9,I$8,OpsCashFlow!$I59:$FS59) -> 0 | J59: =SUMIF(OpsCashFlow!$I$9:$FS$9,J$8,OpsCashFlow!$I59:$FS59) -> 0 | K59: =SUMIF(OpsCashFlow!$I$9:$FS$9,K$8,OpsCashFlow!$I59:$FS59) -> 0 | L59: =SUMIF(OpsCashFlow!$I$9:$FS$9,L$8,OpsCashFlow!$I59:$FS59) -> 0 | M59: =SUMIF(OpsCashFlow!$I$9:$FS$9,M$8,OpsCashFlow!$I59:$FS59) -> 0 | N59: =SUMIF(OpsCashFlow!$I$9:$FS$9,N$8,OpsCashFlow!$I59:$FS59) -> 0 | O59: =SUMIF(OpsCashFlow!$I$9:$FS$9,O$8,OpsCashFlow!$I59:$FS59) -> 0 | P59: =SUMIF(OpsCashFlow!$I$9:$FS$9,P$8,OpsCashFlow!$I59:$FS59) -> 0 | Q59: =SUMIF(OpsCashFlow!$I$9:$FS$9,Q$8,OpsCashFlow!$I59:$FS59) -> 0 | R59: =SUMIF(OpsCashFlow!$I$9:$FS$9,R$8,OpsCashFlow!$I59:$FS59) -> 0 | S59: =SUMIF(OpsCashFlow!$I$9:$FS$9,S$8,OpsCashFlow!$I59:$FS59) -> 0 | T59: =SUMIF(OpsCashFlow!$I$9:$FS$9,T$8,OpsCashFlow!$I59:$FS59) -> 0 | U59: =SUMIF(OpsCashFlow!$I$9:$FS$9,U$8,OpsCashFlow!$I59:$FS59) -> 0 | V59: =SUMIF(OpsCashFlow!$I$9:$FS$9,V$8,OpsCashFlow!$I59:$FS59) -> 0 | W59: =SUMIF(OpsCashFlow!$I$9:$FS$9,W$8,OpsCashFlow!$I59:$FS59) -> 0 | X59: =SUMIF(OpsCashFlow!$I$9:$FS$9,X$8,OpsCashFlow!$I59:$FS59) -> 0 | Y59: =SUMIF(OpsCashFlow!$I$9:$FS$9,Y$8,OpsCashFlow!$I59:$FS59) -> 0 | Z59: =SUMIF(OpsCashFlow!$I$9:$FS$9,Z$8,OpsCashFlow!$I59:$FS59) -> 0 | AA59: =SUMIF(OpsCashFlow!$I$9:$FS$9,AA$8,OpsCashFlow!$I59:$FS59) -> 0 | AB59: =SUMIF(OpsCashFlow!$I$9:$FS$9,AB$8,OpsCashFlow!$I59:$FS59) -> 0 | AC59: =SUMIF(OpsCashFlow!$I$9:$FS$9,AC$8,OpsCashFlow!$I59:$FS59) -> 0 | AD59: =SUMIF(OpsCashFlow!$I$9:$FS$9,AD$8,OpsCashFlow!$I59:$FS59) -> 0 | AE59: =SUMIF(OpsCashFlow!$I$9:$FS$9,AE$8,OpsCashFlow!$I59:$FS59) -> 0 | AF59: =SUMIF(OpsCashFlow!$I$9:$FS$9,AF$8,OpsCashFlow!$I59:$FS59) -> 0 | AG59: =SUMIF(OpsCashFlow!$I$9:$FS$9,AG$8,OpsCashFlow!$I59:$FS59) -> 0 | AH59: =SUMIF(OpsCashFlow!$I$9:$FS$9,AH$8,OpsCashFlow!$I59:$FS59) -> 0 | AI59: =SUMIF(OpsCashFlow!$I$9:$FS$9,AI$8,OpsCashFlow!$I59:$FS59) -> 0 | AJ59: =SUMIF(OpsCashFlow!$I$9:$FS$9,AJ$8,OpsCashFlow!$I59:$FS59) -> 0 | AK59: =SUMIF(OpsCashFlow!$I$9:$FS$9,AK$8,OpsCashFlow!$I59:$FS59) -> 0 | AL59: =SUMIF(OpsCashFlow!$I$9:$FS$9,AL$8,OpsCashFlow!$I59:$FS59) -> 0 | AM59: =SUMIF(OpsCashFlow!$I$9:$FS$9,AM$8,OpsCashFlow!$I59:$FS59) -> 0 | AN59: =SUMIF(OpsCashFlow!$I$9:$FS$9,AN$8,OpsCashFlow!$I59:$FS59) -> 0 | AO59: =SUMIF(OpsCashFlow!$I$9:$FS$9,AO$8,OpsCashFlow!$I59:$FS59) -> 0 | AP59: =SUMIF(OpsCashFlow!$I$9:$FS$9,AP$8,OpsCashFlow!$I59:$FS59) -> 0 | AQ59: =SUMIF(OpsCashFlow!$I$9:$FS$9,AQ$8,OpsCashFlow!$I59:$FS59) -> 0 | AR59: =SUMIF(OpsCashFlow!$I$9:$FS$9,AR$8,OpsCashFlow!$I59:$FS59) -> 0 | AS59: =SUMIF(OpsCashFlow!$I$9:$FS$9,AS$8,OpsCashFlow!$I59:$FS59) -> 0 | AT59: =SUMIF(OpsCashFlow!$I$9:$FS$9,AT$8,OpsCashFlow!$I59:$FS59) -> 0 | AU59: =SUMIF(OpsCashFlow!$I$9:$FS$9,AU$8,OpsCashFlow!$I59:$FS59) -> 0 | AV59: =SUMIF(OpsCashFlow!$I$9:$FS$9,AV$8,OpsCashFlow!$I59:$FS59) -> 0
C60: =OpsCashFlow!C60 -> less: Cash to Senior Debt Lock up Account | H60: 0 | I60: =SUMIF(OpsCashFlow!$I$9:$FS$9,I$8,OpsCashFlow!$I60:$FS60) -> 0 | J60: =SUMIF(OpsCashFlow!$I$9:$FS$9,J$8,OpsCashFlow!$I60:$FS60) -> 0 | K60: =SUMIF(OpsCashFlow!$I$9:$FS$9,K$8,OpsCashFlow!$I60:$FS60) -> 0 | L60: =SUMIF(OpsCashFlow!$I$9:$FS$9,L$8,OpsCashFlow!$I60:$FS60) -> 0 | M60: =SUMIF(OpsCashFlow!$I$9:$FS$9,M$8,OpsCashFlow!$I60:$FS60) -> 0 | N60: =SUMIF(OpsCashFlow!$I$9:$FS$9,N$8,OpsCashFlow!$I60:$FS60) -> 0 | O60: =SUMIF(OpsCashFlow!$I$9:$FS$9,O$8,OpsCashFlow!$I60:$FS60) -> 0 | P60: =SUMIF(OpsCashFlow!$I$9:$FS$9,P$8,OpsCashFlow!$I60:$FS60) -> 0 | Q60: =SUMIF(OpsCashFlow!$I$9:$FS$9,Q$8,OpsCashFlow!$I60:$FS60) -> 0 | R60: =SUMIF(OpsCashFlow!$I$9:$FS$9,R$8,OpsCashFlow!$I60:$FS60) -> 0 | S60: =SUMIF(OpsCashFlow!$I$9:$FS$9,S$8,OpsCashFlow!$I60:$FS60) -> 0 | T60: =SUMIF(OpsCashFlow!$I$9:$FS$9,T$8,OpsCashFlow!$I60:$FS60) -> 0 | U60: =SUMIF(OpsCashFlow!$I$9:$FS$9,U$8,OpsCashFlow!$I60:$FS60) -> 0 | V60: =SUMIF(OpsCashFlow!$I$9:$FS$9,V$8,OpsCashFlow!$I60:$FS60) -> 0 | W60: =SUMIF(OpsCashFlow!$I$9:$FS$9,W$8,OpsCashFlow!$I60:$FS60) -> 0 | X60: =SUMIF(OpsCashFlow!$I$9:$FS$9,X$8,OpsCashFlow!$I60:$FS60) -> 0 | Y60: =SUMIF(OpsCashFlow!$I$9:$FS$9,Y$8,OpsCashFlow!$I60:$FS60) -> 0 | Z60: =SUMIF(OpsCashFlow!$I$9:$FS$9,Z$8,OpsCashFlow!$I60:$FS60) -> 0 | AA60: =SUMIF(OpsCashFlow!$I$9:$FS$9,AA$8,OpsCashFlow!$I60:$FS60) -> 0 | AB60: =SUMIF(OpsCashFlow!$I$9:$FS$9,AB$8,OpsCashFlow!$I60:$FS60) -> 0 | AC60: =SUMIF(OpsCashFlow!$I$9:$FS$9,AC$8,OpsCashFlow!$I60:$FS60) -> 0 | AD60: =SUMIF(OpsCashFlow!$I$9:$FS$9,AD$8,OpsCashFlow!$I60:$FS60) -> 0 | AE60: =SUMIF(OpsCashFlow!$I$9:$FS$9,AE$8,OpsCashFlow!$I60:$FS60) -> 0 | AF60: =SUMIF(OpsCashFlow!$I$9:$FS$9,AF$8,OpsCashFlow!$I60:$FS60) -> 0 | AG60: =SUMIF(OpsCashFlow!$I$9:$FS$9,AG$8,OpsCashFlow!$I60:$FS60) -> 0 | AH60: =SUMIF(OpsCashFlow!$I$9:$FS$9,AH$8,OpsCashFlow!$I60:$FS60) -> 0 | AI60: =SUMIF(OpsCashFlow!$I$9:$FS$9,AI$8,OpsCashFlow!$I60:$FS60) -> 0 | AJ60: =SUMIF(OpsCashFlow!$I$9:$FS$9,AJ$8,OpsCashFlow!$I60:$FS60) -> 0 | AK60: =SUMIF(OpsCashFlow!$I$9:$FS$9,AK$8,OpsCashFlow!$I60:$FS60) -> 0 | AL60: =SUMIF(OpsCashFlow!$I$9:$FS$9,AL$8,OpsCashFlow!$I60:$FS60) -> 0 | AM60: =SUMIF(OpsCashFlow!$I$9:$FS$9,AM$8,OpsCashFlow!$I60:$FS60) -> 0 | AN60: =SUMIF(OpsCashFlow!$I$9:$FS$9,AN$8,OpsCashFlow!$I60:$FS60) -> 0 | AO60: =SUMIF(OpsCashFlow!$I$9:$FS$9,AO$8,OpsCashFlow!$I60:$FS60) -> 0 | AP60: =SUMIF(OpsCashFlow!$I$9:$FS$9,AP$8,OpsCashFlow!$I60:$FS60) -> 0 | AQ60: =SUMIF(OpsCashFlow!$I$9:$FS$9,AQ$8,OpsCashFlow!$I60:$FS60) -> 0 | AR60: =SUMIF(OpsCashFlow!$I$9:$FS$9,AR$8,OpsCashFlow!$I60:$FS60) -> 0 | AS60: =SUMIF(OpsCashFlow!$I$9:$FS$9,AS$8,OpsCashFlow!$I60:$FS60) -> 0 | AT60: =SUMIF(OpsCashFlow!$I$9:$FS$9,AT$8,OpsCashFlow!$I60:$FS60) -> 0 | AU60: =SUMIF(OpsCashFlow!$I$9:$FS$9,AU$8,OpsCashFlow!$I60:$FS60) -> 0 | AV60: =SUMIF(OpsCashFlow!$I$9:$FS$9,AV$8,OpsCashFlow!$I60:$FS60) -> 0
C61: =OpsCashFlow!C61 -> add: Release from Cash to Senior Debt Lock up Account | H61: 0 | I61: =SUMIF(OpsCashFlow!$I$9:$FS$9,I$8,OpsCashFlow!$I61:$FS61) -> 0 | J61: =SUMIF(OpsCashFlow!$I$9:$FS$9,J$8,OpsCashFlow!$I61:$FS61) -> 0 | K61: =SUMIF(OpsCashFlow!$I$9:$FS$9,K$8,OpsCashFlow!$I61:$FS61) -> 0 | L61: =SUMIF(OpsCashFlow!$I$9:$FS$9,L$8,OpsCashFlow!$I61:$FS61) -> 0 | M61: =SUMIF(OpsCashFlow!$I$9:$FS$9,M$8,OpsCashFlow!$I61:$FS61) -> 0 | N61: =SUMIF(OpsCashFlow!$I$9:$FS$9,N$8,OpsCashFlow!$I61:$FS61) -> 0 | O61: =SUMIF(OpsCashFlow!$I$9:$FS$9,O$8,OpsCashFlow!$I61:$FS61) -> 0 | P61: =SUMIF(OpsCashFlow!$I$9:$FS$9,P$8,OpsCashFlow!$I61:$FS61) -> 0 | Q61: =SUMIF(OpsCashFlow!$I$9:$FS$9,Q$8,OpsCashFlow!$I61:$FS61) -> 0 | R61: =SUMIF(OpsCashFlow!$I$9:$FS$9,R$8,OpsCashFlow!$I61:$FS61) -> 0 | S61: =SUMIF(OpsCashFlow!$I$9:$FS$9,S$8,OpsCashFlow!$I61:$FS61) -> 0 | T61: =SUMIF(OpsCashFlow!$I$9:$FS$9,T$8,OpsCashFlow!$I61:$FS61) -> 0 | U61: =SUMIF(OpsCashFlow!$I$9:$FS$9,U$8,OpsCashFlow!$I61:$FS61) -> 0 | V61: =SUMIF(OpsCashFlow!$I$9:$FS$9,V$8,OpsCashFlow!$I61:$FS61) -> 0 | W61: =SUMIF(OpsCashFlow!$I$9:$FS$9,W$8,OpsCashFlow!$I61:$FS61) -> 0 | X61: =SUMIF(OpsCashFlow!$I$9:$FS$9,X$8,OpsCashFlow!$I61:$FS61) -> 0 | Y61: =SUMIF(OpsCashFlow!$I$9:$FS$9,Y$8,OpsCashFlow!$I61:$FS61) -> 0 | Z61: =SUMIF(OpsCashFlow!$I$9:$FS$9,Z$8,OpsCashFlow!$I61:$FS61) -> 0 | AA61: =SUMIF(OpsCashFlow!$I$9:$FS$9,AA$8,OpsCashFlow!$I61:$FS61) -> 0 | AB61: =SUMIF(OpsCashFlow!$I$9:$FS$9,AB$8,OpsCashFlow!$I61:$FS61) -> 0 | AC61: =SUMIF(OpsCashFlow!$I$9:$FS$9,AC$8,OpsCashFlow!$I61:$FS61) -> 0 | AD61: =SUMIF(OpsCashFlow!$I$9:$FS$9,AD$8,OpsCashFlow!$I61:$FS61) -> 0 | AE61: =SUMIF(OpsCashFlow!$I$9:$FS$9,AE$8,OpsCashFlow!$I61:$FS61) -> 0 | AF61: =SUMIF(OpsCashFlow!$I$9:$FS$9,AF$8,OpsCashFlow!$I61:$FS61) -> 0 | AG61: =SUMIF(OpsCashFlow!$I$9:$FS$9,AG$8,OpsCashFlow!$I61:$FS61) -> 0 | AH61: =SUMIF(OpsCashFlow!$I$9:$FS$9,AH$8,OpsCashFlow!$I61:$FS61) -> 0 | AI61: =SUMIF(OpsCashFlow!$I$9:$FS$9,AI$8,OpsCashFlow!$I61:$FS61) -> 0 | AJ61: =SUMIF(OpsCashFlow!$I$9:$FS$9,AJ$8,OpsCashFlow!$I61:$FS61) -> 0 | AK61: =SUMIF(OpsCashFlow!$I$9:$FS$9,AK$8,OpsCashFlow!$I61:$FS61) -> 0 | AL61: =SUMIF(OpsCashFlow!$I$9:$FS$9,AL$8,OpsCashFlow!$I61:$FS61) -> 0 | AM61: =SUMIF(OpsCashFlow!$I$9:$FS$9,AM$8,OpsCashFlow!$I61:$FS61) -> 0 | AN61: =SUMIF(OpsCashFlow!$I$9:$FS$9,AN$8,OpsCashFlow!$I61:$FS61) -> 0 | AO61: =SUMIF(OpsCashFlow!$I$9:$FS$9,AO$8,OpsCashFlow!$I61:$FS61) -> 0 | AP61: =SUMIF(OpsCashFlow!$I$9:$FS$9,AP$8,OpsCashFlow!$I61:$FS61) -> 0 | AQ61: =SUMIF(OpsCashFlow!$I$9:$FS$9,AQ$8,OpsCashFlow!$I61:$FS61) -> 0 | AR61: =SUMIF(OpsCashFlow!$I$9:$FS$9,AR$8,OpsCashFlow!$I61:$FS61) -> 0 | AS61: =SUMIF(OpsCashFlow!$I$9:$FS$9,AS$8,OpsCashFlow!$I61:$FS61) -> 0 | AT61: =SUMIF(OpsCashFlow!$I$9:$FS$9,AT$8,OpsCashFlow!$I61:$FS61) -> 0 | AU61: =SUMIF(OpsCashFlow!$I$9:$FS$9,AU$8,OpsCashFlow!$I61:$FS61) -> 0 | AV61: =SUMIF(OpsCashFlow!$I$9:$FS$9,AV$8,OpsCashFlow!$I61:$FS61) -> 0
C62: =OpsCashFlow!C62 -> Cash to Shared Distribution Account | H62: 3931751.23 | I62: =SUMIF(OpsCashFlow!$I$9:$FS$9,I$8,OpsCashFlow!$I62:$FS62) -> 0 | J62: =SUMIF(OpsCashFlow!$I$9:$FS$9,J$8,OpsCashFlow!$I62:$FS62) -> 0 | K62: =SUMIF(OpsCashFlow!$I$9:$FS$9,K$8,OpsCashFlow!$I62:$FS62) -> 0 | L62: =SUMIF(OpsCashFlow!$I$9:$FS$9,L$8,OpsCashFlow!$I62:$FS62) -> 0 | M62: =SUMIF(OpsCashFlow!$I$9:$FS$9,M$8,OpsCashFlow!$I62:$FS62) -> 0 | N62: =SUMIF(OpsCashFlow!$I$9:$FS$9,N$8,OpsCashFlow!$I62:$FS62) -> 0 | O62: =SUMIF(OpsCashFlow!$I$9:$FS$9,O$8,OpsCashFlow!$I62:$FS62) -> 0 | P62: =SUMIF(OpsCashFlow!$I$9:$FS$9,P$8,OpsCashFlow!$I62:$FS62) -> 35965.66469 | Q62: =SUMIF(OpsCashFlow!$I$9:$FS$9,Q$8,OpsCashFlow!$I62:$FS62) -> 14026.3291 | R62: =SUMIF(OpsCashFlow!$I$9:$FS$9,R$8,OpsCashFlow!$I62:$FS62) -> 8676.021407 | S62: =SUMIF(OpsCashFlow!$I$9:$FS$9,S$8,OpsCashFlow!$I62:$FS62) -> 6287.630562 | T62: =SUMIF(OpsCashFlow!$I$9:$FS$9,T$8,OpsCashFlow!$I62:$FS62) -> 2631.419301 | U62: =SUMIF(OpsCashFlow!$I$9:$FS$9,U$8,OpsCashFlow!$I62:$FS62) -> 0 | V62: =SUMIF(OpsCashFlow!$I$9:$FS$9,V$8,OpsCashFlow!$I62:$FS62) -> 0 | W62: =SUMIF(OpsCashFlow!$I$9:$FS$9,W$8,OpsCashFlow!$I62:$FS62) -> 0 | X62: =SUMIF(OpsCashFlow!$I$9:$FS$9,X$8,OpsCashFlow!$I62:$FS62) -> 0 | Y62: =SUMIF(OpsCashFlow!$I$9:$FS$9,Y$8,OpsCashFlow!$I62:$FS62) -> 26312.33782 | Z62: =SUMIF(OpsCashFlow!$I$9:$FS$9,Z$8,OpsCashFlow!$I62:$FS62) -> 82742.77843 | AA62: =SUMIF(OpsCashFlow!$I$9:$FS$9,AA$8,OpsCashFlow!$I62:$FS62) -> 94749.04732 | AB62: =SUMIF(OpsCashFlow!$I$9:$FS$9,AB$8,OpsCashFlow!$I62:$FS62) -> 105662.0949 | AC62: =SUMIF(OpsCashFlow!$I$9:$FS$9,AC$8,OpsCashFlow!$I62:$FS62) -> 116038.3644 | AD62: =SUMIF(OpsCashFlow!$I$9:$FS$9,AD$8,OpsCashFlow!$I62:$FS62) -> 123814.8238 | AE62: =SUMIF(OpsCashFlow!$I$9:$FS$9,AE$8,OpsCashFlow!$I62:$FS62) -> 134172.5846 | AF62: =SUMIF(OpsCashFlow!$I$9:$FS$9,AF$8,OpsCashFlow!$I62:$FS62) -> 145402.1267 | AG62: =SUMIF(OpsCashFlow!$I$9:$FS$9,AG$8,OpsCashFlow!$I62:$FS62) -> 156356.3978 | AH62: =SUMIF(OpsCashFlow!$I$9:$FS$9,AH$8,OpsCashFlow!$I62:$FS62) -> 162627.2919 | AI62: =SUMIF(OpsCashFlow!$I$9:$FS$9,AI$8,OpsCashFlow!$I62:$FS62) -> 172277.8791 | AJ62: =SUMIF(OpsCashFlow!$I$9:$FS$9,AJ$8,OpsCashFlow!$I62:$FS62) -> 177747.6814 | AK62: =SUMIF(OpsCashFlow!$I$9:$FS$9,AK$8,OpsCashFlow!$I62:$FS62) -> 153639.9802 | AL62: =SUMIF(OpsCashFlow!$I$9:$FS$9,AL$8,OpsCashFlow!$I62:$FS62) -> 159619.1198 | AM62: =SUMIF(OpsCashFlow!$I$9:$FS$9,AM$8,OpsCashFlow!$I62:$FS62) -> 170556.6559 | AN62: =SUMIF(OpsCashFlow!$I$9:$FS$9,AN$8,OpsCashFlow!$I62:$FS62) -> 178934.9906 | AO62: =SUMIF(OpsCashFlow!$I$9:$FS$9,AO$8,OpsCashFlow!$I62:$FS62) -> 190980.975 | AP62: =SUMIF(OpsCashFlow!$I$9:$FS$9,AP$8,OpsCashFlow!$I62:$FS62) -> 197737.5479 | AQ62: =SUMIF(OpsCashFlow!$I$9:$FS$9,AQ$8,OpsCashFlow!$I62:$FS62) -> 203911.1124 | AR62: =SUMIF(OpsCashFlow!$I$9:$FS$9,AR$8,OpsCashFlow!$I62:$FS62) -> 212457.9955 | AS62: =SUMIF(OpsCashFlow!$I$9:$FS$9,AS$8,OpsCashFlow!$I62:$FS62) -> 225169.4545 | AT62: =SUMIF(OpsCashFlow!$I$9:$FS$9,AT$8,OpsCashFlow!$I62:$FS62) -> 237513.7007 | AU62: =SUMIF(OpsCashFlow!$I$9:$FS$9,AU$8,OpsCashFlow!$I62:$FS62) -> 244506.3038 | AV62: =SUMIF(OpsCashFlow!$I$9:$FS$9,AV$8,OpsCashFlow!$I62:$FS62) -> 191232.9209
C63: =OpsCashFlow!C63 -> less: Cash to TIFIA Lock up Account | H63: 0 | I63: =SUMIF(OpsCashFlow!$I$9:$FS$9,I$8,OpsCashFlow!$I63:$FS63) -> 0 | J63: =SUMIF(OpsCashFlow!$I$9:$FS$9,J$8,OpsCashFlow!$I63:$FS63) -> 0 | K63: =SUMIF(OpsCashFlow!$I$9:$FS$9,K$8,OpsCashFlow!$I63:$FS63) -> 0 | L63: =SUMIF(OpsCashFlow!$I$9:$FS$9,L$8,OpsCashFlow!$I63:$FS63) -> 0 | M63: =SUMIF(OpsCashFlow!$I$9:$FS$9,M$8,OpsCashFlow!$I63:$FS63) -> 0 | N63: =SUMIF(OpsCashFlow!$I$9:$FS$9,N$8,OpsCashFlow!$I63:$FS63) -> 0 | O63: =SUMIF(OpsCashFlow!$I$9:$FS$9,O$8,OpsCashFlow!$I63:$FS63) -> 0 | P63: =SUMIF(OpsCashFlow!$I$9:$FS$9,P$8,OpsCashFlow!$I63:$FS63) -> 0 | Q63: =SUMIF(OpsCashFlow!$I$9:$FS$9,Q$8,OpsCashFlow!$I63:$FS63) -> 0 | R63: =SUMIF(OpsCashFlow!$I$9:$FS$9,R$8,OpsCashFlow!$I63:$FS63) -> 0 | S63: =SUMIF(OpsCashFlow!$I$9:$FS$9,S$8,OpsCashFlow!$I63:$FS63) -> 0 | T63: =SUMIF(OpsCashFlow!$I$9:$FS$9,T$8,OpsCashFlow!$I63:$FS63) -> 0 | U63: =SUMIF(OpsCashFlow!$I$9:$FS$9,U$8,OpsCashFlow!$I63:$FS63) -> 0 | V63: =SUMIF(OpsCashFlow!$I$9:$FS$9,V$8,OpsCashFlow!$I63:$FS63) -> 0 | W63: =SUMIF(OpsCashFlow!$I$9:$FS$9,W$8,OpsCashFlow!$I63:$FS63) -> 0 | X63: =SUMIF(OpsCashFlow!$I$9:$FS$9,X$8,OpsCashFlow!$I63:$FS63) -> 0 | Y63: =SUMIF(OpsCashFlow!$I$9:$FS$9,Y$8,OpsCashFlow!$I63:$FS63) -> 0 | Z63: =SUMIF(OpsCashFlow!$I$9:$FS$9,Z$8,OpsCashFlow!$I63:$FS63) -> 0 | AA63: =SUMIF(OpsCashFlow!$I$9:$FS$9,AA$8,OpsCashFlow!$I63:$FS63) -> 0 | AB63: =SUMIF(OpsCashFlow!$I$9:$FS$9,AB$8,OpsCashFlow!$I63:$FS63) -> 0 | AC63: =SUMIF(OpsCashFlow!$I$9:$FS$9,AC$8,OpsCashFlow!$I63:$FS63) -> 0 | AD63: =SUMIF(OpsCashFlow!$I$9:$FS$9,AD$8,OpsCashFlow!$I63:$FS63) -> 0 | AE63: =SUMIF(OpsCashFlow!$I$9:$FS$9,AE$8,OpsCashFlow!$I63:$FS63) -> 0 | AF63: =SUMIF(OpsCashFlow!$I$9:$FS$9,AF$8,OpsCashFlow!$I63:$FS63) -> 0 | AG63: =SUMIF(OpsCashFlow!$I$9:$FS$9,AG$8,OpsCashFlow!$I63:$FS63) -> 0 | AH63: =SUMIF(OpsCashFlow!$I$9:$FS$9,AH$8,OpsCashFlow!$I63:$FS63) -> 0 | AI63: =SUMIF(OpsCashFlow!$I$9:$FS$9,AI$8,OpsCashFlow!$I63:$FS63) -> 0 | AJ63: =SUMIF(OpsCashFlow!$I$9:$FS$9,AJ$8,OpsCashFlow!$I63:$FS63) -> 0 | AK63: =SUMIF(OpsCashFlow!$I$9:$FS$9,AK$8,OpsCashFlow!$I63:$FS63) -> 0 | AL63: =SUMIF(OpsCashFlow!$I$9:$FS$9,AL$8,OpsCashFlow!$I63:$FS63) -> 0 | AM63: =SUMIF(OpsCashFlow!$I$9:$FS$9,AM$8,OpsCashFlow!$I63:$FS63) -> 0 | AN63: =SUMIF(OpsCashFlow!$I$9:$FS$9,AN$8,OpsCashFlow!$I63:$FS63) -> 0 | AO63: =SUMIF(OpsCashFlow!$I$9:$FS$9,AO$8,OpsCashFlow!$I63:$FS63) -> 0 | AP63: =SUMIF(OpsCashFlow!$I$9:$FS$9,AP$8,OpsCashFlow!$I63:$FS63) -> 0 | AQ63: =SUMIF(OpsCashFlow!$I$9:$FS$9,AQ$8,OpsCashFlow!$I63:$FS63) -> 0 | AR63: =SUMIF(OpsCashFlow!$I$9:$FS$9,AR$8,OpsCashFlow!$I63:$FS63) -> 0 | AS63: =SUMIF(OpsCashFlow!$I$9:$FS$9,AS$8,OpsCashFlow!$I63:$FS63) -> 0 | AT63: =SUMIF(OpsCashFlow!$I$9:$FS$9,AT$8,OpsCashFlow!$I63:$FS63) -> 0 | AU63: =SUMIF(OpsCashFlow!$I$9:$FS$9,AU$8,OpsCashFlow!$I63:$FS63) -> 0 | AV63: =SUMIF(OpsCashFlow!$I$9:$FS$9,AV$8,OpsCashFlow!$I63:$FS63) -> 0
C64: =OpsCashFlow!C64 -> add: Release from Cash to TIFIA Lock up Account | H64: 0 | I64: =SUMIF(OpsCashFlow!$I$9:$FS$9,I$8,OpsCashFlow!$I64:$FS64) -> 0 | J64: =SUMIF(OpsCashFlow!$I$9:$FS$9,J$8,OpsCashFlow!$I64:$FS64) -> 0 | K64: =SUMIF(OpsCashFlow!$I$9:$FS$9,K$8,OpsCashFlow!$I64:$FS64) -> 0 | L64: =SUMIF(OpsCashFlow!$I$9:$FS$9,L$8,OpsCashFlow!$I64:$FS64) -> 0 | M64: =SUMIF(OpsCashFlow!$I$9:$FS$9,M$8,OpsCashFlow!$I64:$FS64) -> 0 | N64: =SUMIF(OpsCashFlow!$I$9:$FS$9,N$8,OpsCashFlow!$I64:$FS64) -> 0 | O64: =SUMIF(OpsCashFlow!$I$9:$FS$9,O$8,OpsCashFlow!$I64:$FS64) -> 0 | P64: =SUMIF(OpsCashFlow!$I$9:$FS$9,P$8,OpsCashFlow!$I64:$FS64) -> 0 | Q64: =SUMIF(OpsCashFlow!$I$9:$FS$9,Q$8,OpsCashFlow!$I64:$FS64) -> 0 | R64: =SUMIF(OpsCashFlow!$I$9:$FS$9,R$8,OpsCashFlow!$I64:$FS64) -> 0 | S64: =SUMIF(OpsCashFlow!$I$9:$FS$9,S$8,OpsCashFlow!$I64:$FS64) -> 0 | T64: =SUMIF(OpsCashFlow!$I$9:$FS$9,T$8,OpsCashFlow!$I64:$FS64) -> 0 | U64: =SUMIF(OpsCashFlow!$I$9:$FS$9,U$8,OpsCashFlow!$I64:$FS64) -> 0 | V64: =SUMIF(OpsCashFlow!$I$9:$FS$9,V$8,OpsCashFlow!$I64:$FS64) -> 0 | W64: =SUMIF(OpsCashFlow!$I$9:$FS$9,W$8,OpsCashFlow!$I64:$FS64) -> 0 | X64: =SUMIF(OpsCashFlow!$I$9:$FS$9,X$8,OpsCashFlow!$I64:$FS64) -> 0 | Y64: =SUMIF(OpsCashFlow!$I$9:$FS$9,Y$8,OpsCashFlow!$I64:$FS64) -> 0 | Z64: =SUMIF(OpsCashFlow!$I$9:$FS$9,Z$8,OpsCashFlow!$I64:$FS64) -> 0 | AA64: =SUMIF(OpsCashFlow!$I$9:$FS$9,AA$8,OpsCashFlow!$I64:$FS64) -> 0 | AB64: =SUMIF(OpsCashFlow!$I$9:$FS$9,AB$8,OpsCashFlow!$I64:$FS64) -> 0 | AC64: =SUMIF(OpsCashFlow!$I$9:$FS$9,AC$8,OpsCashFlow!$I64:$FS64) -> 0 | AD64: =SUMIF(OpsCashFlow!$I$9:$FS$9,AD$8,OpsCashFlow!$I64:$FS64) -> 0 | AE64: =SUMIF(OpsCashFlow!$I$9:$FS$9,AE$8,OpsCashFlow!$I64:$FS64) -> 0 | AF64: =SUMIF(OpsCashFlow!$I$9:$FS$9,AF$8,OpsCashFlow!$I64:$FS64) -> 0 | AG64: =SUMIF(OpsCashFlow!$I$9:$FS$9,AG$8,OpsCashFlow!$I64:$FS64) -> 0 | AH64: =SUMIF(OpsCashFlow!$I$9:$FS$9,AH$8,OpsCashFlow!$I64:$FS64) -> 0 | AI64: =SUMIF(OpsCashFlow!$I$9:$FS$9,AI$8,OpsCashFlow!$I64:$FS64) -> 0 | AJ64: =SUMIF(OpsCashFlow!$I$9:$FS$9,AJ$8,OpsCashFlow!$I64:$FS64) -> 0 | AK64: =SUMIF(OpsCashFlow!$I$9:$FS$9,AK$8,OpsCashFlow!$I64:$FS64) -> 0 | AL64: =SUMIF(OpsCashFlow!$I$9:$FS$9,AL$8,OpsCashFlow!$I64:$FS64) -> 0 | AM64: =SUMIF(OpsCashFlow!$I$9:$FS$9,AM$8,OpsCashFlow!$I64:$FS64) -> 0 | AN64: =SUMIF(OpsCashFlow!$I$9:$FS$9,AN$8,OpsCashFlow!$I64:$FS64) -> 0 | AO64: =SUMIF(OpsCashFlow!$I$9:$FS$9,AO$8,OpsCashFlow!$I64:$FS64) -> 0 | AP64: =SUMIF(OpsCashFlow!$I$9:$FS$9,AP$8,OpsCashFlow!$I64:$FS64) -> 0 | AQ64: =SUMIF(OpsCashFlow!$I$9:$FS$9,AQ$8,OpsCashFlow!$I64:$FS64) -> 0 | AR64: =SUMIF(OpsCashFlow!$I$9:$FS$9,AR$8,OpsCashFlow!$I64:$FS64) -> 0 | AS64: =SUMIF(OpsCashFlow!$I$9:$FS$9,AS$8,OpsCashFlow!$I64:$FS64) -> 0 | AT64: =SUMIF(OpsCashFlow!$I$9:$FS$9,AT$8,OpsCashFlow!$I64:$FS64) -> 0 | AU64: =SUMIF(OpsCashFlow!$I$9:$FS$9,AU$8,OpsCashFlow!$I64:$FS64) -> 0 | AV64: =SUMIF(OpsCashFlow!$I$9:$FS$9,AV$8,OpsCashFlow!$I64:$FS64) -> 0
C65: =OpsCashFlow!C65 -> Cash Available for Borrower Distribution Account and TIFIA Sharing | H65: 3931751.23 | I65: =SUMIF(OpsCashFlow!$I$9:$FS$9,I$8,OpsCashFlow!$I65:$FS65) -> 0 | J65: =SUMIF(OpsCashFlow!$I$9:$FS$9,J$8,OpsCashFlow!$I65:$FS65) -> 0 | K65: =SUMIF(OpsCashFlow!$I$9:$FS$9,K$8,OpsCashFlow!$I65:$FS65) -> 0 | L65: =SUMIF(OpsCashFlow!$I$9:$FS$9,L$8,OpsCashFlow!$I65:$FS65) -> 0 | M65: =SUMIF(OpsCashFlow!$I$9:$FS$9,M$8,OpsCashFlow!$I65:$FS65) -> 0 | N65: =SUMIF(OpsCashFlow!$I$9:$FS$9,N$8,OpsCashFlow!$I65:$FS65) -> 0 | O65: =SUMIF(OpsCashFlow!$I$9:$FS$9,O$8,OpsCashFlow!$I65:$FS65) -> 0 | P65: =SUMIF(OpsCashFlow!$I$9:$FS$9,P$8,OpsCashFlow!$I65:$FS65) -> 35965.66469 | Q65: =SUMIF(OpsCashFlow!$I$9:$FS$9,Q$8,OpsCashFlow!$I65:$FS65) -> 14026.3291 | R65: =SUMIF(OpsCashFlow!$I$9:$FS$9,R$8,OpsCashFlow!$I65:$FS65) -> 8676.021407 | S65: =SUMIF(OpsCashFlow!$I$9:$FS$9,S$8,OpsCashFlow!$I65:$FS65) -> 6287.630562 | T65: =SUMIF(OpsCashFlow!$I$9:$FS$9,T$8,OpsCashFlow!$I65:$FS65) -> 2631.419301 | U65: =SUMIF(OpsCashFlow!$I$9:$FS$9,U$8,OpsCashFlow!$I65:$FS65) -> 0 | V65: =SUMIF(OpsCashFlow!$I$9:$FS$9,V$8,OpsCashFlow!$I65:$FS65) -> 0 | W65: =SUMIF(OpsCashFlow!$I$9:$FS$9,W$8,OpsCashFlow!$I65:$FS65) -> 0 | X65: =SUMIF(OpsCashFlow!$I$9:$FS$9,X$8,OpsCashFlow!$I65:$FS65) -> 0 | Y65: =SUMIF(OpsCashFlow!$I$9:$FS$9,Y$8,OpsCashFlow!$I65:$FS65) -> 26312.33782 | Z65: =SUMIF(OpsCashFlow!$I$9:$FS$9,Z$8,OpsCashFlow!$I65:$FS65) -> 82742.77843 | AA65: =SUMIF(OpsCashFlow!$I$9:$FS$9,AA$8,OpsCashFlow!$I65:$FS65) -> 94749.04732 | AB65: =SUMIF(OpsCashFlow!$I$9:$FS$9,AB$8,OpsCashFlow!$I65:$FS65) -> 105662.0949 | AC65: =SUMIF(OpsCashFlow!$I$9:$FS$9,AC$8,OpsCashFlow!$I65:$FS65) -> 116038.3644 | AD65: =SUMIF(OpsCashFlow!$I$9:$FS$9,AD$8,OpsCashFlow!$I65:$FS65) -> 123814.8238 | AE65: =SUMIF(OpsCashFlow!$I$9:$FS$9,AE$8,OpsCashFlow!$I65:$FS65) -> 134172.5846 | AF65: =SUMIF(OpsCashFlow!$I$9:$FS$9,AF$8,OpsCashFlow!$I65:$FS65) -> 145402.1267 | AG65: =SUMIF(OpsCashFlow!$I$9:$FS$9,AG$8,OpsCashFlow!$I65:$FS65) -> 156356.3978 | AH65: =SUMIF(OpsCashFlow!$I$9:$FS$9,AH$8,OpsCashFlow!$I65:$FS65) -> 162627.2919 | AI65: =SUMIF(OpsCashFlow!$I$9:$FS$9,AI$8,OpsCashFlow!$I65:$FS65) -> 172277.8791 | AJ65: =SUMIF(OpsCashFlow!$I$9:$FS$9,AJ$8,OpsCashFlow!$I65:$FS65) -> 177747.6814 | AK65: =SUMIF(OpsCashFlow!$I$9:$FS$9,AK$8,OpsCashFlow!$I65:$FS65) -> 153639.9802 | AL65: =SUMIF(OpsCashFlow!$I$9:$FS$9,AL$8,OpsCashFlow!$I65:$FS65) -> 159619.1198 | AM65: =SUMIF(OpsCashFlow!$I$9:$FS$9,AM$8,OpsCashFlow!$I65:$FS65) -> 170556.6559 | AN65: =SUMIF(OpsCashFlow!$I$9:$FS$9,AN$8,OpsCashFlow!$I65:$FS65) -> 178934.9906 | AO65: =SUMIF(OpsCashFlow!$I$9:$FS$9,AO$8,OpsCashFlow!$I65:$FS65) -> 190980.975 | AP65: =SUMIF(OpsCashFlow!$I$9:$FS$9,AP$8,OpsCashFlow!$I65:$FS65) -> 197737.5479 | AQ65: =SUMIF(OpsCashFlow!$I$9:$FS$9,AQ$8,OpsCashFlow!$I65:$FS65) -> 203911.1124 | AR65: =SUMIF(OpsCashFlow!$I$9:$FS$9,AR$8,OpsCashFlow!$I65:$FS65) -> 212457.9955 | AS65: =SUMIF(OpsCashFlow!$I$9:$FS$9,AS$8,OpsCashFlow!$I65:$FS65) -> 225169.4545 | AT65: =SUMIF(OpsCashFlow!$I$9:$FS$9,AT$8,OpsCashFlow!$I65:$FS65) -> 237513.7007 | AU65: =SUMIF(OpsCashFlow!$I$9:$FS$9,AU$8,OpsCashFlow!$I65:$FS65) -> 244506.3038 | AV65: =SUMIF(OpsCashFlow!$I$9:$FS$9,AV$8,OpsCashFlow!$I65:$FS65) -> 191232.9209
C66: =OpsCashFlow!C66 -> less: TIFIA Upside Sharing | H66: 0 | I66: =SUMIF(OpsCashFlow!$I$9:$FS$9,I$8,OpsCashFlow!$I66:$FS66) -> 0 | J66: =SUMIF(OpsCashFlow!$I$9:$FS$9,J$8,OpsCashFlow!$I66:$FS66) -> 0 | K66: =SUMIF(OpsCashFlow!$I$9:$FS$9,K$8,OpsCashFlow!$I66:$FS66) -> 0 | L66: =SUMIF(OpsCashFlow!$I$9:$FS$9,L$8,OpsCashFlow!$I66:$FS66) -> 0 | M66: =SUMIF(OpsCashFlow!$I$9:$FS$9,M$8,OpsCashFlow!$I66:$FS66) -> 0 | N66: =SUMIF(OpsCashFlow!$I$9:$FS$9,N$8,OpsCashFlow!$I66:$FS66) -> 0 | O66: =SUMIF(OpsCashFlow!$I$9:$FS$9,O$8,OpsCashFlow!$I66:$FS66) -> 0 | P66: =SUMIF(OpsCashFlow!$I$9:$FS$9,P$8,OpsCashFlow!$I66:$FS66) -> 0 | Q66: =SUMIF(OpsCashFlow!$I$9:$FS$9,Q$8,OpsCashFlow!$I66:$FS66) -> 0 | R66: =SUMIF(OpsCashFlow!$I$9:$FS$9,R$8,OpsCashFlow!$I66:$FS66) -> 0 | S66: =SUMIF(OpsCashFlow!$I$9:$FS$9,S$8,OpsCashFlow!$I66:$FS66) -> 0 | T66: =SUMIF(OpsCashFlow!$I$9:$FS$9,T$8,OpsCashFlow!$I66:$FS66) -> 0 | U66: =SUMIF(OpsCashFlow!$I$9:$FS$9,U$8,OpsCashFlow!$I66:$FS66) -> 0 | V66: =SUMIF(OpsCashFlow!$I$9:$FS$9,V$8,OpsCashFlow!$I66:$FS66) -> 0 | W66: =SUMIF(OpsCashFlow!$I$9:$FS$9,W$8,OpsCashFlow!$I66:$FS66) -> 0 | X66: =SUMIF(OpsCashFlow!$I$9:$FS$9,X$8,OpsCashFlow!$I66:$FS66) -> 0 | Y66: =SUMIF(OpsCashFlow!$I$9:$FS$9,Y$8,OpsCashFlow!$I66:$FS66) -> 0 | Z66: =SUMIF(OpsCashFlow!$I$9:$FS$9,Z$8,OpsCashFlow!$I66:$FS66) -> 0 | AA66: =SUMIF(OpsCashFlow!$I$9:$FS$9,AA$8,OpsCashFlow!$I66:$FS66) -> 0 | AB66: =SUMIF(OpsCashFlow!$I$9:$FS$9,AB$8,OpsCashFlow!$I66:$FS66) -> 0 | AC66: =SUMIF(OpsCashFlow!$I$9:$FS$9,AC$8,OpsCashFlow!$I66:$FS66) -> 0 | AD66: =SUMIF(OpsCashFlow!$I$9:$FS$9,AD$8,OpsCashFlow!$I66:$FS66) -> 0 | AE66: =SUMIF(OpsCashFlow!$I$9:$FS$9,AE$8,OpsCashFlow!$I66:$FS66) -> 0 | AF66: =SUMIF(OpsCashFlow!$I$9:$FS$9,AF$8,OpsCashFlow!$I66:$FS66) -> 0 | AG66: =SUMIF(OpsCashFlow!$I$9:$FS$9,AG$8,OpsCashFlow!$I66:$FS66) -> 0 | AH66: =SUMIF(OpsCashFlow!$I$9:$FS$9,AH$8,OpsCashFlow!$I66:$FS66) -> 0 | AI66: =SUMIF(OpsCashFlow!$I$9:$FS$9,AI$8,OpsCashFlow!$I66:$FS66) -> 0 | AJ66: =SUMIF(OpsCashFlow!$I$9:$FS$9,AJ$8,OpsCashFlow!$I66:$FS66) -> 0 | AK66: =SUMIF(OpsCashFlow!$I$9:$FS$9,AK$8,OpsCashFlow!$I66:$FS66) -> 0 | AL66: =SUMIF(OpsCashFlow!$I$9:$FS$9,AL$8,OpsCashFlow!$I66:$FS66) -> 0 | AM66: =SUMIF(OpsCashFlow!$I$9:$FS$9,AM$8,OpsCashFlow!$I66:$FS66) -> 0 | AN66: =SUMIF(OpsCashFlow!$I$9:$FS$9,AN$8,OpsCashFlow!$I66:$FS66) -> 0 | AO66: =SUMIF(OpsCashFlow!$I$9:$FS$9,AO$8,OpsCashFlow!$I66:$FS66) -> 0 | AP66: =SUMIF(OpsCashFlow!$I$9:$FS$9,AP$8,OpsCashFlow!$I66:$FS66) -> 0 | AQ66: =SUMIF(OpsCashFlow!$I$9:$FS$9,AQ$8,OpsCashFlow!$I66:$FS66) -> 0 | AR66: =SUMIF(OpsCashFlow!$I$9:$FS$9,AR$8,OpsCashFlow!$I66:$FS66) -> 0 | AS66: =SUMIF(OpsCashFlow!$I$9:$FS$9,AS$8,OpsCashFlow!$I66:$FS66) -> 0 | AT66: =SUMIF(OpsCashFlow!$I$9:$FS$9,AT$8,OpsCashFlow!$I66:$FS66) -> 0 | AU66: =SUMIF(OpsCashFlow!$I$9:$FS$9,AU$8,OpsCashFlow!$I66:$FS66) -> 0 | AV66: =SUMIF(OpsCashFlow!$I$9:$FS$9,AV$8,OpsCashFlow!$I66:$FS66) -> 0
C67: =OpsCashFlow!C67 -> Release of Additional Equity Account | H67: 33000 | I67: =SUMIF(OpsCashFlow!$I$9:$FS$9,I$8,OpsCashFlow!$I67:$FS67) -> 0 | J67: =SUMIF(OpsCashFlow!$I$9:$FS$9,J$8,OpsCashFlow!$I67:$FS67) -> 0 | K67: =SUMIF(OpsCashFlow!$I$9:$FS$9,K$8,OpsCashFlow!$I67:$FS67) -> 0 | L67: =SUMIF(OpsCashFlow!$I$9:$FS$9,L$8,OpsCashFlow!$I67:$FS67) -> 0 | M67: =SUMIF(OpsCashFlow!$I$9:$FS$9,M$8,OpsCashFlow!$I67:$FS67) -> 0 | N67: =SUMIF(OpsCashFlow!$I$9:$FS$9,N$8,OpsCashFlow!$I67:$FS67) -> 0 | O67: =SUMIF(OpsCashFlow!$I$9:$FS$9,O$8,OpsCashFlow!$I67:$FS67) -> 0 | P67: =SUMIF(OpsCashFlow!$I$9:$FS$9,P$8,OpsCashFlow!$I67:$FS67) -> 11000 | Q67: =SUMIF(OpsCashFlow!$I$9:$FS$9,Q$8,OpsCashFlow!$I67:$FS67) -> 0 | R67: =SUMIF(OpsCashFlow!$I$9:$FS$9,R$8,OpsCashFlow!$I67:$FS67) -> 22000 | S67: =SUMIF(OpsCashFlow!$I$9:$FS$9,S$8,OpsCashFlow!$I67:$FS67) -> 0 | T67: =SUMIF(OpsCashFlow!$I$9:$FS$9,T$8,OpsCashFlow!$I67:$FS67) -> 0 | U67: =SUMIF(OpsCashFlow!$I$9:$FS$9,U$8,OpsCashFlow!$I67:$FS67) -> 0 | V67: =SUMIF(OpsCashFlow!$I$9:$FS$9,V$8,OpsCashFlow!$I67:$FS67) -> 0 | W67: =SUMIF(OpsCashFlow!$I$9:$FS$9,W$8,OpsCashFlow!$I67:$FS67) -> 0 | X67: =SUMIF(OpsCashFlow!$I$9:$FS$9,X$8,OpsCashFlow!$I67:$FS67) -> 0 | Y67: =SUMIF(OpsCashFlow!$I$9:$FS$9,Y$8,OpsCashFlow!$I67:$FS67) -> 0 | Z67: =SUMIF(OpsCashFlow!$I$9:$FS$9,Z$8,OpsCashFlow!$I67:$FS67) -> 0 | AA67: =SUMIF(OpsCashFlow!$I$9:$FS$9,AA$8,OpsCashFlow!$I67:$FS67) -> 0 | AB67: =SUMIF(OpsCashFlow!$I$9:$FS$9,AB$8,OpsCashFlow!$I67:$FS67) -> 0 | AC67: =SUMIF(OpsCashFlow!$I$9:$FS$9,AC$8,OpsCashFlow!$I67:$FS67) -> 0 | AD67: =SUMIF(OpsCashFlow!$I$9:$FS$9,AD$8,OpsCashFlow!$I67:$FS67) -> 0 | AE67: =SUMIF(OpsCashFlow!$I$9:$FS$9,AE$8,OpsCashFlow!$I67:$FS67) -> 0 | AF67: =SUMIF(OpsCashFlow!$I$9:$FS$9,AF$8,OpsCashFlow!$I67:$FS67) -> 0 | AG67: =SUMIF(OpsCashFlow!$I$9:$FS$9,AG$8,OpsCashFlow!$I67:$FS67) -> 0 | AH67: =SUMIF(OpsCashFlow!$I$9:$FS$9,AH$8,OpsCashFlow!$I67:$FS67) -> 0 | AI67: =SUMIF(OpsCashFlow!$I$9:$FS$9,AI$8,OpsCashFlow!$I67:$FS67) -> 0 | AJ67: =SUMIF(OpsCashFlow!$I$9:$FS$9,AJ$8,OpsCashFlow!$I67:$FS67) -> 0 | AK67: =SUMIF(OpsCashFlow!$I$9:$FS$9,AK$8,OpsCashFlow!$I67:$FS67) -> 0 | AL67: =SUMIF(OpsCashFlow!$I$9:$FS$9,AL$8,OpsCashFlow!$I67:$FS67) -> 0 | AM67: =SUMIF(OpsCashFlow!$I$9:$FS$9,AM$8,OpsCashFlow!$I67:$FS67) -> 0 | AN67: =SUMIF(OpsCashFlow!$I$9:$FS$9,AN$8,OpsCashFlow!$I67:$FS67) -> 0 | AO67: =SUMIF(OpsCashFlow!$I$9:$FS$9,AO$8,OpsCashFlow!$I67:$FS67) -> 0 | AP67: =SUMIF(OpsCashFlow!$I$9:$FS$9,AP$8,OpsCashFlow!$I67:$FS67) -> 0 | AQ67: =SUMIF(OpsCashFlow!$I$9:$FS$9,AQ$8,OpsCashFlow!$I67:$FS67) -> 0 | AR67: =SUMIF(OpsCashFlow!$I$9:$FS$9,AR$8,OpsCashFlow!$I67:$FS67) -> 0 | AS67: =SUMIF(OpsCashFlow!$I$9:$FS$9,AS$8,OpsCashFlow!$I67:$FS67) -> 0 | AT67: =SUMIF(OpsCashFlow!$I$9:$FS$9,AT$8,OpsCashFlow!$I67:$FS67) -> 0 | AU67: =SUMIF(OpsCashFlow!$I$9:$FS$9,AU$8,OpsCashFlow!$I67:$FS67) -> 0 | AV67: =SUMIF(OpsCashFlow!$I$9:$FS$9,AV$8,OpsCashFlow!$I67:$FS67) -> 0
C68: =OpsCashFlow!C68 -> Release of Surplus Cash in Cash Holding Account | H68: =SUM(I68:AV68) -> 6116.153258 | I68: =SUMIF(OpsCashFlow!$I$9:$FS$9,I$8,OpsCashFlow!$I68:$FS68) -> 0 | J68: =SUMIF(OpsCashFlow!$I$9:$FS$9,J$8,OpsCashFlow!$I68:$FS68) -> 0 | K68: =SUMIF(OpsCashFlow!$I$9:$FS$9,K$8,OpsCashFlow!$I68:$FS68) -> 0 | L68: =SUMIF(OpsCashFlow!$I$9:$FS$9,L$8,OpsCashFlow!$I68:$FS68) -> 0 | M68: =SUMIF(OpsCashFlow!$I$9:$FS$9,M$8,OpsCashFlow!$I68:$FS68) -> 0 | N68: =SUMIF(OpsCashFlow!$I$9:$FS$9,N$8,OpsCashFlow!$I68:$FS68) -> 0 | O68: =SUMIF(OpsCashFlow!$I$9:$FS$9,O$8,OpsCashFlow!$I68:$FS68) -> 0 | P68: =SUMIF(OpsCashFlow!$I$9:$FS$9,P$8,OpsCashFlow!$I68:$FS68) -> 6116.153258 | Q68: =SUMIF(OpsCashFlow!$I$9:$FS$9,Q$8,OpsCashFlow!$I68:$FS68) -> 0 | R68: =SUMIF(OpsCashFlow!$I$9:$FS$9,R$8,OpsCashFlow!$I68:$FS68) -> 0 | S68: =SUMIF(OpsCashFlow!$I$9:$FS$9,S$8,OpsCashFlow!$I68:$FS68) -> 0 | T68: =SUMIF(OpsCashFlow!$I$9:$FS$9,T$8,OpsCashFlow!$I68:$FS68) -> 0 | U68: =SUMIF(OpsCashFlow!$I$9:$FS$9,U$8,OpsCashFlow!$I68:$FS68) -> 0 | V68: =SUMIF(OpsCashFlow!$I$9:$FS$9,V$8,OpsCashFlow!$I68:$FS68) -> 0 | W68: =SUMIF(OpsCashFlow!$I$9:$FS$9,W$8,OpsCashFlow!$I68:$FS68) -> 0 | X68: =SUMIF(OpsCashFlow!$I$9:$FS$9,X$8,OpsCashFlow!$I68:$FS68) -> 0 | Y68: =SUMIF(OpsCashFlow!$I$9:$FS$9,Y$8,OpsCashFlow!$I68:$FS68) -> 0 | Z68: =SUMIF(OpsCashFlow!$I$9:$FS$9,Z$8,OpsCashFlow!$I68:$FS68) -> 0 | AA68: =SUMIF(OpsCashFlow!$I$9:$FS$9,AA$8,OpsCashFlow!$I68:$FS68) -> 0 | AB68: =SUMIF(OpsCashFlow!$I$9:$FS$9,AB$8,OpsCashFlow!$I68:$FS68) -> 0 | AC68: =SUMIF(OpsCashFlow!$I$9:$FS$9,AC$8,OpsCashFlow!$I68:$FS68) -> 0 | AD68: =SUMIF(OpsCashFlow!$I$9:$FS$9,AD$8,OpsCashFlow!$I68:$FS68) -> 0 | AE68: =SUMIF(OpsCashFlow!$I$9:$FS$9,AE$8,OpsCashFlow!$I68:$FS68) -> 0 | AF68: =SUMIF(OpsCashFlow!$I$9:$FS$9,AF$8,OpsCashFlow!$I68:$FS68) -> 0 | AG68: =SUMIF(OpsCashFlow!$I$9:$FS$9,AG$8,OpsCashFlow!$I68:$FS68) -> 0 | AH68: =SUMIF(OpsCashFlow!$I$9:$FS$9,AH$8,OpsCashFlow!$I68:$FS68) -> 0 | AI68: =SUMIF(OpsCashFlow!$I$9:$FS$9,AI$8,OpsCashFlow!$I68:$FS68) -> 0 | AJ68: =SUMIF(OpsCashFlow!$I$9:$FS$9,AJ$8,OpsCashFlow!$I68:$FS68) -> 0 | AK68: =SUMIF(OpsCashFlow!$I$9:$FS$9,AK$8,OpsCashFlow!$I68:$FS68) -> 0 | AL68: =SUMIF(OpsCashFlow!$I$9:$FS$9,AL$8,OpsCashFlow!$I68:$FS68) -> 0 | AM68: =SUMIF(OpsCashFlow!$I$9:$FS$9,AM$8,OpsCashFlow!$I68:$FS68) -> 0 | AN68: =SUMIF(OpsCashFlow!$I$9:$FS$9,AN$8,OpsCashFlow!$I68:$FS68) -> 0 | AO68: =SUMIF(OpsCashFlow!$I$9:$FS$9,AO$8,OpsCashFlow!$I68:$FS68) -> 0 | AP68: =SUMIF(OpsCashFlow!$I$9:$FS$9,AP$8,OpsCashFlow!$I68:$FS68) -> 0 | AQ68: =SUMIF(OpsCashFlow!$I$9:$FS$9,AQ$8,OpsCashFlow!$I68:$FS68) -> 0 | AR68: =SUMIF(OpsCashFlow!$I$9:$FS$9,AR$8,OpsCashFlow!$I68:$FS68) -> 0 | AS68: =SUMIF(OpsCashFlow!$I$9:$FS$9,AS$8,OpsCashFlow!$I68:$FS68) -> 0 | AT68: =SUMIF(OpsCashFlow!$I$9:$FS$9,AT$8,OpsCashFlow!$I68:$FS68) -> 0 | AU68: =SUMIF(OpsCashFlow!$I$9:$FS$9,AU$8,OpsCashFlow!$I68:$FS68) -> 0 | AV68: =SUMIF(OpsCashFlow!$I$9:$FS$9,AV$8,OpsCashFlow!$I68:$FS68) -> 0
H69: =SUM(I69:AV69) -> 0 | I69: =SUMIF(OpsCashFlow!$I$9:$FS$9,I$8,OpsCashFlow!$I69:$FS69) -> 0 | J69: =SUMIF(OpsCashFlow!$I$9:$FS$9,J$8,OpsCashFlow!$I69:$FS69) -> 0 | K69: =SUMIF(OpsCashFlow!$I$9:$FS$9,K$8,OpsCashFlow!$I69:$FS69) -> 0 | L69: =SUMIF(OpsCashFlow!$I$9:$FS$9,L$8,OpsCashFlow!$I69:$FS69) -> 0 | M69: =SUMIF(OpsCashFlow!$I$9:$FS$9,M$8,OpsCashFlow!$I69:$FS69) -> 0 | N69: =SUMIF(OpsCashFlow!$I$9:$FS$9,N$8,OpsCashFlow!$I69:$FS69) -> 0 | O69: =SUMIF(OpsCashFlow!$I$9:$FS$9,O$8,OpsCashFlow!$I69:$FS69) -> 0 | P69: =SUMIF(OpsCashFlow!$I$9:$FS$9,P$8,OpsCashFlow!$I69:$FS69) -> 0 | Q69: =SUMIF(OpsCashFlow!$I$9:$FS$9,Q$8,OpsCashFlow!$I69:$FS69) -> 0 | R69: =SUMIF(OpsCashFlow!$I$9:$FS$9,R$8,OpsCashFlow!$I69:$FS69) -> 0 | S69: =SUMIF(OpsCashFlow!$I$9:$FS$9,S$8,OpsCashFlow!$I69:$FS69) -> 0 | T69: =SUMIF(OpsCashFlow!$I$9:$FS$9,T$8,OpsCashFlow!$I69:$FS69) -> 0 | U69: =SUMIF(OpsCashFlow!$I$9:$FS$9,U$8,OpsCashFlow!$I69:$FS69) -> 0 | V69: =SUMIF(OpsCashFlow!$I$9:$FS$9,V$8,OpsCashFlow!$I69:$FS69) -> 0 | W69: =SUMIF(OpsCashFlow!$I$9:$FS$9,W$8,OpsCashFlow!$I69:$FS69) -> 0 | X69: =SUMIF(OpsCashFlow!$I$9:$FS$9,X$8,OpsCashFlow!$I69:$FS69) -> 0 | Y69: =SUMIF(OpsCashFlow!$I$9:$FS$9,Y$8,OpsCashFlow!$I69:$FS69) -> 0 | Z69: =SUMIF(OpsCashFlow!$I$9:$FS$9,Z$8,OpsCashFlow!$I69:$FS69) -> 0 | AA69: =SUMIF(OpsCashFlow!$I$9:$FS$9,AA$8,OpsCashFlow!$I69:$FS69) -> 0 | AB69: =SUMIF(OpsCashFlow!$I$9:$FS$9,AB$8,OpsCashFlow!$I69:$FS69) -> 0 | AC69: =SUMIF(OpsCashFlow!$I$9:$FS$9,AC$8,OpsCashFlow!$I69:$FS69) -> 0 | AD69: =SUMIF(OpsCashFlow!$I$9:$FS$9,AD$8,OpsCashFlow!$I69:$FS69) -> 0 | AE69: =SUMIF(OpsCashFlow!$I$9:$FS$9,AE$8,OpsCashFlow!$I69:$FS69) -> 0 | AF69: =SUMIF(OpsCashFlow!$I$9:$FS$9,AF$8,OpsCashFlow!$I69:$FS69) -> 0 | AG69: =SUMIF(OpsCashFlow!$I$9:$FS$9,AG$8,OpsCashFlow!$I69:$FS69) -> 0 | AH69: =SUMIF(OpsCashFlow!$I$9:$FS$9,AH$8,OpsCashFlow!$I69:$FS69) -> 0 | AI69: =SUMIF(OpsCashFlow!$I$9:$FS$9,AI$8,OpsCashFlow!$I69:$FS69) -> 0 | AJ69: =SUMIF(OpsCashFlow!$I$9:$FS$9,AJ$8,OpsCashFlow!$I69:$FS69) -> 0 | AK69: =SUMIF(OpsCashFlow!$I$9:$FS$9,AK$8,OpsCashFlow!$I69:$FS69) -> 0 | AL69: =SUMIF(OpsCashFlow!$I$9:$FS$9,AL$8,OpsCashFlow!$I69:$FS69) -> 0 | AM69: =SUMIF(OpsCashFlow!$I$9:$FS$9,AM$8,OpsCashFlow!$I69:$FS69) -> 0 | AN69: =SUMIF(OpsCashFlow!$I$9:$FS$9,AN$8,OpsCashFlow!$I69:$FS69) -> 0 | AO69: =SUMIF(OpsCashFlow!$I$9:$FS$9,AO$8,OpsCashFlow!$I69:$FS69) -> 0 | AP69: =SUMIF(OpsCashFlow!$I$9:$FS$9,AP$8,OpsCashFlow!$I69:$FS69) -> 0 | AQ69: =SUMIF(OpsCashFlow!$I$9:$FS$9,AQ$8,OpsCashFlow!$I69:$FS69) -> 0 | AR69: =SUMIF(OpsCashFlow!$I$9:$FS$9,AR$8,OpsCashFlow!$I69:$FS69) -> 0 | AS69: =SUMIF(OpsCashFlow!$I$9:$FS$9,AS$8,OpsCashFlow!$I69:$FS69) -> 0 | AT69: =SUMIF(OpsCashFlow!$I$9:$FS$9,AT$8,OpsCashFlow!$I69:$FS69) -> 0 | AU69: =SUMIF(OpsCashFlow!$I$9:$FS$9,AU$8,OpsCashFlow!$I69:$FS69) -> 0 | AV69: =SUMIF(OpsCashFlow!$I$9:$FS$9,AV$8,OpsCashFlow!$I69:$FS69) -> 0
C70: =OpsCashFlow!C70 -> Refinancing Cash Flows | H70: 0 | I70: =SUMIF(OpsCashFlow!$I$9:$FS$9,I$8,OpsCashFlow!$I70:$FS70) -> 0 | J70: =SUMIF(OpsCashFlow!$I$9:$FS$9,J$8,OpsCashFlow!$I70:$FS70) -> 0 | K70: =SUMIF(OpsCashFlow!$I$9:$FS$9,K$8,OpsCashFlow!$I70:$FS70) -> 0 | L70: =SUMIF(OpsCashFlow!$I$9:$FS$9,L$8,OpsCashFlow!$I70:$FS70) -> 0 | M70: =SUMIF(OpsCashFlow!$I$9:$FS$9,M$8,OpsCashFlow!$I70:$FS70) -> 0 | N70: =SUMIF(OpsCashFlow!$I$9:$FS$9,N$8,OpsCashFlow!$I70:$FS70) -> 0 | O70: =SUMIF(OpsCashFlow!$I$9:$FS$9,O$8,OpsCashFlow!$I70:$FS70) -> 0 | P70: =SUMIF(OpsCashFlow!$I$9:$FS$9,P$8,OpsCashFlow!$I70:$FS70) -> 0 | Q70: =SUMIF(OpsCashFlow!$I$9:$FS$9,Q$8,OpsCashFlow!$I70:$FS70) -> 0 | R70: =SUMIF(OpsCashFlow!$I$9:$FS$9,R$8,OpsCashFlow!$I70:$FS70) -> 0 | S70: =SUMIF(OpsCashFlow!$I$9:$FS$9,S$8,OpsCashFlow!$I70:$FS70) -> 0 | T70: =SUMIF(OpsCashFlow!$I$9:$FS$9,T$8,OpsCashFlow!$I70:$FS70) -> 0 | U70: =SUMIF(OpsCashFlow!$I$9:$FS$9,U$8,OpsCashFlow!$I70:$FS70) -> 0 | V70: =SUMIF(OpsCashFlow!$I$9:$FS$9,V$8,OpsCashFlow!$I70:$FS70) -> 0 | W70: =SUMIF(OpsCashFlow!$I$9:$FS$9,W$8,OpsCashFlow!$I70:$FS70) -> 0 | X70: =SUMIF(OpsCashFlow!$I$9:$FS$9,X$8,OpsCashFlow!$I70:$FS70) -> 0 | Y70: =SUMIF(OpsCashFlow!$I$9:$FS$9,Y$8,OpsCashFlow!$I70:$FS70) -> 0 | Z70: =SUMIF(OpsCashFlow!$I$9:$FS$9,Z$8,OpsCashFlow!$I70:$FS70) -> 0 | AA70: =SUMIF(OpsCashFlow!$I$9:$FS$9,AA$8,OpsCashFlow!$I70:$FS70) -> 0 | AB70: =SUMIF(OpsCashFlow!$I$9:$FS$9,AB$8,OpsCashFlow!$I70:$FS70) -> 0 | AC70: =SUMIF(OpsCashFlow!$I$9:$FS$9,AC$8,OpsCashFlow!$I70:$FS70) -> 0 | AD70: =SUMIF(OpsCashFlow!$I$9:$FS$9,AD$8,OpsCashFlow!$I70:$FS70) -> 0 | AE70: =SUMIF(OpsCashFlow!$I$9:$FS$9,AE$8,OpsCashFlow!$I70:$FS70) -> 0 | AF70: =SUMIF(OpsCashFlow!$I$9:$FS$9,AF$8,OpsCashFlow!$I70:$FS70) -> 0 | AG70: =SUMIF(OpsCashFlow!$I$9:$FS$9,AG$8,OpsCashFlow!$I70:$FS70) -> 0 | AH70: =SUMIF(OpsCashFlow!$I$9:$FS$9,AH$8,OpsCashFlow!$I70:$FS70) -> 0 | AI70: =SUMIF(OpsCashFlow!$I$9:$FS$9,AI$8,OpsCashFlow!$I70:$FS70) -> 0 | AJ70: =SUMIF(OpsCashFlow!$I$9:$FS$9,AJ$8,OpsCashFlow!$I70:$FS70) -> 0 | AK70: =SUMIF(OpsCashFlow!$I$9:$FS$9,AK$8,OpsCashFlow!$I70:$FS70) -> 0 | AL70: =SUMIF(OpsCashFlow!$I$9:$FS$9,AL$8,OpsCashFlow!$I70:$FS70) -> 0 | AM70: =SUMIF(OpsCashFlow!$I$9:$FS$9,AM$8,OpsCashFlow!$I70:$FS70) -> 0 | AN70: =SUMIF(OpsCashFlow!$I$9:$FS$9,AN$8,OpsCashFlow!$I70:$FS70) -> 0 | AO70: =SUMIF(OpsCashFlow!$I$9:$FS$9,AO$8,OpsCashFlow!$I70:$FS70) -> 0 | AP70: =SUMIF(OpsCashFlow!$I$9:$FS$9,AP$8,OpsCashFlow!$I70:$FS70) -> 0 | AQ70: =SUMIF(OpsCashFlow!$I$9:$FS$9,AQ$8,OpsCashFlow!$I70:$FS70) -> 0 | AR70: =SUMIF(OpsCashFlow!$I$9:$FS$9,AR$8,OpsCashFlow!$I70:$FS70) -> 0 | AS70: =SUMIF(OpsCashFlow!$I$9:$FS$9,AS$8,OpsCashFlow!$I70:$FS70) -> 0 | AT70: =SUMIF(OpsCashFlow!$I$9:$FS$9,AT$8,OpsCashFlow!$I70:$FS70) -> 0 | AU70: =SUMIF(OpsCashFlow!$I$9:$FS$9,AU$8,OpsCashFlow!$I70:$FS70) -> 0 | AV70: =SUMIF(OpsCashFlow!$I$9:$FS$9,AV$8,OpsCashFlow!$I70:$FS70) -> 0
C71: =OpsCashFlow!C71 -> Cash Available from Refinancing | H71: 0 | I71: =SUMIF(OpsCashFlow!$I$9:$FS$9,I$8,OpsCashFlow!$I71:$FS71) -> 0 | J71: =SUMIF(OpsCashFlow!$I$9:$FS$9,J$8,OpsCashFlow!$I71:$FS71) -> 0 | K71: =SUMIF(OpsCashFlow!$I$9:$FS$9,K$8,OpsCashFlow!$I71:$FS71) -> 0 | L71: =SUMIF(OpsCashFlow!$I$9:$FS$9,L$8,OpsCashFlow!$I71:$FS71) -> 0 | M71: =SUMIF(OpsCashFlow!$I$9:$FS$9,M$8,OpsCashFlow!$I71:$FS71) -> 0 | N71: =SUMIF(OpsCashFlow!$I$9:$FS$9,N$8,OpsCashFlow!$I71:$FS71) -> 0 | O71: =SUMIF(OpsCashFlow!$I$9:$FS$9,O$8,OpsCashFlow!$I71:$FS71) -> 0 | P71: =SUMIF(OpsCashFlow!$I$9:$FS$9,P$8,OpsCashFlow!$I71:$FS71) -> 0 | Q71: =SUMIF(OpsCashFlow!$I$9:$FS$9,Q$8,OpsCashFlow!$I71:$FS71) -> 0 | R71: =SUMIF(OpsCashFlow!$I$9:$FS$9,R$8,OpsCashFlow!$I71:$FS71) -> 0 | S71: =SUMIF(OpsCashFlow!$I$9:$FS$9,S$8,OpsCashFlow!$I71:$FS71) -> 0 | T71: =SUMIF(OpsCashFlow!$I$9:$FS$9,T$8,OpsCashFlow!$I71:$FS71) -> 0 | U71: =SUMIF(OpsCashFlow!$I$9:$FS$9,U$8,OpsCashFlow!$I71:$FS71) -> 0 | V71: =SUMIF(OpsCashFlow!$I$9:$FS$9,V$8,OpsCashFlow!$I71:$FS71) -> 0 | W71: =SUMIF(OpsCashFlow!$I$9:$FS$9,W$8,OpsCashFlow!$I71:$FS71) -> 0 | X71: =SUMIF(OpsCashFlow!$I$9:$FS$9,X$8,OpsCashFlow!$I71:$FS71) -> 0 | Y71: =SUMIF(OpsCashFlow!$I$9:$FS$9,Y$8,OpsCashFlow!$I71:$FS71) -> 0 | Z71: =SUMIF(OpsCashFlow!$I$9:$FS$9,Z$8,OpsCashFlow!$I71:$FS71) -> 0 | AA71: =SUMIF(OpsCashFlow!$I$9:$FS$9,AA$8,OpsCashFlow!$I71:$FS71) -> 0 | AB71: =SUMIF(OpsCashFlow!$I$9:$FS$9,AB$8,OpsCashFlow!$I71:$FS71) -> 0 | AC71: =SUMIF(OpsCashFlow!$I$9:$FS$9,AC$8,OpsCashFlow!$I71:$FS71) -> 0 | AD71: =SUMIF(OpsCashFlow!$I$9:$FS$9,AD$8,OpsCashFlow!$I71:$FS71) -> 0 | AE71: =SUMIF(OpsCashFlow!$I$9:$FS$9,AE$8,OpsCashFlow!$I71:$FS71) -> 0 | AF71: =SUMIF(OpsCashFlow!$I$9:$FS$9,AF$8,OpsCashFlow!$I71:$FS71) -> 0 | AG71: =SUMIF(OpsCashFlow!$I$9:$FS$9,AG$8,OpsCashFlow!$I71:$FS71) -> 0 | AH71: =SUMIF(OpsCashFlow!$I$9:$FS$9,AH$8,OpsCashFlow!$I71:$FS71) -> 0 | AI71: =SUMIF(OpsCashFlow!$I$9:$FS$9,AI$8,OpsCashFlow!$I71:$FS71) -> 0 | AJ71: =SUMIF(OpsCashFlow!$I$9:$FS$9,AJ$8,OpsCashFlow!$I71:$FS71) -> 0 | AK71: =SUMIF(OpsCashFlow!$I$9:$FS$9,AK$8,OpsCashFlow!$I71:$FS71) -> 0 | AL71: =SUMIF(OpsCashFlow!$I$9:$FS$9,AL$8,OpsCashFlow!$I71:$FS71) -> 0 | AM71: =SUMIF(OpsCashFlow!$I$9:$FS$9,AM$8,OpsCashFlow!$I71:$FS71) -> 0 | AN71: =SUMIF(OpsCashFlow!$I$9:$FS$9,AN$8,OpsCashFlow!$I71:$FS71) -> 0 | AO71: =SUMIF(OpsCashFlow!$I$9:$FS$9,AO$8,OpsCashFlow!$I71:$FS71) -> 0 | AP71: =SUMIF(OpsCashFlow!$I$9:$FS$9,AP$8,OpsCashFlow!$I71:$FS71) -> 0 | AQ71: =SUMIF(OpsCashFlow!$I$9:$FS$9,AQ$8,OpsCashFlow!$I71:$FS71) -> 0 | AR71: =SUMIF(OpsCashFlow!$I$9:$FS$9,AR$8,OpsCashFlow!$I71:$FS71) -> 0 | AS71: =SUMIF(OpsCashFlow!$I$9:$FS$9,AS$8,OpsCashFlow!$I71:$FS71) -> 0 | AT71: =SUMIF(OpsCashFlow!$I$9:$FS$9,AT$8,OpsCashFlow!$I71:$FS71) -> 0 | AU71: =SUMIF(OpsCashFlow!$I$9:$FS$9,AU$8,OpsCashFlow!$I71:$FS71) -> 0 | AV71: =SUMIF(OpsCashFlow!$I$9:$FS$9,AV$8,OpsCashFlow!$I71:$FS71) -> 0
C72: =OpsCashFlow!C72 -> less: Senior Debt Redemption | H72: 0 | I72: =SUMIF(OpsCashFlow!$I$9:$FS$9,I$8,OpsCashFlow!$I72:$FS72) -> 0 | J72: =SUMIF(OpsCashFlow!$I$9:$FS$9,J$8,OpsCashFlow!$I72:$FS72) -> 0 | K72: =SUMIF(OpsCashFlow!$I$9:$FS$9,K$8,OpsCashFlow!$I72:$FS72) -> 0 | L72: =SUMIF(OpsCashFlow!$I$9:$FS$9,L$8,OpsCashFlow!$I72:$FS72) -> 0 | M72: =SUMIF(OpsCashFlow!$I$9:$FS$9,M$8,OpsCashFlow!$I72:$FS72) -> 0 | N72: =SUMIF(OpsCashFlow!$I$9:$FS$9,N$8,OpsCashFlow!$I72:$FS72) -> 0 | O72: =SUMIF(OpsCashFlow!$I$9:$FS$9,O$8,OpsCashFlow!$I72:$FS72) -> 0 | P72: =SUMIF(OpsCashFlow!$I$9:$FS$9,P$8,OpsCashFlow!$I72:$FS72) -> 0 | Q72: =SUMIF(OpsCashFlow!$I$9:$FS$9,Q$8,OpsCashFlow!$I72:$FS72) -> 0 | R72: =SUMIF(OpsCashFlow!$I$9:$FS$9,R$8,OpsCashFlow!$I72:$FS72) -> 0 | S72: =SUMIF(OpsCashFlow!$I$9:$FS$9,S$8,OpsCashFlow!$I72:$FS72) -> 0 | T72: =SUMIF(OpsCashFlow!$I$9:$FS$9,T$8,OpsCashFlow!$I72:$FS72) -> 0 | U72: =SUMIF(OpsCashFlow!$I$9:$FS$9,U$8,OpsCashFlow!$I72:$FS72) -> 0 | V72: =SUMIF(OpsCashFlow!$I$9:$FS$9,V$8,OpsCashFlow!$I72:$FS72) -> 0 | W72: =SUMIF(OpsCashFlow!$I$9:$FS$9,W$8,OpsCashFlow!$I72:$FS72) -> 0 | X72: =SUMIF(OpsCashFlow!$I$9:$FS$9,X$8,OpsCashFlow!$I72:$FS72) -> 0 | Y72: =SUMIF(OpsCashFlow!$I$9:$FS$9,Y$8,OpsCashFlow!$I72:$FS72) -> 0 | Z72: =SUMIF(OpsCashFlow!$I$9:$FS$9,Z$8,OpsCashFlow!$I72:$FS72) -> 0 | AA72: =SUMIF(OpsCashFlow!$I$9:$FS$9,AA$8,OpsCashFlow!$I72:$FS72) -> 0 | AB72: =SUMIF(OpsCashFlow!$I$9:$FS$9,AB$8,OpsCashFlow!$I72:$FS72) -> 0 | AC72: =SUMIF(OpsCashFlow!$I$9:$FS$9,AC$8,OpsCashFlow!$I72:$FS72) -> 0 | AD72: =SUMIF(OpsCashFlow!$I$9:$FS$9,AD$8,OpsCashFlow!$I72:$FS72) -> 0 | AE72: =SUMIF(OpsCashFlow!$I$9:$FS$9,AE$8,OpsCashFlow!$I72:$FS72) -> 0 | AF72: =SUMIF(OpsCashFlow!$I$9:$FS$9,AF$8,OpsCashFlow!$I72:$FS72) -> 0 | AG72: =SUMIF(OpsCashFlow!$I$9:$FS$9,AG$8,OpsCashFlow!$I72:$FS72) -> 0 | AH72: =SUMIF(OpsCashFlow!$I$9:$FS$9,AH$8,OpsCashFlow!$I72:$FS72) -> 0 | AI72: =SUMIF(OpsCashFlow!$I$9:$FS$9,AI$8,OpsCashFlow!$I72:$FS72) -> 0 | AJ72: =SUMIF(OpsCashFlow!$I$9:$FS$9,AJ$8,OpsCashFlow!$I72:$FS72) -> 0 | AK72: =SUMIF(OpsCashFlow!$I$9:$FS$9,AK$8,OpsCashFlow!$I72:$FS72) -> 0 | AL72: =SUMIF(OpsCashFlow!$I$9:$FS$9,AL$8,OpsCashFlow!$I72:$FS72) -> 0 | AM72: =SUMIF(OpsCashFlow!$I$9:$FS$9,AM$8,OpsCashFlow!$I72:$FS72) -> 0 | AN72: =SUMIF(OpsCashFlow!$I$9:$FS$9,AN$8,OpsCashFlow!$I72:$FS72) -> 0 | AO72: =SUMIF(OpsCashFlow!$I$9:$FS$9,AO$8,OpsCashFlow!$I72:$FS72) -> 0 | AP72: =SUMIF(OpsCashFlow!$I$9:$FS$9,AP$8,OpsCashFlow!$I72:$FS72) -> 0 | AQ72: =SUMIF(OpsCashFlow!$I$9:$FS$9,AQ$8,OpsCashFlow!$I72:$FS72) -> 0 | AR72: =SUMIF(OpsCashFlow!$I$9:$FS$9,AR$8,OpsCashFlow!$I72:$FS72) -> 0 | AS72: =SUMIF(OpsCashFlow!$I$9:$FS$9,AS$8,OpsCashFlow!$I72:$FS72) -> 0 | AT72: =SUMIF(OpsCashFlow!$I$9:$FS$9,AT$8,OpsCashFlow!$I72:$FS72) -> 0 | AU72: =SUMIF(OpsCashFlow!$I$9:$FS$9,AU$8,OpsCashFlow!$I72:$FS72) -> 0 | AV72: =SUMIF(OpsCashFlow!$I$9:$FS$9,AV$8,OpsCashFlow!$I72:$FS72) -> 0
C73: =OpsCashFlow!C73 -> less: TIFIA Debt Redemption | H73: 0 | I73: =SUMIF(OpsCashFlow!$I$9:$FS$9,I$8,OpsCashFlow!$I73:$FS73) -> 0 | J73: =SUMIF(OpsCashFlow!$I$9:$FS$9,J$8,OpsCashFlow!$I73:$FS73) -> 0 | K73: =SUMIF(OpsCashFlow!$I$9:$FS$9,K$8,OpsCashFlow!$I73:$FS73) -> 0 | L73: =SUMIF(OpsCashFlow!$I$9:$FS$9,L$8,OpsCashFlow!$I73:$FS73) -> 0 | M73: =SUMIF(OpsCashFlow!$I$9:$FS$9,M$8,OpsCashFlow!$I73:$FS73) -> 0 | N73: =SUMIF(OpsCashFlow!$I$9:$FS$9,N$8,OpsCashFlow!$I73:$FS73) -> 0 | O73: =SUMIF(OpsCashFlow!$I$9:$FS$9,O$8,OpsCashFlow!$I73:$FS73) -> 0 | P73: =SUMIF(OpsCashFlow!$I$9:$FS$9,P$8,OpsCashFlow!$I73:$FS73) -> 0 | Q73: =SUMIF(OpsCashFlow!$I$9:$FS$9,Q$8,OpsCashFlow!$I73:$FS73) -> 0 | R73: =SUMIF(OpsCashFlow!$I$9:$FS$9,R$8,OpsCashFlow!$I73:$FS73) -> 0 | S73: =SUMIF(OpsCashFlow!$I$9:$FS$9,S$8,OpsCashFlow!$I73:$FS73) -> 0 | T73: =SUMIF(OpsCashFlow!$I$9:$FS$9,T$8,OpsCashFlow!$I73:$FS73) -> 0 | U73: =SUMIF(OpsCashFlow!$I$9:$FS$9,U$8,OpsCashFlow!$I73:$FS73) -> 0 | V73: =SUMIF(OpsCashFlow!$I$9:$FS$9,V$8,OpsCashFlow!$I73:$FS73) -> 0 | W73: =SUMIF(OpsCashFlow!$I$9:$FS$9,W$8,OpsCashFlow!$I73:$FS73) -> 0 | X73: =SUMIF(OpsCashFlow!$I$9:$FS$9,X$8,OpsCashFlow!$I73:$FS73) -> 0 | Y73: =SUMIF(OpsCashFlow!$I$9:$FS$9,Y$8,OpsCashFlow!$I73:$FS73) -> 0 | Z73: =SUMIF(OpsCashFlow!$I$9:$FS$9,Z$8,OpsCashFlow!$I73:$FS73) -> 0 | AA73: =SUMIF(OpsCashFlow!$I$9:$FS$9,AA$8,OpsCashFlow!$I73:$FS73) -> 0 | AB73: =SUMIF(OpsCashFlow!$I$9:$FS$9,AB$8,OpsCashFlow!$I73:$FS73) -> 0 | AC73: =SUMIF(OpsCashFlow!$I$9:$FS$9,AC$8,OpsCashFlow!$I73:$FS73) -> 0 | AD73: =SUMIF(OpsCashFlow!$I$9:$FS$9,AD$8,OpsCashFlow!$I73:$FS73) -> 0 | AE73: =SUMIF(OpsCashFlow!$I$9:$FS$9,AE$8,OpsCashFlow!$I73:$FS73) -> 0 | AF73: =SUMIF(OpsCashFlow!$I$9:$FS$9,AF$8,OpsCashFlow!$I73:$FS73) -> 0 | AG73: =SUMIF(OpsCashFlow!$I$9:$FS$9,AG$8,OpsCashFlow!$I73:$FS73) -> 0 | AH73: =SUMIF(OpsCashFlow!$I$9:$FS$9,AH$8,OpsCashFlow!$I73:$FS73) -> 0 | AI73: =SUMIF(OpsCashFlow!$I$9:$FS$9,AI$8,OpsCashFlow!$I73:$FS73) -> 0 | AJ73: =SUMIF(OpsCashFlow!$I$9:$FS$9,AJ$8,OpsCashFlow!$I73:$FS73) -> 0 | AK73: =SUMIF(OpsCashFlow!$I$9:$FS$9,AK$8,OpsCashFlow!$I73:$FS73) -> 0 | AL73: =SUMIF(OpsCashFlow!$I$9:$FS$9,AL$8,OpsCashFlow!$I73:$FS73) -> 0 | AM73: =SUMIF(OpsCashFlow!$I$9:$FS$9,AM$8,OpsCashFlow!$I73:$FS73) -> 0 | AN73: =SUMIF(OpsCashFlow!$I$9:$FS$9,AN$8,OpsCashFlow!$I73:$FS73) -> 0 | AO73: =SUMIF(OpsCashFlow!$I$9:$FS$9,AO$8,OpsCashFlow!$I73:$FS73) -> 0 | AP73: =SUMIF(OpsCashFlow!$I$9:$FS$9,AP$8,OpsCashFlow!$I73:$FS73) -> 0 | AQ73: =SUMIF(OpsCashFlow!$I$9:$FS$9,AQ$8,OpsCashFlow!$I73:$FS73) -> 0 | AR73: =SUMIF(OpsCashFlow!$I$9:$FS$9,AR$8,OpsCashFlow!$I73:$FS73) -> 0 | AS73: =SUMIF(OpsCashFlow!$I$9:$FS$9,AS$8,OpsCashFlow!$I73:$FS73) -> 0 | AT73: =SUMIF(OpsCashFlow!$I$9:$FS$9,AT$8,OpsCashFlow!$I73:$FS73) -> 0 | AU73: =SUMIF(OpsCashFlow!$I$9:$FS$9,AU$8,OpsCashFlow!$I73:$FS73) -> 0 | AV73: =SUMIF(OpsCashFlow!$I$9:$FS$9,AV$8,OpsCashFlow!$I73:$FS73) -> 0
C74: =OpsCashFlow!C74 -> Net Refinancing Proceeds | H74: 0 | I74: =SUMIF(OpsCashFlow!$I$9:$FS$9,I$8,OpsCashFlow!$I74:$FS74) -> 0 | J74: =SUMIF(OpsCashFlow!$I$9:$FS$9,J$8,OpsCashFlow!$I74:$FS74) -> 0 | K74: =SUMIF(OpsCashFlow!$I$9:$FS$9,K$8,OpsCashFlow!$I74:$FS74) -> 0 | L74: =SUMIF(OpsCashFlow!$I$9:$FS$9,L$8,OpsCashFlow!$I74:$FS74) -> 0 | M74: =SUMIF(OpsCashFlow!$I$9:$FS$9,M$8,OpsCashFlow!$I74:$FS74) -> 0 | N74: =SUMIF(OpsCashFlow!$I$9:$FS$9,N$8,OpsCashFlow!$I74:$FS74) -> 0 | O74: =SUMIF(OpsCashFlow!$I$9:$FS$9,O$8,OpsCashFlow!$I74:$FS74) -> 0 | P74: =SUMIF(OpsCashFlow!$I$9:$FS$9,P$8,OpsCashFlow!$I74:$FS74) -> 0 | Q74: =SUMIF(OpsCashFlow!$I$9:$FS$9,Q$8,OpsCashFlow!$I74:$FS74) -> 0 | R74: =SUMIF(OpsCashFlow!$I$9:$FS$9,R$8,OpsCashFlow!$I74:$FS74) -> 0 | S74: =SUMIF(OpsCashFlow!$I$9:$FS$9,S$8,OpsCashFlow!$I74:$FS74) -> 0 | T74: =SUMIF(OpsCashFlow!$I$9:$FS$9,T$8,OpsCashFlow!$I74:$FS74) -> 0 | U74: =SUMIF(OpsCashFlow!$I$9:$FS$9,U$8,OpsCashFlow!$I74:$FS74) -> 0 | V74: =SUMIF(OpsCashFlow!$I$9:$FS$9,V$8,OpsCashFlow!$I74:$FS74) -> 0 | W74: =SUMIF(OpsCashFlow!$I$9:$FS$9,W$8,OpsCashFlow!$I74:$FS74) -> 0 | X74: =SUMIF(OpsCashFlow!$I$9:$FS$9,X$8,OpsCashFlow!$I74:$FS74) -> 0 | Y74: =SUMIF(OpsCashFlow!$I$9:$FS$9,Y$8,OpsCashFlow!$I74:$FS74) -> 0 | Z74: =SUMIF(OpsCashFlow!$I$9:$FS$9,Z$8,OpsCashFlow!$I74:$FS74) -> 0 | AA74: =SUMIF(OpsCashFlow!$I$9:$FS$9,AA$8,OpsCashFlow!$I74:$FS74) -> 0 | AB74: =SUMIF(OpsCashFlow!$I$9:$FS$9,AB$8,OpsCashFlow!$I74:$FS74) -> 0 | AC74: =SUMIF(OpsCashFlow!$I$9:$FS$9,AC$8,OpsCashFlow!$I74:$FS74) -> 0 | AD74: =SUMIF(OpsCashFlow!$I$9:$FS$9,AD$8,OpsCashFlow!$I74:$FS74) -> 0 | AE74: =SUMIF(OpsCashFlow!$I$9:$FS$9,AE$8,OpsCashFlow!$I74:$FS74) -> 0 | AF74: =SUMIF(OpsCashFlow!$I$9:$FS$9,AF$8,OpsCashFlow!$I74:$FS74) -> 0 | AG74: =SUMIF(OpsCashFlow!$I$9:$FS$9,AG$8,OpsCashFlow!$I74:$FS74) -> 0 | AH74: =SUMIF(OpsCashFlow!$I$9:$FS$9,AH$8,OpsCashFlow!$I74:$FS74) -> 0 | AI74: =SUMIF(OpsCashFlow!$I$9:$FS$9,AI$8,OpsCashFlow!$I74:$FS74) -> 0 | AJ74: =SUMIF(OpsCashFlow!$I$9:$FS$9,AJ$8,OpsCashFlow!$I74:$FS74) -> 0 | AK74: =SUMIF(OpsCashFlow!$I$9:$FS$9,AK$8,OpsCashFlow!$I74:$FS74) -> 0 | AL74: =SUMIF(OpsCashFlow!$I$9:$FS$9,AL$8,OpsCashFlow!$I74:$FS74) -> 0 | AM74: =SUMIF(OpsCashFlow!$I$9:$FS$9,AM$8,OpsCashFlow!$I74:$FS74) -> 0 | AN74: =SUMIF(OpsCashFlow!$I$9:$FS$9,AN$8,OpsCashFlow!$I74:$FS74) -> 0 | AO74: =SUMIF(OpsCashFlow!$I$9:$FS$9,AO$8,OpsCashFlow!$I74:$FS74) -> 0 | AP74: =SUMIF(OpsCashFlow!$I$9:$FS$9,AP$8,OpsCashFlow!$I74:$FS74) -> 0 | AQ74: =SUMIF(OpsCashFlow!$I$9:$FS$9,AQ$8,OpsCashFlow!$I74:$FS74) -> 0 | AR74: =SUMIF(OpsCashFlow!$I$9:$FS$9,AR$8,OpsCashFlow!$I74:$FS74) -> 0 | AS74: =SUMIF(OpsCashFlow!$I$9:$FS$9,AS$8,OpsCashFlow!$I74:$FS74) -> 0 | AT74: =SUMIF(OpsCashFlow!$I$9:$FS$9,AT$8,OpsCashFlow!$I74:$FS74) -> 0 | AU74: =SUMIF(OpsCashFlow!$I$9:$FS$9,AU$8,OpsCashFlow!$I74:$FS74) -> 0 | AV74: =SUMIF(OpsCashFlow!$I$9:$FS$9,AV$8,OpsCashFlow!$I74:$FS74) -> 0
C76: =OpsCashFlow!C76 -> Total Cash to Equity | H76: =SUM(I76:AV76) -> 3970867.384 | I76: =SUMIF(OpsCashFlow!$I$9:$FS$9,I$8,OpsCashFlow!$I76:$FS76) -> 0 | J76: =SUMIF(OpsCashFlow!$I$9:$FS$9,J$8,OpsCashFlow!$I76:$FS76) -> 0 | K76: =SUMIF(OpsCashFlow!$I$9:$FS$9,K$8,OpsCashFlow!$I76:$FS76) -> 0 | L76: =SUMIF(OpsCashFlow!$I$9:$FS$9,L$8,OpsCashFlow!$I76:$FS76) -> 0 | M76: =SUMIF(OpsCashFlow!$I$9:$FS$9,M$8,OpsCashFlow!$I76:$FS76) -> 0 | N76: =SUMIF(OpsCashFlow!$I$9:$FS$9,N$8,OpsCashFlow!$I76:$FS76) -> 0 | O76: =SUMIF(OpsCashFlow!$I$9:$FS$9,O$8,OpsCashFlow!$I76:$FS76) -> 0 | P76: =SUMIF(OpsCashFlow!$I$9:$FS$9,P$8,OpsCashFlow!$I76:$FS76) -> 53081.81795 | Q76: =SUMIF(OpsCashFlow!$I$9:$FS$9,Q$8,OpsCashFlow!$I76:$FS76) -> 14026.3291 | R76: =SUMIF(OpsCashFlow!$I$9:$FS$9,R$8,OpsCashFlow!$I76:$FS76) -> 30676.02141 | S76: =SUMIF(OpsCashFlow!$I$9:$FS$9,S$8,OpsCashFlow!$I76:$FS76) -> 6287.630562 | T76: =SUMIF(OpsCashFlow!$I$9:$FS$9,T$8,OpsCashFlow!$I76:$FS76) -> 2631.419301 | U76: =SUMIF(OpsCashFlow!$I$9:$FS$9,U$8,OpsCashFlow!$I76:$FS76) -> 0 | V76: =SUMIF(OpsCashFlow!$I$9:$FS$9,V$8,OpsCashFlow!$I76:$FS76) -> 0 | W76: =SUMIF(OpsCashFlow!$I$9:$FS$9,W$8,OpsCashFlow!$I76:$FS76) -> 0 | X76: =SUMIF(OpsCashFlow!$I$9:$FS$9,X$8,OpsCashFlow!$I76:$FS76) -> 0 | Y76: =SUMIF(OpsCashFlow!$I$9:$FS$9,Y$8,OpsCashFlow!$I76:$FS76) -> 26312.33782 | Z76: =SUMIF(OpsCashFlow!$I$9:$FS$9,Z$8,OpsCashFlow!$I76:$FS76) -> 82742.77843 | AA76: =SUMIF(OpsCashFlow!$I$9:$FS$9,AA$8,OpsCashFlow!$I76:$FS76) -> 94749.04732 | AB76: =SUMIF(OpsCashFlow!$I$9:$FS$9,AB$8,OpsCashFlow!$I76:$FS76) -> 105662.0949 | AC76: =SUMIF(OpsCashFlow!$I$9:$FS$9,AC$8,OpsCashFlow!$I76:$FS76) -> 116038.3644 | AD76: =SUMIF(OpsCashFlow!$I$9:$FS$9,AD$8,OpsCashFlow!$I76:$FS76) -> 123814.8238 | AE76: =SUMIF(OpsCashFlow!$I$9:$FS$9,AE$8,OpsCashFlow!$I76:$FS76) -> 134172.5846 | AF76: =SUMIF(OpsCashFlow!$I$9:$FS$9,AF$8,OpsCashFlow!$I76:$FS76) -> 145402.1267 | AG76: =SUMIF(OpsCashFlow!$I$9:$FS$9,AG$8,OpsCashFlow!$I76:$FS76) -> 156356.3978 | AH76: =SUMIF(OpsCashFlow!$I$9:$FS$9,AH$8,OpsCashFlow!$I76:$FS76) -> 162627.2919 | AI76: =SUMIF(OpsCashFlow!$I$9:$FS$9,AI$8,OpsCashFlow!$I76:$FS76) -> 172277.8791 | AJ76: =SUMIF(OpsCashFlow!$I$9:$FS$9,AJ$8,OpsCashFlow!$I76:$FS76) -> 177747.6814 | AK76: =SUMIF(OpsCashFlow!$I$9:$FS$9,AK$8,OpsCashFlow!$I76:$FS76) -> 153639.9802 | AL76: =SUMIF(OpsCashFlow!$I$9:$FS$9,AL$8,OpsCashFlow!$I76:$FS76) -> 159619.1198 | AM76: =SUMIF(OpsCashFlow!$I$9:$FS$9,AM$8,OpsCashFlow!$I76:$FS76) -> 170556.6559 | AN76: =SUMIF(OpsCashFlow!$I$9:$FS$9,AN$8,OpsCashFlow!$I76:$FS76) -> 178934.9906 | AO76: =SUMIF(OpsCashFlow!$I$9:$FS$9,AO$8,OpsCashFlow!$I76:$FS76) -> 190980.975 | AP76: =SUMIF(OpsCashFlow!$I$9:$FS$9,AP$8,OpsCashFlow!$I76:$FS76) -> 197737.5479 | AQ76: =SUMIF(OpsCashFlow!$I$9:$FS$9,AQ$8,OpsCashFlow!$I76:$FS76) -> 203911.1124 | AR76: =SUMIF(OpsCashFlow!$I$9:$FS$9,AR$8,OpsCashFlow!$I76:$FS76) -> 212457.9955 | AS76: =SUMIF(OpsCashFlow!$I$9:$FS$9,AS$8,OpsCashFlow!$I76:$FS76) -> 225169.4545 | AT76: =SUMIF(OpsCashFlow!$I$9:$FS$9,AT$8,OpsCashFlow!$I76:$FS76) -> 237513.7007 | AU76: =SUMIF(OpsCashFlow!$I$9:$FS$9,AU$8,OpsCashFlow!$I76:$FS76) -> 244506.3038 | AV76: =SUMIF(OpsCashFlow!$I$9:$FS$9,AV$8,OpsCashFlow!$I76:$FS76) -> 191232.9209
A80: Coverage Ratios
C82: Debt Service Coverage Ratios
C83: =CoverageRatios!C68 -> Senior DSCR | I83: =IF(SUMIF(CoverageRatios!$I$8:$FG$8,I$7,CoverageRatios!$I$68:$FG$68)=0,"N/A",SUMIF(CoverageRatios!$I$8:$FG$8,I$7,CoverageRatios!$I$68:$FG$68)) -> N/A | J83: =IF(SUMIF(CoverageRatios!$I$8:$FG$8,J$7,CoverageRatios!$I$68:$FG$68)=0,"N/A",SUMIF(CoverageRatios!$I$8:$FG$8,J$7,CoverageRatios!$I$68:$FG$68)) -> N/A | K83: =IF(SUMIF(CoverageRatios!$I$8:$FG$8,K$7,CoverageRatios!$I$68:$FG$68)=0,"N/A",SUMIF(CoverageRatios!$I$8:$FG$8,K$7,CoverageRatios!$I$68:$FG$68)) -> N/A | L83: =IF(SUMIF(CoverageRatios!$I$8:$FG$8,L$7,CoverageRatios!$I$68:$FG$68)=0,"N/A",SUMIF(CoverageRatios!$I$8:$FG$8,L$7,CoverageRatios!$I$68:$FG$68)) -> N/A | M83: =IF(SUMIF(CoverageRatios!$I$8:$FG$8,M$7,CoverageRatios!$I$68:$FG$68)=0,"N/A",SUMIF(CoverageRatios!$I$8:$FG$8,M$7,CoverageRatios!$I$68:$FG$68)) -> N/A | N83: =IF(SUMIF(CoverageRatios!$I$8:$FG$8,N$7,CoverageRatios!$I$68:$FG$68)=0,"N/A",SUMIF(CoverageRatios!$I$8:$FG$8,N$7,CoverageRatios!$I$68:$FG$68)) -> N/A | O83: =IF(SUMIF(CoverageRatios!$I$8:$FG$8,O$7,CoverageRatios!$I$68:$FG$68)=0,"N/A",SUMIF(CoverageRatios!$I$8:$FG$8,O$7,CoverageRatios!$I$68:$FG$68)) -> N/A | P83: =IF(SUMIF(CoverageRatios!$I$8:$FG$8,P$7,CoverageRatios!$I$68:$FG$68)=0,"N/A",SUMIF(CoverageRatios!$I$8:$FG$8,P$7,CoverageRatios!$I$68:$FG$68)) -> 1.985363484 | Q83: =IF(SUMIF(CoverageRatios!$I$8:$FG$8,Q$7,CoverageRatios!$I$68:$FG$68)=0,"N/A",SUMIF(CoverageRatios!$I$8:$FG$8,Q$7,CoverageRatios!$I$68:$FG$68)) -> 2.260507025 | R83: =IF(SUMIF(CoverageRatios!$I$8:$FG$8,R$7,CoverageRatios!$I$68:$FG$68)=0,"N/A",SUMIF(CoverageRatios!$I$8:$FG$8,R$7,CoverageRatios!$I$68:$FG$68)) -> 2.443752245 | S83: =IF(SUMIF(CoverageRatios!$I$8:$FG$8,S$7,CoverageRatios!$I$68:$FG$68)=0,"N/A",SUMIF(CoverageRatios!$I$8:$FG$8,S$7,CoverageRatios!$I$68:$FG$68)) -> 2.851851314 | T83: =IF(SUMIF(CoverageRatios!$I$8:$FG$8,T$7,CoverageRatios!$I$68:$FG$68)=0,"N/A",SUMIF(CoverageRatios!$I$8:$FG$8,T$7,CoverageRatios!$I$68:$FG$68)) -> 3.468735517 | U83: =IF(SUMIF(CoverageRatios!$I$8:$FG$8,U$7,CoverageRatios!$I$68:$FG$68)=0,"N/A",SUMIF(CoverageRatios!$I$8:$FG$8,U$7,CoverageRatios!$I$68:$FG$68)) -> 3.637619259 | V83: =IF(SUMIF(CoverageRatios!$I$8:$FG$8,V$7,CoverageRatios!$I$68:$FG$68)=0,"N/A",SUMIF(CoverageRatios!$I$8:$FG$8,V$7,CoverageRatios!$I$68:$FG$68)) -> 4.817927251 | W83: =IF(SUMIF(CoverageRatios!$I$8:$FG$8,W$7,CoverageRatios!$I$68:$FG$68)=0,"N/A",SUMIF(CoverageRatios!$I$8:$FG$8,W$7,CoverageRatios!$I$68:$FG$68)) -> 7.865457768 | X83: =IF(SUMIF(CoverageRatios!$I$8:$FG$8,X$7,CoverageRatios!$I$68:$FG$68)=0,"N/A",SUMIF(CoverageRatios!$I$8:$FG$8,X$7,CoverageRatios!$I$68:$FG$68)) -> 13.58312434 | Y83: =IF(SUMIF(CoverageRatios!$I$8:$FG$8,Y$7,CoverageRatios!$I$68:$FG$68)=0,"N/A",SUMIF(CoverageRatios!$I$8:$FG$8,Y$7,CoverageRatios!$I$68:$FG$68)) -> 58.09963412 | Z83: =IF(SUMIF(CoverageRatios!$I$8:$FG$8,Z$7,CoverageRatios!$I$68:$FG$68)=0,"N/A",SUMIF(CoverageRatios!$I$8:$FG$8,Z$7,CoverageRatios!$I$68:$FG$68)) -> N/A | AA83: =IF(SUMIF(CoverageRatios!$I$8:$FG$8,AA$7,CoverageRatios!$I$68:$FG$68)=0,"N/A",SUMIF(CoverageRatios!$I$8:$FG$8,AA$7,CoverageRatios!$I$68:$FG$68)) -> N/A | AB83: =IF(SUMIF(CoverageRatios!$I$8:$FG$8,AB$7,CoverageRatios!$I$68:$FG$68)=0,"N/A",SUMIF(CoverageRatios!$I$8:$FG$8,AB$7,CoverageRatios!$I$68:$FG$68)) -> N/A | AC83: =IF(SUMIF(CoverageRatios!$I$8:$FG$8,AC$7,CoverageRatios!$I$68:$FG$68)=0,"N/A",SUMIF(CoverageRatios!$I$8:$FG$8,AC$7,CoverageRatios!$I$68:$FG$68)) -> N/A | AD83: =IF(SUMIF(CoverageRatios!$I$8:$FG$8,AD$7,CoverageRatios!$I$68:$FG$68)=0,"N/A",SUMIF(CoverageRatios!$I$8:$FG$8,AD$7,CoverageRatios!$I$68:$FG$68)) -> N/A | AE83: =IF(SUMIF(CoverageRatios!$I$8:$FG$8,AE$7,CoverageRatios!$I$68:$FG$68)=0,"N/A",SUMIF(CoverageRatios!$I$8:$FG$8,AE$7,CoverageRatios!$I$68:$FG$68)) -> N/A | AF83: =IF(SUMIF(CoverageRatios!$I$8:$FG$8,AF$7,CoverageRatios!$I$68:$FG$68)=0,"N/A",SUMIF(CoverageRatios!$I$8:$FG$8,AF$7,CoverageRatios!$I$68:$FG$68)) -> N/A | AG83: =IF(SUMIF(CoverageRatios!$I$8:$FG$8,AG$7,CoverageRatios!$I$68:$FG$68)=0,"N/A",SUMIF(CoverageRatios!$I$8:$FG$8,AG$7,CoverageRatios!$I$68:$FG$68)) -> N/A | AH83: =IF(SUMIF(CoverageRatios!$I$8:$FG$8,AH$7,CoverageRatios!$I$68:$FG$68)=0,"N/A",SUMIF(CoverageRatios!$I$8:$FG$8,AH$7,CoverageRatios!$I$68:$FG$68)) -> N/A | AI83: =IF(SUMIF(CoverageRatios!$I$8:$FG$8,AI$7,CoverageRatios!$I$68:$FG$68)=0,"N/A",SUMIF(CoverageRatios!$I$8:$FG$8,AI$7,CoverageRatios!$I$68:$FG$68)) -> N/A | AJ83: =IF(SUMIF(CoverageRatios!$I$8:$FG$8,AJ$7,CoverageRatios!$I$68:$FG$68)=0,"N/A",SUMIF(CoverageRatios!$I$8:$FG$8,AJ$7,CoverageRatios!$I$68:$FG$68)) -> N/A | AK83: =IF(SUMIF(CoverageRatios!$I$8:$FG$8,AK$7,CoverageRatios!$I$68:$FG$68)=0,"N/A",SUMIF(CoverageRatios!$I$8:$FG$8,AK$7,CoverageRatios!$I$68:$FG$68)) -> N/A | AL83: =IF(SUMIF(CoverageRatios!$I$8:$FG$8,AL$7,CoverageRatios!$I$68:$FG$68)=0,"N/A",SUMIF(CoverageRatios!$I$8:$FG$8,AL$7,CoverageRatios!$I$68:$FG$68)) -> N/A | AM83: =IF(SUMIF(CoverageRatios!$I$8:$FG$8,AM$7,CoverageRatios!$I$68:$FG$68)=0,"N/A",SUMIF(CoverageRatios!$I$8:$FG$8,AM$7,CoverageRatios!$I$68:$FG$68)) -> N/A | AN83: =IF(SUMIF(CoverageRatios!$I$8:$FG$8,AN$7,CoverageRatios!$I$68:$FG$68)=0,"N/A",SUMIF(CoverageRatios!$I$8:$FG$8,AN$7,CoverageRatios!$I$68:$FG$68)) -> N/A | AO83: =IF(SUMIF(CoverageRatios!$I$8:$FG$8,AO$7,CoverageRatios!$I$68:$FG$68)=0,"N/A",SUMIF(CoverageRatios!$I$8:$FG$8,AO$7,CoverageRatios!$I$68:$FG$68)) -> N/A | AP83: =IF(SUMIF(CoverageRatios!$I$8:$FG$8,AP$7,CoverageRatios!$I$68:$FG$68)=0,"N/A",SUMIF(CoverageRatios!$I$8:$FG$8,AP$7,CoverageRatios!$I$68:$FG$68)) -> N/A | AQ83: =IF(SUMIF(CoverageRatios!$I$8:$FG$8,AQ$7,CoverageRatios!$I$68:$FG$68)=0,"N/A",SUMIF(CoverageRatios!$I$8:$FG$8,AQ$7,CoverageRatios!$I$68:$FG$68)) -> N/A | AR83: =IF(SUMIF(CoverageRatios!$I$8:$FG$8,AR$7,CoverageRatios!$I$68:$FG$68)=0,"N/A",SUMIF(CoverageRatios!$I$8:$FG$8,AR$7,CoverageRatios!$I$68:$FG$68)) -> N/A | AS83: =IF(SUMIF(CoverageRatios!$I$8:$FG$8,AS$7,CoverageRatios!$I$68:$FG$68)=0,"N/A",SUMIF(CoverageRatios!$I$8:$FG$8,AS$7,CoverageRatios!$I$68:$FG$68)) -> N/A | AT83: =IF(SUMIF(CoverageRatios!$I$8:$FG$8,AT$7,CoverageRatios!$I$68:$FG$68)=0,"N/A",SUMIF(CoverageRatios!$I$8:$FG$8,AT$7,CoverageRatios!$I$68:$FG$68)) -> N/A | AU83: =IF(SUMIF(CoverageRatios!$I$8:$FG$8,AU$7,CoverageRatios!$I$68:$FG$68)=0,"N/A",SUMIF(CoverageRatios!$I$8:$FG$8,AU$7,CoverageRatios!$I$68:$FG$68)) -> N/A
C84: =CoverageRatios!C71 -> Total Mandatory DSCR | I84: =IF(SUMIF(CoverageRatios!$I$8:$FG$8,I$7,CoverageRatios!$I$71:$FG$71)=0,"N/A",SUMIF(CoverageRatios!$I$8:$FG$8,I$7,CoverageRatios!$I$71:$FG$71)) -> N/A | J84: =IF(SUMIF(CoverageRatios!$I$8:$FG$8,J$7,CoverageRatios!$I$71:$FG$71)=0,"N/A",SUMIF(CoverageRatios!$I$8:$FG$8,J$7,CoverageRatios!$I$71:$FG$71)) -> N/A | K84: =IF(SUMIF(CoverageRatios!$I$8:$FG$8,K$7,CoverageRatios!$I$71:$FG$71)=0,"N/A",SUMIF(CoverageRatios!$I$8:$FG$8,K$7,CoverageRatios!$I$71:$FG$71)) -> N/A | L84: =IF(SUMIF(CoverageRatios!$I$8:$FG$8,L$7,CoverageRatios!$I$71:$FG$71)=0,"N/A",SUMIF(CoverageRatios!$I$8:$FG$8,L$7,CoverageRatios!$I$71:$FG$71)) -> N/A | M84: =IF(SUMIF(CoverageRatios!$I$8:$FG$8,M$7,CoverageRatios!$I$71:$FG$71)=0,"N/A",SUMIF(CoverageRatios!$I$8:$FG$8,M$7,CoverageRatios!$I$71:$FG$71)) -> N/A | N84: =IF(SUMIF(CoverageRatios!$I$8:$FG$8,N$7,CoverageRatios!$I$71:$FG$71)=0,"N/A",SUMIF(CoverageRatios!$I$8:$FG$8,N$7,CoverageRatios!$I$71:$FG$71)) -> N/A | O84: =IF(SUMIF(CoverageRatios!$I$8:$FG$8,O$7,CoverageRatios!$I$71:$FG$71)=0,"N/A",SUMIF(CoverageRatios!$I$8:$FG$8,O$7,CoverageRatios!$I$71:$FG$71)) -> N/A | P84: =IF(SUMIF(CoverageRatios!$I$8:$FG$8,P$7,CoverageRatios!$I$71:$FG$71)=0,"N/A",SUMIF(CoverageRatios!$I$8:$FG$8,P$7,CoverageRatios!$I$71:$FG$71)) -> 1.985363484 | Q84: =IF(SUMIF(CoverageRatios!$I$8:$FG$8,Q$7,CoverageRatios!$I$71:$FG$71)=0,"N/A",SUMIF(CoverageRatios!$I$8:$FG$8,Q$7,CoverageRatios!$I$71:$FG$71)) -> 2.260507025 | R84: =IF(SUMIF(CoverageRatios!$I$8:$FG$8,R$7,CoverageRatios!$I$71:$FG$71)=0,"N/A",SUMIF(CoverageRatios!$I$8:$FG$8,R$7,CoverageRatios!$I$71:$FG$71)) -> 2.423337948 | S84: =IF(SUMIF(CoverageRatios!$I$8:$FG$8,S$7,CoverageRatios!$I$71:$FG$71)=0,"N/A",SUMIF(CoverageRatios!$I$8:$FG$8,S$7,CoverageRatios!$I$71:$FG$71)) -> 2.50630062 | T84: =IF(SUMIF(CoverageRatios!$I$8:$FG$8,T$7,CoverageRatios!$I$71:$FG$71)=0,"N/A",SUMIF(CoverageRatios!$I$8:$FG$8,T$7,CoverageRatios!$I$71:$FG$71)) -> 2.933971086 | U84: =IF(SUMIF(CoverageRatios!$I$8:$FG$8,U$7,CoverageRatios!$I$71:$FG$71)=0,"N/A",SUMIF(CoverageRatios!$I$8:$FG$8,U$7,CoverageRatios!$I$71:$FG$71)) -> 2.946091855 | V84: =IF(SUMIF(CoverageRatios!$I$8:$FG$8,V$7,CoverageRatios!$I$71:$FG$71)=0,"N/A",SUMIF(CoverageRatios!$I$8:$FG$8,V$7,CoverageRatios!$I$71:$FG$71)) -> 3.61992071 | W84: =IF(SUMIF(CoverageRatios!$I$8:$FG$8,W$7,CoverageRatios!$I$71:$FG$71)=0,"N/A",SUMIF(CoverageRatios!$I$8:$FG$8,W$7,CoverageRatios!$I$71:$FG$71)) -> 5.205509084 | X84: =IF(SUMIF(CoverageRatios!$I$8:$FG$8,X$7,CoverageRatios!$I$71:$FG$71)=0,"N/A",SUMIF(CoverageRatios!$I$8:$FG$8,X$7,CoverageRatios!$I$71:$FG$71)) -> 6.806855214 | Y84: =IF(SUMIF(CoverageRatios!$I$8:$FG$8,Y$7,CoverageRatios!$I$71:$FG$71)=0,"N/A",SUMIF(CoverageRatios!$I$8:$FG$8,Y$7,CoverageRatios!$I$71:$FG$71)) -> 8.779183722 | Z84: =IF(SUMIF(CoverageRatios!$I$8:$FG$8,Z$7,CoverageRatios!$I$71:$FG$71)=0,"N/A",SUMIF(CoverageRatios!$I$8:$FG$8,Z$7,CoverageRatios!$I$71:$FG$71)) -> 7.751629992 | AA84: =IF(SUMIF(CoverageRatios!$I$8:$FG$8,AA$7,CoverageRatios!$I$71:$FG$71)=0,"N/A",SUMIF(CoverageRatios!$I$8:$FG$8,AA$7,CoverageRatios!$I$71:$FG$71)) -> 8.290121061 | AB84: =IF(SUMIF(CoverageRatios!$I$8:$FG$8,AB$7,CoverageRatios!$I$71:$FG$71)=0,"N/A",SUMIF(CoverageRatios!$I$8:$FG$8,AB$7,CoverageRatios!$I$71:$FG$71)) -> 9.367105221 | AC84: =IF(SUMIF(CoverageRatios!$I$8:$FG$8,AC$7,CoverageRatios!$I$71:$FG$71)=0,"N/A",SUMIF(CoverageRatios!$I$8:$FG$8,AC$7,CoverageRatios!$I$71:$FG$71)) -> 10.18878417 | AD84: =IF(SUMIF(CoverageRatios!$I$8:$FG$8,AD$7,CoverageRatios!$I$71:$FG$71)=0,"N/A",SUMIF(CoverageRatios!$I$8:$FG$8,AD$7,CoverageRatios!$I$71:$FG$71)) -> 10.80459213 | AE84: =IF(SUMIF(CoverageRatios!$I$8:$FG$8,AE$7,CoverageRatios!$I$71:$FG$71)=0,"N/A",SUMIF(CoverageRatios!$I$8:$FG$8,AE$7,CoverageRatios!$I$71:$FG$71)) -> 11.62457748 | AF84: =IF(SUMIF(CoverageRatios!$I$8:$FG$8,AF$7,CoverageRatios!$I$71:$FG$71)=0,"N/A",SUMIF(CoverageRatios!$I$8:$FG$8,AF$7,CoverageRatios!$I$71:$FG$71)) -> 12.5140618 | AG84: =IF(SUMIF(CoverageRatios!$I$8:$FG$8,AG$7,CoverageRatios!$I$71:$FG$71)=0,"N/A",SUMIF(CoverageRatios!$I$8:$FG$8,AG$7,CoverageRatios!$I$71:$FG$71)) -> 13.3815176 | AH84: =IF(SUMIF(CoverageRatios!$I$8:$FG$8,AH$7,CoverageRatios!$I$71:$FG$71)=0,"N/A",SUMIF(CoverageRatios!$I$8:$FG$8,AH$7,CoverageRatios!$I$71:$FG$71)) -> 13.87810832 | AI84: =IF(SUMIF(CoverageRatios!$I$8:$FG$8,AI$7,CoverageRatios!$I$71:$FG$71)=0,"N/A",SUMIF(CoverageRatios!$I$8:$FG$8,AI$7,CoverageRatios!$I$71:$FG$71)) -> 14.64200589 | AJ84: =IF(SUMIF(CoverageRatios!$I$8:$FG$8,AJ$7,CoverageRatios!$I$71:$FG$71)=0,"N/A",SUMIF(CoverageRatios!$I$8:$FG$8,AJ$7,CoverageRatios!$I$71:$FG$71)) -> 15.07548837 | AK84: =IF(SUMIF(CoverageRatios!$I$8:$FG$8,AK$7,CoverageRatios!$I$71:$FG$71)=0,"N/A",SUMIF(CoverageRatios!$I$8:$FG$8,AK$7,CoverageRatios!$I$71:$FG$71)) -> 13.16645837 | AL84: =IF(SUMIF(CoverageRatios!$I$8:$FG$8,AL$7,CoverageRatios!$I$71:$FG$71)=0,"N/A",SUMIF(CoverageRatios!$I$8:$FG$8,AL$7,CoverageRatios!$I$71:$FG$71)) -> 13.63994665 | AM84: =IF(SUMIF(CoverageRatios!$I$8:$FG$8,AM$7,CoverageRatios!$I$71:$FG$71)=0,"N/A",SUMIF(CoverageRatios!$I$8:$FG$8,AM$7,CoverageRatios!$I$71:$FG$71)) -> 14.50573283 | AN84: =IF(SUMIF(CoverageRatios!$I$8:$FG$8,AN$7,CoverageRatios!$I$71:$FG$71)=0,"N/A",SUMIF(CoverageRatios!$I$8:$FG$8,AN$7,CoverageRatios!$I$71:$FG$71)) -> 15.16956262 | AO84: =IF(SUMIF(CoverageRatios!$I$8:$FG$8,AO$7,CoverageRatios!$I$71:$FG$71)=0,"N/A",SUMIF(CoverageRatios!$I$8:$FG$8,AO$7,CoverageRatios!$I$71:$FG$71)) -> 16.12347696 | AP84: =IF(SUMIF(CoverageRatios!$I$8:$FG$8,AP$7,CoverageRatios!$I$71:$FG$71)=0,"N/A",SUMIF(CoverageRatios!$I$8:$FG$8,AP$7,CoverageRatios!$I$71:$FG$71)) -> 16.65853224 | AQ84: =IF(SUMIF(CoverageRatios!$I$8:$FG$8,AQ$7,CoverageRatios!$I$71:$FG$71)=0,"N/A",SUMIF(CoverageRatios!$I$8:$FG$8,AQ$7,CoverageRatios!$I$71:$FG$71)) -> 17.1469706 | AR84: =IF(SUMIF(CoverageRatios!$I$8:$FG$8,AR$7,CoverageRatios!$I$71:$FG$71)=0,"N/A",SUMIF(CoverageRatios!$I$8:$FG$8,AR$7,CoverageRatios!$I$71:$FG$71)) -> 17.82425193 | AS84: =IF(SUMIF(CoverageRatios!$I$8:$FG$8,AS$7,CoverageRatios!$I$71:$FG$71)=0,"N/A",SUMIF(CoverageRatios!$I$8:$FG$8,AS$7,CoverageRatios!$I$71:$FG$71)) -> 18.83086823 | AT84: =IF(SUMIF(CoverageRatios!$I$8:$FG$8,AT$7,CoverageRatios!$I$71:$FG$71)=0,"N/A",SUMIF(CoverageRatios!$I$8:$FG$8,AT$7,CoverageRatios!$I$71:$FG$71)) -> 19.80840643 | AU84: =IF(SUMIF(CoverageRatios!$I$8:$FG$8,AU$7,CoverageRatios!$I$71:$FG$71)=0,"N/A",SUMIF(CoverageRatios!$I$8:$FG$8,AU$7,CoverageRatios!$I$71:$FG$71)) -> N/A
C85: =CoverageRatios!C77 -> Total DSCR | I85: =IF(SUMIF(CoverageRatios!$I$8:$FG$8,I$7,CoverageRatios!$I$77:$FG$77)=0,"N/A",SUMIF(CoverageRatios!$I$8:$FG$8,I$7,CoverageRatios!$I$77:$FG$77)) -> N/A | J85: =IF(SUMIF(CoverageRatios!$I$8:$FG$8,J$7,CoverageRatios!$I$77:$FG$77)=0,"N/A",SUMIF(CoverageRatios!$I$8:$FG$8,J$7,CoverageRatios!$I$77:$FG$77)) -> N/A | K85: =IF(SUMIF(CoverageRatios!$I$8:$FG$8,K$7,CoverageRatios!$I$77:$FG$77)=0,"N/A",SUMIF(CoverageRatios!$I$8:$FG$8,K$7,CoverageRatios!$I$77:$FG$77)) -> N/A | L85: =IF(SUMIF(CoverageRatios!$I$8:$FG$8,L$7,CoverageRatios!$I$77:$FG$77)=0,"N/A",SUMIF(CoverageRatios!$I$8:$FG$8,L$7,CoverageRatios!$I$77:$FG$77)) -> N/A | M85: =IF(SUMIF(CoverageRatios!$I$8:$FG$8,M$7,CoverageRatios!$I$77:$FG$77)=0,"N/A",SUMIF(CoverageRatios!$I$8:$FG$8,M$7,CoverageRatios!$I$77:$FG$77)) -> N/A | N85: =IF(SUMIF(CoverageRatios!$I$8:$FG$8,N$7,CoverageRatios!$I$77:$FG$77)=0,"N/A",SUMIF(CoverageRatios!$I$8:$FG$8,N$7,CoverageRatios!$I$77:$FG$77)) -> N/A | O85: =IF(SUMIF(CoverageRatios!$I$8:$FG$8,O$7,CoverageRatios!$I$77:$FG$77)=0,"N/A",SUMIF(CoverageRatios!$I$8:$FG$8,O$7,CoverageRatios!$I$77:$FG$77)) -> N/A | P85: =IF(SUMIF(CoverageRatios!$I$8:$FG$8,P$7,CoverageRatios!$I$77:$FG$77)=0,"N/A",SUMIF(CoverageRatios!$I$8:$FG$8,P$7,CoverageRatios!$I$77:$FG$77)) -> 1.985363484 | Q85: =IF(SUMIF(CoverageRatios!$I$8:$FG$8,Q$7,CoverageRatios!$I$77:$FG$77)=0,"N/A",SUMIF(CoverageRatios!$I$8:$FG$8,Q$7,CoverageRatios!$I$77:$FG$77)) -> 1.573348441 | R85: =IF(SUMIF(CoverageRatios!$I$8:$FG$8,R$7,CoverageRatios!$I$77:$FG$77)=0,"N/A",SUMIF(CoverageRatios!$I$8:$FG$8,R$7,CoverageRatios!$I$77:$FG$77)) -> 1.692880236 | S85: =IF(SUMIF(CoverageRatios!$I$8:$FG$8,S$7,CoverageRatios!$I$77:$FG$77)=0,"N/A",SUMIF(CoverageRatios!$I$8:$FG$8,S$7,CoverageRatios!$I$77:$FG$77)) -> 1.937891122 | T85: =IF(SUMIF(CoverageRatios!$I$8:$FG$8,T$7,CoverageRatios!$I$77:$FG$77)=0,"N/A",SUMIF(CoverageRatios!$I$8:$FG$8,T$7,CoverageRatios!$I$77:$FG$77)) -> 2.312449903 | U85: =IF(SUMIF(CoverageRatios!$I$8:$FG$8,U$7,CoverageRatios!$I$77:$FG$77)=0,"N/A",SUMIF(CoverageRatios!$I$8:$FG$8,U$7,CoverageRatios!$I$77:$FG$77)) -> 2.38219577 | V85: =IF(SUMIF(CoverageRatios!$I$8:$FG$8,V$7,CoverageRatios!$I$77:$FG$77)=0,"N/A",SUMIF(CoverageRatios!$I$8:$FG$8,V$7,CoverageRatios!$I$77:$FG$77)) -> 2.976356494 | W85: =IF(SUMIF(CoverageRatios!$I$8:$FG$8,W$7,CoverageRatios!$I$77:$FG$77)=0,"N/A",SUMIF(CoverageRatios!$I$8:$FG$8,W$7,CoverageRatios!$I$77:$FG$77)) -> 4.351299603 | X85: =IF(SUMIF(CoverageRatios!$I$8:$FG$8,X$7,CoverageRatios!$I$77:$FG$77)=0,"N/A",SUMIF(CoverageRatios!$I$8:$FG$8,X$7,CoverageRatios!$I$77:$FG$77)) -> 5.785095201 | Y85: =IF(SUMIF(CoverageRatios!$I$8:$FG$8,Y$7,CoverageRatios!$I$77:$FG$77)=0,"N/A",SUMIF(CoverageRatios!$I$8:$FG$8,Y$7,CoverageRatios!$I$77:$FG$77)) -> 8.275151688 | Z85: =IF(SUMIF(CoverageRatios!$I$8:$FG$8,Z$7,CoverageRatios!$I$77:$FG$77)=0,"N/A",SUMIF(CoverageRatios!$I$8:$FG$8,Z$7,CoverageRatios!$I$77:$FG$77)) -> 7.751629992 | AA85: =IF(SUMIF(CoverageRatios!$I$8:$FG$8,AA$7,CoverageRatios!$I$77:$FG$77)=0,"N/A",SUMIF(CoverageRatios!$I$8:$FG$8,AA$7,CoverageRatios!$I$77:$FG$77)) -> 8.290121061 | AB85: =IF(SUMIF(CoverageRatios!$I$8:$FG$8,AB$7,CoverageRatios!$I$77:$FG$77)=0,"N/A",SUMIF(CoverageRatios!$I$8:$FG$8,AB$7,CoverageRatios!$I$77:$FG$77)) -> 9.367105221 | AC85: =IF(SUMIF(CoverageRatios!$I$8:$FG$8,AC$7,CoverageRatios!$I$77:$FG$77)=0,"N/A",SUMIF(CoverageRatios!$I$8:$FG$8,AC$7,CoverageRatios!$I$77:$FG$77)) -> 10.18878417 | AD85: =IF(SUMIF(CoverageRatios!$I$8:$FG$8,AD$7,CoverageRatios!$I$77:$FG$77)=0,"N/A",SUMIF(CoverageRatios!$I$8:$FG$8,AD$7,CoverageRatios!$I$77:$FG$77)) -> 10.80459213 | AE85: =IF(SUMIF(CoverageRatios!$I$8:$FG$8,AE$7,CoverageRatios!$I$77:$FG$77)=0,"N/A",SUMIF(CoverageRatios!$I$8:$FG$8,AE$7,CoverageRatios!$I$77:$FG$77)) -> 11.62457748 | AF85: =IF(SUMIF(CoverageRatios!$I$8:$FG$8,AF$7,CoverageRatios!$I$77:$FG$77)=0,"N/A",SUMIF(CoverageRatios!$I$8:$FG$8,AF$7,CoverageRatios!$I$77:$FG$77)) -> 12.5140618 | AG85: =IF(SUMIF(CoverageRatios!$I$8:$FG$8,AG$7,CoverageRatios!$I$77:$FG$77)=0,"N/A",SUMIF(CoverageRatios!$I$8:$FG$8,AG$7,CoverageRatios!$I$77:$FG$77)) -> 13.3815176 | AH85: =IF(SUMIF(CoverageRatios!$I$8:$FG$8,AH$7,CoverageRatios!$I$77:$FG$77)=0,"N/A",SUMIF(CoverageRatios!$I$8:$FG$8,AH$7,CoverageRatios!$I$77:$FG$77)) -> 13.87810832 | AI85: =IF(SUMIF(CoverageRatios!$I$8:$FG$8,AI$7,CoverageRatios!$I$77:$FG$77)=0,"N/A",SUMIF(CoverageRatios!$I$8:$FG$8,AI$7,CoverageRatios!$I$77:$FG$77)) -> 14.64200589 | AJ85: =IF(SUMIF(CoverageRatios!$I$8:$FG$8,AJ$7,CoverageRatios!$I$77:$FG$77)=0,"N/A",SUMIF(CoverageRatios!$I$8:$FG$8,AJ$7,CoverageRatios!$I$77:$FG$77)) -> 15.07548837 | AK85: =IF(SUMIF(CoverageRatios!$I$8:$FG$8,AK$7,CoverageRatios!$I$77:$FG$77)=0,"N/A",SUMIF(CoverageRatios!$I$8:$FG$8,AK$7,CoverageRatios!$I$77:$FG$77)) -> 13.16645837 | AL85: =IF(SUMIF(CoverageRatios!$I$8:$FG$8,AL$7,CoverageRatios!$I$77:$FG$77)=0,"N/A",SUMIF(CoverageRatios!$I$8:$FG$8,AL$7,CoverageRatios!$I$77:$FG$77)) -> 13.63994665 | AM85: =IF(SUMIF(CoverageRatios!$I$8:$FG$8,AM$7,CoverageRatios!$I$77:$FG$77)=0,"N/A",SUMIF(CoverageRatios!$I$8:$FG$8,AM$7,CoverageRatios!$I$77:$FG$77)) -> 14.50573283 | AN85: =IF(SUMIF(CoverageRatios!$I$8:$FG$8,AN$7,CoverageRatios!$I$77:$FG$77)=0,"N/A",SUMIF(CoverageRatios!$I$8:$FG$8,AN$7,CoverageRatios!$I$77:$FG$77)) -> 15.16956262 | AO85: =IF(SUMIF(CoverageRatios!$I$8:$FG$8,AO$7,CoverageRatios!$I$77:$FG$77)=0,"N/A",SUMIF(CoverageRatios!$I$8:$FG$8,AO$7,CoverageRatios!$I$77:$FG$77)) -> 16.12347696 | AP85: =IF(SUMIF(CoverageRatios!$I$8:$FG$8,AP$7,CoverageRatios!$I$77:$FG$77)=0,"N/A",SUMIF(CoverageRatios!$I$8:$FG$8,AP$7,CoverageRatios!$I$77:$FG$77)) -> 16.65853224 | AQ85: =IF(SUMIF(CoverageRatios!$I$8:$FG$8,AQ$7,CoverageRatios!$I$77:$FG$77)=0,"N/A",SUMIF(CoverageRatios!$I$8:$FG$8,AQ$7,CoverageRatios!$I$77:$FG$77)) -> 17.1469706 | AR85: =IF(SUMIF(CoverageRatios!$I$8:$FG$8,AR$7,CoverageRatios!$I$77:$FG$77)=0,"N/A",SUMIF(CoverageRatios!$I$8:$FG$8,AR$7,CoverageRatios!$I$77:$FG$77)) -> 17.82425193 | AS85: =IF(SUMIF(CoverageRatios!$I$8:$FG$8,AS$7,CoverageRatios!$I$77:$FG$77)=0,"N/A",SUMIF(CoverageRatios!$I$8:$FG$8,AS$7,CoverageRatios!$I$77:$FG$77)) -> 18.83086823 | AT85: =IF(SUMIF(CoverageRatios!$I$8:$FG$8,AT$7,CoverageRatios!$I$77:$FG$77)=0,"N/A",SUMIF(CoverageRatios!$I$8:$FG$8,AT$7,CoverageRatios!$I$77:$FG$77)) -> 19.80840643 | AU85: =IF(SUMIF(CoverageRatios!$I$8:$FG$8,AU$7,CoverageRatios!$I$77:$FG$77)=0,"N/A",SUMIF(CoverageRatios!$I$8:$FG$8,AU$7,CoverageRatios!$I$77:$FG$77)) -> N/A
C87: Project Life Coverage Ratios
C88: =CoverageRatios!C164 -> Senior Debt LLCR | I88: =IF(I8<YEAR(OpsComm),"N/A",IF(SUMIF(CoverageRatios!$I$8:$FG$8,I$7,CoverageRatios!$I$164:$FG$164)=0,"N/A",SUMIF(CoverageRatios!$I$8:$FG$8,I$7,CoverageRatios!$I$164:$FG$164))) -> N/A | J88: =IF(J8<YEAR(OpsComm),"N/A",IF(SUMIF(CoverageRatios!$I$8:$FG$8,J$7,CoverageRatios!$I$164:$FG$164)=0,"N/A",SUMIF(CoverageRatios!$I$8:$FG$8,J$7,CoverageRatios!$I$164:$FG$164))) -> N/A | K88: =IF(K8<YEAR(OpsComm),"N/A",IF(SUMIF(CoverageRatios!$I$8:$FG$8,K$7,CoverageRatios!$I$164:$FG$164)=0,"N/A",SUMIF(CoverageRatios!$I$8:$FG$8,K$7,CoverageRatios!$I$164:$FG$164))) -> N/A | L88: =IF(L8<YEAR(OpsComm),"N/A",IF(SUMIF(CoverageRatios!$I$8:$FG$8,L$7,CoverageRatios!$I$164:$FG$164)=0,"N/A",SUMIF(CoverageRatios!$I$8:$FG$8,L$7,CoverageRatios!$I$164:$FG$164))) -> N/A | M88: =IF(M8<YEAR(OpsComm),"N/A",IF(SUMIF(CoverageRatios!$I$8:$FG$8,M$7,CoverageRatios!$I$164:$FG$164)=0,"N/A",SUMIF(CoverageRatios!$I$8:$FG$8,M$7,CoverageRatios!$I$164:$FG$164))) -> N/A | N88: =IF(N8<YEAR(OpsComm),"N/A",IF(SUMIF(CoverageRatios!$I$8:$FG$8,N$7,CoverageRatios!$I$164:$FG$164)=0,"N/A",SUMIF(CoverageRatios!$I$8:$FG$8,N$7,CoverageRatios!$I$164:$FG$164))) -> N/A | O88: =IF(O8<YEAR(OpsComm),"N/A",IF(SUMIF(CoverageRatios!$I$8:$FG$8,O$7,CoverageRatios!$I$164:$FG$164)=0,"N/A",SUMIF(CoverageRatios!$I$8:$FG$8,O$7,CoverageRatios!$I$164:$FG$164))) -> N/A | P88: =IF(P8<YEAR(OpsComm),"N/A",IF(SUMIF(CoverageRatios!$I$8:$FG$8,P$7,CoverageRatios!$I$164:$FG$164)=0,"N/A",SUMIF(CoverageRatios!$I$8:$FG$8,P$7,CoverageRatios!$I$164:$FG$164))) -> 1.844547661 | Q88: =IF(Q8<YEAR(OpsComm),"N/A",IF(SUMIF(CoverageRatios!$I$8:$FG$8,Q$7,CoverageRatios!$I$164:$FG$164)=0,"N/A",SUMIF(CoverageRatios!$I$8:$FG$8,Q$7,CoverageRatios!$I$164:$FG$164))) -> 1.810333357 | R88: =IF(R8<YEAR(OpsComm),"N/A",IF(SUMIF(CoverageRatios!$I$8:$FG$8,R$7,CoverageRatios!$I$164:$FG$164)=0,"N/A",SUMIF(CoverageRatios!$I$8:$FG$8,R$7,CoverageRatios!$I$164:$FG$164))) -> 1.742921335 | S88: =IF(S8<YEAR(OpsComm),"N/A",IF(SUMIF(CoverageRatios!$I$8:$FG$8,S$7,CoverageRatios!$I$164:$FG$164)=0,"N/A",SUMIF(CoverageRatios!$I$8:$FG$8,S$7,CoverageRatios!$I$164:$FG$164))) -> 1.779454601 | T88: =IF(T8<YEAR(OpsComm),"N/A",IF(SUMIF(CoverageRatios!$I$8:$FG$8,T$7,CoverageRatios!$I$164:$FG$164)=0,"N/A",SUMIF(CoverageRatios!$I$8:$FG$8,T$7,CoverageRatios!$I$164:$FG$164))) -> 1.875467313 | U88: =IF(U8<YEAR(OpsComm),"N/A",IF(SUMIF(CoverageRatios!$I$8:$FG$8,U$7,CoverageRatios!$I$164:$FG$164)=0,"N/A",SUMIF(CoverageRatios!$I$8:$FG$8,U$7,CoverageRatios!$I$164:$FG$164))) -> 2.026752316 | V88: =IF(V8<YEAR(OpsComm),"N/A",IF(SUMIF(CoverageRatios!$I$8:$FG$8,V$7,CoverageRatios!$I$164:$FG$164)=0,"N/A",SUMIF(CoverageRatios!$I$8:$FG$8,V$7,CoverageRatios!$I$164:$FG$164))) -> 2.298734646 | W88: =IF(W8<YEAR(OpsComm),"N/A",IF(SUMIF(CoverageRatios!$I$8:$FG$8,W$7,CoverageRatios!$I$164:$FG$164)=0,"N/A",SUMIF(CoverageRatios!$I$8:$FG$8,W$7,CoverageRatios!$I$164:$FG$164))) -> 3.011986349 | X88: =IF(X8<YEAR(OpsComm),"N/A",IF(SUMIF(CoverageRatios!$I$8:$FG$8,X$7,CoverageRatios!$I$164:$FG$164)=0,"N/A",SUMIF(CoverageRatios!$I$8:$FG$8,X$7,CoverageRatios!$I$164:$FG$164))) -> 5.718298788 | Y88: =IF(Y8<YEAR(OpsComm),"N/A",IF(SUMIF(CoverageRatios!$I$8:$FG$8,Y$7,CoverageRatios!$I$164:$FG$164)=0,"N/A",SUMIF(CoverageRatios!$I$8:$FG$8,Y$7,CoverageRatios!$I$164:$FG$164))) -> N/A | Z88: =IF(Z8<YEAR(OpsComm),"N/A",IF(SUMIF(CoverageRatios!$I$8:$FG$8,Z$7,CoverageRatios!$I$164:$FG$164)=0,"N/A",SUMIF(CoverageRatios!$I$8:$FG$8,Z$7,CoverageRatios!$I$164:$FG$164))) -> N/A | AA88: =IF(AA8<YEAR(OpsComm),"N/A",IF(SUMIF(CoverageRatios!$I$8:$FG$8,AA$7,CoverageRatios!$I$164:$FG$164)=0,"N/A",SUMIF(CoverageRatios!$I$8:$FG$8,AA$7,CoverageRatios!$I$164:$FG$164))) -> N/A | AB88: =IF(AB8<YEAR(OpsComm),"N/A",IF(SUMIF(CoverageRatios!$I$8:$FG$8,AB$7,CoverageRatios!$I$164:$FG$164)=0,"N/A",SUMIF(CoverageRatios!$I$8:$FG$8,AB$7,CoverageRatios!$I$164:$FG$164))) -> N/A | AC88: =IF(AC8<YEAR(OpsComm),"N/A",IF(SUMIF(CoverageRatios!$I$8:$FG$8,AC$7,CoverageRatios!$I$164:$FG$164)=0,"N/A",SUMIF(CoverageRatios!$I$8:$FG$8,AC$7,CoverageRatios!$I$164:$FG$164))) -> N/A | AD88: =IF(AD8<YEAR(OpsComm),"N/A",IF(SUMIF(CoverageRatios!$I$8:$FG$8,AD$7,CoverageRatios!$I$164:$FG$164)=0,"N/A",SUMIF(CoverageRatios!$I$8:$FG$8,AD$7,CoverageRatios!$I$164:$FG$164))) -> N/A | AE88: =IF(AE8<YEAR(OpsComm),"N/A",IF(SUMIF(CoverageRatios!$I$8:$FG$8,AE$7,CoverageRatios!$I$164:$FG$164)=0,"N/A",SUMIF(CoverageRatios!$I$8:$FG$8,AE$7,CoverageRatios!$I$164:$FG$164))) -> N/A | AF88: =IF(AF8<YEAR(OpsComm),"N/A",IF(SUMIF(CoverageRatios!$I$8:$FG$8,AF$7,CoverageRatios!$I$164:$FG$164)=0,"N/A",SUMIF(CoverageRatios!$I$8:$FG$8,AF$7,CoverageRatios!$I$164:$FG$164))) -> N/A | AG88: =IF(AG8<YEAR(OpsComm),"N/A",IF(SUMIF(CoverageRatios!$I$8:$FG$8,AG$7,CoverageRatios!$I$164:$FG$164)=0,"N/A",SUMIF(CoverageRatios!$I$8:$FG$8,AG$7,CoverageRatios!$I$164:$FG$164))) -> N/A | AH88: =IF(AH8<YEAR(OpsComm),"N/A",IF(SUMIF(CoverageRatios!$I$8:$FG$8,AH$7,CoverageRatios!$I$164:$FG$164)=0,"N/A",SUMIF(CoverageRatios!$I$8:$FG$8,AH$7,CoverageRatios!$I$164:$FG$164))) -> N/A | AI88: =IF(AI8<YEAR(OpsComm),"N/A",IF(SUMIF(CoverageRatios!$I$8:$FG$8,AI$7,CoverageRatios!$I$164:$FG$164)=0,"N/A",SUMIF(CoverageRatios!$I$8:$FG$8,AI$7,CoverageRatios!$I$164:$FG$164))) -> N/A | AJ88: =IF(AJ8<YEAR(OpsComm),"N/A",IF(SUMIF(CoverageRatios!$I$8:$FG$8,AJ$7,CoverageRatios!$I$164:$FG$164)=0,"N/A",SUMIF(CoverageRatios!$I$8:$FG$8,AJ$7,CoverageRatios!$I$164:$FG$164))) -> N/A | AK88: =IF(AK8<YEAR(OpsComm),"N/A",IF(SUMIF(CoverageRatios!$I$8:$FG$8,AK$7,CoverageRatios!$I$164:$FG$164)=0,"N/A",SUMIF(CoverageRatios!$I$8:$FG$8,AK$7,CoverageRatios!$I$164:$FG$164))) -> N/A | AL88: =IF(AL8<YEAR(OpsComm),"N/A",IF(SUMIF(CoverageRatios!$I$8:$FG$8,AL$7,CoverageRatios!$I$164:$FG$164)=0,"N/A",SUMIF(CoverageRatios!$I$8:$FG$8,AL$7,CoverageRatios!$I$164:$FG$164))) -> N/A | AM88: =IF(AM8<YEAR(OpsComm),"N/A",IF(SUMIF(CoverageRatios!$I$8:$FG$8,AM$7,CoverageRatios!$I$164:$FG$164)=0,"N/A",SUMIF(CoverageRatios!$I$8:$FG$8,AM$7,CoverageRatios!$I$164:$FG$164))) -> N/A | AN88: =IF(AN8<YEAR(OpsComm),"N/A",IF(SUMIF(CoverageRatios!$I$8:$FG$8,AN$7,CoverageRatios!$I$164:$FG$164)=0,"N/A",SUMIF(CoverageRatios!$I$8:$FG$8,AN$7,CoverageRatios!$I$164:$FG$164))) -> N/A | AO88: =IF(AO8<YEAR(OpsComm),"N/A",IF(SUMIF(CoverageRatios!$I$8:$FG$8,AO$7,CoverageRatios!$I$164:$FG$164)=0,"N/A",SUMIF(CoverageRatios!$I$8:$FG$8,AO$7,CoverageRatios!$I$164:$FG$164))) -> N/A | AP88: =IF(AP8<YEAR(OpsComm),"N/A",IF(SUMIF(CoverageRatios!$I$8:$FG$8,AP$7,CoverageRatios!$I$164:$FG$164)=0,"N/A",SUMIF(CoverageRatios!$I$8:$FG$8,AP$7,CoverageRatios!$I$164:$FG$164))) -> N/A | AQ88: =IF(AQ8<YEAR(OpsComm),"N/A",IF(SUMIF(CoverageRatios!$I$8:$FG$8,AQ$7,CoverageRatios!$I$164:$FG$164)=0,"N/A",SUMIF(CoverageRatios!$I$8:$FG$8,AQ$7,CoverageRatios!$I$164:$FG$164))) -> N/A | AR88: =IF(AR8<YEAR(OpsComm),"N/A",IF(SUMIF(CoverageRatios!$I$8:$FG$8,AR$7,CoverageRatios!$I$164:$FG$164)=0,"N/A",SUMIF(CoverageRatios!$I$8:$FG$8,AR$7,CoverageRatios!$I$164:$FG$164))) -> N/A | AS88: =IF(AS8<YEAR(OpsComm),"N/A",IF(SUMIF(CoverageRatios!$I$8:$FG$8,AS$7,CoverageRatios!$I$164:$FG$164)=0,"N/A",SUMIF(CoverageRatios!$I$8:$FG$8,AS$7,CoverageRatios!$I$164:$FG$164))) -> N/A | AT88: =IF(AT8<YEAR(OpsComm),"N/A",IF(SUMIF(CoverageRatios!$I$8:$FG$8,AT$7,CoverageRatios!$I$164:$FG$164)=0,"N/A",SUMIF(CoverageRatios!$I$8:$FG$8,AT$7,CoverageRatios!$I$164:$FG$164))) -> N/A | AU88: =IF(AU8<YEAR(OpsComm),"N/A",IF(SUMIF(CoverageRatios!$I$8:$FG$8,AU$7,CoverageRatios!$I$164:$FG$164)=0,"N/A",SUMIF(CoverageRatios!$I$8:$FG$8,AU$7,CoverageRatios!$I$164:$FG$164))) -> N/A | AV88: =IF(AV8<YEAR(OpsComm),"N/A",IF(SUMIF(CoverageRatios!$I$8:$FG$8,AV$7,CoverageRatios!$I$164:$FG$164)=0,"N/A",SUMIF(CoverageRatios!$I$8:$FG$8,AV$7,CoverageRatios!$I$164:$FG$164))) -> N/A
C89: =CoverageRatios!C158 -> Senior Debt PLCR | I89: =IF(I8<YEAR(OpsComm),"N/A",IF(SUMIF(CoverageRatios!$I$8:$FG$8,I$7,CoverageRatios!$I$158:$FG$158)=0,"N/A",SUMIF(CoverageRatios!$I$8:$FG$8,I$7,CoverageRatios!$I$158:$FG$158))) -> N/A | J89: =IF(J8<YEAR(OpsComm),"N/A",IF(SUMIF(CoverageRatios!$I$8:$FG$8,J$7,CoverageRatios!$I$158:$FG$158)=0,"N/A",SUMIF(CoverageRatios!$I$8:$FG$8,J$7,CoverageRatios!$I$158:$FG$158))) -> N/A | K89: =IF(K8<YEAR(OpsComm),"N/A",IF(SUMIF(CoverageRatios!$I$8:$FG$8,K$7,CoverageRatios!$I$158:$FG$158)=0,"N/A",SUMIF(CoverageRatios!$I$8:$FG$8,K$7,CoverageRatios!$I$158:$FG$158))) -> N/A | L89: =IF(L8<YEAR(OpsComm),"N/A",IF(SUMIF(CoverageRatios!$I$8:$FG$8,L$7,CoverageRatios!$I$158:$FG$158)=0,"N/A",SUMIF(CoverageRatios!$I$8:$FG$8,L$7,CoverageRatios!$I$158:$FG$158))) -> N/A | M89: =IF(M8<YEAR(OpsComm),"N/A",IF(SUMIF(CoverageRatios!$I$8:$FG$8,M$7,CoverageRatios!$I$158:$FG$158)=0,"N/A",SUMIF(CoverageRatios!$I$8:$FG$8,M$7,CoverageRatios!$I$158:$FG$158))) -> N/A | N89: =IF(N8<YEAR(OpsComm),"N/A",IF(SUMIF(CoverageRatios!$I$8:$FG$8,N$7,CoverageRatios!$I$158:$FG$158)=0,"N/A",SUMIF(CoverageRatios!$I$8:$FG$8,N$7,CoverageRatios!$I$158:$FG$158))) -> N/A | O89: =IF(O8<YEAR(OpsComm),"N/A",IF(SUMIF(CoverageRatios!$I$8:$FG$8,O$7,CoverageRatios!$I$158:$FG$158)=0,"N/A",SUMIF(CoverageRatios!$I$8:$FG$8,O$7,CoverageRatios!$I$158:$FG$158))) -> N/A | P89: =IF(P8<YEAR(OpsComm),"N/A",IF(SUMIF(CoverageRatios!$I$8:$FG$8,P$7,CoverageRatios!$I$158:$FG$158)=0,"N/A",SUMIF(CoverageRatios!$I$8:$FG$8,P$7,CoverageRatios!$I$158:$FG$158))) -> 6.192172754 | Q89: =IF(Q8<YEAR(OpsComm),"N/A",IF(SUMIF(CoverageRatios!$I$8:$FG$8,Q$7,CoverageRatios!$I$158:$FG$158)=0,"N/A",SUMIF(CoverageRatios!$I$8:$FG$8,Q$7,CoverageRatios!$I$158:$FG$158))) -> 6.399874463 | R89: =IF(R8<YEAR(OpsComm),"N/A",IF(SUMIF(CoverageRatios!$I$8:$FG$8,R$7,CoverageRatios!$I$158:$FG$158)=0,"N/A",SUMIF(CoverageRatios!$I$8:$FG$8,R$7,CoverageRatios!$I$158:$FG$158))) -> 6.723359746 | S89: =IF(S8<YEAR(OpsComm),"N/A",IF(SUMIF(CoverageRatios!$I$8:$FG$8,S$7,CoverageRatios!$I$158:$FG$158)=0,"N/A",SUMIF(CoverageRatios!$I$8:$FG$8,S$7,CoverageRatios!$I$158:$FG$158))) -> 7.324950454 | T89: =IF(T8<YEAR(OpsComm),"N/A",IF(SUMIF(CoverageRatios!$I$8:$FG$8,T$7,CoverageRatios!$I$158:$FG$158)=0,"N/A",SUMIF(CoverageRatios!$I$8:$FG$8,T$7,CoverageRatios!$I$158:$FG$158))) -> 8.364031285 | U89: =IF(U8<YEAR(OpsComm),"N/A",IF(SUMIF(CoverageRatios!$I$8:$FG$8,U$7,CoverageRatios!$I$158:$FG$158)=0,"N/A",SUMIF(CoverageRatios!$I$8:$FG$8,U$7,CoverageRatios!$I$158:$FG$158))) -> 9.845426619 | V89: =IF(V8<YEAR(OpsComm),"N/A",IF(SUMIF(CoverageRatios!$I$8:$FG$8,V$7,CoverageRatios!$I$158:$FG$158)=0,"N/A",SUMIF(CoverageRatios!$I$8:$FG$8,V$7,CoverageRatios!$I$158:$FG$158))) -> 12.41049258 | W89: =IF(W8<YEAR(OpsComm),"N/A",IF(SUMIF(CoverageRatios!$I$8:$FG$8,W$7,CoverageRatios!$I$158:$FG$158)=0,"N/A",SUMIF(CoverageRatios!$I$8:$FG$8,W$7,CoverageRatios!$I$158:$FG$158))) -> 18.94356651 | X89: =IF(X8<YEAR(OpsComm),"N/A",IF(SUMIF(CoverageRatios!$I$8:$FG$8,X$7,CoverageRatios!$I$158:$FG$158)=0,"N/A",SUMIF(CoverageRatios!$I$8:$FG$8,X$7,CoverageRatios!$I$158:$FG$158))) -> 43.47075577 | Y89: =IF(Y8<YEAR(OpsComm),"N/A",IF(SUMIF(CoverageRatios!$I$8:$FG$8,Y$7,CoverageRatios!$I$158:$FG$158)=0,"N/A",SUMIF(CoverageRatios!$I$8:$FG$8,Y$7,CoverageRatios!$I$158:$FG$158))) -> N/A | Z89: =IF(Z8<YEAR(OpsComm),"N/A",IF(SUMIF(CoverageRatios!$I$8:$FG$8,Z$7,CoverageRatios!$I$158:$FG$158)=0,"N/A",SUMIF(CoverageRatios!$I$8:$FG$8,Z$7,CoverageRatios!$I$158:$FG$158))) -> N/A | AA89: =IF(AA8<YEAR(OpsComm),"N/A",IF(SUMIF(CoverageRatios!$I$8:$FG$8,AA$7,CoverageRatios!$I$158:$FG$158)=0,"N/A",SUMIF(CoverageRatios!$I$8:$FG$8,AA$7,CoverageRatios!$I$158:$FG$158))) -> N/A | AB89: =IF(AB8<YEAR(OpsComm),"N/A",IF(SUMIF(CoverageRatios!$I$8:$FG$8,AB$7,CoverageRatios!$I$158:$FG$158)=0,"N/A",SUMIF(CoverageRatios!$I$8:$FG$8,AB$7,CoverageRatios!$I$158:$FG$158))) -> N/A | AC89: =IF(AC8<YEAR(OpsComm),"N/A",IF(SUMIF(CoverageRatios!$I$8:$FG$8,AC$7,CoverageRatios!$I$158:$FG$158)=0,"N/A",SUMIF(CoverageRatios!$I$8:$FG$8,AC$7,CoverageRatios!$I$158:$FG$158))) -> N/A | AD89: =IF(AD8<YEAR(OpsComm),"N/A",IF(SUMIF(CoverageRatios!$I$8:$FG$8,AD$7,CoverageRatios!$I$158:$FG$158)=0,"N/A",SUMIF(CoverageRatios!$I$8:$FG$8,AD$7,CoverageRatios!$I$158:$FG$158))) -> N/A | AE89: =IF(AE8<YEAR(OpsComm),"N/A",IF(SUMIF(CoverageRatios!$I$8:$FG$8,AE$7,CoverageRatios!$I$158:$FG$158)=0,"N/A",SUMIF(CoverageRatios!$I$8:$FG$8,AE$7,CoverageRatios!$I$158:$FG$158))) -> N/A | AF89: =IF(AF8<YEAR(OpsComm),"N/A",IF(SUMIF(CoverageRatios!$I$8:$FG$8,AF$7,CoverageRatios!$I$158:$FG$158)=0,"N/A",SUMIF(CoverageRatios!$I$8:$FG$8,AF$7,CoverageRatios!$I$158:$FG$158))) -> N/A | AG89: =IF(AG8<YEAR(OpsComm),"N/A",IF(SUMIF(CoverageRatios!$I$8:$FG$8,AG$7,CoverageRatios!$I$158:$FG$158)=0,"N/A",SUMIF(CoverageRatios!$I$8:$FG$8,AG$7,CoverageRatios!$I$158:$FG$158))) -> N/A | AH89: =IF(AH8<YEAR(OpsComm),"N/A",IF(SUMIF(CoverageRatios!$I$8:$FG$8,AH$7,CoverageRatios!$I$158:$FG$158)=0,"N/A",SUMIF(CoverageRatios!$I$8:$FG$8,AH$7,CoverageRatios!$I$158:$FG$158))) -> N/A | AI89: =IF(AI8<YEAR(OpsComm),"N/A",IF(SUMIF(CoverageRatios!$I$8:$FG$8,AI$7,CoverageRatios!$I$158:$FG$158)=0,"N/A",SUMIF(CoverageRatios!$I$8:$FG$8,AI$7,CoverageRatios!$I$158:$FG$158))) -> N/A | AJ89: =IF(AJ8<YEAR(OpsComm),"N/A",IF(SUMIF(CoverageRatios!$I$8:$FG$8,AJ$7,CoverageRatios!$I$158:$FG$158)=0,"N/A",SUMIF(CoverageRatios!$I$8:$FG$8,AJ$7,CoverageRatios!$I$158:$FG$158))) -> N/A | AK89: =IF(AK8<YEAR(OpsComm),"N/A",IF(SUMIF(CoverageRatios!$I$8:$FG$8,AK$7,CoverageRatios!$I$158:$FG$158)=0,"N/A",SUMIF(CoverageRatios!$I$8:$FG$8,AK$7,CoverageRatios!$I$158:$FG$158))) -> N/A | AL89: =IF(AL8<YEAR(OpsComm),"N/A",IF(SUMIF(CoverageRatios!$I$8:$FG$8,AL$7,CoverageRatios!$I$158:$FG$158)=0,"N/A",SUMIF(CoverageRatios!$I$8:$FG$8,AL$7,CoverageRatios!$I$158:$FG$158))) -> N/A | AM89: =IF(AM8<YEAR(OpsComm),"N/A",IF(SUMIF(CoverageRatios!$I$8:$FG$8,AM$7,CoverageRatios!$I$158:$FG$158)=0,"N/A",SUMIF(CoverageRatios!$I$8:$FG$8,AM$7,CoverageRatios!$I$158:$FG$158))) -> N/A | AN89: =IF(AN8<YEAR(OpsComm),"N/A",IF(SUMIF(CoverageRatios!$I$8:$FG$8,AN$7,CoverageRatios!$I$158:$FG$158)=0,"N/A",SUMIF(CoverageRatios!$I$8:$FG$8,AN$7,CoverageRatios!$I$158:$FG$158))) -> N/A | AO89: =IF(AO8<YEAR(OpsComm),"N/A",IF(SUMIF(CoverageRatios!$I$8:$FG$8,AO$7,CoverageRatios!$I$158:$FG$158)=0,"N/A",SUMIF(CoverageRatios!$I$8:$FG$8,AO$7,CoverageRatios!$I$158:$FG$158))) -> N/A | AP89: =IF(AP8<YEAR(OpsComm),"N/A",IF(SUMIF(CoverageRatios!$I$8:$FG$8,AP$7,CoverageRatios!$I$158:$FG$158)=0,"N/A",SUMIF(CoverageRatios!$I$8:$FG$8,AP$7,CoverageRatios!$I$158:$FG$158))) -> N/A | AQ89: =IF(AQ8<YEAR(OpsComm),"N/A",IF(SUMIF(CoverageRatios!$I$8:$FG$8,AQ$7,CoverageRatios!$I$158:$FG$158)=0,"N/A",SUMIF(CoverageRatios!$I$8:$FG$8,AQ$7,CoverageRatios!$I$158:$FG$158))) -> N/A | AR89: =IF(AR8<YEAR(OpsComm),"N/A",IF(SUMIF(CoverageRatios!$I$8:$FG$8,AR$7,CoverageRatios!$I$158:$FG$158)=0,"N/A",SUMIF(CoverageRatios!$I$8:$FG$8,AR$7,CoverageRatios!$I$158:$FG$158))) -> N/A | AS89: =IF(AS8<YEAR(OpsComm),"N/A",IF(SUMIF(CoverageRatios!$I$8:$FG$8,AS$7,CoverageRatios!$I$158:$FG$158)=0,"N/A",SUMIF(CoverageRatios!$I$8:$FG$8,AS$7,CoverageRatios!$I$158:$FG$158))) -> N/A | AT89: =IF(AT8<YEAR(OpsComm),"N/A",IF(SUMIF(CoverageRatios!$I$8:$FG$8,AT$7,CoverageRatios!$I$158:$FG$158)=0,"N/A",SUMIF(CoverageRatios!$I$8:$FG$8,AT$7,CoverageRatios!$I$158:$FG$158))) -> N/A | AU89: =IF(AU8<YEAR(OpsComm),"N/A",IF(SUMIF(CoverageRatios!$I$8:$FG$8,AU$7,CoverageRatios!$I$158:$FG$158)=0,"N/A",SUMIF(CoverageRatios!$I$8:$FG$8,AU$7,CoverageRatios!$I$158:$FG$158))) -> N/A
C90: =CoverageRatios!C161 -> Total Debt PLCR | I90: =IF(I8<YEAR(OpsComm),"N/A",IF(SUMIF(CoverageRatios!$I$8:$FG$8,I$7,CoverageRatios!$I$161:$FG$161)=0,"N/A",SUMIF(CoverageRatios!$I$8:$FG$8,I$7,CoverageRatios!$I$161:$FG$161))) -> N/A | J90: =IF(J8<YEAR(OpsComm),"N/A",IF(SUMIF(CoverageRatios!$I$8:$FG$8,J$7,CoverageRatios!$I$161:$FG$161)=0,"N/A",SUMIF(CoverageRatios!$I$8:$FG$8,J$7,CoverageRatios!$I$161:$FG$161))) -> N/A | K90: =IF(K8<YEAR(OpsComm),"N/A",IF(SUMIF(CoverageRatios!$I$8:$FG$8,K$7,CoverageRatios!$I$161:$FG$161)=0,"N/A",SUMIF(CoverageRatios!$I$8:$FG$8,K$7,CoverageRatios!$I$161:$FG$161))) -> N/A | L90: =IF(L8<YEAR(OpsComm),"N/A",IF(SUMIF(CoverageRatios!$I$8:$FG$8,L$7,CoverageRatios!$I$161:$FG$161)=0,"N/A",SUMIF(CoverageRatios!$I$8:$FG$8,L$7,CoverageRatios!$I$161:$FG$161))) -> N/A | M90: =IF(M8<YEAR(OpsComm),"N/A",IF(SUMIF(CoverageRatios!$I$8:$FG$8,M$7,CoverageRatios!$I$161:$FG$161)=0,"N/A",SUMIF(CoverageRatios!$I$8:$FG$8,M$7,CoverageRatios!$I$161:$FG$161))) -> N/A | N90: =IF(N8<YEAR(OpsComm),"N/A",IF(SUMIF(CoverageRatios!$I$8:$FG$8,N$7,CoverageRatios!$I$161:$FG$161)=0,"N/A",SUMIF(CoverageRatios!$I$8:$FG$8,N$7,CoverageRatios!$I$161:$FG$161))) -> N/A | O90: =IF(O8<YEAR(OpsComm),"N/A",IF(SUMIF(CoverageRatios!$I$8:$FG$8,O$7,CoverageRatios!$I$161:$FG$161)=0,"N/A",SUMIF(CoverageRatios!$I$8:$FG$8,O$7,CoverageRatios!$I$161:$FG$161))) -> N/A | P90: =IF(P8<YEAR(OpsComm),"N/A",IF(SUMIF(CoverageRatios!$I$8:$FG$8,P$7,CoverageRatios!$I$161:$FG$161)=0,"N/A",SUMIF(CoverageRatios!$I$8:$FG$8,P$7,CoverageRatios!$I$161:$FG$161))) -> 3.986538143 | Q90: =IF(Q8<YEAR(OpsComm),"N/A",IF(SUMIF(CoverageRatios!$I$8:$FG$8,Q$7,CoverageRatios!$I$161:$FG$161)=0,"N/A",SUMIF(CoverageRatios!$I$8:$FG$8,Q$7,CoverageRatios!$I$161:$FG$161))) -> 4.116260995 | R90: =IF(R8<YEAR(OpsComm),"N/A",IF(SUMIF(CoverageRatios!$I$8:$FG$8,R$7,CoverageRatios!$I$161:$FG$161)=0,"N/A",SUMIF(CoverageRatios!$I$8:$FG$8,R$7,CoverageRatios!$I$161:$FG$161))) -> 4.277111278 | S90: =IF(S8<YEAR(OpsComm),"N/A",IF(SUMIF(CoverageRatios!$I$8:$FG$8,S$7,CoverageRatios!$I$161:$FG$161)=0,"N/A",SUMIF(CoverageRatios!$I$8:$FG$8,S$7,CoverageRatios!$I$161:$FG$161))) -> 4.559901229 | T90: =IF(T8<YEAR(OpsComm),"N/A",IF(SUMIF(CoverageRatios!$I$8:$FG$8,T$7,CoverageRatios!$I$161:$FG$161)=0,"N/A",SUMIF(CoverageRatios!$I$8:$FG$8,T$7,CoverageRatios!$I$161:$FG$161))) -> 4.992230589 | U90: =IF(U8<YEAR(OpsComm),"N/A",IF(SUMIF(CoverageRatios!$I$8:$FG$8,U$7,CoverageRatios!$I$161:$FG$161)=0,"N/A",SUMIF(CoverageRatios!$I$8:$FG$8,U$7,CoverageRatios!$I$161:$FG$161))) -> 5.551208116 | V90: =IF(V8<YEAR(OpsComm),"N/A",IF(SUMIF(CoverageRatios!$I$8:$FG$8,V$7,CoverageRatios!$I$161:$FG$161)=0,"N/A",SUMIF(CoverageRatios!$I$8:$FG$8,V$7,CoverageRatios!$I$161:$FG$161))) -> 6.358537284 | W90: =IF(W8<YEAR(OpsComm),"N/A",IF(SUMIF(CoverageRatios!$I$8:$FG$8,W$7,CoverageRatios!$I$161:$FG$161)=0,"N/A",SUMIF(CoverageRatios!$I$8:$FG$8,W$7,CoverageRatios!$I$161:$FG$161))) -> 7.799741986 | X90: =IF(X8<YEAR(OpsComm),"N/A",IF(SUMIF(CoverageRatios!$I$8:$FG$8,X$7,CoverageRatios!$I$161:$FG$161)=0,"N/A",SUMIF(CoverageRatios!$I$8:$FG$8,X$7,CoverageRatios!$I$161:$FG$161))) -> 10.26849664 | Y90: =IF(Y8<YEAR(OpsComm),"N/A",IF(SUMIF(CoverageRatios!$I$8:$FG$8,Y$7,CoverageRatios!$I$161:$FG$161)=0,"N/A",SUMIF(CoverageRatios!$I$8:$FG$8,Y$7,CoverageRatios!$I$161:$FG$161))) -> 13.63405245 | Z90: =IF(Z8<YEAR(OpsComm),"N/A",IF(SUMIF(CoverageRatios!$I$8:$FG$8,Z$7,CoverageRatios!$I$161:$FG$161)=0,"N/A",SUMIF(CoverageRatios!$I$8:$FG$8,Z$7,CoverageRatios!$I$161:$FG$161))) -> 14.05969328 | AA90: =IF(AA8<YEAR(OpsComm),"N/A",IF(SUMIF(CoverageRatios!$I$8:$FG$8,AA$7,CoverageRatios!$I$161:$FG$161)=0,"N/A",SUMIF(CoverageRatios!$I$8:$FG$8,AA$7,CoverageRatios!$I$161:$FG$161))) -> 14.51623264 | AB90: =IF(AB8<YEAR(OpsComm),"N/A",IF(SUMIF(CoverageRatios!$I$8:$FG$8,AB$7,CoverageRatios!$I$161:$FG$161)=0,"N/A",SUMIF(CoverageRatios!$I$8:$FG$8,AB$7,CoverageRatios!$I$161:$FG$161))) -> 14.92504967 | AC90: =IF(AC8<YEAR(OpsComm),"N/A",IF(SUMIF(CoverageRatios!$I$8:$FG$8,AC$7,CoverageRatios!$I$161:$FG$161)=0,"N/A",SUMIF(CoverageRatios!$I$8:$FG$8,AC$7,CoverageRatios!$I$161:$FG$161))) -> 15.31411548 | AD90: =IF(AD8<YEAR(OpsComm),"N/A",IF(SUMIF(CoverageRatios!$I$8:$FG$8,AD$7,CoverageRatios!$I$161:$FG$161)=0,"N/A",SUMIF(CoverageRatios!$I$8:$FG$8,AD$7,CoverageRatios!$I$161:$FG$161))) -> 15.69848344 | AE90: =IF(AE8<YEAR(OpsComm),"N/A",IF(SUMIF(CoverageRatios!$I$8:$FG$8,AE$7,CoverageRatios!$I$161:$FG$161)=0,"N/A",SUMIF(CoverageRatios!$I$8:$FG$8,AE$7,CoverageRatios!$I$161:$FG$161))) -> 16.0597499 | AF90: =IF(AF8<YEAR(OpsComm),"N/A",IF(SUMIF(CoverageRatios!$I$8:$FG$8,AF$7,CoverageRatios!$I$161:$FG$161)=0,"N/A",SUMIF(CoverageRatios!$I$8:$FG$8,AF$7,CoverageRatios!$I$161:$FG$161))) -> 16.38789078 | AG90: =IF(AG8<YEAR(OpsComm),"N/A",IF(SUMIF(CoverageRatios!$I$8:$FG$8,AG$7,CoverageRatios!$I$161:$FG$161)=0,"N/A",SUMIF(CoverageRatios!$I$8:$FG$8,AG$7,CoverageRatios!$I$161:$FG$161))) -> 16.6791931 | AH90: =IF(AH8<YEAR(OpsComm),"N/A",IF(SUMIF(CoverageRatios!$I$8:$FG$8,AH$7,CoverageRatios!$I$161:$FG$161)=0,"N/A",SUMIF(CoverageRatios!$I$8:$FG$8,AH$7,CoverageRatios!$I$161:$FG$161))) -> 16.96513158 | AI90: =IF(AI8<YEAR(OpsComm),"N/A",IF(SUMIF(CoverageRatios!$I$8:$FG$8,AI$7,CoverageRatios!$I$161:$FG$161)=0,"N/A",SUMIF(CoverageRatios!$I$8:$FG$8,AI$7,CoverageRatios!$I$161:$FG$161))) -> 17.21563261 | AJ90: =IF(AJ8<YEAR(OpsComm),"N/A",IF(SUMIF(CoverageRatios!$I$8:$FG$8,AJ$7,CoverageRatios!$I$161:$FG$161)=0,"N/A",SUMIF(CoverageRatios!$I$8:$FG$8,AJ$7,CoverageRatios!$I$161:$FG$161))) -> 17.46155216 | AK90: =IF(AK8<YEAR(OpsComm),"N/A",IF(SUMIF(CoverageRatios!$I$8:$FG$8,AK$7,CoverageRatios!$I$161:$FG$161)=0,"N/A",SUMIF(CoverageRatios!$I$8:$FG$8,AK$7,CoverageRatios!$I$161:$FG$161))) -> 18.00008333 | AL90: =IF(AL8<YEAR(OpsComm),"N/A",IF(SUMIF(CoverageRatios!$I$8:$FG$8,AL$7,CoverageRatios!$I$161:$FG$161)=0,"N/A",SUMIF(CoverageRatios!$I$8:$FG$8,AL$7,CoverageRatios!$I$161:$FG$161))) -> 18.59465813 | AM90: =IF(AM8<YEAR(OpsComm),"N/A",IF(SUMIF(CoverageRatios!$I$8:$FG$8,AM$7,CoverageRatios!$I$161:$FG$161)=0,"N/A",SUMIF(CoverageRatios!$I$8:$FG$8,AM$7,CoverageRatios!$I$161:$FG$161))) -> 19.20776356 | AN90: =IF(AN8<YEAR(OpsComm),"N/A",IF(SUMIF(CoverageRatios!$I$8:$FG$8,AN$7,CoverageRatios!$I$161:$FG$161)=0,"N/A",SUMIF(CoverageRatios!$I$8:$FG$8,AN$7,CoverageRatios!$I$161:$FG$161))) -> 19.88442845 | AO90: =IF(AO8<YEAR(OpsComm),"N/A",IF(SUMIF(CoverageRatios!$I$8:$FG$8,AO$7,CoverageRatios!$I$161:$FG$161)=0,"N/A",SUMIF(CoverageRatios!$I$8:$FG$8,AO$7,CoverageRatios!$I$161:$FG$161))) -> 20.60222792 | AP90: =IF(AP8<YEAR(OpsComm),"N/A",IF(SUMIF(CoverageRatios!$I$8:$FG$8,AP$7,CoverageRatios!$I$161:$FG$161)=0,"N/A",SUMIF(CoverageRatios!$I$8:$FG$8,AP$7,CoverageRatios!$I$161:$FG$161))) -> 21.48585949 | AQ90: =IF(AQ8<YEAR(OpsComm),"N/A",IF(SUMIF(CoverageRatios!$I$8:$FG$8,AQ$7,CoverageRatios!$I$161:$FG$161)=0,"N/A",SUMIF(CoverageRatios!$I$8:$FG$8,AQ$7,CoverageRatios!$I$161:$FG$161))) -> 22.67544085 | AR90: =IF(AR8<YEAR(OpsComm),"N/A",IF(SUMIF(CoverageRatios!$I$8:$FG$8,AR$7,CoverageRatios!$I$161:$FG$161)=0,"N/A",SUMIF(CoverageRatios!$I$8:$FG$8,AR$7,CoverageRatios!$I$161:$FG$161))) -> 24.41205158 | AS90: =IF(AS8<YEAR(OpsComm),"N/A",IF(SUMIF(CoverageRatios!$I$8:$FG$8,AS$7,CoverageRatios!$I$161:$FG$161)=0,"N/A",SUMIF(CoverageRatios!$I$8:$FG$8,AS$7,CoverageRatios!$I$161:$FG$161))) -> 27.34604497 | AT90: =IF(AT8<YEAR(OpsComm),"N/A",IF(SUMIF(CoverageRatios!$I$8:$FG$8,AT$7,CoverageRatios!$I$161:$FG$161)=0,"N/A",SUMIF(CoverageRatios!$I$8:$FG$8,AT$7,CoverageRatios!$I$161:$FG$161))) -> 35.12236178 | AU90: =IF(AU8<YEAR(OpsComm),"N/A",IF(SUMIF(CoverageRatios!$I$8:$FG$8,AU$7,CoverageRatios!$I$161:$FG$161)=0,"N/A",SUMIF(CoverageRatios!$I$8:$FG$8,AU$7,CoverageRatios!$I$161:$FG$161))) -> N/A
A94: Reserve Balances
